Workbook

Sheet Data1 (hidden)
A1: Nr. | B1: Politikos sritis | C1: Nr | D1: Sektorius_I | E1: Naudos (žalos) komponentai_I | F1: Nauda/Zala | G1: Metodai | H1: Politikos_sritys (pasirinktos) | I1: Alternatyvos | J1: Data | K1: PVM_tarifas_išlaidų | L1: PVM_tarifas_pajamų | M1: Eilučių žymos | N1: Įgyvendinimo_trukme | P1: Alternatyva | Q1: DA_rodiklis
A2: 1 | B2: Aplinkos apsauga | C2: =INDEX(A:A,MATCH(D2,B:B,0),1) -> 1 | D2: Aplinkos apsauga | E2: Padidėjęs geriamo vandens tiekimo paslaugos prieinamumas | F2: N | G2: Sąnaudų ir naudos analizė | H2: 15 | I2: =IF(Pradžia!I29=TRUE,"Alternatyva 1","") -> Alternatyva 1 | J2: 43831 | K2: 0 | L2: 0 | M2: Alternatyva 1 | N2: 1 | O2: 4 | P2: Alternatyva 1 | Q2: DA1_rodiklis
A3: 2 | B3: Energetika | C3: 1 | D3: Aplinkos apsauga | E3: Geriamo vandens kokybės pagerėjimas | F3: N | G3: Sąnaudų veiksmingumo analizė | I3: =IF(Pradžia!I31=TRUE,"Alternatyva 2","") ->  | J3: =EDATE(TODAY(),48) -> 47663 | K3: 0.05 | L3: 0.05 | N3: 2 | P3: Alternatyva 2 | Q3: DA2_rodiklis
A4: 3 | B4: Informacinės visuomenės plėtra | C4: 1 | D4: Aplinkos apsauga | E4: Padidėjęs nuotekų tvarkymo paslaugos prieinamumas | F4: N | I4: =IF(Pradžia!I33=TRUE,"Alternatyva 3","") ->  | K4: 0.09 | L4: 0.09 | N4: 3 | P4: Alternatyva 3 | Q4: DA3_rodiklis
A5: 4 | B5: Krašto apsauga | C5: 1 | D5: Aplinkos apsauga | E5: Sąnaudų ekonomija dėl pagerintos lietaus nuotekų infrastruktūros | F5: N | I5: =IF(Pradžia!I35=TRUE,"Alternatyva 4","") ->  | K5: 0.21 | L5: 0.21 | N5: 4 | P5: Alternatyva 4 | Q5: DA4_rodiklis
A6: 5 | B6: Kultūra | C6: 1 | D6: Aplinkos apsauga | E6: Laiko sutaupymai | F6: N | I6: =IF(Pradžia!I37=TRUE,"Alternatyva 5","") ->  | K6: Nurodyta be PVM (susigrąžinamas/netaikomas) | L6: Be PVM | N6: 5 | P6: Alternatyva 5 | Q6: DA5_rodiklis
A7: 6 | B7: Socialinė apsauga | C7: 1 | D7: Aplinkos apsauga | E7: Vizualinės taršos, triukšmo, dulkių, kvapų sumažėjimas | F7: N | N7: 6
A8: 7 | B8: Sveikatos apsauga | C8: 1 | D8: Aplinkos apsauga | E8: ŠESD emisijos sumažėjimas | F8: N | N8: 7
A9: 8 | B9: Švietimas ir mokslas | C9: 1 | D9: Aplinkos apsauga | E9: Paviršinių vandens telkinių kokybės pagerėjimas | F9: N | N9: 8
A10: 9 | B10: Teisingumas / Teisėtvarka | C10: 1 | D10: Aplinkos apsauga | E10: Teritorijos rekreacinės vertės padidėjimas | F10: N | K10: Su PVM | N10: 9
A11: 10 | B11: Transportas | C11: 1 | D11: Aplinkos apsauga | E11: Nuostolių sumažėjimas dėl pavojingų, stichinių ir katastrofinių meteorologinių ir hidrologinių reiškinių | F11: N | K11: Be PVM | N11: 10
A12: 11 | B12: Turizmas | C12: 1 | D12: Aplinkos apsauga | E12: Oro taršos sumažėjimas | F12: N | N12: 11
A13: 12 | B13: Urbanistinė plėtra | C13: 1 | D13: Aplinkos apsauga | E13: Ekosistemų ir biologinės įvairovės išsaugojimas | F13: N | N13: 12
A14: 13 | B14: Verslas | C14: 1 | D14: Aplinkos apsauga | E14: Namų ūkiuose suvartojamos elektros energijos sumažėjimas | F14: N | N14: 13
A15: 14 | B15: Visuomenės apsauga | C15: 1 | D15: Aplinkos apsauga | E15: Namų ūkiuose suvartojamos elektros energijos padidėjimas | F15: Z | N15: 14
A16: 15 | B16: Žemės ūkis | C16: 1 | D16: Aplinkos apsauga | E16: Ne namų ūkiuose suvartojamos elektros energijos sumažėjimas | F16: N | N16: 15
A17: 16 | B17: Kita | C17: 1 | D17: Aplinkos apsauga | E17: Ne namų ūkiuose suvartojamos elektros energijos padidėjimas | F17: Z | N17: 16
C18: 1 | D18: Aplinkos apsauga | E18: Šilumos energijos suvartojimo sumažėjimas | F18: N | N18: 17
C19: 1 | D19: Aplinkos apsauga | E19: Šilumos energijos suvartojimo padidėjimas | F19: Z | N19: 18
C20: 1 | D20: Aplinkos apsauga | E20: Vėsumos energijos suvartojimo sumažėjimas | F20: N | N20: 19
C21: 1 | D21: Aplinkos apsauga | E21: Vėsumos energijos suvartojimo padidėjimas | F21: Z | N21: 20
C22: 1 | D22: Aplinkos apsauga | E22: Gamtinių dujų suvartojimo sumažėjimas | F22: N | N22: 21
C23: 1 | D23: Aplinkos apsauga | E23: Gamtinių dujų suvartojimo padidėjimas | F23: Z | N23: 22
C24: 1 | D24: Aplinkos apsauga | E24: Suskystintų naftos dujų suvartojimo sumažėjimas | F24: N | N24: 23
C25: 1 | D25: Aplinkos apsauga | E25: Suskystintų naftos dujų suvartojimo padidėjimas | F25: Z | N25: 24
C26: 1 | D26: Aplinkos apsauga | E26: Vandens taršos sumažėjimas: sulfatai / chloridai | F26: N | N26: 25
C27: 1 | D27: Aplinkos apsauga | E27: Vandens taršos sumažėjimas: sunkieji metalai | F27: N | N27: 26
C28: 1 | D28: Aplinkos apsauga | E28: Gamybos kaštų sumažėjimas dėl pirminių žaliavų naudojimo sumažėjimo | F28: N | N28: 27
C29: 1 | D29: Aplinkos apsauga | E29: Gamybos kaštų padidėjimas dėl pirminių žaliavų naudojimo sumažėjimo | F29: Z | N29: 28
C30: 1 | D30: Aplinkos apsauga | E30: Atliekų tvarkymo kaštų sumažėjimas dėl išvengto atliekų šalinimo sąvartyne | F30: N | N30: 29
C31: 1 | D31: Aplinkos apsauga | E31: Atliekų tvarkymo kaštų padidėjimas dėl išvengto atliekų šalinimo sąvartyne | F31: Z | N31: 30
C32: 1 | D32: Aplinkos apsauga | E32: Atliekų tvarkymo kaštų sumažėjimas dėl išvengto atliekų deginimo | F32: N | N32: 31
C33: 1 | D33: Aplinkos apsauga | E33: Atliekų tvarkymo kaštų padidėjimas dėl išvengto atliekų deginimo | F33: Z | N33: 32
C34: =INDEX(A:A,MATCH(D34,B:B,0),1) -> 1 | D34: Aplinkos apsauga | E34: Oro teršalų patekimo į aplinką sumažėjimas | F34: N | N34: 33
C35: 1 | D35: Aplinkos apsauga | E35: Oro teršalų patekimo į aplinką padidėjimas | F35: Z | N35: 34
C36: 1 | D36: Aplinkos apsauga | E36: Vandens teršalų patekimo į aplinką sumažėjimas | F36: N | N36: 35
C37: 1 | D37: Aplinkos apsauga | E37: Vandens teršalų patekimo į aplinką padidėjimas | F37: Z | N37: 36
C38: 2 | D38: Energetika | E38: Elektros energijos tiekimo sistemos patikimumo padidėjimas | F38: N | N38: 37
C39: 2 | D39: Energetika | E39: Dujų tiekimo patikimumo padidėjimas | F39: N | N39: 38
C40: 2 | D40: Energetika | E40: Energijos sąnaudų sumažėjimas dėl energijos šaltinio pakeitimo | F40: N | N40: 39
C41: 2 | D41: Energetika | E41: ŠESD emisijos sumažėjimas | F41: N | N41: 40
C42: 2 | D42: Energetika | E42: Oro taršos sumažėjimas | F42: N | N42: 41
C43: 2 | D43: Energetika | E43: Nelaimingų atsitikimų sumažėjimas | F43: N | N43: 42
C44: 2 | D44: Energetika | E44: Oro taršos padidėjimas | F44: Z | N44: 43
C45: 2 | D45: Energetika | E45: Šilumos energijos prieinamumo padidėjimas | F45: N | N45: 44
C46: 2 | D46: Energetika | E46: Šilumos tiekimo patikimumo padidėjimas | F46: N | N46: 45
C47: 2 | D47: Energetika | E47: Laiko ir piniginių sąnaudų sumažėjimas | F47: N | N47: 46
C48: 2 | D48: Energetika | E48: ŠESD emisijos padidėjimas | F48: Z | N48: 47
C49: 2 | D49: Energetika | E49: Nelaimingų atsitikimų padidėjimas | F49: Z | N49: 48
C50: 2 | D50: Energetika | E50: Energetinių charakteristikų pagerėjimas | F50: N | N50: 49
C51: 3 | D51: Informacinės visuomenės plėtra | E51: Laiko ir piniginių sąnaudų sutaupymai | F51: N | N51: 50
C52: 3 | D52: Informacinės visuomenės plėtra | E52: Galimybė pasiekti elektroninį turinį vietoje fizinės kelionės į vietą | F52: N | N52: 51
C53: 3 | D53: Informacinės visuomenės plėtra | E53: Geresnis informacinės sistemos veikimas | F53: N | N53: 52
C54: 3 | D54: Informacinės visuomenės plėtra | E54: Pasiryžimas sumokėti už interneto ryšį | F54: N | N54: 53
C55: 4 | D55: Krašto apsauga | E55: Statistinio gyvenimo vertė | F55: N | N55: 54
C56: 4 | D56: Krašto apsauga | E56: Gyvenimo metų vertė | F56: N | N56: 55
C57: 4 | D57: Krašto apsauga | E57: Oro taršos sumažėjimas | F57: N | N57: 56
C58: 4 | D58: Krašto apsauga | E58: ŠESD emisijos sumažėjimas | F58: N | N58: 57
C59: 5 | D59: Kultūra | E59: Pasiryžimas sumokėti už lankymąsi kultūros objekte | F59: N | N59: 58
C60: 6 | D60: Socialinė apsauga | E60: Darbo paieškos laiko ekonomija | F60: N | N60: 59
C61: 6 | D61: Socialinė apsauga | E61: Įsidarbinusių asmenų sveikatos pagerėjimo teikiama nauda | F61: N
C62: 6 | D62: Socialinė apsauga | E62: Padidėjęs priežiūros paslaugų prieinamumas | F62: N
C63: 6 | D63: Socialinė apsauga | E63: Išvengtos būsto nuomos sąnaudos | F63: N
C64: 6 | D64: Socialinė apsauga | E64: Sukurta pridėtinė vertė dėl dalyvavimo darbo rinkoje | F64: N
C65: 6 | D65: Socialinė apsauga | E65: Pagerintos socialiai pažeidžiamų asmenų galimybės apsirūpinti būstu | F65: N
C66: =INDEX(A:A,MATCH(D66,B:B,0),1) -> 7 | D66: Sveikatos apsauga | E66: Statistinio gyvenimo vertė | F66: N
C67: 7 | D67: Sveikatos apsauga | E67: Gyvenimo metų vertė | F67: N
C68: 7 | D68: Sveikatos apsauga | E68: Dėl ligos prarastos darbo dienos vertė | F68: N
C69: 7 | D69: Sveikatos apsauga | E69: Pasiryžimas sumokėti už padidėjusį sveikatos priežiūros paslaugų prieinamumą | F69: N
C70: 7 | D70: Sveikatos apsauga | E70: Laiko sąnaudų, patiriamų siekiant gauti sveikatos priežiūros paslaugas, sumažėjimas | F70: N
C71: 7 | D71: Sveikatos apsauga | E71: Laiko nuostoliai dėl padidėjusių transporto spūsčių | F71: Z
C72: 7 | D72: Sveikatos apsauga | E72: Oro taršos padidėjimas dėl padidėjusių transporto spūsčių | F72: Z
C73: 7 | D73: Sveikatos apsauga | E73: ŠESD emisijos padidėjimas dėl padidėjusių transporto spūsčių | F73: Z
C74: 8 | D74: Švietimas ir mokslas | E74: Pasiryžimas sumokėti už padidėjusį ikimokyklinio ugdymo paslaugų prieinamumą ir pagerėjusią kokybę | F74: N
C75: 8 | D75: Švietimas ir mokslas | E75: Pasiryžimas sumokėti už padidėjusį bendrojo ugdymo paslaugų prieinamumą ir pagerėjusią kokybę | F75: N
C76: 8 | D76: Švietimas ir mokslas | E76: Pagerintų įgūdžių dėka pasiektas darbo užmokesčio padidėjimas | F76: N
C77: 8 | D77: Švietimas ir mokslas | E77: Žinių kūrimo vertė (mokslinių publikacijų rengimo nauda) | F77: N
C78: 8 | D78: Švietimas ir mokslas | E78: Žinių kūrimo vertė (mokslinių publikacijų citavimo nauda) | F78: N
C79: 8 | D79: Švietimas ir mokslas | E79: Naujų žinių vertė (pranešimai konferencijose) | F79: N
C80: 8 | D80: Švietimas ir mokslas | E80: Inovacijų produktų komercinimo vertė | F80: N
C81: 8 | D81: Švietimas ir mokslas | E81: Atviros prieigos prie MTEPI infrastruktūros ekonominė vertė | F81: N
C82: 8 | D82: Švietimas ir mokslas | E82: Su sveikata ar aplinka susijusių rizikų sumažinimas | F82: N
C83: 8 | D83: Švietimas ir mokslas | E83: Edukacinė nauda lankytojams | F83: N
C84: 8 | D84: Švietimas ir mokslas | E84: Mokymosi veikiant (ang. learning-by-doing) nauda tiekimo grandinei | F84: N
C85: 8 | D85: Švietimas ir mokslas | E85: Pumpurinių įmonių ekonominė vertė | F85: N
C86: 8 | D86: Švietimas ir mokslas | E86: Pasiryžimas sumokėti už padidėjusį neformaliojo švietimo paslaugų prieinamumą ir pagerėjusią kokybę | F86: N
C87: 9 | D87: Teisingumas / teisėtvarka | E87: Sveikatos sutrikdymų ir mirčių sumažėjimas | F87: N
C88: 9 | D88: Teisingumas / teisėtvarka | E88: Turtui padarytos žalos sumažėjimas | F88: N
C89: 9 | D89: Teisingumas / teisėtvarka | E89: Neigiamo emocinio poveikio sumažėjimas | F89: N
C90: 9 | D90: Teisingumas / teisėtvarka | E90: Nusikaltimų administravimui skirtų viešųjų išlaidų sumažėjimas | F90: N
C91: 9 | D91: Teisingumas / teisėtvarka | E91: Laiko sutaupymai | F91: N
C92: 9 | D92: Teisingumas / teisėtvarka | E92: Piniginių sąnaudų sutaupymai | F92: N
C93: 9 | D93: Teisingumas / teisėtvarka | E93: Geresnis informacinės sistemos veikimas | F93: N
C94: 10 | D94: Transportas | E94: Laiko sutaupymai | F94: N
C95: 10 | D95: Transportas | E95: Kelių transporto priemonių eksploatacinių sąnaudų sutaupymai | F95: N
C96: 10 | D96: Transportas | E96: Nelaimingų atsitikimų sumažėjimas | F96: N
C97: 10 | D97: Transportas | E97: Triukšmo taršos padidėjimas | F97: Z
C98: =INDEX(A:A,MATCH(D98,B:B,0),1) -> 10 | D98: Transportas | E98: Triukšmo taršos sumažėjimas | F98: N
C99: 10 | D99: Transportas | E99: Oro taršos sumažėjimas | F99: N
C100: 10 | D100: Transportas | E100: ŠESD emisijos sumažėjimas | F100: N
C101: 10 | D101: Transportas | E101: Nelaimingų atsitikimų padidėjimas | F101: Z
C102: 10 | D102: Transportas | E102: Oro taršos padidėjimas | F102: Z
C103: 10 | D103: Transportas | E103: ŠESD emisijos padidėjimas | F103: Z
C104: 11 | D104: Turizmas | E104: Vietinio vienadienio lankytojo vidutinės vienos kelionės išlaidos | F104: N
C105: 11 | D105: Turizmas | E105: Vietinio turisto vidutinės dienos išlaidos | F105: N
C106: 11 | D106: Turizmas | E106: Iš užsienio atvykusio vienadienio lankytojo vidutinės vienos kelionės išlaidos | F106: N
C107: 11 | D107: Turizmas | E107: Iš užsienio atvykusio turisto vidutinės dienos išlaidos | F107: N
C108: 12 | D108: Urbanistinė plėtra | E108: Vietovės patrauklumo namų ūkiams ir verslui padidėjimas | F108: N
C109: 12 | D109: Urbanistinė plėtra | E109: ŠESD emisijos sumažėjimas | F109: N
C110: 12 | D110: Urbanistinė plėtra | E110: Oro taršos padidėjimas | F110: Z
C111: 12 | D111: Urbanistinė plėtra | E111: Oro taršos sumažėjimas | F111: N
C112: 12 | D112: Urbanistinė plėtra | E112: Nuotekų teršalų kiekio sumažėjimas | F112: N
C113: 12 | D113: Urbanistinė plėtra | E113: Nuotekų teršalų kiekio padidėjimas | F113: Z
C114: 13 | D114: Verslas | E114: Vieno darbuotojo sukuriama pridėtinė vertė | F114: N
C115: 13 | D115: Verslas | E115: Vieno darbuotojo sukuriamos pridėtinės vertės prieaugis | F115: N
C116: 13 | D116: Verslas | E116: ŠESD emisijos padidėjimas | F116: Z
C117: 13 | D117: Verslas | E117: Laiko nuostoliai dėl padidėjusių transporto spūsčių | F117: Z
C118: 13 | D118: Verslas | E118: Oro taršos padidėjimas dėl padidėjusių transporto spūsčių | F118: Z
C119: 13 | D119: Verslas | E119: Oro taršos padidėjimas dėl ekonominės veiklos | F119: Z
C120: 13 | D120: Verslas | E120: Vandens taršos padidėjimas | F120: Z
C121: 14 | D121: Visuomenės apsauga | E121: Sveikatos sutrikdymų ir mirčių sumažėjimas | F121: N
C122: 14 | D122: Visuomenės apsauga | E122: Turtui padarytos žalos sumažėjimas | F122: N
C123: 14 | D123: Visuomenės apsauga | E123: Pagerintas saugumas ir gyvenimo kokybė | F123: N
C124: 14 | D124: Visuomenės apsauga | E124: Nusikaltimų administravimui skirtų viešųjų išlaidų sumažėjimas | F124: N
C125: 1 | D125: Aplinkos apsauga | E125: ŠESD emisijos padidėjimas | F125: Z
C126: 15 | D126: Žemės ūkis | E126: Laiko sutaupymai | F126: N
C127: 15 | D127: Žemės ūkis | E127: ŠESD emisijos sumažėjimas | F127: N
C128: 15 | D128: Žemės ūkis | E128: Oro taršos sumažėjimas | F128: N
C129: 15 | D129: Žemės ūkis | E129: Vandens taršos sumažėjimas | F129: N
C130: 15 | D130: Žemės ūkis | E130: Paviršinių vandens telkinių kokybės pagerėjimas | F130: N
C131: 15 | D131: Žemės ūkis | E131: Ekosistemų ir biologinės įvairovės išsaugojimas | F131: N
C132: 15 | D132: Žemės ūkis | E132: Su sveikata ar aplinka susijusių rizikų sumažinimas | F132: N
C133: 15 | D133: Žemės ūkis | E133: Kaštų sumažėjimas dėl pirminių žaliavų naudojimo sumažėjimo | F133: N
C134: 15 | D134: Žemės ūkis | E134: Vieno darbuotojo sukuriama pridėtinė vertė | F134: N
C135: =INDEX(A:A,MATCH(D135,B:B,0),1) -> 15 | D135: Žemės ūkis | E135: ŠESD emisijos padidėjimas | F135: Z
C136: 15 | D136: Žemės ūkis | E136: Oro taršos padidėjimas | F136: Z
C137: 15 | D137: Žemės ūkis | E137: Vandens taršos sumažėjimas (padidėjimas) | F137: Z
C138: 15 | D138: Žemės ūkis | E138: Kaštų padidėjimasdėl pirminių žaliavų naudojimo sumažėjimo | F138: Z

Sheet Data2 (hidden)
A1: Nr | B1: 15 | D1: Politikos_sritys | F1: Nr | G1: 15
A2: Nauda/Zala | B2: N | D2: =IF(Data1!$H2<>"",CONCATENATE("[",Data1!$H2,"]"),"") -> [15] | F2: Nauda/Zala | G2: Z
D3: =IF(Data1!$H3<>"",CONCATENATE("[",Data1!$H3,"]"),"") -> 
A4: Eilučių žymos | D4: =IF(Data1!$H4<>"",CONCATENATE("[",Data1!$H4,"]"),"") ->  | F4: Eilučių žymos
A5: Ekosistemų ir biologinės įvairovės išsaugojimas | D5: =IF(Data1!$H5<>"",CONCATENATE("[",Data1!$H5,"]"),"") ->  | F5: Oro taršos padidėjimas
A6: Laiko sutaupymai | D6: =IF(Data1!$H6<>"",CONCATENATE("[",Data1!$H6,"]"),"") ->  | F6: ŠESD emisijos padidėjimas
A7: Oro taršos sumažėjimas | D7: =IF(Data1!$H7<>"",CONCATENATE("[",Data1!$H7,"]"),"") ->  | F7: Vandens taršos sumažėjimas (padidėjimas)
A8: Paviršinių vandens telkinių kokybės pagerėjimas | D8: =IF(Data1!$H8<>"",CONCATENATE("[",Data1!$H8,"]"),"") ->  | F8: Kaštų padidėjimasdėl pirminių žaliavų naudojimo sumažėjimo
A9: Su sveikata ar aplinka susijusių rizikų sumažinimas | D9: =IF(Data1!$H9<>"",CONCATENATE("[",Data1!$H9,"]"),"") ->  | F9: Bendroji suma
A10: Vieno darbuotojo sukuriama pridėtinė vertė | D10: =IF(Data1!$H10<>"",CONCATENATE("[",Data1!$H10,"]"),"") -> 
A11: ŠESD emisijos sumažėjimas | D11: =IF(Data1!$H11<>"",CONCATENATE("[",Data1!$H11,"]"),"") -> 
A12: Vandens taršos sumažėjimas | D12: =IF(Data1!$H12<>"",CONCATENATE("[",Data1!$H12,"]"),"") -> 
A13: Kaštų sumažėjimas dėl pirminių žaliavų naudojimo sumažėjimo | D13: =IF(Data1!$H13<>"",CONCATENATE("[",Data1!$H13,"]"),"") -> 
A14: Bendroji suma | D14: =IF(Data1!$H14<>"",CONCATENATE("[",Data1!$H14,"]"),"") -> 
D15: =IF(Data1!$H15<>"",CONCATENATE("[",Data1!$H15,"]"),"") -> 
D16: =IF(Data1!$H16<>"",CONCATENATE("[",Data1!$H16,"]"),"") -> 
D17: =IF(Data1!$H17<>"",CONCATENATE("[",Data1!$H17,"]"),"") -> 
D18: =IF(Data1!$H18<>"",CONCATENATE("[",Data1!$H18,"]"),"") -> 
D19: =IF(Data1!$H19<>"",CONCATENATE("[",Data1!$H19,"]"),"") -> 
D20: =IF(Data1!$H20<>"",CONCATENATE("[",Data1!$H20,"]"),"") -> 
D21: =IF(Data1!$H21<>"",CONCATENATE("[",Data1!$H21,"]"),"") -> 
D22: =IF(Data1!$H22<>"",CONCATENATE("[",Data1!$H22,"]"),"") -> 
D23: =IF(Data1!$H23<>"",CONCATENATE("[",Data1!$H23,"]"),"") -> 
D24: =IF(Data1!$H24<>"",CONCATENATE("[",Data1!$H24,"]"),"") -> 
D25: =IF(Data1!$H25<>"",CONCATENATE("[",Data1!$H25,"]"),"") -> 
D26: =IF(Data1!$H26<>"",CONCATENATE("[",Data1!$H26,"]"),"") -> 
D27: =IF(Data1!$H27<>"",CONCATENATE("[",Data1!$H27,"]"),"") -> 
D28: =IF(Data1!$H28<>"",CONCATENATE("[",Data1!$H28,"]"),"") -> 
D29: =IF(Data1!$H29<>"",CONCATENATE("[",Data1!$H29,"]"),"") -> 
D30: =IF(Data1!$H30<>"",CONCATENATE("[",Data1!$H30,"]"),"") -> 
D31: =IF(Data1!$H31<>"",CONCATENATE("[",Data1!$H31,"]"),"") -> 
D32: =IF(Data1!$H32<>"",CONCATENATE("[",Data1!$H32,"]"),"") -> 
D33: =IF(Data1!H34<>"",CONCATENATE("[",Data1!H34,"]"),"") -> 
D34: =IF(Data1!H35<>"",CONCATENATE("[",Data1!H35,"]"),"") -> 
D35: =IF(Data1!H36<>"",CONCATENATE("[",Data1!H36,"]"),"") -> 
D36: =IF(Data1!H37<>"",CONCATENATE("[",Data1!H37,"]"),"") -> 

Sheet Pradžia
B2: Ši skaičiuoklė padeda palyginti priemonės alternatyvas ir pasirinkti iš jų geriausią. Kai nagrinėjama tik viena alternatyva, skaičiuoklė padeda įvertinti jos atsiperkamumą visuomenei. Visoje skaičiuoklėje reikia pildyti tik žalius laukus bei išsirinkti variantus pasirinkimo laukuose. Kiti laukai užsipildo automatiškai. Tarpinius skaičiavimus pateikite darbalapyje "Prielaidos". Skaičiuoklėje pateikiami paaiškinimų mygtukai Paspaudus, pateikiama trumpa informacija apie aktualų parametrą. Šiame lape "Pradžia" užpildykite žalius laukus bei išsirinkite variantus pasirinkimo laukuose ir lapo apačioje spauskite mygtuką Pagal Jūsų pasirinkimus skaičiuoklė sugeneruos reikalingus darbalapius.
C4: 1. Nurodykite priemonės kodą | E4: 15-001-01-14-01
C6: 2. Nurodykite pagrindžiamos priemonės pavadinimą | E6: NUSTATYTI IR ĮDIEGTI Į GAMYBĄ TVARIOS ŽEMĖS ŪKIO GAMYBOS IR PERDIRBIMO PRINCIPUS, UŽTIKRINANT PRODUKTYVUMĄ IR KONKURENCINGUMĄ VIETOS IR EKSPORTO RINKOSE
C8: 3. Nurodykite priemonių skaičiuoklės pildymo datą | E8: 45086
C10: 4. Nurodykite planuojamą priemonės vykdymo pradžios datą | E10: 44928
C12: 5. Nurodykite priemonės ataskaitinio laikotarpio trukmę metais | E12: 14
C14: 6. Pasirinkite metodą, kuriuo lyginsite alternatyvas
C16: 7. Pažymėkite, jei bus taikoma ir daugiakriterinė analizė
C18: 8. Pasirinkite analizės principą
C20: 9. Nurodykite viešosios politikos sritį, kurioje planuojama priemonė
C22: 10. Jeigu bent viena iš priemonės įgyvendinimo alternatyvų turi poveikį kitoms viešosios politikos sritims, nurodykite jas
C24: 11. Nurodykite siekiamo rezultato pavadinimą | E24: Pajamų padidėjmas
C26: 12. Nurodykite siekiamo rezultato matavimo vienetą | E26: Eur
C28: 13. Pažymėkite alternatyvas, kurias pateikiate skaičiuoklėje | D28: Alternatyvos pavadinimas | G28: Priemonės įgyvendinimo trukmė metais
D29: Didinti mažų ir vidutinių ūkių gyvybingumą labiau remiant jų pajamas | G29: 6 | I29: TRUE
G31: 10 | I31: FALSE
G33: 10 | I33: FALSE
G35: 10 | I35: FALSE
G37: 10 | I37: FALSE
C39: 14. Pažymėkite, jei bus taikoma VPSP būdas
C41: 15. Esant poreikiui, patikslinkite taikomą realią finansinę diskonto normą | E41: 0.04
C43: 16. Esant poreikiui, patikslinkite taikomą socialinę diskonto normą | E43: 0.05
C45: 17. Vidutinė metinė infliacija priemonės įgyvendininimo laikotarpiu | E45: 0.03
C47: Skaičiuoklės versija 1.4
E52: ="Copyright " & "©" -> Copyright © | F52: =YEAR(TODAY()) & " Všį Centrinė projektų valdymo agentūra." & " Visos teisės saugomos. " -> 2026 Všį Centrinė projektų valdymo agentūra. Visos teisės saugomos.
DG106: 0.05

Sheet Alternatyva 1
B2: ALTERNATYVA 1
B3: =IF(INDEX(A1_pav,1,1)=0,"",INDEX(A1_pav,1,1)) -> Didinti mažų ir vidutinių ūkių gyvybingumą labiau remiant jų pajamas
B5: EUR | F5: Iš viso | H5: 0 | I5: 1 | J5: 2 | K5: 3 | L5: 4 | M5: 5 | N5: 6 | O5: 7 | P5: 8 | Q5: 9 | R5: 10 | S5: 11 | T5: 12 | U5: 13 | V5: 14 | W5: 15 | X5: 16 | Y5: 17 | Z5: 18 | AA5: 19 | AB5: 20 | AC5: 21 | AD5: 22 | AE5: 23 | AF5: 24 | AG5: 25 | AH5: 26 | AI5: 27 | AJ5: 28 | AK5: 29 | AL5: 30 | AM5: 31 | AN5: 32 | AO5: 33 | AP5: 34 | AQ5: 35 | AR5: 36 | AS5: 37 | AT5: 38 | AU5: 39 | AV5: 40 | AW5: 41 | AX5: 42 | AY5: 43 | AZ5: 44 | BA5: 45 | BB5: 46 | BC5: 47 | BD5: 48 | BE5: 49 | BF5: 50 | BG5: 51 | BH5: 52 | BI5: 53 | BJ5: 54 | BK5: 55 | BL5: 56 | BM5: 57 | BN5: 58 | BO5: 59 | BP5: 60 | BQ5: 61 | BR5: 62 | BS5: 63 | BT5: 64 | BU5: 65 | BV5: 66 | BW5: 67 | BX5: 68 | BY5: 69 | BZ5: 70 | CA5: 71 | CB5: 72 | CC5: 73 | CD5: 74 | CE5: 75 | CF5: 76 | CG5: 77 | CH5: 78 | CI5: 79 | CJ5: 80 | CK5: 81 | CL5: 82 | CM5: 83 | CN5: 84 | CO5: 85 | CP5: 86 | CQ5: 87 | CR5: 88 | CS5: 89 | CT5: 90 | CU5: 91 | CV5: 92 | CW5: 93 | CX5: 94 | CY5: 95 | CZ5: 96 | DA5: 97 | DB5: 98 | DC5: 99
B6: Nr. | C6: Priemonės pinigų srautai | E6: PVM tarifas | F6: Grynoji dabartinė vertė | G6: Reali vertė | H6: =Nuliniai -> 2022 | I6: =$H$6+I5 -> 2023 | J6: =$H$6+J5 -> 2024 | K6: 2025 | L6: 2026 | M6: 2027 | N6: 2028 | O6: 2029 | P6: 2030 | Q6: 2031 | R6: 2032 | S6: 2033 | T6: 2034 | U6: 2035 | V6: 2036 | W6: 2037 | X6: 2038 | Y6: 2039 | Z6: 2040 | AA6: 2041 | AB6: 2042 | AC6: 2043 | AD6: 2044 | AE6: 2045 | AF6: 2046 | AG6: =$H$6+AG5 -> 2047 | AH6: 2048 | AI6: 2049 | AJ6: 2050 | AK6: 2051 | AL6: 2052 | AM6: 2053 | AN6: 2054 | AO6: 2055 | AP6: 2056 | AQ6: 2057 | AR6: 2058 | AS6: 2059 | AT6: 2060 | AU6: 2061 | AV6: 2062 | AW6: 2063 | AX6: 2064 | AY6: 2065 | AZ6: 2066 | BA6: 2067 | BB6: 2068 | BC6: 2069 | BD6: 2070 | BE6: 2071 | BF6: 2072 | BG6: 2073 | BH6: 2074 | BI6: 2075 | BJ6: 2076 | BK6: 2077 | BL6: 2078 | BM6: =$H$6+BM5 -> 2079 | BN6: 2080 | BO6: 2081 | BP6: 2082 | BQ6: 2083 | BR6: 2084 | BS6: 2085 | BT6: 2086 | BU6: 2087 | BV6: 2088 | BW6: 2089 | BX6: 2090 | BY6: 2091 | BZ6: 2092 | CA6: 2093 | CB6: 2094 | CC6: 2095 | CD6: 2096 | CE6: 2097 | CF6: 2098 | CG6: 2099 | CH6: 2100 | CI6: 2101 | CJ6: 2102 | CK6: 2103 | CL6: 2104 | CM6: 2105 | CN6: 2106 | CO6: 2107 | CP6: 2108 | CQ6: 2109 | CR6: 2110 | CS6: =$H$6+CS5 -> 2111 | CT6: 2112 | CU6: 2113 | CV6: 2114 | CW6: 2115 | CX6: 2116 | CY6: 2117 | CZ6: 2118 | DA6: 2119 | DB6: 2120 | DC6: 2121 | DE6: =SUM(DE7:DE133) -> 0 | DF6: =SUM(DF7:DF133) -> 856 | DG6: PVM | DH6: Likutines PVM | DI6: Privati
B7: A. | C7: INVESTICIJOS, REINVESTICIJOS IR GRYNASIS VEIKLOS SRAUTAS | F7: =F8+F9+F103-F115-F127 -> 886335282.8 | G7: =SUMIF($H$5:$DC$5,"<="&PAL,$H7:$DC7) -> 1045271000 | H7: =H8+H9+H103-H115-H127 -> 0 | I7: 0 | J7: 163923684.5 | K7: 216499369 | L7: 217863736.6 | M7: 177863736.6 | N7: 177863736.6 | O7: 90356736.63 | P7: 900000 | Q7: 0 | R7: 0 | S7: 0 | T7: 0 | U7: 0 | V7: 0 | W7: 10000 | X7: 10000 | Y7: 10000 | Z7: 10000 | AA7: 10000 | AB7: 10000 | AC7: 10000 | AD7: 10000 | AE7: 10000 | AF7: 10000 | AG7: 10000 | AH7: 10000 | AI7: 10000 | AJ7: 10000 | AK7: 10000 | AL7: 10000 | AM7: 10000 | AN7: =AN8+AN9+AN103-AN115-AN127 -> 10000 | AO7: 10000 | AP7: 10000 | AQ7: 10000 | AR7: 10000 | AS7: 10000 | AT7: 10000 | AU7: 10000 | AV7: 10000 | AW7: 10000 | AX7: 10000 | AY7: 10000 | AZ7: 10000 | BA7: 10000 | BB7: 10000 | BC7: 10000 | BD7: 10000 | BE7: 10000 | BF7: 10000 | BG7: 10000 | BH7: 10000 | BI7: 10000 | BJ7: 10000 | BK7: 10000 | BL7: 10000 | BM7: 10000 | BN7: 10000 | BO7: 10000 | BP7: 10000 | BQ7: 10000 | BR7: 10000 | BS7: 10000 | BT7: =BT8+BT9+BT103-BT115-BT127 -> 10000 | BU7: 10000 | BV7: 10000 | BW7: 10000 | BX7: 10000 | BY7: 10000 | BZ7: 10000 | CA7: 10000 | CB7: 10000 | CC7: 10000 | CD7: 10000 | CE7: 10000 | CF7: 10000 | CG7: 10000 | CH7: 10000 | CI7: 10000 | CJ7: 10000 | CK7: 10000 | CL7: 10000 | CM7: 10000 | CN7: 10000 | CO7: 10000 | CP7: 10000 | CQ7: 10000 | CR7: 10000 | CS7: 10000 | CT7: 10000 | CU7: 10000 | CV7: 10000 | CW7: 10000 | CX7: 10000 | CY7: 10000 | CZ7: =CZ8+CZ9+CZ103-CZ115-CZ127 -> 10000 | DA7: 10000 | DB7: 10000 | DC7: 10000 | DF7: =COUNTIF($H7:$DC7,"<>0") -> 92
B8: B. | C8: REINVESTICIJOS (PO PRIEMONĖS ĮGYVENDINIMO) | F8: =SUM(F21:F22,F34:F35,F47:F48,F61:F62,F74:F75,F87:F88,F100:F101) -> 0 | G8: =SUMIF($H$5:$DC$5,"<="&PAL,$H8:$DC8) -> 0 | H8: =SUM(H21:H22,H34:H35,H47:H48,H61:H62,H74:H75,H87:H88,H100:H101) -> 0 | I8: 0 | J8: 0 | K8: 0 | L8: 0 | M8: 0 | N8: 0 | O8: 0 | P8: 0 | Q8: 0 | R8: 0 | S8: 0 | T8: 0 | U8: 0 | V8: 0 | W8: 0 | X8: 0 | Y8: 0 | Z8: 0 | AA8: 0 | AB8: 0 | AC8: 0 | AD8: 0 | AE8: 0 | AF8: 0 | AG8: 0 | AH8: 0 | AI8: 0 | AJ8: 0 | AK8: 0 | AL8: 0 | AM8: 0 | AN8: =SUM(AN21:AN22,AN34:AN35,AN47:AN48,AN61:AN62,AN74:AN75,AN87:AN88,AN100:AN101) -> 0 | AO8: 0 | AP8: 0 | AQ8: 0 | AR8: 0 | AS8: 0 | AT8: 0 | AU8: 0 | AV8: 0 | AW8: 0 | AX8: 0 | AY8: 0 | AZ8: 0 | BA8: 0 | BB8: 0 | BC8: 0 | BD8: 0 | BE8: 0 | BF8: 0 | BG8: 0 | BH8: 0 | BI8: 0 | BJ8: 0 | BK8: 0 | BL8: 0 | BM8: 0 | BN8: 0 | BO8: 0 | BP8: 0 | BQ8: 0 | BR8: 0 | BS8: 0 | BT8: =SUM(BT21:BT22,BT34:BT35,BT47:BT48,BT61:BT62,BT74:BT75,BT87:BT88,BT100:BT101) -> 0 | BU8: 0 | BV8: 0 | BW8: 0 | BX8: 0 | BY8: 0 | BZ8: 0 | CA8: 0 | CB8: 0 | CC8: 0 | CD8: 0 | CE8: 0 | CF8: 0 | CG8: 0 | CH8: 0 | CI8: 0 | CJ8: 0 | CK8: 0 | CL8: 0 | CM8: 0 | CN8: 0 | CO8: 0 | CP8: 0 | CQ8: 0 | CR8: 0 | CS8: 0 | CT8: 0 | CU8: 0 | CV8: 0 | CW8: 0 | CX8: 0 | CY8: 0 | CZ8: 0 | DA8: 0 | DB8: 0 | DC8: 0 | DF8: =COUNTIF($H8:$DC8,"<>0") -> 0
B9: C. | C9: PRIEMONĖS INVESTICIJOS | F9: =F10+F50+F90-F8 -> 886335282.8 | G9: =SUMIF($H$5:$DC$5,"<="&PAL,$H9:$DC9) -> 1045271000 | H9: =H10+H50+H90-H8 -> 0 | I9: 0 | J9: 163923684.5 | K9: 216499369 | L9: 217863736.6 | M9: 177863736.6 | N9: 177863736.6 | O9: 90356736.63 | P9: 900000 | Q9: 0 | R9: 0 | S9: 0 | T9: 0 | U9: 0 | V9: 0 | W9: 10000 | X9: 10000 | Y9: 10000 | Z9: 10000 | AA9: 10000 | AB9: 10000 | AC9: 10000 | AD9: 10000 | AE9: 10000 | AF9: 10000 | AG9: 10000 | AH9: 10000 | AI9: 10000 | AJ9: 10000 | AK9: 10000 | AL9: 10000 | AM9: 10000 | AN9: =AN10+AN50+AN90-AN8 -> 10000 | AO9: 10000 | AP9: 10000 | AQ9: 10000 | AR9: 10000 | AS9: 10000 | AT9: 10000 | AU9: 10000 | AV9: 10000 | AW9: 10000 | AX9: 10000 | AY9: 10000 | AZ9: 10000 | BA9: 10000 | BB9: 10000 | BC9: 10000 | BD9: 10000 | BE9: 10000 | BF9: 10000 | BG9: 10000 | BH9: 10000 | BI9: 10000 | BJ9: 10000 | BK9: 10000 | BL9: 10000 | BM9: 10000 | BN9: 10000 | BO9: 10000 | BP9: 10000 | BQ9: 10000 | BR9: 10000 | BS9: 10000 | BT9: =BT10+BT50+BT90-BT8 -> 10000 | BU9: 10000 | BV9: 10000 | BW9: 10000 | BX9: 10000 | BY9: 10000 | BZ9: 10000 | CA9: 10000 | CB9: 10000 | CC9: 10000 | CD9: 10000 | CE9: 10000 | CF9: 10000 | CG9: 10000 | CH9: 10000 | CI9: 10000 | CJ9: 10000 | CK9: 10000 | CL9: 10000 | CM9: 10000 | CN9: 10000 | CO9: 10000 | CP9: 10000 | CQ9: 10000 | CR9: 10000 | CS9: 10000 | CT9: 10000 | CU9: 10000 | CV9: 10000 | CW9: 10000 | CX9: 10000 | CY9: 10000 | CZ9: =CZ10+CZ50+CZ90-CZ8 -> 10000 | DA9: 10000 | DB9: 10000 | DC9: 10000 | DF9: 92
B10: D. | C10: REGULIACINĖS IR MIŠRIOS VEIKLOS | F10: =F11+F24+F37 -> 0 | G10: =SUMIF($H$5:$DC$5,"<="&PAL,$H10:$DC10) -> 0 | H10: =H11+H24+H37 -> 0 | I10: =I11+I24+I37 -> 0 | J10: 0 | K10: 0 | L10: 0 | M10: 0 | N10: 0 | O10: 0 | P10: 0 | Q10: 0 | R10: 0 | S10: 0 | T10: 0 | U10: 0 | V10: 0 | W10: 10000 | X10: 10000 | Y10: 10000 | Z10: 10000 | AA10: 10000 | AB10: 10000 | AC10: 10000 | AD10: 10000 | AE10: 10000 | AF10: 10000 | AG10: 10000 | AH10: 10000 | AI10: 10000 | AJ10: 10000 | AK10: 10000 | AL10: 10000 | AM10: 10000 | AN10: 10000 | AO10: 10000 | AP10: 10000 | AQ10: 10000 | AR10: 10000 | AS10: 10000 | AT10: 10000 | AU10: 10000 | AV10: 10000 | AW10: 10000 | AX10: 10000 | AY10: 10000 | AZ10: 10000 | BA10: 10000 | BB10: 10000 | BC10: 10000 | BD10: 10000 | BE10: 10000 | BF10: 10000 | BG10: 10000 | BH10: 10000 | BI10: 10000 | BJ10: 10000 | BK10: 10000 | BL10: 10000 | BM10: 10000 | BN10: 10000 | BO10: 10000 | BP10: 10000 | BQ10: 10000 | BR10: 10000 | BS10: 10000 | BT10: 10000 | BU10: =BU11+BU24+BU37 -> 10000 | BV10: 10000 | BW10: 10000 | BX10: 10000 | BY10: 10000 | BZ10: 10000 | CA10: 10000 | CB10: 10000 | CC10: 10000 | CD10: 10000 | CE10: 10000 | CF10: 10000 | CG10: 10000 | CH10: 10000 | CI10: 10000 | CJ10: 10000 | CK10: 10000 | CL10: 10000 | CM10: 10000 | CN10: 10000 | CO10: 10000 | CP10: 10000 | CQ10: 10000 | CR10: 10000 | CS10: 10000 | CT10: 10000 | CU10: 10000 | CV10: 10000 | CW10: 10000 | CX10: 10000 | CY10: 10000 | CZ10: 10000 | DA10: 10000 | DB10: 10000 | DC10: 10000 | DF10: 85
B11: D.1. | C11: Norminės (reguliacinės) | F11: =SUM(F12:F22) -> 0 | G11: =SUMIF($H$5:$DC$5,"<="&PAL,$H11:$DC11) -> 0 | H11: =SUM(H12:H22) -> 0 | I11: =SUM(I12:I22) -> 0 | J11: 0 | K11: =SUM(K12:K22) -> 0 | L11: 0 | M11: 0 | N11: 0 | O11: 0 | P11: 0 | Q11: 0 | R11: 0 | S11: 0 | T11: 0 | U11: 0 | V11: 0 | W11: 10000 | X11: 10000 | Y11: 10000 | Z11: 10000 | AA11: 10000 | AB11: 10000 | AC11: 10000 | AD11: 10000 | AE11: 10000 | AF11: 10000 | AG11: 10000 | AH11: 10000 | AI11: 10000 | AJ11: 10000 | AK11: 10000 | AL11: 10000 | AM11: 10000 | AN11: 10000 | AO11: 10000 | AP11: 10000 | AQ11: 10000 | AR11: 10000 | AS11: 10000 | AT11: 10000 | AU11: 10000 | AV11: 10000 | AW11: 10000 | AX11: 10000 | AY11: 10000 | AZ11: 10000 | BA11: 10000 | BB11: 10000 | BC11: 10000 | BD11: 10000 | BE11: 10000 | BF11: 10000 | BG11: 10000 | BH11: 10000 | BI11: 10000 | BJ11: 10000 | BK11: 10000 | BL11: 10000 | BM11: 10000 | BN11: 10000 | BO11: 10000 | BP11: 10000 | BQ11: 10000 | BR11: 10000 | BS11: 10000 | BT11: 10000 | BU11: =SUM(BU12:BU22) -> 10000 | BV11: 10000 | BW11: 10000 | BX11: 10000 | BY11: 10000 | BZ11: 10000 | CA11: 10000 | CB11: 10000 | CC11: 10000 | CD11: 10000 | CE11: 10000 | CF11: 10000 | CG11: 10000 | CH11: 10000 | CI11: 10000 | CJ11: 10000 | CK11: 10000 | CL11: 10000 | CM11: 10000 | CN11: 10000 | CO11: 10000 | CP11: 10000 | CQ11: 10000 | CR11: 10000 | CS11: 10000 | CT11: 10000 | CU11: 10000 | CV11: 10000 | CW11: 10000 | CX11: 10000 | CY11: 10000 | CZ11: 10000 | DA11: 10000 | DB11: 10000 | DC11: =SUM(DC12:DC22) -> 10000 | DF11: 85
A12: 0 | B12: =$B$11&"1." -> D.1.1. | E12: 0.21 | F12: =H12+NPV(FD,I12:INDEX(I12:DC12,PAL)) -> 0 | G12: =SUMIF($H$5:$DC$5,"<="&PAL,$H12:$DC12) -> 0 | H12: 0 | I12: 0 | J12: 0 | K12: 0 | L12: 0 | M12: 0 | N12: 0 | O12: 0 | P12: 0 | Q12: 0 | R12: 0 | S12: 0 | T12: 0 | U12: 0 | V12: 0 | W12: 10000 | X12: 10000 | Y12: 10000 | Z12: 10000 | AA12: 10000 | AB12: 10000 | AC12: 10000 | AD12: 10000 | AE12: 10000 | AF12: 10000 | AG12: 10000 | AH12: 10000 | AI12: 10000 | AJ12: 10000 | AK12: 10000 | AL12: 10000 | AM12: 10000 | AN12: 10000 | AO12: 10000 | AP12: 10000 | AQ12: 10000 | AR12: 10000 | AS12: 10000 | AT12: 10000 | AU12: 10000 | AV12: 10000 | AW12: 10000 | AX12: 10000 | AY12: 10000 | AZ12: 10000 | BA12: 10000 | BB12: 10000 | BC12: 10000 | BD12: 10000 | BE12: 10000 | BF12: 10000 | BG12: 10000 | BH12: 10000 | BI12: 10000 | BJ12: 10000 | BK12: 10000 | BL12: 10000 | BM12: 10000 | BN12: 10000 | BO12: 10000 | BP12: 10000 | BQ12: 10000 | BR12: 10000 | BS12: 10000 | BT12: 10000 | BU12: 10000 | BV12: 10000 | BW12: 10000 | BX12: 10000 | BY12: 10000 | BZ12: 10000 | CA12: 10000 | CB12: 10000 | CC12: 10000 | CD12: 10000 | CE12: 10000 | CF12: 10000 | CG12: 10000 | CH12: 10000 | CI12: 10000 | CJ12: 10000 | CK12: 10000 | CL12: 10000 | CM12: 10000 | CN12: 10000 | CO12: 10000 | CP12: 10000 | CQ12: 10000 | CR12: 10000 | CS12: 10000 | CT12: 10000 | CU12: 10000 | CV12: 10000 | CW12: 10000 | CX12: 10000 | CY12: 10000 | CZ12: 10000 | DA12: 10000 | DB12: 10000 | DC12: 10000 | DE12: =COUNTBLANK($H12:$DC12) -> 0 | DF12: =COUNTIF($H12:$DC12,"<>0") -> 85 | DG12: =IF(ISNUMBER(E12),E12*100,0) -> 21 | DH12: 0
A13: 1 | B13: =$B$11&"2." -> D.1.2. | E13: 0.21 | F13: =H13+NPV(FD,I13:INDEX(I13:DC13,PAL)) -> 0 | G13: =SUMIF($H$5:$DC$5,"<="&PAL,$H13:$DC13) -> 0 | H13: 0 | I13: 0 | J13: 0 | K13: 0 | L13: 0 | M13: 0 | N13: 0 | O13: 0 | P13: 0 | Q13: 0 | R13: 0 | S13: 0 | T13: 0 | U13: 0 | V13: 0 | W13: 0 | X13: 0 | Y13: 0 | Z13: 0 | AA13: 0 | AB13: 0 | AC13: 0 | AD13: 0 | AE13: 0 | AF13: 0 | AG13: 0 | AH13: 0 | AI13: 0 | AJ13: 0 | AK13: 0 | AL13: 0 | AM13: 0 | AN13: 0 | AO13: 0 | AP13: 0 | AQ13: 0 | AR13: 0 | AS13: 0 | AT13: 0 | AU13: 0 | AV13: 0 | AW13: 0 | AX13: 0 | AY13: 0 | AZ13: 0 | BA13: 0 | BB13: 0 | BC13: 0 | BD13: 0 | BE13: 0 | BF13: 0 | BG13: 0 | BH13: 0 | BI13: 0 | BJ13: 0 | BK13: 0 | BL13: 0 | BM13: 0 | BN13: 0 | BO13: 0 | BP13: 0 | BQ13: 0 | BR13: 0 | BS13: 0 | BT13: 0 | BU13: 0 | BV13: 0 | BW13: 0 | BX13: 0 | BY13: 0 | BZ13: 0 | CA13: 0 | CB13: 0 | CC13: 0 | CD13: 0 | CE13: 0 | CF13: 0 | CG13: 0 | CH13: 0 | CI13: 0 | CJ13: 0 | CK13: 0 | CL13: 0 | CM13: 0 | CN13: 0 | CO13: 0 | CP13: 0 | CQ13: 0 | CR13: 0 | CS13: 0 | CT13: 0 | CU13: 0 | CV13: 0 | CW13: 0 | CX13: 0 | CY13: 0 | CZ13: 0 | DA13: 0 | DB13: 0 | DC13: 0 | DE13: =COUNTBLANK($H13:$DC13) -> 0 | DF13: =COUNTIF($H13:$DC13,"<>0") -> 0 | DG13: 21 | DH13: 0
A14: 2 | B14: =$B$11&"3." -> D.1.3. | E14: 0.21 | F14: =H14+NPV(FD,I14:INDEX(I14:DC14,PAL)) -> 0 | G14: =SUMIF($H$5:$DC$5,"<="&PAL,$H14:$DC14) -> 0 | H14: 0 | I14: 0 | J14: 0 | K14: 0 | L14: 0 | M14: 0 | N14: 0 | O14: 0 | P14: 0 | Q14: 0 | R14: 0 | S14: 0 | T14: 0 | U14: 0 | V14: 0 | W14: 0 | X14: 0 | Y14: 0 | Z14: 0 | AA14: 0 | AB14: 0 | AC14: 0 | AD14: 0 | AE14: 0 | AF14: 0 | AG14: 0 | AH14: 0 | AI14: 0 | AJ14: 0 | AK14: 0 | AL14: 0 | AM14: 0 | AN14: 0 | AO14: 0 | AP14: 0 | AQ14: 0 | AR14: 0 | AS14: 0 | AT14: 0 | AU14: 0 | AV14: 0 | AW14: 0 | AX14: 0 | AY14: 0 | AZ14: 0 | BA14: 0 | BB14: 0 | BC14: 0 | BD14: 0 | BE14: 0 | BF14: 0 | BG14: 0 | BH14: 0 | BI14: 0 | BJ14: 0 | BK14: 0 | BL14: 0 | BM14: 0 | BN14: 0 | BO14: 0 | BP14: 0 | BQ14: 0 | BR14: 0 | BS14: 0 | BT14: 0 | BU14: 0 | BV14: 0 | BW14: 0 | BX14: 0 | BY14: 0 | BZ14: 0 | CA14: 0 | CB14: 0 | CC14: 0 | CD14: 0 | CE14: 0 | CF14: 0 | CG14: 0 | CH14: 0 | CI14: 0 | CJ14: 0 | CK14: 0 | CL14: 0 | CM14: 0 | CN14: 0 | CO14: 0 | CP14: 0 | CQ14: 0 | CR14: 0 | CS14: 0 | CT14: 0 | CU14: 0 | CV14: 0 | CW14: 0 | CX14: 0 | CY14: 0 | CZ14: 0 | DA14: 0 | DB14: 0 | DC14: 0 | DE14: 0 | DF14: 0 | DG14: 21 | DH14: 0
A15: 3 | B15: =$B$11&"4." -> D.1.4. | E15: 0.21 | F15: =H15+NPV(FD,I15:INDEX(I15:DC15,PAL)) -> 0 | G15: =SUMIF($H$5:$DC$5,"<="&PAL,$H15:$DC15) -> 0 | H15: 0 | I15: 0 | J15: 0 | K15: 0 | L15: 0 | M15: 0 | N15: 0 | O15: 0 | P15: 0 | Q15: 0 | R15: 0 | S15: 0 | T15: 0 | U15: 0 | V15: 0 | W15: 0 | X15: 0 | Y15: 0 | Z15: 0 | AA15: 0 | AB15: 0 | AC15: 0 | AD15: 0 | AE15: 0 | AF15: 0 | AG15: 0 | AH15: 0 | AI15: 0 | AJ15: 0 | AK15: 0 | AL15: 0 | AM15: 0 | AN15: 0 | AO15: 0 | AP15: 0 | AQ15: 0 | AR15: 0 | AS15: 0 | AT15: 0 | AU15: 0 | AV15: 0 | AW15: 0 | AX15: 0 | AY15: 0 | AZ15: 0 | BA15: 0 | BB15: 0 | BC15: 0 | BD15: 0 | BE15: 0 | BF15: 0 | BG15: 0 | BH15: 0 | BI15: 0 | BJ15: 0 | BK15: 0 | BL15: 0 | BM15: 0 | BN15: 0 | BO15: 0 | BP15: 0 | BQ15: 0 | BR15: 0 | BS15: 0 | BT15: 0 | BU15: 0 | BV15: 0 | BW15: 0 | BX15: 0 | BY15: 0 | BZ15: 0 | CA15: 0 | CB15: 0 | CC15: 0 | CD15: 0 | CE15: 0 | CF15: 0 | CG15: 0 | CH15: 0 | CI15: 0 | CJ15: 0 | CK15: 0 | CL15: 0 | CM15: 0 | CN15: 0 | CO15: 0 | CP15: 0 | CQ15: 0 | CR15: 0 | CS15: 0 | CT15: 0 | CU15: 0 | CV15: 0 | CW15: 0 | CX15: 0 | CY15: 0 | CZ15: 0 | DA15: 0 | DB15: 0 | DC15: 0 | DE15: 0 | DF15: 0 | DG15: 21 | DH15: 0
A16: 4 | B16: =$B$11&"5." -> D.1.5. | E16: 0.21 | F16: =H16+NPV(FD,I16:INDEX(I16:DC16,PAL)) -> 0 | G16: =SUMIF($H$5:$DC$5,"<="&PAL,$H16:$DC16) -> 0 | H16: 0 | I16: 0 | J16: 0 | K16: 0 | L16: 0 | M16: 0 | N16: 0 | O16: 0 | P16: 0 | Q16: 0 | R16: 0 | S16: 0 | T16: 0 | U16: 0 | V16: 0 | W16: 0 | X16: 0 | Y16: 0 | Z16: 0 | AA16: 0 | AB16: 0 | AC16: 0 | AD16: 0 | AE16: 0 | AF16: 0 | AG16: 0 | AH16: 0 | AI16: 0 | AJ16: 0 | AK16: 0 | AL16: 0 | AM16: 0 | AN16: 0 | AO16: 0 | AP16: 0 | AQ16: 0 | AR16: 0 | AS16: 0 | AT16: 0 | AU16: 0 | AV16: 0 | AW16: 0 | AX16: 0 | AY16: 0 | AZ16: 0 | BA16: 0 | BB16: 0 | BC16: 0 | BD16: 0 | BE16: 0 | BF16: 0 | BG16: 0 | BH16: 0 | BI16: 0 | BJ16: 0 | BK16: 0 | BL16: 0 | BM16: 0 | BN16: 0 | BO16: 0 | BP16: 0 | BQ16: 0 | BR16: 0 | BS16: 0 | BT16: 0 | BU16: 0 | BV16: 0 | BW16: 0 | BX16: 0 | BY16: 0 | BZ16: 0 | CA16: 0 | CB16: 0 | CC16: 0 | CD16: 0 | CE16: 0 | CF16: 0 | CG16: 0 | CH16: 0 | CI16: 0 | CJ16: 0 | CK16: 0 | CL16: 0 | CM16: 0 | CN16: 0 | CO16: 0 | CP16: 0 | CQ16: 0 | CR16: 0 | CS16: 0 | CT16: 0 | CU16: 0 | CV16: 0 | CW16: 0 | CX16: 0 | CY16: 0 | CZ16: 0 | DA16: 0 | DB16: 0 | DC16: 0 | DE16: 0 | DF16: 0 | DG16: 21 | DH16: 0
A17: 5 | B17: =$B$11&"6." -> D.1.6. | E17: 0.21 | F17: =H17+NPV(FD,I17:INDEX(I17:DC17,PAL)) -> 0 | G17: =SUMIF($H$5:$DC$5,"<="&PAL,$H17:$DC17) -> 0 | H17: 0 | I17: 0 | J17: 0 | K17: 0 | L17: 0 | M17: 0 | N17: 0 | O17: 0 | P17: 0 | Q17: 0 | R17: 0 | S17: 0 | T17: 0 | U17: 0 | V17: 0 | W17: 0 | X17: 0 | Y17: 0 | Z17: 0 | AA17: 0 | AB17: 0 | AC17: 0 | AD17: 0 | AE17: 0 | AF17: 0 | AG17: 0 | AH17: 0 | AI17: 0 | AJ17: 0 | AK17: 0 | AL17: 0 | AM17: 0 | AN17: 0 | AO17: 0 | AP17: 0 | AQ17: 0 | AR17: 0 | AS17: 0 | AT17: 0 | AU17: 0 | AV17: 0 | AW17: 0 | AX17: 0 | AY17: 0 | AZ17: 0 | BA17: 0 | BB17: 0 | BC17: 0 | BD17: 0 | BE17: 0 | BF17: 0 | BG17: 0 | BH17: 0 | BI17: 0 | BJ17: 0 | BK17: 0 | BL17: 0 | BM17: 0 | BN17: 0 | BO17: 0 | BP17: 0 | BQ17: 0 | BR17: 0 | BS17: 0 | BT17: 0 | BU17: 0 | BV17: 0 | BW17: 0 | BX17: 0 | BY17: 0 | BZ17: 0 | CA17: 0 | CB17: 0 | CC17: 0 | CD17: 0 | CE17: 0 | CF17: 0 | CG17: 0 | CH17: 0 | CI17: 0 | CJ17: 0 | CK17: 0 | CL17: 0 | CM17: 0 | CN17: 0 | CO17: 0 | CP17: 0 | CQ17: 0 | CR17: 0 | CS17: 0 | CT17: 0 | CU17: 0 | CV17: 0 | CW17: 0 | CX17: 0 | CY17: 0 | CZ17: 0 | DA17: 0 | DB17: 0 | DC17: 0 | DE17: 0 | DF17: 0 | DG17: 21 | DH17: 0
A18: 6 | B18: =$B$11&"7." -> D.1.7. | E18: 0.21 | F18: =H18+NPV(FD,I18:INDEX(I18:DC18,PAL)) -> 0 | G18: =SUMIF($H$5:$DC$5,"<="&PAL,$H18:$DC18) -> 0 | H18: 0 | I18: 0 | J18: 0 | K18: 0 | L18: 0 | M18: 0 | N18: 0 | O18: 0 | P18: 0 | Q18: 0 | R18: 0 | S18: 0 | T18: 0 | U18: 0 | V18: 0 | W18: 0 | X18: 0 | Y18: 0 | Z18: 0 | AA18: 0 | AB18: 0 | AC18: 0 | AD18: 0 | AE18: 0 | AF18: 0 | AG18: 0 | AH18: 0 | AI18: 0 | AJ18: 0 | AK18: 0 | AL18: 0 | AM18: 0 | AN18: 0 | AO18: 0 | AP18: 0 | AQ18: 0 | AR18: 0 | AS18: 0 | AT18: 0 | AU18: 0 | AV18: 0 | AW18: 0 | AX18: 0 | AY18: 0 | AZ18: 0 | BA18: 0 | BB18: 0 | BC18: 0 | BD18: 0 | BE18: 0 | BF18: 0 | BG18: 0 | BH18: 0 | BI18: 0 | BJ18: 0 | BK18: 0 | BL18: 0 | BM18: 0 | BN18: 0 | BO18: 0 | BP18: 0 | BQ18: 0 | BR18: 0 | BS18: 0 | BT18: 0 | BU18: 0 | BV18: 0 | BW18: 0 | BX18: 0 | BY18: 0 | BZ18: 0 | CA18: 0 | CB18: 0 | CC18: 0 | CD18: 0 | CE18: 0 | CF18: 0 | CG18: 0 | CH18: 0 | CI18: 0 | CJ18: 0 | CK18: 0 | CL18: 0 | CM18: 0 | CN18: 0 | CO18: 0 | CP18: 0 | CQ18: 0 | CR18: 0 | CS18: 0 | CT18: 0 | CU18: 0 | CV18: 0 | CW18: 0 | CX18: 0 | CY18: 0 | CZ18: 0 | DA18: 0 | DB18: 0 | DC18: 0 | DE18: 0 | DF18: 0 | DG18: 21 | DH18: 0
A19: 7 | B19: =$B$11&"8." -> D.1.8. | E19: 0.21 | F19: =H19+NPV(FD,I19:INDEX(I19:DC19,PAL)) -> 0 | G19: =SUMIF($H$5:$DC$5,"<="&PAL,$H19:$DC19) -> 0 | H19: 0 | I19: 0 | J19: 0 | K19: 0 | L19: 0 | M19: 0 | N19: 0 | O19: 0 | P19: 0 | Q19: 0 | R19: 0 | S19: 0 | T19: 0 | U19: 0 | V19: 0 | W19: 0 | X19: 0 | Y19: 0 | Z19: 0 | AA19: 0 | AB19: 0 | AC19: 0 | AD19: 0 | AE19: 0 | AF19: 0 | AG19: 0 | AH19: 0 | AI19: 0 | AJ19: 0 | AK19: 0 | AL19: 0 | AM19: 0 | AN19: 0 | AO19: 0 | AP19: 0 | AQ19: 0 | AR19: 0 | AS19: 0 | AT19: 0 | AU19: 0 | AV19: 0 | AW19: 0 | AX19: 0 | AY19: 0 | AZ19: 0 | BA19: 0 | BB19: 0 | BC19: 0 | BD19: 0 | BE19: 0 | BF19: 0 | BG19: 0 | BH19: 0 | BI19: 0 | BJ19: 0 | BK19: 0 | BL19: 0 | BM19: 0 | BN19: 0 | BO19: 0 | BP19: 0 | BQ19: 0 | BR19: 0 | BS19: 0 | BT19: 0 | BU19: 0 | BV19: 0 | BW19: 0 | BX19: 0 | BY19: 0 | BZ19: 0 | CA19: 0 | CB19: 0 | CC19: 0 | CD19: 0 | CE19: 0 | CF19: 0 | CG19: 0 | CH19: 0 | CI19: 0 | CJ19: 0 | CK19: 0 | CL19: 0 | CM19: 0 | CN19: 0 | CO19: 0 | CP19: 0 | CQ19: 0 | CR19: 0 | CS19: 0 | CT19: 0 | CU19: 0 | CV19: 0 | CW19: 0 | CX19: 0 | CY19: 0 | CZ19: 0 | DA19: 0 | DB19: 0 | DC19: 0 | DE19: 0 | DF19: 0 | DG19: 21 | DH19: 0
B20: =$B$11&"9." -> D.1.9. | C20: Investicijos (privataus ir NVO sektoriaus) | E20: 0.21 | F20: =H20+NPV(FD,I20:INDEX(I20:DC20,PAL)) -> 0 | G20: =SUMIF($H$5:$DC$5,"<="&PAL,$H20:$DC20) -> 0 | H20: 0 | I20: 0 | J20: 0 | K20: 0 | L20: 0 | M20: 0 | N20: 0 | O20: 0 | P20: 0 | Q20: 0 | R20: 0 | S20: 0 | T20: 0 | U20: 0 | V20: 0 | W20: 0 | X20: 0 | Y20: 0 | Z20: 0 | AA20: 0 | AB20: 0 | AC20: 0 | AD20: 0 | AE20: 0 | AF20: 0 | AG20: 0 | AH20: 0 | AI20: 0 | AJ20: 0 | AK20: 0 | AL20: 0 | AM20: 0 | AN20: 0 | AO20: 0 | AP20: 0 | AQ20: 0 | AR20: 0 | AS20: 0 | AT20: 0 | AU20: 0 | AV20: 0 | AW20: 0 | AX20: 0 | AY20: 0 | AZ20: 0 | BA20: 0 | BB20: 0 | BC20: 0 | BD20: 0 | BE20: 0 | BF20: 0 | BG20: 0 | BH20: 0 | BI20: 0 | BJ20: 0 | BK20: 0 | BL20: 0 | BM20: 0 | BN20: 0 | BO20: 0 | BP20: 0 | BQ20: 0 | BR20: 0 | BS20: 0 | BT20: 0 | BU20: 0 | BV20: 0 | BW20: 0 | BX20: 0 | BY20: 0 | BZ20: 0 | CA20: 0 | CB20: 0 | CC20: 0 | CD20: 0 | CE20: 0 | CF20: 0 | CG20: 0 | CH20: 0 | CI20: 0 | CJ20: 0 | CK20: 0 | CL20: 0 | CM20: 0 | CN20: 0 | CO20: 0 | CP20: 0 | CQ20: 0 | CR20: 0 | CS20: 0 | CT20: 0 | CU20: 0 | CV20: 0 | CW20: 0 | CX20: 0 | CY20: 0 | CZ20: 0 | DA20: 0 | DB20: 0 | DC20: 0 | DE20: 0 | DF20: 0 | DG20: 21 | DH20: 0 | DI20: 1
B21: =$B$11&"10." -> D.1.10. | C21: Reinvesticijos (po priemonės įgyvendinimo) (privataus ir NVO sektoriaus) | E21: 0.21 | F21: =H21+NPV(FD,I21:INDEX(I21:DC21,PAL)) -> 0 | G21: =SUMIF($H$5:$DC$5,"<="&PAL,$H21:$DC21) -> 0 | H21: 0 | I21: 0 | J21: 0 | K21: 0 | L21: 0 | M21: 0 | N21: 0 | O21: 0 | P21: 0 | Q21: 0 | R21: 0 | S21: 0 | T21: 0 | U21: 0 | V21: 0 | W21: 0 | X21: 0 | Y21: 0 | Z21: 0 | AA21: 0 | AB21: 0 | AC21: 0 | AD21: 0 | AE21: 0 | AF21: 0 | AG21: 0 | AH21: 0 | AI21: 0 | AJ21: 0 | AK21: 0 | AL21: 0 | AM21: 0 | AN21: 0 | AO21: 0 | AP21: 0 | AQ21: 0 | AR21: 0 | AS21: 0 | AT21: 0 | AU21: 0 | AV21: 0 | AW21: 0 | AX21: 0 | AY21: 0 | AZ21: 0 | BA21: 0 | BB21: 0 | BC21: 0 | BD21: 0 | BE21: 0 | BF21: 0 | BG21: 0 | BH21: 0 | BI21: 0 | BJ21: 0 | BK21: 0 | BL21: 0 | BM21: 0 | BN21: 0 | BO21: 0 | BP21: 0 | BQ21: 0 | BR21: 0 | BS21: 0 | BT21: 0 | BU21: 0 | BV21: 0 | BW21: 0 | BX21: 0 | BY21: 0 | BZ21: 0 | CA21: 0 | CB21: 0 | CC21: 0 | CD21: 0 | CE21: 0 | CF21: 0 | CG21: 0 | CH21: 0 | CI21: 0 | CJ21: 0 | CK21: 0 | CL21: 0 | CM21: 0 | CN21: 0 | CO21: 0 | CP21: 0 | CQ21: 0 | CR21: 0 | CS21: 0 | CT21: 0 | CU21: 0 | CV21: 0 | CW21: 0 | CX21: 0 | CY21: 0 | CZ21: 0 | DA21: 0 | DB21: 0 | DC21: 0 | DE21: 0 | DF21: 0 | DG21: 21 | DH21: 0 | DI21: 1
A22: 8 | B22: =$B$11&"11." -> D.1.11. | C22: Reinvesticijos (po priemonės įgyvendinimo) (viešojo sektoriaus) | E22: 0.21 | F22: =H22+NPV(FD,I22:INDEX(I22:DC22,PAL)) -> 0 | G22: =SUMIF($H$5:$DC$5,"<="&PAL,$H22:$DC22) -> 0 | H22: 0 | I22: 0 | J22: 0 | K22: 0 | L22: 0 | M22: 0 | N22: 0 | O22: 0 | P22: 0 | Q22: 0 | R22: 0 | S22: 0 | T22: 0 | U22: 0 | V22: 0 | W22: 0 | X22: 0 | Y22: 0 | Z22: 0 | AA22: 0 | AB22: 0 | AC22: 0 | AD22: 0 | AE22: 0 | AF22: 0 | AG22: 0 | AH22: 0 | AI22: 0 | AJ22: 0 | AK22: 0 | AL22: 0 | AM22: 0 | AN22: 0 | AO22: 0 | AP22: 0 | AQ22: 0 | AR22: 0 | AS22: 0 | AT22: 0 | AU22: 0 | AV22: 0 | AW22: 0 | AX22: 0 | AY22: 0 | AZ22: 0 | BA22: 0 | BB22: 0 | BC22: 0 | BD22: 0 | BE22: 0 | BF22: 0 | BG22: 0 | BH22: 0 | BI22: 0 | BJ22: 0 | BK22: 0 | BL22: 0 | BM22: 0 | BN22: 0 | BO22: 0 | BP22: 0 | BQ22: 0 | BR22: 0 | BS22: 0 | BT22: 0 | BU22: 0 | BV22: 0 | BW22: 0 | BX22: 0 | BY22: 0 | BZ22: 0 | CA22: 0 | CB22: 0 | CC22: 0 | CD22: 0 | CE22: 0 | CF22: 0 | CG22: 0 | CH22: 0 | CI22: 0 | CJ22: 0 | CK22: 0 | CL22: 0 | CM22: 0 | CN22: 0 | CO22: 0 | CP22: 0 | CQ22: 0 | CR22: 0 | CS22: 0 | CT22: 0 | CU22: 0 | CV22: 0 | CW22: 0 | CX22: 0 | CY22: 0 | CZ22: 0 | DA22: 0 | DB22: 0 | DC22: 0 | DE22: =COUNTBLANK(H22:DC22) -> 0 | DF22: 0 | DG22: 21 | DH22: 0
A23: 9 | B23: =$B$11&"L." -> D.1.L. | C23: Likutinė vertė | E23: 0.21 | F23: =H23+NPV(FD,I23:INDEX(I23:DC23,PAL)) -> 0 | G23: =SUMIF($H$5:$DC$5,"<="&PAL,$H23:$DC23) -> 0 | H23: 0 | I23: 0 | J23: 0 | K23: 0 | L23: 0 | M23: 0 | N23: 0 | O23: 0 | P23: 0 | Q23: 0 | R23: 0 | S23: 0 | T23: 0 | U23: 0 | V23: 0 | W23: 0 | X23: 0 | Y23: 0 | Z23: 0 | AA23: 0 | AB23: 0 | AC23: 0 | AD23: 0 | AE23: 0 | AF23: 0 | AG23: 0 | AH23: 0 | AI23: 0 | AJ23: 0 | AK23: 0 | AL23: 0 | AM23: 0 | AN23: 0 | AO23: 0 | AP23: 0 | AQ23: 10000 | AR23: 0 | AS23: 0 | AT23: 0 | AU23: 0 | AV23: 0 | AW23: 0 | AX23: 0 | AY23: 0 | AZ23: 0 | BA23: 0 | BB23: 0 | BC23: 0 | BD23: 0 | BE23: 0 | BF23: 0 | BG23: 0 | BH23: 0 | BI23: 0 | BJ23: 0 | BK23: 0 | BL23: 0 | BM23: 0 | BN23: 0 | BO23: 0 | BP23: 0 | BQ23: 0 | BR23: 0 | BS23: 0 | BT23: 0 | BU23: 0 | BV23: 0 | BW23: 0 | BX23: 0 | BY23: 0 | BZ23: 0 | CA23: 0 | CB23: 0 | CC23: 0 | CD23: 0 | CE23: 0 | CF23: 0 | CG23: 0 | CH23: 0 | CI23: 0 | CJ23: 0 | CK23: 0 | CL23: 0 | CM23: 0 | CN23: 0 | CO23: 0 | CP23: 0 | CQ23: 0 | CR23: 0 | CS23: 0 | CT23: 0 | CU23: 0 | CV23: 0 | CW23: 0 | CX23: 0 | CY23: 0 | CZ23: 0 | DA23: 0 | DB23: 0 | DC23: 0 | DE23: 0 | DF23: 1 | DG23: 21 | DH23: =DG23/(100+DG23) -> 0.173553719
A24: 10 | B24: D.2. | C24: Mokestinės (mišrios) | F24: =SUM(F25:F35) -> 0 | G24: =SUMIF($H$5:$DC$5,"<="&PAL,$H24:$DC24) -> 0 | H24: =SUM(H25:H35) -> 0 | I24: =SUM(I25:I35) -> 0 | J24: 0 | K24: 0 | L24: 0 | M24: 0 | N24: 0 | O24: 0 | P24: 0 | Q24: 0 | R24: 0 | S24: 0 | T24: 0 | U24: 0 | V24: 0 | W24: 0 | X24: 0 | Y24: 0 | Z24: 0 | AA24: 0 | AB24: 0 | AC24: 0 | AD24: 0 | AE24: 0 | AF24: 0 | AG24: 0 | AH24: 0 | AI24: 0 | AJ24: 0 | AK24: 0 | AL24: 0 | AM24: 0 | AN24: 0 | AO24: 0 | AP24: 0 | AQ24: 0 | AR24: 0 | AS24: 0 | AT24: 0 | AU24: 0 | AV24: 0 | AW24: 0 | AX24: 0 | AY24: 0 | AZ24: 0 | BA24: 0 | BB24: 0 | BC24: 0 | BD24: 0 | BE24: 0 | BF24: 0 | BG24: 0 | BH24: 0 | BI24: 0 | BJ24: 0 | BK24: 0 | BL24: 0 | BM24: 0 | BN24: 0 | BO24: 0 | BP24: 0 | BQ24: 0 | BR24: 0 | BS24: 0 | BT24: 0 | BU24: =SUM(BU25:BU35) -> 0 | BV24: 0 | BW24: 0 | BX24: 0 | BY24: 0 | BZ24: 0 | CA24: 0 | CB24: 0 | CC24: 0 | CD24: 0 | CE24: 0 | CF24: 0 | CG24: 0 | CH24: 0 | CI24: 0 | CJ24: 0 | CK24: 0 | CL24: 0 | CM24: 0 | CN24: 0 | CO24: 0 | CP24: 0 | CQ24: 0 | CR24: 0 | CS24: 0 | CT24: 0 | CU24: 0 | CV24: 0 | CW24: 0 | CX24: 0 | CY24: 0 | CZ24: 0 | DA24: =SUM(DA25:DA35) -> 0 | DB24: 0 | DC24: =SUM(DC25:DC35) -> 0 | DF24: 0
A25: 11 | B25: =$B$24&"1." -> D.2.1. | C25: Veikla | E25: 0.21 | F25: =H25+NPV(FD,I25:INDEX(I25:DC25,PAL)) -> 0 | G25: =SUMIF($H$5:$DC$5,"<="&PAL,$H25:$DC25) -> 0 | H25: 0 | I25: 0 | J25: 0 | K25: 0 | L25: 0 | M25: 0 | N25: 0 | O25: 0 | P25: 0 | Q25: 0 | R25: 0 | S25: 0 | T25: 0 | U25: 0 | V25: 0 | W25: 0 | X25: 0 | Y25: 0 | Z25: 0 | AA25: 0 | AB25: 0 | AC25: 0 | AD25: 0 | AE25: 0 | AF25: 0 | AG25: 0 | AH25: 0 | AI25: 0 | AJ25: 0 | AK25: 0 | AL25: 0 | AM25: 0 | AN25: 0 | AO25: 0 | AP25: 0 | AQ25: 0 | AR25: 0 | AS25: 0 | AT25: 0 | AU25: 0 | AV25: 0 | AW25: 0 | AX25: 0 | AY25: 0 | AZ25: 0 | BA25: 0 | BB25: 0 | BC25: 0 | BD25: 0 | BE25: 0 | BF25: 0 | BG25: 0 | BH25: 0 | BI25: 0 | BJ25: 0 | BK25: 0 | BL25: 0 | BM25: 0 | BN25: 0 | BO25: 0 | BP25: 0 | BQ25: 0 | BR25: 0 | BS25: 0 | BT25: 0 | BU25: 0 | BV25: 0 | BW25: 0 | BX25: 0 | BY25: 0 | BZ25: 0 | CA25: 0 | CB25: 0 | CC25: 0 | CD25: 0 | CE25: 0 | CF25: 0 | CG25: 0 | CH25: 0 | CI25: 0 | CJ25: 0 | CK25: 0 | CL25: 0 | CM25: 0 | CN25: 0 | CO25: 0 | CP25: 0 | CQ25: 0 | CR25: 0 | CS25: 0 | CT25: 0 | CU25: 0 | CV25: 0 | CW25: 0 | CX25: 0 | CY25: 0 | CZ25: 0 | DA25: 0 | DB25: 0 | DC25: 0 | DE25: =COUNTBLANK(H25:DC25) -> 0 | DF25: 0 | DG25: =IF(ISNUMBER(E25),E25*100,0) -> 21 | DH25: 0
A26: 12 | B26: =$B$24&"2." -> D.2.2. | C26: Veikla | E26: 0.21 | F26: =H26+NPV(FD,I26:INDEX(I26:DC26,PAL)) -> 0 | G26: =SUMIF($H$5:$DC$5,"<="&PAL,$H26:$DC26) -> 0 | H26: 0 | I26: 0 | J26: 0 | K26: 0 | L26: 0 | M26: 0 | N26: 0 | O26: 0 | P26: 0 | Q26: 0 | R26: 0 | S26: 0 | T26: 0 | U26: 0 | V26: 0 | W26: 0 | X26: 0 | Y26: 0 | Z26: 0 | AA26: 0 | AB26: 0 | AC26: 0 | AD26: 0 | AE26: 0 | AF26: 0 | AG26: 0 | AH26: 0 | AI26: 0 | AJ26: 0 | AK26: 0 | AL26: 0 | AM26: 0 | AN26: 0 | AO26: 0 | AP26: 0 | AQ26: 0 | AR26: 0 | AS26: 0 | AT26: 0 | AU26: 0 | AV26: 0 | AW26: 0 | AX26: 0 | AY26: 0 | AZ26: 0 | BA26: 0 | BB26: 0 | BC26: 0 | BD26: 0 | BE26: 0 | BF26: 0 | BG26: 0 | BH26: 0 | BI26: 0 | BJ26: 0 | BK26: 0 | BL26: 0 | BM26: 0 | BN26: 0 | BO26: 0 | BP26: 0 | BQ26: 0 | BR26: 0 | BS26: 0 | BT26: 0 | BU26: 0 | BV26: 0 | BW26: 0 | BX26: 0 | BY26: 0 | BZ26: 0 | CA26: 0 | CB26: 0 | CC26: 0 | CD26: 0 | CE26: 0 | CF26: 0 | CG26: 0 | CH26: 0 | CI26: 0 | CJ26: 0 | CK26: 0 | CL26: 0 | CM26: 0 | CN26: 0 | CO26: 0 | CP26: 0 | CQ26: 0 | CR26: 0 | CS26: 0 | CT26: 0 | CU26: 0 | CV26: 0 | CW26: 0 | CX26: 0 | CY26: 0 | CZ26: 0 | DA26: 0 | DB26: 0 | DC26: 0 | DE26: =COUNTBLANK(H26:DC26) -> 0 | DF26: 0 | DG26: 21 | DH26: 0
A27: 13 | B27: =$B$24&"3." -> D.2.3. | C27: Veikla | E27: 0.21 | F27: =H27+NPV(FD,I27:INDEX(I27:DC27,PAL)) -> 0 | G27: =SUMIF($H$5:$DC$5,"<="&PAL,$H27:$DC27) -> 0 | H27: 0 | I27: 0 | J27: 0 | K27: 0 | L27: 0 | M27: 0 | N27: 0 | O27: 0 | P27: 0 | Q27: 0 | R27: 0 | S27: 0 | T27: 0 | U27: 0 | V27: 0 | W27: 0 | X27: 0 | Y27: 0 | Z27: 0 | AA27: 0 | AB27: 0 | AC27: 0 | AD27: 0 | AE27: 0 | AF27: 0 | AG27: 0 | AH27: 0 | AI27: 0 | AJ27: 0 | AK27: 0 | AL27: 0 | AM27: 0 | AN27: 0 | AO27: 0 | AP27: 0 | AQ27: 0 | AR27: 0 | AS27: 0 | AT27: 0 | AU27: 0 | AV27: 0 | AW27: 0 | AX27: 0 | AY27: 0 | AZ27: 0 | BA27: 0 | BB27: 0 | BC27: 0 | BD27: 0 | BE27: 0 | BF27: 0 | BG27: 0 | BH27: 0 | BI27: 0 | BJ27: 0 | BK27: 0 | BL27: 0 | BM27: 0 | BN27: 0 | BO27: 0 | BP27: 0 | BQ27: 0 | BR27: 0 | BS27: 0 | BT27: 0 | BU27: 0 | BV27: 0 | BW27: 0 | BX27: 0 | BY27: 0 | BZ27: 0 | CA27: 0 | CB27: 0 | CC27: 0 | CD27: 0 | CE27: 0 | CF27: 0 | CG27: 0 | CH27: 0 | CI27: 0 | CJ27: 0 | CK27: 0 | CL27: 0 | CM27: 0 | CN27: 0 | CO27: 0 | CP27: 0 | CQ27: 0 | CR27: 0 | CS27: 0 | CT27: 0 | CU27: 0 | CV27: 0 | CW27: 0 | CX27: 0 | CY27: 0 | CZ27: 0 | DA27: 0 | DB27: 0 | DC27: 0 | DE27: 0 | DF27: 0 | DG27: 21 | DH27: 0
A28: 14 | B28: =$B$24&"4." -> D.2.4. | C28: Veikla | E28: 0.21 | F28: =H28+NPV(FD,I28:INDEX(I28:DC28,PAL)) -> 0 | G28: =SUMIF($H$5:$DC$5,"<="&PAL,$H28:$DC28) -> 0 | H28: 0 | I28: 0 | J28: 0 | K28: 0 | L28: 0 | M28: 0 | N28: 0 | O28: 0 | P28: 0 | Q28: 0 | R28: 0 | S28: 0 | T28: 0 | U28: 0 | V28: 0 | W28: 0 | X28: 0 | Y28: 0 | Z28: 0 | AA28: 0 | AB28: 0 | AC28: 0 | AD28: 0 | AE28: 0 | AF28: 0 | AG28: 0 | AH28: 0 | AI28: 0 | AJ28: 0 | AK28: 0 | AL28: 0 | AM28: 0 | AN28: 0 | AO28: 0 | AP28: 0 | AQ28: 0 | AR28: 0 | AS28: 0 | AT28: 0 | AU28: 0 | AV28: 0 | AW28: 0 | AX28: 0 | AY28: 0 | AZ28: 0 | BA28: 0 | BB28: 0 | BC28: 0 | BD28: 0 | BE28: 0 | BF28: 0 | BG28: 0 | BH28: 0 | BI28: 0 | BJ28: 0 | BK28: 0 | BL28: 0 | BM28: 0 | BN28: 0 | BO28: 0 | BP28: 0 | BQ28: 0 | BR28: 0 | BS28: 0 | BT28: 0 | BU28: 0 | BV28: 0 | BW28: 0 | BX28: 0 | BY28: 0 | BZ28: 0 | CA28: 0 | CB28: 0 | CC28: 0 | CD28: 0 | CE28: 0 | CF28: 0 | CG28: 0 | CH28: 0 | CI28: 0 | CJ28: 0 | CK28: 0 | CL28: 0 | CM28: 0 | CN28: 0 | CO28: 0 | CP28: 0 | CQ28: 0 | CR28: 0 | CS28: 0 | CT28: 0 | CU28: 0 | CV28: 0 | CW28: 0 | CX28: 0 | CY28: 0 | CZ28: 0 | DA28: 0 | DB28: 0 | DC28: 0 | DE28: 0 | DF28: 0 | DG28: 21 | DH28: 0
A29: 15 | B29: =$B$24&"5." -> D.2.5. | C29: Veikla | E29: 0.21 | F29: =H29+NPV(FD,I29:INDEX(I29:DC29,PAL)) -> 0 | G29: =SUMIF($H$5:$DC$5,"<="&PAL,$H29:$DC29) -> 0 | H29: 0 | I29: 0 | J29: 0 | K29: 0 | L29: 0 | M29: 0 | N29: 0 | O29: 0 | P29: 0 | Q29: 0 | R29: 0 | S29: 0 | T29: 0 | U29: 0 | V29: 0 | W29: 0 | X29: 0 | Y29: 0 | Z29: 0 | AA29: 0 | AB29: 0 | AC29: 0 | AD29: 0 | AE29: 0 | AF29: 0 | AG29: 0 | AH29: 0 | AI29: 0 | AJ29: 0 | AK29: 0 | AL29: 0 | AM29: 0 | AN29: 0 | AO29: 0 | AP29: 0 | AQ29: 0 | AR29: 0 | AS29: 0 | AT29: 0 | AU29: 0 | AV29: 0 | AW29: 0 | AX29: 0 | AY29: 0 | AZ29: 0 | BA29: 0 | BB29: 0 | BC29: 0 | BD29: 0 | BE29: 0 | BF29: 0 | BG29: 0 | BH29: 0 | BI29: 0 | BJ29: 0 | BK29: 0 | BL29: 0 | BM29: 0 | BN29: 0 | BO29: 0 | BP29: 0 | BQ29: 0 | BR29: 0 | BS29: 0 | BT29: 0 | BU29: 0 | BV29: 0 | BW29: 0 | BX29: 0 | BY29: 0 | BZ29: 0 | CA29: 0 | CB29: 0 | CC29: 0 | CD29: 0 | CE29: 0 | CF29: 0 | CG29: 0 | CH29: 0 | CI29: 0 | CJ29: 0 | CK29: 0 | CL29: 0 | CM29: 0 | CN29: 0 | CO29: 0 | CP29: 0 | CQ29: 0 | CR29: 0 | CS29: 0 | CT29: 0 | CU29: 0 | CV29: 0 | CW29: 0 | CX29: 0 | CY29: 0 | CZ29: 0 | DA29: 0 | DB29: 0 | DC29: 0 | DE29: 0 | DF29: 0 | DG29: 21 | DH29: 0
A30: 16 | B30: =$B$24&"6." -> D.2.6. | C30: Veikla | E30: 0.21 | F30: =H30+NPV(FD,I30:INDEX(I30:DC30,PAL)) -> 0 | G30: =SUMIF($H$5:$DC$5,"<="&PAL,$H30:$DC30) -> 0 | H30: 0 | I30: 0 | J30: 0 | K30: 0 | L30: 0 | M30: 0 | N30: 0 | O30: 0 | P30: 0 | Q30: 0 | R30: 0 | S30: 0 | T30: 0 | U30: 0 | V30: 0 | W30: 0 | X30: 0 | Y30: 0 | Z30: 0 | AA30: 0 | AB30: 0 | AC30: 0 | AD30: 0 | AE30: 0 | AF30: 0 | AG30: 0 | AH30: 0 | AI30: 0 | AJ30: 0 | AK30: 0 | AL30: 0 | AM30: 0 | AN30: 0 | AO30: 0 | AP30: 0 | AQ30: 0 | AR30: 0 | AS30: 0 | AT30: 0 | AU30: 0 | AV30: 0 | AW30: 0 | AX30: 0 | AY30: 0 | AZ30: 0 | BA30: 0 | BB30: 0 | BC30: 0 | BD30: 0 | BE30: 0 | BF30: 0 | BG30: 0 | BH30: 0 | BI30: 0 | BJ30: 0 | BK30: 0 | BL30: 0 | BM30: 0 | BN30: 0 | BO30: 0 | BP30: 0 | BQ30: 0 | BR30: 0 | BS30: 0 | BT30: 0 | BU30: 0 | BV30: 0 | BW30: 0 | BX30: 0 | BY30: 0 | BZ30: 0 | CA30: 0 | CB30: 0 | CC30: 0 | CD30: 0 | CE30: 0 | CF30: 0 | CG30: 0 | CH30: 0 | CI30: 0 | CJ30: 0 | CK30: 0 | CL30: 0 | CM30: 0 | CN30: 0 | CO30: 0 | CP30: 0 | CQ30: 0 | CR30: 0 | CS30: 0 | CT30: 0 | CU30: 0 | CV30: 0 | CW30: 0 | CX30: 0 | CY30: 0 | CZ30: 0 | DA30: 0 | DB30: 0 | DC30: 0 | DE30: 0 | DF30: 0 | DG30: 21 | DH30: 0
A31: 17 | B31: =$B$24&"7." -> D.2.7. | C31: Veikla | E31: 0.21 | F31: =H31+NPV(FD,I31:INDEX(I31:DC31,PAL)) -> 0 | G31: =SUMIF($H$5:$DC$5,"<="&PAL,$H31:$DC31) -> 0 | H31: 0 | I31: 0 | J31: 0 | K31: 0 | L31: 0 | M31: 0 | N31: 0 | O31: 0 | P31: 0 | Q31: 0 | R31: 0 | S31: 0 | T31: 0 | U31: 0 | V31: 0 | W31: 0 | X31: 0 | Y31: 0 | Z31: 0 | AA31: 0 | AB31: 0 | AC31: 0 | AD31: 0 | AE31: 0 | AF31: 0 | AG31: 0 | AH31: 0 | AI31: 0 | AJ31: 0 | AK31: 0 | AL31: 0 | AM31: 0 | AN31: 0 | AO31: 0 | AP31: 0 | AQ31: 0 | AR31: 0 | AS31: 0 | AT31: 0 | AU31: 0 | AV31: 0 | AW31: 0 | AX31: 0 | AY31: 0 | AZ31: 0 | BA31: 0 | BB31: 0 | BC31: 0 | BD31: 0 | BE31: 0 | BF31: 0 | BG31: 0 | BH31: 0 | BI31: 0 | BJ31: 0 | BK31: 0 | BL31: 0 | BM31: 0 | BN31: 0 | BO31: 0 | BP31: 0 | BQ31: 0 | BR31: 0 | BS31: 0 | BT31: 0 | BU31: 0 | BV31: 0 | BW31: 0 | BX31: 0 | BY31: 0 | BZ31: 0 | CA31: 0 | CB31: 0 | CC31: 0 | CD31: 0 | CE31: 0 | CF31: 0 | CG31: 0 | CH31: 0 | CI31: 0 | CJ31: 0 | CK31: 0 | CL31: 0 | CM31: 0 | CN31: 0 | CO31: 0 | CP31: 0 | CQ31: 0 | CR31: 0 | CS31: 0 | CT31: 0 | CU31: 0 | CV31: 0 | CW31: 0 | CX31: 0 | CY31: 0 | CZ31: 0 | DA31: 0 | DB31: 0 | DC31: 0 | DE31: 0 | DF31: 0 | DG31: 21 | DH31: 0
A32: 18 | B32: =$B$24&"8." -> D.2.8. | C32: Veikla | E32: 0.21 | F32: =H32+NPV(FD,I32:INDEX(I32:DC32,PAL)) -> 0 | G32: =SUMIF($H$5:$DC$5,"<="&PAL,$H32:$DC32) -> 0 | H32: 0 | I32: 0 | J32: 0 | K32: 0 | L32: 0 | M32: 0 | N32: 0 | O32: 0 | P32: 0 | Q32: 0 | R32: 0 | S32: 0 | T32: 0 | U32: 0 | V32: 0 | W32: 0 | X32: 0 | Y32: 0 | Z32: 0 | AA32: 0 | AB32: 0 | AC32: 0 | AD32: 0 | AE32: 0 | AF32: 0 | AG32: 0 | AH32: 0 | AI32: 0 | AJ32: 0 | AK32: 0 | AL32: 0 | AM32: 0 | AN32: 0 | AO32: 0 | AP32: 0 | AQ32: 0 | AR32: 0 | AS32: 0 | AT32: 0 | AU32: 0 | AV32: 0 | AW32: 0 | AX32: 0 | AY32: 0 | AZ32: 0 | BA32: 0 | BB32: 0 | BC32: 0 | BD32: 0 | BE32: 0 | BF32: 0 | BG32: 0 | BH32: 0 | BI32: 0 | BJ32: 0 | BK32: 0 | BL32: 0 | BM32: 0 | BN32: 0 | BO32: 0 | BP32: 0 | BQ32: 0 | BR32: 0 | BS32: 0 | BT32: 0 | BU32: 0 | BV32: 0 | BW32: 0 | BX32: 0 | BY32: 0 | BZ32: 0 | CA32: 0 | CB32: 0 | CC32: 0 | CD32: 0 | CE32: 0 | CF32: 0 | CG32: 0 | CH32: 0 | CI32: 0 | CJ32: 0 | CK32: 0 | CL32: 0 | CM32: 0 | CN32: 0 | CO32: 0 | CP32: 0 | CQ32: 0 | CR32: 0 | CS32: 0 | CT32: 0 | CU32: 0 | CV32: 0 | CW32: 0 | CX32: 0 | CY32: 0 | CZ32: 0 | DA32: 0 | DB32: 0 | DC32: 0 | DE32: 0 | DF32: 0 | DG32: 21 | DH32: 0
B33: =$B$24&"9." -> D.2.9. | C33: Investicijos (privataus ir NVO sektoriaus) | E33: 0.21 | F33: =H33+NPV(FD,I33:INDEX(I33:DC33,PAL)) -> 0 | G33: =SUMIF($H$5:$DC$5,"<="&PAL,$H33:$DC33) -> 0 | H33: 0 | I33: 0 | J33: 0 | K33: 0 | L33: 0 | M33: 0 | N33: 0 | O33: 0 | P33: 0 | Q33: 0 | R33: 0 | S33: 0 | T33: 0 | U33: 0 | V33: 0 | W33: 0 | X33: 0 | Y33: 0 | Z33: 0 | AA33: 0 | AB33: 0 | AC33: 0 | AD33: 0 | AE33: 0 | AF33: 0 | AG33: 0 | AH33: 0 | AI33: 0 | AJ33: 0 | AK33: 0 | AL33: 0 | AM33: 0 | AN33: 0 | AO33: 0 | AP33: 0 | AQ33: 0 | AR33: 0 | AS33: 0 | AT33: 0 | AU33: 0 | AV33: 0 | AW33: 0 | AX33: 0 | AY33: 0 | AZ33: 0 | BA33: 0 | BB33: 0 | BC33: 0 | BD33: 0 | BE33: 0 | BF33: 0 | BG33: 0 | BH33: 0 | BI33: 0 | BJ33: 0 | BK33: 0 | BL33: 0 | BM33: 0 | BN33: 0 | BO33: 0 | BP33: 0 | BQ33: 0 | BR33: 0 | BS33: 0 | BT33: 0 | BU33: 0 | BV33: 0 | BW33: 0 | BX33: 0 | BY33: 0 | BZ33: 0 | CA33: 0 | CB33: 0 | CC33: 0 | CD33: 0 | CE33: 0 | CF33: 0 | CG33: 0 | CH33: 0 | CI33: 0 | CJ33: 0 | CK33: 0 | CL33: 0 | CM33: 0 | CN33: 0 | CO33: 0 | CP33: 0 | CQ33: 0 | CR33: 0 | CS33: 0 | CT33: 0 | CU33: 0 | CV33: 0 | CW33: 0 | CX33: 0 | CY33: 0 | CZ33: 0 | DA33: 0 | DB33: 0 | DC33: 0 | DE33: =COUNTBLANK(H33:DC33) -> 0 | DF33: 0 | DG33: 21 | DH33: 0 | DI33: 1
B34: =$B$24&"10." -> D.2.10. | C34: Reinvesticijos (po priemonės įgyvendinimo) (privataus ir NVO sektoriaus) | E34: 0.21 | F34: =H34+NPV(FD,I34:INDEX(I34:DC34,PAL)) -> 0 | G34: =SUMIF($H$5:$DC$5,"<="&PAL,$H34:$DC34) -> 0 | H34: 0 | I34: 0 | J34: 0 | K34: 0 | L34: 0 | M34: 0 | N34: 0 | O34: 0 | P34: 0 | Q34: 0 | R34: 0 | S34: 0 | T34: 0 | U34: 0 | V34: 0 | W34: 0 | X34: 0 | Y34: 0 | Z34: 0 | AA34: 0 | AB34: 0 | AC34: 0 | AD34: 0 | AE34: 0 | AF34: 0 | AG34: 0 | AH34: 0 | AI34: 0 | AJ34: 0 | AK34: 0 | AL34: 0 | AM34: 0 | AN34: 0 | AO34: 0 | AP34: 0 | AQ34: 0 | AR34: 0 | AS34: 0 | AT34: 0 | AU34: 0 | AV34: 0 | AW34: 0 | AX34: 0 | AY34: 0 | AZ34: 0 | BA34: 0 | BB34: 0 | BC34: 0 | BD34: 0 | BE34: 0 | BF34: 0 | BG34: 0 | BH34: 0 | BI34: 0 | BJ34: 0 | BK34: 0 | BL34: 0 | BM34: 0 | BN34: 0 | BO34: 0 | BP34: 0 | BQ34: 0 | BR34: 0 | BS34: 0 | BT34: 0 | BU34: 0 | BV34: 0 | BW34: 0 | BX34: 0 | BY34: 0 | BZ34: 0 | CA34: 0 | CB34: 0 | CC34: 0 | CD34: 0 | CE34: 0 | CF34: 0 | CG34: 0 | CH34: 0 | CI34: 0 | CJ34: 0 | CK34: 0 | CL34: 0 | CM34: 0 | CN34: 0 | CO34: 0 | CP34: 0 | CQ34: 0 | CR34: 0 | CS34: 0 | CT34: 0 | CU34: 0 | CV34: 0 | CW34: 0 | CX34: 0 | CY34: 0 | CZ34: 0 | DA34: 0 | DB34: 0 | DC34: 0 | DE34: 0 | DF34: 0 | DG34: 21 | DH34: 0 | DI34: 1
A35: 19 | B35: =$B$24&"11." -> D.2.11. | C35: Reinvesticijos (po priemonės įgyvendinimo) (viešojo sektoriaus) | E35: 0.21 | F35: =H35+NPV(FD,I35:INDEX(I35:DC35,PAL)) -> 0 | G35: =SUMIF($H$5:$DC$5,"<="&PAL,$H35:$DC35) -> 0 | H35: 0 | I35: 0 | J35: 0 | K35: 0 | L35: 0 | M35: 0 | N35: 0 | O35: 0 | P35: 0 | Q35: 0 | R35: 0 | S35: 0 | T35: 0 | U35: 0 | V35: 0 | W35: 0 | X35: 0 | Y35: 0 | Z35: 0 | AA35: 0 | AB35: 0 | AC35: 0 | AD35: 0 | AE35: 0 | AF35: 0 | AG35: 0 | AH35: 0 | AI35: 0 | AJ35: 0 | AK35: 0 | AL35: 0 | AM35: 0 | AN35: 0 | AO35: 0 | AP35: 0 | AQ35: 0 | AR35: 0 | AS35: 0 | AT35: 0 | AU35: 0 | AV35: 0 | AW35: 0 | AX35: 0 | AY35: 0 | AZ35: 0 | BA35: 0 | BB35: 0 | BC35: 0 | BD35: 0 | BE35: 0 | BF35: 0 | BG35: 0 | BH35: 0 | BI35: 0 | BJ35: 0 | BK35: 0 | BL35: 0 | BM35: 0 | BN35: 0 | BO35: 0 | BP35: 0 | BQ35: 0 | BR35: 0 | BS35: 0 | BT35: 0 | BU35: 0 | BV35: 0 | BW35: 0 | BX35: 0 | BY35: 0 | BZ35: 0 | CA35: 0 | CB35: 0 | CC35: 0 | CD35: 0 | CE35: 0 | CF35: 0 | CG35: 0 | CH35: 0 | CI35: 0 | CJ35: 0 | CK35: 0 | CL35: 0 | CM35: 0 | CN35: 0 | CO35: 0 | CP35: 0 | CQ35: 0 | CR35: 0 | CS35: 0 | CT35: 0 | CU35: 0 | CV35: 0 | CW35: 0 | CX35: 0 | CY35: 0 | CZ35: 0 | DA35: 0 | DB35: 0 | DC35: 0 | DE35: 0 | DF35: 0 | DG35: 21 | DH35: 0
A36: 20 | B36: =$B$24&"L." -> D.2.L. | C36: Likutinė vertė | E36: 0.21 | F36: =H36+NPV(FD,I36:INDEX(I36:DC36,PAL)) -> 0 | G36: =SUMIF($H$5:$DC$5,"<="&PAL,$H36:$DC36) -> 0 | H36: 0 | I36: 0 | J36: 0 | K36: 0 | L36: 0 | M36: 0 | N36: 0 | O36: 0 | P36: 0 | Q36: 0 | R36: 0 | S36: 0 | T36: 0 | U36: 0 | V36: 0 | W36: 0 | X36: 0 | Y36: 0 | Z36: 0 | AA36: 0 | AB36: 0 | AC36: 0 | AD36: 0 | AE36: 0 | AF36: 0 | AG36: 0 | AH36: 0 | AI36: 0 | AJ36: 0 | AK36: 0 | AL36: 0 | AM36: 0 | AN36: 0 | AO36: 0 | AP36: 0 | AQ36: 0 | AR36: 0 | AS36: 0 | AT36: 0 | AU36: 0 | AV36: 0 | AW36: 0 | AX36: 0 | AY36: 0 | AZ36: 0 | BA36: 0 | BB36: 0 | BC36: 0 | BD36: 0 | BE36: 0 | BF36: 0 | BG36: 0 | BH36: 0 | BI36: 0 | BJ36: 0 | BK36: 0 | BL36: 0 | BM36: 0 | BN36: 0 | BO36: 0 | BP36: 0 | BQ36: 0 | BR36: 0 | BS36: 0 | BT36: 0 | BU36: 0 | BV36: 0 | BW36: 0 | BX36: 0 | BY36: 0 | BZ36: 0 | CA36: 0 | CB36: 0 | CC36: 0 | CD36: 0 | CE36: 0 | CF36: 0 | CG36: 0 | CH36: 0 | CI36: 0 | CJ36: 0 | CK36: 0 | CL36: 0 | CM36: 0 | CN36: 0 | CO36: 0 | CP36: 0 | CQ36: 0 | CR36: 0 | CS36: 0 | CT36: 0 | CU36: 0 | CV36: 0 | CW36: 0 | CX36: 0 | CY36: 0 | CZ36: 0 | DA36: 0 | DB36: 0 | DC36: 0 | DE36: 0 | DF36: 0 | DG36: 21 | DH36: =DG36/(100+DG36) -> 0.173553719
A37: 21 | B37: D.3. | C37: Finansinės paskatos ir kitos išmokos (mišrios) | F37: =SUM(F38:F48) -> 0 | G37: =SUMIF($H$5:$DC$5,"<="&PAL,$H37:$DC37) -> 0 | H37: =SUM(H38:H48) -> 0 | I37: =SUM(I38:I48) -> 0 | J37: 0 | K37: 0 | L37: 0 | M37: 0 | N37: 0 | O37: 0 | P37: 0 | Q37: 0 | R37: 0 | S37: 0 | T37: 0 | U37: =SUM(U38:U48) -> 0 | V37: 0 | W37: 0 | X37: 0 | Y37: 0 | Z37: 0 | AA37: 0 | AB37: 0 | AC37: 0 | AD37: 0 | AE37: 0 | AF37: 0 | AG37: 0 | AH37: 0 | AI37: 0 | AJ37: 0 | AK37: 0 | AL37: 0 | AM37: 0 | AN37: 0 | AO37: 0 | AP37: 0 | AQ37: 0 | AR37: 0 | AS37: 0 | AT37: 0 | AU37: 0 | AV37: 0 | AW37: 0 | AX37: 0 | AY37: 0 | AZ37: 0 | BA37: 0 | BB37: 0 | BC37: 0 | BD37: 0 | BE37: 0 | BF37: 0 | BG37: 0 | BH37: 0 | BI37: 0 | BJ37: 0 | BK37: 0 | BL37: 0 | BM37: 0 | BN37: 0 | BO37: 0 | BP37: 0 | BQ37: 0 | BR37: 0 | BS37: 0 | BT37: 0 | BU37: =SUM(BU38:BU48) -> 0 | BV37: 0 | BW37: 0 | BX37: 0 | BY37: 0 | BZ37: 0 | CA37: 0 | CB37: 0 | CC37: 0 | CD37: 0 | CE37: 0 | CF37: 0 | CG37: 0 | CH37: 0 | CI37: 0 | CJ37: 0 | CK37: 0 | CL37: 0 | CM37: 0 | CN37: 0 | CO37: 0 | CP37: 0 | CQ37: 0 | CR37: 0 | CS37: 0 | CT37: 0 | CU37: 0 | CV37: 0 | CW37: 0 | CX37: 0 | CY37: 0 | CZ37: 0 | DA37: 0 | DB37: 0 | DC37: =SUM(DC38:DC48) -> 0 | DF37: 0
A38: 22 | B38: =$B$37&"1." -> D.3.1. | C38: Veikla | E38: 0.21 | F38: =H38+NPV(FD,I38:INDEX(I38:DC38,PAL)) -> 0 | G38: =SUMIF($H$5:$DC$5,"<="&PAL,$H38:$DC38) -> 0 | H38: 0 | I38: 0 | J38: 0 | K38: 0 | L38: 0 | M38: 0 | N38: 0 | O38: 0 | P38: 0 | Q38: 0 | R38: 0 | S38: 0 | T38: 0 | U38: 0 | V38: 0 | W38: 0 | X38: 0 | Y38: 0 | Z38: 0 | AA38: 0 | AB38: 0 | AC38: 0 | AD38: 0 | AE38: 0 | AF38: 0 | AG38: 0 | AH38: 0 | AI38: 0 | AJ38: 0 | AK38: 0 | AL38: 0 | AM38: 0 | AN38: 0 | AO38: 0 | AP38: 0 | AQ38: 0 | AR38: 0 | AS38: 0 | AT38: 0 | AU38: 0 | AV38: 0 | AW38: 0 | AX38: 0 | AY38: 0 | AZ38: 0 | BA38: 0 | BB38: 0 | BC38: 0 | BD38: 0 | BE38: 0 | BF38: 0 | BG38: 0 | BH38: 0 | BI38: 0 | BJ38: 0 | BK38: 0 | BL38: 0 | BM38: 0 | BN38: 0 | BO38: 0 | BP38: 0 | BQ38: 0 | BR38: 0 | BS38: 0 | BT38: 0 | BU38: 0 | BV38: 0 | BW38: 0 | BX38: 0 | BY38: 0 | BZ38: 0 | CA38: 0 | CB38: 0 | CC38: 0 | CD38: 0 | CE38: 0 | CF38: 0 | CG38: 0 | CH38: 0 | CI38: 0 | CJ38: 0 | CK38: 0 | CL38: 0 | CM38: 0 | CN38: 0 | CO38: 0 | CP38: 0 | CQ38: 0 | CR38: 0 | CS38: 0 | CT38: 0 | CU38: 0 | CV38: 0 | CW38: 0 | CX38: 0 | CY38: 0 | CZ38: 0 | DA38: 0 | DB38: 0 | DC38: 0 | DE38: =COUNTBLANK(H38:DC38) -> 0 | DF38: 0 | DG38: =IF(ISNUMBER(E38),E38*100,0) -> 21 | DH38: 0
A39: 23 | B39: =$B$37&"2." -> D.3.2. | C39: Veikla | E39: 0.21 | F39: =H39+NPV(FD,I39:INDEX(I39:DC39,PAL)) -> 0 | G39: =SUMIF($H$5:$DC$5,"<="&PAL,$H39:$DC39) -> 0 | H39: 0 | I39: 0 | J39: 0 | K39: 0 | L39: 0 | M39: 0 | N39: 0 | O39: 0 | P39: 0 | Q39: 0 | R39: 0 | S39: 0 | T39: 0 | U39: 0 | V39: 0 | W39: 0 | X39: 0 | Y39: 0 | Z39: 0 | AA39: 0 | AB39: 0 | AC39: 0 | AD39: 0 | AE39: 0 | AF39: 0 | AG39: 0 | AH39: 0 | AI39: 0 | AJ39: 0 | AK39: 0 | AL39: 0 | AM39: 0 | AN39: 0 | AO39: 0 | AP39: 0 | AQ39: 0 | AR39: 0 | AS39: 0 | AT39: 0 | AU39: 0 | AV39: 0 | AW39: 0 | AX39: 0 | AY39: 0 | AZ39: 0 | BA39: 0 | BB39: 0 | BC39: 0 | BD39: 0 | BE39: 0 | BF39: 0 | BG39: 0 | BH39: 0 | BI39: 0 | BJ39: 0 | BK39: 0 | BL39: 0 | BM39: 0 | BN39: 0 | BO39: 0 | BP39: 0 | BQ39: 0 | BR39: 0 | BS39: 0 | BT39: 0 | BU39: 0 | BV39: 0 | BW39: 0 | BX39: 0 | BY39: 0 | BZ39: 0 | CA39: 0 | CB39: 0 | CC39: 0 | CD39: 0 | CE39: 0 | CF39: 0 | CG39: 0 | CH39: 0 | CI39: 0 | CJ39: 0 | CK39: 0 | CL39: 0 | CM39: 0 | CN39: 0 | CO39: 0 | CP39: 0 | CQ39: 0 | CR39: 0 | CS39: 0 | CT39: 0 | CU39: 0 | CV39: 0 | CW39: 0 | CX39: 0 | CY39: 0 | CZ39: 0 | DA39: 0 | DB39: 0 | DC39: 0 | DE39: =COUNTBLANK(H39:DC39) -> 0 | DF39: 0 | DG39: 21 | DH39: 0
A40: 24 | B40: =$B$37&"3." -> D.3.3. | C40: Veikla | E40: 0.21 | F40: =H40+NPV(FD,I40:INDEX(I40:DC40,PAL)) -> 0 | G40: =SUMIF($H$5:$DC$5,"<="&PAL,$H40:$DC40) -> 0 | H40: 0 | I40: 0 | J40: 0 | K40: 0 | L40: 0 | M40: 0 | N40: 0 | O40: 0 | P40: 0 | Q40: 0 | R40: 0 | S40: 0 | T40: 0 | U40: 0 | V40: 0 | W40: 0 | X40: 0 | Y40: 0 | Z40: 0 | AA40: 0 | AB40: 0 | AC40: 0 | AD40: 0 | AE40: 0 | AF40: 0 | AG40: 0 | AH40: 0 | AI40: 0 | AJ40: 0 | AK40: 0 | AL40: 0 | AM40: 0 | AN40: 0 | AO40: 0 | AP40: 0 | AQ40: 0 | AR40: 0 | AS40: 0 | AT40: 0 | AU40: 0 | AV40: 0 | AW40: 0 | AX40: 0 | AY40: 0 | AZ40: 0 | BA40: 0 | BB40: 0 | BC40: 0 | BD40: 0 | BE40: 0 | BF40: 0 | BG40: 0 | BH40: 0 | BI40: 0 | BJ40: 0 | BK40: 0 | BL40: 0 | BM40: 0 | BN40: 0 | BO40: 0 | BP40: 0 | BQ40: 0 | BR40: 0 | BS40: 0 | BT40: 0 | BU40: 0 | BV40: 0 | BW40: 0 | BX40: 0 | BY40: 0 | BZ40: 0 | CA40: 0 | CB40: 0 | CC40: 0 | CD40: 0 | CE40: 0 | CF40: 0 | CG40: 0 | CH40: 0 | CI40: 0 | CJ40: 0 | CK40: 0 | CL40: 0 | CM40: 0 | CN40: 0 | CO40: 0 | CP40: 0 | CQ40: 0 | CR40: 0 | CS40: 0 | CT40: 0 | CU40: 0 | CV40: 0 | CW40: 0 | CX40: 0 | CY40: 0 | CZ40: 0 | DA40: 0 | DB40: 0 | DC40: 0 | DE40: 0 | DF40: 0 | DG40: 21 | DH40: 0
A41: 25 | B41: =$B$37&"4." -> D.3.4. | C41: Veikla | E41: 0.21 | F41: =H41+NPV(FD,I41:INDEX(I41:DC41,PAL)) -> 0 | G41: =SUMIF($H$5:$DC$5,"<="&PAL,$H41:$DC41) -> 0 | H41: 0 | I41: 0 | J41: 0 | K41: 0 | L41: 0 | M41: 0 | N41: 0 | O41: 0 | P41: 0 | Q41: 0 | R41: 0 | S41: 0 | T41: 0 | U41: 0 | V41: 0 | W41: 0 | X41: 0 | Y41: 0 | Z41: 0 | AA41: 0 | AB41: 0 | AC41: 0 | AD41: 0 | AE41: 0 | AF41: 0 | AG41: 0 | AH41: 0 | AI41: 0 | AJ41: 0 | AK41: 0 | AL41: 0 | AM41: 0 | AN41: 0 | AO41: 0 | AP41: 0 | AQ41: 0 | AR41: 0 | AS41: 0 | AT41: 0 | AU41: 0 | AV41: 0 | AW41: 0 | AX41: 0 | AY41: 0 | AZ41: 0 | BA41: 0 | BB41: 0 | BC41: 0 | BD41: 0 | BE41: 0 | BF41: 0 | BG41: 0 | BH41: 0 | BI41: 0 | BJ41: 0 | BK41: 0 | BL41: 0 | BM41: 0 | BN41: 0 | BO41: 0 | BP41: 0 | BQ41: 0 | BR41: 0 | BS41: 0 | BT41: 0 | BU41: 0 | BV41: 0 | BW41: 0 | BX41: 0 | BY41: 0 | BZ41: 0 | CA41: 0 | CB41: 0 | CC41: 0 | CD41: 0 | CE41: 0 | CF41: 0 | CG41: 0 | CH41: 0 | CI41: 0 | CJ41: 0 | CK41: 0 | CL41: 0 | CM41: 0 | CN41: 0 | CO41: 0 | CP41: 0 | CQ41: 0 | CR41: 0 | CS41: 0 | CT41: 0 | CU41: 0 | CV41: 0 | CW41: 0 | CX41: 0 | CY41: 0 | CZ41: 0 | DA41: 0 | DB41: 0 | DC41: 0 | DE41: 0 | DF41: 0 | DG41: 21 | DH41: 0
A42: 26 | B42: =$B$37&"5." -> D.3.5. | C42: Veikla | E42: 0.21 | F42: =H42+NPV(FD,I42:INDEX(I42:DC42,PAL)) -> 0 | G42: =SUMIF($H$5:$DC$5,"<="&PAL,$H42:$DC42) -> 0 | H42: 0 | I42: 0 | J42: 0 | K42: 0 | L42: 0 | M42: 0 | N42: 0 | O42: 0 | P42: 0 | Q42: 0 | R42: 0 | S42: 0 | T42: 0 | U42: 0 | V42: 0 | W42: 0 | X42: 0 | Y42: 0 | Z42: 0 | AA42: 0 | AB42: 0 | AC42: 0 | AD42: 0 | AE42: 0 | AF42: 0 | AG42: 0 | AH42: 0 | AI42: 0 | AJ42: 0 | AK42: 0 | AL42: 0 | AM42: 0 | AN42: 0 | AO42: 0 | AP42: 0 | AQ42: 0 | AR42: 0 | AS42: 0 | AT42: 0 | AU42: 0 | AV42: 0 | AW42: 0 | AX42: 0 | AY42: 0 | AZ42: 0 | BA42: 0 | BB42: 0 | BC42: 0 | BD42: 0 | BE42: 0 | BF42: 0 | BG42: 0 | BH42: 0 | BI42: 0 | BJ42: 0 | BK42: 0 | BL42: 0 | BM42: 0 | BN42: 0 | BO42: 0 | BP42: 0 | BQ42: 0 | BR42: 0 | BS42: 0 | BT42: 0 | BU42: 0 | BV42: 0 | BW42: 0 | BX42: 0 | BY42: 0 | BZ42: 0 | CA42: 0 | CB42: 0 | CC42: 0 | CD42: 0 | CE42: 0 | CF42: 0 | CG42: 0 | CH42: 0 | CI42: 0 | CJ42: 0 | CK42: 0 | CL42: 0 | CM42: 0 | CN42: 0 | CO42: 0 | CP42: 0 | CQ42: 0 | CR42: 0 | CS42: 0 | CT42: 0 | CU42: 0 | CV42: 0 | CW42: 0 | CX42: 0 | CY42: 0 | CZ42: 0 | DA42: 0 | DB42: 0 | DC42: 0 | DE42: 0 | DF42: 0 | DG42: 21 | DH42: 0
A43: 27 | B43: =$B$37&"6." -> D.3.6. | C43: Veikla | E43: 0.21 | F43: =H43+NPV(FD,I43:INDEX(I43:DC43,PAL)) -> 0 | G43: =SUMIF($H$5:$DC$5,"<="&PAL,$H43:$DC43) -> 0 | H43: 0 | I43: 0 | J43: 0 | K43: 0 | L43: 0 | M43: 0 | N43: 0 | O43: 0 | P43: 0 | Q43: 0 | R43: 0 | S43: 0 | T43: 0 | U43: 0 | V43: 0 | W43: 0 | X43: 0 | Y43: 0 | Z43: 0 | AA43: 0 | AB43: 0 | AC43: 0 | AD43: 0 | AE43: 0 | AF43: 0 | AG43: 0 | AH43: 0 | AI43: 0 | AJ43: 0 | AK43: 0 | AL43: 0 | AM43: 0 | AN43: 0 | AO43: 0 | AP43: 0 | AQ43: 0 | AR43: 0 | AS43: 0 | AT43: 0 | AU43: 0 | AV43: 0 | AW43: 0 | AX43: 0 | AY43: 0 | AZ43: 0 | BA43: 0 | BB43: 0 | BC43: 0 | BD43: 0 | BE43: 0 | BF43: 0 | BG43: 0 | BH43: 0 | BI43: 0 | BJ43: 0 | BK43: 0 | BL43: 0 | BM43: 0 | BN43: 0 | BO43: 0 | BP43: 0 | BQ43: 0 | BR43: 0 | BS43: 0 | BT43: 0 | BU43: 0 | BV43: 0 | BW43: 0 | BX43: 0 | BY43: 0 | BZ43: 0 | CA43: 0 | CB43: 0 | CC43: 0 | CD43: 0 | CE43: 0 | CF43: 0 | CG43: 0 | CH43: 0 | CI43: 0 | CJ43: 0 | CK43: 0 | CL43: 0 | CM43: 0 | CN43: 0 | CO43: 0 | CP43: 0 | CQ43: 0 | CR43: 0 | CS43: 0 | CT43: 0 | CU43: 0 | CV43: 0 | CW43: 0 | CX43: 0 | CY43: 0 | CZ43: 0 | DA43: 0 | DB43: 0 | DC43: 0 | DE43: 0 | DF43: 0 | DG43: 21 | DH43: 0
A44: 28 | B44: =$B$37&"7." -> D.3.7. | C44: Veikla | E44: 0.21 | F44: =H44+NPV(FD,I44:INDEX(I44:DC44,PAL)) -> 0 | G44: =SUMIF($H$5:$DC$5,"<="&PAL,$H44:$DC44) -> 0 | H44: 0 | I44: 0 | J44: 0 | K44: 0 | L44: 0 | M44: 0 | N44: 0 | O44: 0 | P44: 0 | Q44: 0 | R44: 0 | S44: 0 | T44: 0 | U44: 0 | V44: 0 | W44: 0 | X44: 0 | Y44: 0 | Z44: 0 | AA44: 0 | AB44: 0 | AC44: 0 | AD44: 0 | AE44: 0 | AF44: 0 | AG44: 0 | AH44: 0 | AI44: 0 | AJ44: 0 | AK44: 0 | AL44: 0 | AM44: 0 | AN44: 0 | AO44: 0 | AP44: 0 | AQ44: 0 | AR44: 0 | AS44: 0 | AT44: 0 | AU44: 0 | AV44: 0 | AW44: 0 | AX44: 0 | AY44: 0 | AZ44: 0 | BA44: 0 | BB44: 0 | BC44: 0 | BD44: 0 | BE44: 0 | BF44: 0 | BG44: 0 | BH44: 0 | BI44: 0 | BJ44: 0 | BK44: 0 | BL44: 0 | BM44: 0 | BN44: 0 | BO44: 0 | BP44: 0 | BQ44: 0 | BR44: 0 | BS44: 0 | BT44: 0 | BU44: 0 | BV44: 0 | BW44: 0 | BX44: 0 | BY44: 0 | BZ44: 0 | CA44: 0 | CB44: 0 | CC44: 0 | CD44: 0 | CE44: 0 | CF44: 0 | CG44: 0 | CH44: 0 | CI44: 0 | CJ44: 0 | CK44: 0 | CL44: 0 | CM44: 0 | CN44: 0 | CO44: 0 | CP44: 0 | CQ44: 0 | CR44: 0 | CS44: 0 | CT44: 0 | CU44: 0 | CV44: 0 | CW44: 0 | CX44: 0 | CY44: 0 | CZ44: 0 | DA44: 0 | DB44: 0 | DC44: 0 | DE44: 0 | DF44: 0 | DG44: 21 | DH44: 0
A45: 29 | B45: =$B$37&"8." -> D.3.8. | C45: Veikla | E45: 0.21 | F45: =H45+NPV(FD,I45:INDEX(I45:DC45,PAL)) -> 0 | G45: =SUMIF($H$5:$DC$5,"<="&PAL,$H45:$DC45) -> 0 | H45: 0 | I45: 0 | J45: 0 | K45: 0 | L45: 0 | M45: 0 | N45: 0 | O45: 0 | P45: 0 | Q45: 0 | R45: 0 | S45: 0 | T45: 0 | U45: 0 | V45: 0 | W45: 0 | X45: 0 | Y45: 0 | Z45: 0 | AA45: 0 | AB45: 0 | AC45: 0 | AD45: 0 | AE45: 0 | AF45: 0 | AG45: 0 | AH45: 0 | AI45: 0 | AJ45: 0 | AK45: 0 | AL45: 0 | AM45: 0 | AN45: 0 | AO45: 0 | AP45: 0 | AQ45: 0 | AR45: 0 | AS45: 0 | AT45: 0 | AU45: 0 | AV45: 0 | AW45: 0 | AX45: 0 | AY45: 0 | AZ45: 0 | BA45: 0 | BB45: 0 | BC45: 0 | BD45: 0 | BE45: 0 | BF45: 0 | BG45: 0 | BH45: 0 | BI45: 0 | BJ45: 0 | BK45: 0 | BL45: 0 | BM45: 0 | BN45: 0 | BO45: 0 | BP45: 0 | BQ45: 0 | BR45: 0 | BS45: 0 | BT45: 0 | BU45: 0 | BV45: 0 | BW45: 0 | BX45: 0 | BY45: 0 | BZ45: 0 | CA45: 0 | CB45: 0 | CC45: 0 | CD45: 0 | CE45: 0 | CF45: 0 | CG45: 0 | CH45: 0 | CI45: 0 | CJ45: 0 | CK45: 0 | CL45: 0 | CM45: 0 | CN45: 0 | CO45: 0 | CP45: 0 | CQ45: 0 | CR45: 0 | CS45: 0 | CT45: 0 | CU45: 0 | CV45: 0 | CW45: 0 | CX45: 0 | CY45: 0 | CZ45: 0 | DA45: 0 | DB45: 0 | DC45: 0 | DE45: 0 | DF45: 0 | DG45: 21 | DH45: 0
B46: =$B$37&"9." -> D.3.9. | C46: Investicijos (privataus ir NVO sektoriaus) | E46: 0.21 | F46: =H46+NPV(FD,I46:INDEX(I46:DC46,PAL)) -> 0 | G46: =SUMIF($H$5:$DC$5,"<="&PAL,$H46:$DC46) -> 0 | H46: 0 | I46: 0 | J46: 0 | K46: 0 | L46: 0 | M46: 0 | N46: 0 | O46: 0 | P46: 0 | Q46: 0 | R46: 0 | S46: 0 | T46: 0 | U46: 0 | V46: 0 | W46: 0 | X46: 0 | Y46: 0 | Z46: 0 | AA46: 0 | AB46: 0 | AC46: 0 | AD46: 0 | AE46: 0 | AF46: 0 | AG46: 0 | AH46: 0 | AI46: 0 | AJ46: 0 | AK46: 0 | AL46: 0 | AM46: 0 | AN46: 0 | AO46: 0 | AP46: 0 | AQ46: 0 | AR46: 0 | AS46: 0 | AT46: 0 | AU46: 0 | AV46: 0 | AW46: 0 | AX46: 0 | AY46: 0 | AZ46: 0 | BA46: 0 | BB46: 0 | BC46: 0 | BD46: 0 | BE46: 0 | BF46: 0 | BG46: 0 | BH46: 0 | BI46: 0 | BJ46: 0 | BK46: 0 | BL46: 0 | BM46: 0 | BN46: 0 | BO46: 0 | BP46: 0 | BQ46: 0 | BR46: 0 | BS46: 0 | BT46: 0 | BU46: 0 | BV46: 0 | BW46: 0 | BX46: 0 | BY46: 0 | BZ46: 0 | CA46: 0 | CB46: 0 | CC46: 0 | CD46: 0 | CE46: 0 | CF46: 0 | CG46: 0 | CH46: 0 | CI46: 0 | CJ46: 0 | CK46: 0 | CL46: 0 | CM46: 0 | CN46: 0 | CO46: 0 | CP46: 0 | CQ46: 0 | CR46: 0 | CS46: 0 | CT46: 0 | CU46: 0 | CV46: 0 | CW46: 0 | CX46: 0 | CY46: 0 | CZ46: 0 | DA46: 0 | DB46: 0 | DC46: 0 | DE46: =COUNTBLANK(H46:DC46) -> 0 | DF46: 0 | DG46: 21 | DH46: 0 | DI46: 1
B47: =$B$37&"10." -> D.3.10. | C47: Reinvesticijos (po priemonės įgyvendinimo) (privataus ir NVO sektoriaus) | E47: 0.21 | F47: =H47+NPV(FD,I47:INDEX(I47:DC47,PAL)) -> 0 | G47: =SUMIF($H$5:$DC$5,"<="&PAL,$H47:$DC47) -> 0 | H47: 0 | I47: 0 | J47: 0 | K47: 0 | L47: 0 | M47: 0 | N47: 0 | O47: 0 | P47: 0 | Q47: 0 | R47: 0 | S47: 0 | T47: 0 | U47: 0 | V47: 0 | W47: 0 | X47: 0 | Y47: 0 | Z47: 0 | AA47: 0 | AB47: 0 | AC47: 0 | AD47: 0 | AE47: 0 | AF47: 0 | AG47: 0 | AH47: 0 | AI47: 0 | AJ47: 0 | AK47: 0 | AL47: 0 | AM47: 0 | AN47: 0 | AO47: 0 | AP47: 0 | AQ47: 0 | AR47: 0 | AS47: 0 | AT47: 0 | AU47: 0 | AV47: 0 | AW47: 0 | AX47: 0 | AY47: 0 | AZ47: 0 | BA47: 0 | BB47: 0 | BC47: 0 | BD47: 0 | BE47: 0 | BF47: 0 | BG47: 0 | BH47: 0 | BI47: 0 | BJ47: 0 | BK47: 0 | BL47: 0 | BM47: 0 | BN47: 0 | BO47: 0 | BP47: 0 | BQ47: 0 | BR47: 0 | BS47: 0 | BT47: 0 | BU47: 0 | BV47: 0 | BW47: 0 | BX47: 0 | BY47: 0 | BZ47: 0 | CA47: 0 | CB47: 0 | CC47: 0 | CD47: 0 | CE47: 0 | CF47: 0 | CG47: 0 | CH47: 0 | CI47: 0 | CJ47: 0 | CK47: 0 | CL47: 0 | CM47: 0 | CN47: 0 | CO47: 0 | CP47: 0 | CQ47: 0 | CR47: 0 | CS47: 0 | CT47: 0 | CU47: 0 | CV47: 0 | CW47: 0 | CX47: 0 | CY47: 0 | CZ47: 0 | DA47: 0 | DB47: 0 | DC47: 0 | DE47: 0 | DF47: 0 | DG47: 21 | DH47: 0 | DI47: 1
A48: 30 | B48: =$B$37&"11." -> D.3.11. | C48: Reinvesticijos (po priemonės įgyvendinimo) (viešojo sektoriaus) | E48: 0.21 | F48: =H48+NPV(FD,I48:INDEX(I48:DC48,PAL)) -> 0 | G48: =SUMIF($H$5:$DC$5,"<="&PAL,$H48:$DC48) -> 0 | H48: 0 | I48: 0 | J48: 0 | K48: 0 | L48: 0 | M48: 0 | N48: 0 | O48: 0 | P48: 0 | Q48: 0 | R48: 0 | S48: 0 | T48: 0 | U48: 0 | V48: 0 | W48: 0 | X48: 0 | Y48: 0 | Z48: 0 | AA48: 0 | AB48: 0 | AC48: 0 | AD48: 0 | AE48: 0 | AF48: 0 | AG48: 0 | AH48: 0 | AI48: 0 | AJ48: 0 | AK48: 0 | AL48: 0 | AM48: 0 | AN48: 0 | AO48: 0 | AP48: 0 | AQ48: 0 | AR48: 0 | AS48: 0 | AT48: 0 | AU48: 0 | AV48: 0 | AW48: 0 | AX48: 0 | AY48: 0 | AZ48: 0 | BA48: 0 | BB48: 0 | BC48: 0 | BD48: 0 | BE48: 0 | BF48: 0 | BG48: 0 | BH48: 0 | BI48: 0 | BJ48: 0 | BK48: 0 | BL48: 0 | BM48: 0 | BN48: 0 | BO48: 0 | BP48: 0 | BQ48: 0 | BR48: 0 | BS48: 0 | BT48: 0 | BU48: 0 | BV48: 0 | BW48: 0 | BX48: 0 | BY48: 0 | BZ48: 0 | CA48: 0 | CB48: 0 | CC48: 0 | CD48: 0 | CE48: 0 | CF48: 0 | CG48: 0 | CH48: 0 | CI48: 0 | CJ48: 0 | CK48: 0 | CL48: 0 | CM48: 0 | CN48: 0 | CO48: 0 | CP48: 0 | CQ48: 0 | CR48: 0 | CS48: 0 | CT48: 0 | CU48: 0 | CV48: 0 | CW48: 0 | CX48: 0 | CY48: 0 | CZ48: 0 | DA48: 0 | DB48: 0 | DC48: 0 | DE48: 0 | DF48: 0 | DG48: 21 | DH48: 0
A49: 31 | B49: =$B$37&"L." -> D.3.L. | C49: Likutinė vertė | E49: 0.21 | F49: =H49+NPV(FD,I49:INDEX(I49:DC49,PAL)) -> 0 | G49: =SUMIF($H$5:$DC$5,"<="&PAL,$H49:$DC49) -> 0 | H49: 0 | I49: 0 | J49: 0 | K49: 0 | L49: 0 | M49: 0 | N49: 0 | O49: 0 | P49: 0 | Q49: 0 | R49: 0 | S49: 0 | T49: 0 | U49: 0 | V49: 0 | W49: 0 | X49: 0 | Y49: 0 | Z49: 0 | AA49: 0 | AB49: 0 | AC49: 0 | AD49: 0 | AE49: 0 | AF49: 0 | AG49: 0 | AH49: 0 | AI49: 0 | AJ49: 0 | AK49: 0 | AL49: 0 | AM49: 0 | AN49: 0 | AO49: 0 | AP49: 0 | AQ49: 0 | AR49: 0 | AS49: 0 | AT49: 0 | AU49: 0 | AV49: 0 | AW49: 0 | AX49: 0 | AY49: 0 | AZ49: 0 | BA49: 0 | BB49: 0 | BC49: 0 | BD49: 0 | BE49: 0 | BF49: 0 | BG49: 0 | BH49: 0 | BI49: 0 | BJ49: 0 | BK49: 0 | BL49: 0 | BM49: 0 | BN49: 0 | BO49: 0 | BP49: 0 | BQ49: 0 | BR49: 0 | BS49: 0 | BT49: 0 | BU49: 0 | BV49: 0 | BW49: 0 | BX49: 0 | BY49: 0 | BZ49: 0 | CA49: 0 | CB49: 0 | CC49: 0 | CD49: 0 | CE49: 0 | CF49: 0 | CG49: 0 | CH49: 0 | CI49: 0 | CJ49: 0 | CK49: 0 | CL49: 0 | CM49: 0 | CN49: 0 | CO49: 0 | CP49: 0 | CQ49: 0 | CR49: 0 | CS49: 0 | CT49: 0 | CU49: 0 | CV49: 0 | CW49: 0 | CX49: 0 | CY49: 0 | CZ49: 0 | DA49: 0 | DB49: 0 | DC49: 0 | DE49: 0 | DF49: 0 | DG49: 21 | DH49: =DG49/(100+DG49) -> 0.173553719
A50: 32 | B50: E. | C50: INVESTICINĖS VEIKLOS | F50: =F51+F64+F77 -> 886335282.8 | G50: =SUMIF($H$5:$DC$5,"<="&PAL,$H50:$DC50) -> 1045271000 | H50: =H51+H64+H77 -> 0 | I50: 0 | J50: 163923684.5 | K50: 216499369 | L50: 217863736.6 | M50: 177863736.6 | N50: 177863736.6 | O50: 90356736.63 | P50: 900000 | Q50: 0 | R50: 0 | S50: 0 | T50: 0 | U50: 0 | V50: 0 | W50: 0 | X50: 0 | Y50: 0 | Z50: 0 | AA50: 0 | AB50: 0 | AC50: 0 | AD50: 0 | AE50: 0 | AF50: 0 | AG50: 0 | AH50: 0 | AI50: 0 | AJ50: 0 | AK50: 0 | AL50: 0 | AM50: 0 | AN50: =AN51+AN64+AN77 -> 0 | AO50: 0 | AP50: 0 | AQ50: 0 | AR50: 0 | AS50: 0 | AT50: 0 | AU50: 0 | AV50: 0 | AW50: 0 | AX50: 0 | AY50: 0 | AZ50: 0 | BA50: 0 | BB50: 0 | BC50: 0 | BD50: 0 | BE50: 0 | BF50: 0 | BG50: 0 | BH50: 0 | BI50: 0 | BJ50: 0 | BK50: 0 | BL50: 0 | BM50: 0 | BN50: 0 | BO50: 0 | BP50: 0 | BQ50: 0 | BR50: 0 | BS50: 0 | BT50: =BT51+BT64+BT77 -> 0 | BU50: 0 | BV50: 0 | BW50: 0 | BX50: 0 | BY50: 0 | BZ50: 0 | CA50: 0 | CB50: 0 | CC50: 0 | CD50: 0 | CE50: 0 | CF50: 0 | CG50: 0 | CH50: 0 | CI50: 0 | CJ50: 0 | CK50: 0 | CL50: 0 | CM50: 0 | CN50: 0 | CO50: 0 | CP50: 0 | CQ50: 0 | CR50: 0 | CS50: 0 | CT50: 0 | CU50: 0 | CV50: 0 | CW50: 0 | CX50: 0 | CY50: 0 | CZ50: =CZ51+CZ64+CZ77 -> 0 | DA50: 0 | DB50: 0 | DC50: 0 | DF50: 7
A51: 33 | B51: E.1. | C51: Infrastruktūros vystymas | F51: =SUM(F52:F62) -> 854714587.9 | G51: =SUMIF($H$5:$DC$5,"<="&PAL,$H51:$DC51) -> 1007786000 | H51: =SUM(H52:H62) -> 0 | I51: =SUM(I52:I62) -> 0 | J51: 158031000 | K51: 209931000 | L51: 210831000 | M51: 170831000 | N51: 170831000 | O51: 86431000 | P51: 900000 | Q51: 0 | R51: 0 | S51: 0 | T51: 0 | U51: 0 | V51: 0 | W51: 0 | X51: 0 | Y51: 0 | Z51: 0 | AA51: 0 | AB51: 0 | AC51: 0 | AD51: 0 | AE51: 0 | AF51: 0 | AG51: 0 | AH51: 0 | AI51: 0 | AJ51: 0 | AK51: 0 | AL51: 0 | AM51: 0 | AN51: 0 | AO51: 0 | AP51: 0 | AQ51: 0 | AR51: 0 | AS51: 0 | AT51: 0 | AU51: 0 | AV51: 0 | AW51: 0 | AX51: 0 | AY51: 0 | AZ51: 0 | BA51: 0 | BB51: 0 | BC51: 0 | BD51: 0 | BE51: 0 | BF51: 0 | BG51: 0 | BH51: 0 | BI51: 0 | BJ51: 0 | BK51: 0 | BL51: 0 | BM51: 0 | BN51: 0 | BO51: 0 | BP51: 0 | BQ51: 0 | BR51: 0 | BS51: 0 | BT51: 0 | BU51: =SUM(BU52:BU62) -> 0 | BV51: 0 | BW51: 0 | BX51: 0 | BY51: 0 | BZ51: 0 | CA51: 0 | CB51: 0 | CC51: 0 | CD51: 0 | CE51: 0 | CF51: 0 | CG51: 0 | CH51: 0 | CI51: 0 | CJ51: 0 | CK51: 0 | CL51: 0 | CM51: 0 | CN51: 0 | CO51: 0 | CP51: 0 | CQ51: 0 | CR51: 0 | CS51: 0 | CT51: 0 | CU51: 0 | CV51: 0 | CW51: 0 | CX51: 0 | CY51: 0 | CZ51: 0 | DA51: 0 | DB51: 0 | DC51: 0 | DF51: 7
A52: 34 | B52: =$B$51&"1." -> E.1.1. | C52: Investicijos į žemės ūkio valdas; Smulkių-vidutinių ūkių plėtra; Labai smulkių ūkių plėtra; Dirvožemio būklės gerinimas, užtikrinant produkcijos didinimą | E52: Nurodyta be PVM (susigrąžinamas/netaikomas) | F52: =H52+NPV(FD,I52:INDEX(I52:DC52,PAL)) -> 538517572.2 | G52: =SUMIF($H$5:$DC$5,"<="&PAL,$H52:$DC52) -> 631377000 | H52: 0 | I52: 0 | J52: =+Prielaidos!I7+Prielaidos!I11+Prielaidos!I15+Prielaidos!I65 -> 98229500 | K52: =+Prielaidos!J7+Prielaidos!J11+Prielaidos!J15+Prielaidos!J65 -> 145729500 | L52: =+Prielaidos!K7+Prielaidos!K11+Prielaidos!K15+Prielaidos!K65 -> 146629500 | M52: =+Prielaidos!L7+Prielaidos!L11+Prielaidos!L15+Prielaidos!L65 -> 106629500 | N52: =+Prielaidos!M7+Prielaidos!M11+Prielaidos!M15+Prielaidos!M65 -> 106629500 | O52: =+Prielaidos!N7+Prielaidos!N11+Prielaidos!N15+Prielaidos!N65 -> 26629500 | P52: =+Prielaidos!O7+Prielaidos!O11+Prielaidos!O15+Prielaidos!O65 -> 900000 | Q52: 0 | R52: 0 | S52: 0 | T52: 0 | U52: 0 | V52: 0 | W52: 0 | X52: 0 | Y52: 0 | Z52: 0 | AA52: 0 | AB52: 0 | AC52: 0 | AD52: 0 | AE52: 0 | AF52: 0 | AG52: 0 | AH52: 0 | AI52: 0 | AJ52: 0 | AK52: 0 | AL52: 0 | AM52: 0 | AN52: 0 | AO52: 0 | AP52: 0 | AQ52: 0 | AR52: 0 | AS52: 0 | AT52: 0 | AU52: 0 | AV52: 0 | AW52: 0 | AX52: 0 | AY52: 0 | AZ52: 0 | BA52: 0 | BB52: 0 | BC52: 0 | BD52: 0 | BE52: 0 | BF52: 0 | BG52: 0 | BH52: 0 | BI52: 0 | BJ52: 0 | BK52: 0 | BL52: 0 | BM52: 0 | BN52: 0 | BO52: 0 | BP52: 0 | BQ52: 0 | BR52: 0 | BS52: 0 | BT52: 0 | BU52: 0 | BV52: 0 | BW52: 0 | BX52: 0 | BY52: 0 | BZ52: 0 | CA52: 0 | CB52: 0 | CC52: 0 | CD52: 0 | CE52: 0 | CF52: 0 | CG52: 0 | CH52: 0 | CI52: 0 | CJ52: 0 | CK52: 0 | CL52: 0 | CM52: 0 | CN52: 0 | CO52: 0 | CP52: 0 | CQ52: 0 | CR52: 0 | CS52: 0 | CT52: 0 | CU52: 0 | CV52: 0 | CW52: 0 | CX52: 0 | CY52: 0 | CZ52: 0 | DA52: 0 | DB52: 0 | DC52: 0 | DE52: =COUNTBLANK(H52:DC52) -> 0 | DF52: 7 | DG52: =IF(ISNUMBER(E52),E52*100,0) -> 0 | DH52: 0
A53: 35 | B53: =$B$51&"2." -> E.1.2. | C53: Investicijos į melioracijos sistemas | E53: Nurodyta be PVM (susigrąžinamas/netaikomas) | F53: =H53+NPV(FD,I53:INDEX(I53:DC53,PAL)) -> 50976420.59 | G53: =SUMIF($H$5:$DC$5,"<="&PAL,$H53:$DC53) -> 60680000 | H53: 0 | I53: 0 | J53: =+Prielaidos!I19 -> 10113333.33 | K53: =+Prielaidos!J19 -> 10113333.33 | L53: =+Prielaidos!K19 -> 10113333.33 | M53: =+Prielaidos!L19 -> 10113333.33 | N53: =+Prielaidos!M19 -> 10113333.33 | O53: =+Prielaidos!N19 -> 10113333.33 | P53: =+Prielaidos!O19 -> 0 | Q53: 0 | R53: 0 | S53: 0 | T53: 0 | U53: 0 | V53: 0 | W53: 0 | X53: 0 | Y53: 0 | Z53: 0 | AA53: 0 | AB53: 0 | AC53: 0 | AD53: 0 | AE53: 0 | AF53: 0 | AG53: 0 | AH53: 0 | AI53: 0 | AJ53: 0 | AK53: 0 | AL53: 0 | AM53: 0 | AN53: 0 | AO53: 0 | AP53: 0 | AQ53: 0 | AR53: 0 | AS53: 0 | AT53: 0 | AU53: 0 | AV53: 0 | AW53: 0 | AX53: 0 | AY53: 0 | AZ53: 0 | BA53: 0 | BB53: 0 | BC53: 0 | BD53: 0 | BE53: 0 | BF53: 0 | BG53: 0 | BH53: 0 | BI53: 0 | BJ53: 0 | BK53: 0 | BL53: 0 | BM53: 0 | BN53: 0 | BO53: 0 | BP53: 0 | BQ53: 0 | BR53: 0 | BS53: 0 | BT53: 0 | BU53: 0 | BV53: 0 | BW53: 0 | BX53: 0 | BY53: 0 | BZ53: 0 | CA53: 0 | CB53: 0 | CC53: 0 | CD53: 0 | CE53: 0 | CF53: 0 | CG53: 0 | CH53: 0 | CI53: 0 | CJ53: 0 | CK53: 0 | CL53: 0 | CM53: 0 | CN53: 0 | CO53: 0 | CP53: 0 | CQ53: 0 | CR53: 0 | CS53: 0 | CT53: 0 | CU53: 0 | CV53: 0 | CW53: 0 | CX53: 0 | CY53: 0 | CZ53: 0 | DA53: 0 | DB53: 0 | DC53: 0 | DE53: =COUNTBLANK(H53:DC53) -> 0 | DF53: 6 | DG53: 0 | DH53: 0
A54: 36 | B54: =$B$51&"3." -> E.1.3. | C54: Investicijos į prevencinę veiklą, kuria siekiama sumažinti galimų gaivalinių nelaimių, nepalankių klimato reiškinių ir katastrofinių įvykių padarinius 1 uždavinys | E54: Nurodyta be PVM (susigrąžinamas/netaikomas) | F54: =H54+NPV(FD,I54:INDEX(I54:DC54,PAL)) -> 5250537.717 | G54: =SUMIF($H$5:$DC$5,"<="&PAL,$H54:$DC54) -> 6250000 | H54: 0 | I54: 0 | J54: =+Prielaidos!I23 -> 1041666.667 | K54: =+Prielaidos!J23 -> 1041666.667 | L54: =+Prielaidos!K23 -> 1041666.667 | M54: =+Prielaidos!L23 -> 1041666.667 | N54: =+Prielaidos!M23 -> 1041666.667 | O54: =+Prielaidos!N23 -> 1041666.667 | P54: =+Prielaidos!O23 -> 0 | Q54: 0 | R54: 0 | S54: 0 | T54: 0 | U54: 0 | V54: 0 | W54: 0 | X54: 0 | Y54: 0 | Z54: 0 | AA54: 0 | AB54: 0 | AC54: 0 | AD54: 0 | AE54: 0 | AF54: 0 | AG54: 0 | AH54: 0 | AI54: 0 | AJ54: 0 | AK54: 0 | AL54: 0 | AM54: 0 | AN54: 0 | AO54: 0 | AP54: 0 | AQ54: 0 | AR54: 0 | AS54: 0 | AT54: 0 | AU54: 0 | AV54: 0 | AW54: 0 | AX54: 0 | AY54: 0 | AZ54: 0 | BA54: 0 | BB54: 0 | BC54: 0 | BD54: 0 | BE54: 0 | BF54: 0 | BG54: 0 | BH54: 0 | BI54: 0 | BJ54: 0 | BK54: 0 | BL54: 0 | BM54: 0 | BN54: 0 | BO54: 0 | BP54: 0 | BQ54: 0 | BR54: 0 | BS54: 0 | BT54: 0 | BU54: 0 | BV54: 0 | BW54: 0 | BX54: 0 | BY54: 0 | BZ54: 0 | CA54: 0 | CB54: 0 | CC54: 0 | CD54: 0 | CE54: 0 | CF54: 0 | CG54: 0 | CH54: 0 | CI54: 0 | CJ54: 0 | CK54: 0 | CL54: 0 | CM54: 0 | CN54: 0 | CO54: 0 | CP54: 0 | CQ54: 0 | CR54: 0 | CS54: 0 | CT54: 0 | CU54: 0 | CV54: 0 | CW54: 0 | CX54: 0 | CY54: 0 | CZ54: 0 | DA54: 0 | DB54: 0 | DC54: 0 | DE54: 0 | DF54: 6 | DG54: 0 | DH54: 0
A55: 37 | B55: =$B$51&"4." -> E.1.4. | C55: Investicijos į žemės ūkio produktų perdirbimą (finansinės priemonės) | E55: Nurodyta be PVM (susigrąžinamas/netaikomas) | F55: =H55+NPV(FD,I55:INDEX(I55:DC55,PAL)) -> 8400860.347 | G55: =SUMIF($H$5:$DC$5,"<="&PAL,$H55:$DC55) -> 10000000 | H55: 0 | I55: 0 | J55: =+Prielaidos!I27 -> 1666666.667 | K55: =+Prielaidos!J27 -> 1666666.667 | L55: =+Prielaidos!K27 -> 1666666.667 | M55: =+Prielaidos!L27 -> 1666666.667 | N55: =+Prielaidos!M27 -> 1666666.667 | O55: =+Prielaidos!N27 -> 1666666.667 | P55: =+Prielaidos!O27 -> 0 | Q55: 0 | R55: 0 | S55: 0 | T55: 0 | U55: 0 | V55: 0 | W55: 0 | X55: 0 | Y55: 0 | Z55: 0 | AA55: 0 | AB55: 0 | AC55: 0 | AD55: 0 | AE55: 0 | AF55: 0 | AG55: 0 | AH55: 0 | AI55: 0 | AJ55: 0 | AK55: 0 | AL55: 0 | AM55: 0 | AN55: 0 | AO55: 0 | AP55: 0 | AQ55: 0 | AR55: 0 | AS55: 0 | AT55: 0 | AU55: 0 | AV55: 0 | AW55: 0 | AX55: 0 | AY55: 0 | AZ55: 0 | BA55: 0 | BB55: 0 | BC55: 0 | BD55: 0 | BE55: 0 | BF55: 0 | BG55: 0 | BH55: 0 | BI55: 0 | BJ55: 0 | BK55: 0 | BL55: 0 | BM55: 0 | BN55: 0 | BO55: 0 | BP55: 0 | BQ55: 0 | BR55: 0 | BS55: 0 | BT55: 0 | BU55: 0 | BV55: 0 | BW55: 0 | BX55: 0 | BY55: 0 | BZ55: 0 | CA55: 0 | CB55: 0 | CC55: 0 | CD55: 0 | CE55: 0 | CF55: 0 | CG55: 0 | CH55: 0 | CI55: 0 | CJ55: 0 | CK55: 0 | CL55: 0 | CM55: 0 | CN55: 0 | CO55: 0 | CP55: 0 | CQ55: 0 | CR55: 0 | CS55: 0 | CT55: 0 | CU55: 0 | CV55: 0 | CW55: 0 | CX55: 0 | CY55: 0 | CZ55: 0 | DA55: 0 | DB55: 0 | DC55: 0 | DE55: 0 | DF55: 6 | DG55: 0 | DH55: 0
A56: 38 | B56: =$B$51&"5." -> E.1.5. | C56: Investicijos į bioekonomikos verslus | E56: Nurodyta be PVM (susigrąžinamas/netaikomas) | F56: =H56+NPV(FD,I56:INDEX(I56:DC56,PAL)) -> 84008603.47 | G56: =SUMIF($H$5:$DC$5,"<="&PAL,$H56:$DC56) -> 100000000 | H56: 0 | I56: 0 | J56: =+Prielaidos!I30 -> 16666666.67 | K56: =+Prielaidos!J30 -> 16666666.67 | L56: =+Prielaidos!K30 -> 16666666.67 | M56: =+Prielaidos!L30 -> 16666666.67 | N56: =+Prielaidos!M30 -> 16666666.67 | O56: =+Prielaidos!N30 -> 16666666.67 | P56: 0 | Q56: 0 | R56: 0 | S56: 0 | T56: 0 | U56: 0 | V56: 0 | W56: 0 | X56: 0 | Y56: 0 | Z56: 0 | AA56: 0 | AB56: 0 | AC56: 0 | AD56: 0 | AE56: 0 | AF56: 0 | AG56: 0 | AH56: 0 | AI56: 0 | AJ56: 0 | AK56: 0 | AL56: 0 | AM56: 0 | AN56: 0 | AO56: 0 | AP56: 0 | AQ56: 0 | AR56: 0 | AS56: 0 | AT56: 0 | AU56: 0 | AV56: 0 | AW56: 0 | AX56: 0 | AY56: 0 | AZ56: 0 | BA56: 0 | BB56: 0 | BC56: 0 | BD56: 0 | BE56: 0 | BF56: 0 | BG56: 0 | BH56: 0 | BI56: 0 | BJ56: 0 | BK56: 0 | BL56: 0 | BM56: 0 | BN56: 0 | BO56: 0 | BP56: 0 | BQ56: 0 | BR56: 0 | BS56: 0 | BT56: 0 | BU56: 0 | BV56: 0 | BW56: 0 | BX56: 0 | BY56: 0 | BZ56: 0 | CA56: 0 | CB56: 0 | CC56: 0 | CD56: 0 | CE56: 0 | CF56: 0 | CG56: 0 | CH56: 0 | CI56: 0 | CJ56: 0 | CK56: 0 | CL56: 0 | CM56: 0 | CN56: 0 | CO56: 0 | CP56: 0 | CQ56: 0 | CR56: 0 | CS56: 0 | CT56: 0 | CU56: 0 | CV56: 0 | CW56: 0 | CX56: 0 | CY56: 0 | CZ56: 0 | DA56: 0 | DB56: 0 | DC56: 0 | DE56: 0 | DF56: 6 | DG56: 0 | DH56: 0
A57: 39 | B57: =$B$51&"6." -> E.1.6. | C57: Jaunųjų ūkininkų įsikūrimas | E57: Nurodyta be PVM (susigrąžinamas/netaikomas) | F57: =H57+NPV(FD,I57:INDEX(I57:DC57,PAL)) -> 79808173.3 | G57: =SUMIF($H$5:$DC$5,"<="&PAL,$H57:$DC57) -> 95000000 | H57: 0 | I57: 0 | J57: =+Prielaidos!I34 -> 15833333.33 | K57: =+Prielaidos!J34 -> 15833333.33 | L57: =+Prielaidos!K34 -> 15833333.33 | M57: =+Prielaidos!L34 -> 15833333.33 | N57: =+Prielaidos!M34 -> 15833333.33 | O57: =+Prielaidos!N34 -> 15833333.33 | P57: 0 | Q57: 0 | R57: 0 | S57: 0 | T57: 0 | U57: 0 | V57: 0 | W57: 0 | X57: 0 | Y57: 0 | Z57: 0 | AA57: 0 | AB57: 0 | AC57: 0 | AD57: 0 | AE57: 0 | AF57: 0 | AG57: 0 | AH57: 0 | AI57: 0 | AJ57: 0 | AK57: 0 | AL57: 0 | AM57: 0 | AN57: 0 | AO57: 0 | AP57: 0 | AQ57: 0 | AR57: 0 | AS57: 0 | AT57: 0 | AU57: 0 | AV57: 0 | AW57: 0 | AX57: 0 | AY57: 0 | AZ57: 0 | BA57: 0 | BB57: 0 | BC57: 0 | BD57: 0 | BE57: 0 | BF57: 0 | BG57: 0 | BH57: 0 | BI57: 0 | BJ57: 0 | BK57: 0 | BL57: 0 | BM57: 0 | BN57: 0 | BO57: 0 | BP57: 0 | BQ57: 0 | BR57: 0 | BS57: 0 | BT57: 0 | BU57: 0 | BV57: 0 | BW57: 0 | BX57: 0 | BY57: 0 | BZ57: 0 | CA57: 0 | CB57: 0 | CC57: 0 | CD57: 0 | CE57: 0 | CF57: 0 | CG57: 0 | CH57: 0 | CI57: 0 | CJ57: 0 | CK57: 0 | CL57: 0 | CM57: 0 | CN57: 0 | CO57: 0 | CP57: 0 | CQ57: 0 | CR57: 0 | CS57: 0 | CT57: 0 | CU57: 0 | CV57: 0 | CW57: 0 | CX57: 0 | CY57: 0 | CZ57: 0 | DA57: 0 | DB57: 0 | DC57: 0 | DE57: 0 | DF57: 6 | DG57: 0 | DH57: 0
A58: 40 | B58: =$B$51&"7." -> E.1.7. | C58: Bendruomenių inicijuota vietos plėtra (LEADER) | E58: Nurodyta be PVM (susigrąžinamas/netaikomas) | F58: =H58+NPV(FD,I58:INDEX(I58:DC58,PAL)) -> 72985834.61 | G58: =SUMIF($H$5:$DC$5,"<="&PAL,$H58:$DC58) -> 86879000 | H58: 0 | I58: 0 | J58: =+Prielaidos!I45 -> 14479833.33 | K58: =+Prielaidos!J45 -> 14479833.33 | L58: =+Prielaidos!K45 -> 14479833.33 | M58: =+Prielaidos!L45 -> 14479833.33 | N58: =+Prielaidos!M45 -> 14479833.33 | O58: =+Prielaidos!N45 -> 14479833.33 | P58: 0 | Q58: 0 | R58: 0 | S58: 0 | T58: 0 | U58: 0 | V58: 0 | W58: 0 | X58: 0 | Y58: 0 | Z58: 0 | AA58: 0 | AB58: 0 | AC58: 0 | AD58: 0 | AE58: 0 | AF58: 0 | AG58: 0 | AH58: 0 | AI58: 0 | AJ58: 0 | AK58: 0 | AL58: 0 | AM58: 0 | AN58: 0 | AO58: 0 | AP58: 0 | AQ58: 0 | AR58: 0 | AS58: 0 | AT58: 0 | AU58: 0 | AV58: 0 | AW58: 0 | AX58: 0 | AY58: 0 | AZ58: 0 | BA58: 0 | BB58: 0 | BC58: 0 | BD58: 0 | BE58: 0 | BF58: 0 | BG58: 0 | BH58: 0 | BI58: 0 | BJ58: 0 | BK58: 0 | BL58: 0 | BM58: 0 | BN58: 0 | BO58: 0 | BP58: 0 | BQ58: 0 | BR58: 0 | BS58: 0 | BT58: 0 | BU58: 0 | BV58: 0 | BW58: 0 | BX58: 0 | BY58: 0 | BZ58: 0 | CA58: 0 | CB58: 0 | CC58: 0 | CD58: 0 | CE58: 0 | CF58: 0 | CG58: 0 | CH58: 0 | CI58: 0 | CJ58: 0 | CK58: 0 | CL58: 0 | CM58: 0 | CN58: 0 | CO58: 0 | CP58: 0 | CQ58: 0 | CR58: 0 | CS58: 0 | CT58: 0 | CU58: 0 | CV58: 0 | CW58: 0 | CX58: 0 | CY58: 0 | CZ58: 0 | DA58: 0 | DB58: 0 | DC58: 0 | DE58: 0 | DF58: 6 | DG58: 0 | DH58: 0
A59: 41 | B59: =$B$51&"8." -> E.1.8. | C59: Sumanieji kaimai | E59: Nurodyta be PVM (susigrąžinamas/netaikomas) | F59: =H59+NPV(FD,I59:INDEX(I59:DC59,PAL)) -> 14766585.6 | G59: =SUMIF($H$5:$DC$5,"<="&PAL,$H59:$DC59) -> 17600000 | H59: 0 | I59: 0 | J59: =+Prielaidos!I49 -> 0 | K59: =+Prielaidos!J49 -> 4400000 | L59: =+Prielaidos!K49 -> 4400000 | M59: =+Prielaidos!L49 -> 4400000 | N59: =+Prielaidos!M49 -> 4400000 | O59: =+Prielaidos!N49 -> 0 | P59: 0 | Q59: 0 | R59: 0 | S59: 0 | T59: 0 | U59: 0 | V59: 0 | W59: 0 | X59: 0 | Y59: 0 | Z59: 0 | AA59: 0 | AB59: 0 | AC59: 0 | AD59: 0 | AE59: 0 | AF59: 0 | AG59: 0 | AH59: 0 | AI59: 0 | AJ59: 0 | AK59: 0 | AL59: 0 | AM59: 0 | AN59: 0 | AO59: 0 | AP59: 0 | AQ59: 0 | AR59: 0 | AS59: 0 | AT59: 0 | AU59: 0 | AV59: 0 | AW59: 0 | AX59: 0 | AY59: 0 | AZ59: 0 | BA59: 0 | BB59: 0 | BC59: 0 | BD59: 0 | BE59: 0 | BF59: 0 | BG59: 0 | BH59: 0 | BI59: 0 | BJ59: 0 | BK59: 0 | BL59: 0 | BM59: 0 | BN59: 0 | BO59: 0 | BP59: 0 | BQ59: 0 | BR59: 0 | BS59: 0 | BT59: 0 | BU59: 0 | BV59: 0 | BW59: 0 | BX59: 0 | BY59: 0 | BZ59: 0 | CA59: 0 | CB59: 0 | CC59: 0 | CD59: 0 | CE59: 0 | CF59: 0 | CG59: 0 | CH59: 0 | CI59: 0 | CJ59: 0 | CK59: 0 | CL59: 0 | CM59: 0 | CN59: 0 | CO59: 0 | CP59: 0 | CQ59: 0 | CR59: 0 | CS59: 0 | CT59: 0 | CU59: 0 | CV59: 0 | CW59: 0 | CX59: 0 | CY59: 0 | CZ59: 0 | DA59: 0 | DB59: 0 | DC59: 0 | DE59: 0 | DF59: 4 | DG59: 0 | DH59: 0
B60: =$B$51&"9." -> E.1.9. | C60: Investicijos (privataus ir NVO sektoriaus) | E60: 0.21 | F60: =H60+NPV(FD,I60:INDEX(I60:DC60,PAL)) -> 0 | G60: =SUMIF($H$5:$DC$5,"<="&PAL,$H60:$DC60) -> 0 | H60: 0 | I60: 0 | J60: 0 | K60: 0 | L60: 0 | M60: 0 | N60: 0 | O60: 0 | P60: 0 | Q60: 0 | R60: 0 | S60: 0 | T60: 0 | U60: 0 | V60: 0 | W60: 0 | X60: 0 | Y60: 0 | Z60: 0 | AA60: 0 | AB60: 0 | AC60: 0 | AD60: 0 | AE60: 0 | AF60: 0 | AG60: 0 | AH60: 0 | AI60: 0 | AJ60: 0 | AK60: 0 | AL60: 0 | AM60: 0 | AN60: 0 | AO60: 0 | AP60: 0 | AQ60: 0 | AR60: 0 | AS60: 0 | AT60: 0 | AU60: 0 | AV60: 0 | AW60: 0 | AX60: 0 | AY60: 0 | AZ60: 0 | BA60: 0 | BB60: 0 | BC60: 0 | BD60: 0 | BE60: 0 | BF60: 0 | BG60: 0 | BH60: 0 | BI60: 0 | BJ60: 0 | BK60: 0 | BL60: 0 | BM60: 0 | BN60: 0 | BO60: 0 | BP60: 0 | BQ60: 0 | BR60: 0 | BS60: 0 | BT60: 0 | BU60: 0 | BV60: 0 | BW60: 0 | BX60: 0 | BY60: 0 | BZ60: 0 | CA60: 0 | CB60: 0 | CC60: 0 | CD60: 0 | CE60: 0 | CF60: 0 | CG60: 0 | CH60: 0 | CI60: 0 | CJ60: 0 | CK60: 0 | CL60: 0 | CM60: 0 | CN60: 0 | CO60: 0 | CP60: 0 | CQ60: 0 | CR60: 0 | CS60: 0 | CT60: 0 | CU60: 0 | CV60: 0 | CW60: 0 | CX60: 0 | CY60: 0 | CZ60: 0 | DA60: 0 | DB60: 0 | DC60: 0 | DE60: =COUNTBLANK(H60:DC60) -> 0 | DF60: 0 | DG60: 21 | DH60: 0 | DI60: 1
B61: =$B$51&"10." -> E.1.10. | C61: Reinvesticijos (po priemonės įgyvendinimo) (privataus ir NVO sektoriaus) | E61: 0.21 | F61: =H61+NPV(FD,I61:INDEX(I61:DC61,PAL)) -> 0 | G61: =SUMIF($H$5:$DC$5,"<="&PAL,$H61:$DC61) -> 0 | H61: 0 | I61: 0 | J61: 0 | K61: 0 | L61: 0 | M61: 0 | N61: 0 | O61: 0 | P61: 0 | Q61: 0 | R61: 0 | S61: 0 | T61: 0 | U61: 0 | V61: 0 | W61: 0 | X61: 0 | Y61: 0 | Z61: 0 | AA61: 0 | AB61: 0 | AC61: 0 | AD61: 0 | AE61: 0 | AF61: 0 | AG61: 0 | AH61: 0 | AI61: 0 | AJ61: 0 | AK61: 0 | AL61: 0 | AM61: 0 | AN61: 0 | AO61: 0 | AP61: 0 | AQ61: 0 | AR61: 0 | AS61: 0 | AT61: 0 | AU61: 0 | AV61: 0 | AW61: 0 | AX61: 0 | AY61: 0 | AZ61: 0 | BA61: 0 | BB61: 0 | BC61: 0 | BD61: 0 | BE61: 0 | BF61: 0 | BG61: 0 | BH61: 0 | BI61: 0 | BJ61: 0 | BK61: 0 | BL61: 0 | BM61: 0 | BN61: 0 | BO61: 0 | BP61: 0 | BQ61: 0 | BR61: 0 | BS61: 0 | BT61: 0 | BU61: 0 | BV61: 0 | BW61: 0 | BX61: 0 | BY61: 0 | BZ61: 0 | CA61: 0 | CB61: 0 | CC61: 0 | CD61: 0 | CE61: 0 | CF61: 0 | CG61: 0 | CH61: 0 | CI61: 0 | CJ61: 0 | CK61: 0 | CL61: 0 | CM61: 0 | CN61: 0 | CO61: 0 | CP61: 0 | CQ61: 0 | CR61: 0 | CS61: 0 | CT61: 0 | CU61: 0 | CV61: 0 | CW61: 0 | CX61: 0 | CY61: 0 | CZ61: 0 | DA61: 0 | DB61: 0 | DC61: 0 | DE61: 0 | DF61: 0 | DG61: 21 | DH61: 0 | DI61: 1
A62: 42 | B62: =$B$51&"11." -> E.1.11. | C62: Reinvesticijos (po priemonės įgyvendinimo) (viešojo sektoriaus) | E62: 0.21 | F62: =H62+NPV(FD,I62:INDEX(I62:DC62,PAL)) -> 0 | G62: =SUMIF($H$5:$DC$5,"<="&PAL,$H62:$DC62) -> 0 | H62: 0 | I62: 0 | J62: 0 | K62: 0 | L62: 0 | M62: 0 | N62: 0 | O62: 0 | P62: 0 | Q62: 0 | R62: 0 | S62: 0 | T62: 0 | U62: 0 | V62: 0 | W62: 0 | X62: 0 | Y62: 0 | Z62: 0 | AA62: 0 | AB62: 0 | AC62: 0 | AD62: 0 | AE62: 0 | AF62: 0 | AG62: 0 | AH62: 0 | AI62: 0 | AJ62: 0 | AK62: 0 | AL62: 0 | AM62: 0 | AN62: 0 | AO62: 0 | AP62: 0 | AQ62: 0 | AR62: 0 | AS62: 0 | AT62: 0 | AU62: 0 | AV62: 0 | AW62: 0 | AX62: 0 | AY62: 0 | AZ62: 0 | BA62: 0 | BB62: 0 | BC62: 0 | BD62: 0 | BE62: 0 | BF62: 0 | BG62: 0 | BH62: 0 | BI62: 0 | BJ62: 0 | BK62: 0 | BL62: 0 | BM62: 0 | BN62: 0 | BO62: 0 | BP62: 0 | BQ62: 0 | BR62: 0 | BS62: 0 | BT62: 0 | BU62: 0 | BV62: 0 | BW62: 0 | BX62: 0 | BY62: 0 | BZ62: 0 | CA62: 0 | CB62: 0 | CC62: 0 | CD62: 0 | CE62: 0 | CF62: 0 | CG62: 0 | CH62: 0 | CI62: 0 | CJ62: 0 | CK62: 0 | CL62: 0 | CM62: 0 | CN62: 0 | CO62: 0 | CP62: 0 | CQ62: 0 | CR62: 0 | CS62: 0 | CT62: 0 | CU62: 0 | CV62: 0 | CW62: 0 | CX62: 0 | CY62: 0 | CZ62: 0 | DA62: 0 | DB62: 0 | DC62: 0 | DE62: 0 | DF62: 0 | DG62: 21 | DH62: 0
A63: 43 | B63: =$B$51&"L." -> E.1.L. | C63: Likutinė vertė | E63: 0.21 | F63: =H63+NPV(FD,I63:INDEX(I63:DC63,PAL)) -> 81370089 | G63: =SUMIF($H$5:$DC$5,"<="&PAL,$H63:$DC63) -> 140906666.7 | H63: 0 | I63: 0 | J63: 0 | K63: 0 | L63: 0 | M63: 0 | N63: 0 | O63: 0 | P63: 0 | Q63: 0 | R63: 0 | S63: 0 | T63: 0 | U63: 0 | V63: =+Prielaidos!U131+Prielaidos!U115 -> 140906666.7 | W63: 0 | X63: 0 | Y63: 0 | Z63: 0 | AA63: 0 | AB63: 0 | AC63: 0 | AD63: 0 | AE63: 0 | AF63: 0 | AG63: 0 | AH63: 0 | AI63: 0 | AJ63: 0 | AK63: 0 | AL63: 0 | AM63: 0 | AN63: 0 | AO63: 0 | AP63: 0 | AQ63: 0 | AR63: 0 | AS63: 0 | AT63: 0 | AU63: 0 | AV63: 0 | AW63: 0 | AX63: 0 | AY63: 0 | AZ63: 0 | BA63: 0 | BB63: 0 | BC63: 0 | BD63: 0 | BE63: 0 | BF63: 0 | BG63: 0 | BH63: 0 | BI63: 0 | BJ63: 0 | BK63: 0 | BL63: 0 | BM63: 0 | BN63: 0 | BO63: 0 | BP63: 0 | BQ63: 0 | BR63: 0 | BS63: 0 | BT63: 0 | BU63: 0 | BV63: 0 | BW63: 0 | BX63: 0 | BY63: 0 | BZ63: 0 | CA63: 0 | CB63: 0 | CC63: 0 | CD63: 0 | CE63: 0 | CF63: 0 | CG63: 0 | CH63: 0 | CI63: 0 | CJ63: 0 | CK63: 0 | CL63: 0 | CM63: 0 | CN63: 0 | CO63: 0 | CP63: 0 | CQ63: 0 | CR63: 0 | CS63: 0 | CT63: 0 | CU63: 0 | CV63: 0 | CW63: 0 | CX63: 0 | CY63: 0 | CZ63: 0 | DA63: 0 | DB63: 0 | DC63: 0 | DE63: 0 | DF63: 1 | DG63: 21 | DH63: =DG63/(100+DG63) -> 0.173553719
A64: 44 | B64: E.2. | C64: Paslaugų teikimas | F64: =SUM(F65:F75) -> 14905043.61 | G64: =SUMIF($H$5:$DC$5,"<="&PAL,$H64:$DC64) -> 17485000 | H64: =SUM(H65:H75) -> 0 | I64: 0 | J64: 3107000 | K64: 3497000 | L64: 3497000 | M64: 3497000 | N64: 3497000 | O64: 390000 | P64: 0 | Q64: 0 | R64: 0 | S64: 0 | T64: 0 | U64: 0 | V64: 0 | W64: 0 | X64: 0 | Y64: 0 | Z64: 0 | AA64: 0 | AB64: 0 | AC64: 0 | AD64: 0 | AE64: 0 | AF64: 0 | AG64: 0 | AH64: 0 | AI64: 0 | AJ64: 0 | AK64: 0 | AL64: 0 | AM64: 0 | AN64: =SUM(AN65:AN75) -> 0 | AO64: 0 | AP64: 0 | AQ64: 0 | AR64: 0 | AS64: 0 | AT64: 0 | AU64: 0 | AV64: 0 | AW64: 0 | AX64: 0 | AY64: 0 | AZ64: 0 | BA64: 0 | BB64: 0 | BC64: 0 | BD64: 0 | BE64: 0 | BF64: 0 | BG64: 0 | BH64: 0 | BI64: 0 | BJ64: 0 | BK64: 0 | BL64: 0 | BM64: 0 | BN64: 0 | BO64: 0 | BP64: 0 | BQ64: 0 | BR64: 0 | BS64: 0 | BT64: =SUM(BT65:BT75) -> 0 | BU64: 0 | BV64: 0 | BW64: 0 | BX64: 0 | BY64: 0 | BZ64: 0 | CA64: 0 | CB64: 0 | CC64: 0 | CD64: 0 | CE64: 0 | CF64: 0 | CG64: 0 | CH64: 0 | CI64: 0 | CJ64: 0 | CK64: 0 | CL64: 0 | CM64: 0 | CN64: 0 | CO64: 0 | CP64: 0 | CQ64: 0 | CR64: 0 | CS64: 0 | CT64: 0 | CU64: 0 | CV64: 0 | CW64: 0 | CX64: 0 | CY64: 0 | CZ64: =SUM(CZ65:CZ75) -> 0 | DA64: 0 | DB64: 0 | DC64: 0 | DF64: 6
A65: 45 | B65: =$B$64&"1." -> E.2.1. | C65: Pasėlių, augalų ir gyvūnų draudimas | E65: 0 | F65: =H65+NPV(FD,I65:INDEX(I65:DC65,PAL)) -> 13299819.21 | G65: =SUMIF($H$5:$DC$5,"<="&PAL,$H65:$DC65) -> 15535000 | H65: 0 | I65: 0 | J65: =+Prielaidos!I37 -> 3107000 | K65: =+Prielaidos!J37 -> 3107000 | L65: =+Prielaidos!K37 -> 3107000 | M65: =+Prielaidos!L37 -> 3107000 | N65: =+Prielaidos!M37 -> 3107000 | O65: =+Prielaidos!N37 -> 0 | P65: 0 | Q65: 0 | R65: 0 | S65: 0 | T65: 0 | U65: 0 | V65: 0 | W65: 0 | X65: 0 | Y65: 0 | Z65: 0 | AA65: 0 | AB65: 0 | AC65: 0 | AD65: 0 | AE65: 0 | AF65: 0 | AG65: 0 | AH65: 0 | AI65: 0 | AJ65: 0 | AK65: 0 | AL65: 0 | AM65: 0 | AN65: 0 | AO65: 0 | AP65: 0 | AQ65: 0 | AR65: 0 | AS65: 0 | AT65: 0 | AU65: 0 | AV65: 0 | AW65: 0 | AX65: 0 | AY65: 0 | AZ65: 0 | BA65: 0 | BB65: 0 | BC65: 0 | BD65: 0 | BE65: 0 | BF65: 0 | BG65: 0 | BH65: 0 | BI65: 0 | BJ65: 0 | BK65: 0 | BL65: 0 | BM65: 0 | BN65: 0 | BO65: 0 | BP65: 0 | BQ65: 0 | BR65: 0 | BS65: 0 | BT65: 0 | BU65: 0 | BV65: 0 | BW65: 0 | BX65: 0 | BY65: 0 | BZ65: 0 | CA65: 0 | CB65: 0 | CC65: 0 | CD65: 0 | CE65: 0 | CF65: 0 | CG65: 0 | CH65: 0 | CI65: 0 | CJ65: 0 | CK65: 0 | CL65: 0 | CM65: 0 | CN65: 0 | CO65: 0 | CP65: 0 | CQ65: 0 | CR65: 0 | CS65: 0 | CT65: 0 | CU65: 0 | CV65: 0 | CW65: 0 | CX65: 0 | CY65: 0 | CZ65: 0 | DA65: 0 | DB65: 0 | DC65: 0 | DE65: =COUNTBLANK(H65:DC65) -> 0 | DF65: 5 | DG65: =IF(ISNUMBER(E65),E65*100,0) -> 0 | DH65: 0
A66: 46 | B66: =$B$64&"2." -> E.2.2. | C66: Savitarpio pagalbos fondai | E66: 0 | F66: =H66+NPV(FD,I66:INDEX(I66:DC66,PAL)) -> 1605224.398 | G66: =SUMIF($H$5:$DC$5,"<="&PAL,$H66:$DC66) -> 1950000 | H66: 0 | I66: 0 | J66: =+Prielaidos!I41 -> 0 | K66: =+Prielaidos!J41 -> 390000 | L66: =+Prielaidos!K41 -> 390000 | M66: =+Prielaidos!L41 -> 390000 | N66: =+Prielaidos!M41 -> 390000 | O66: =+Prielaidos!N41 -> 390000 | P66: 0 | Q66: 0 | R66: 0 | S66: 0 | T66: 0 | U66: 0 | V66: 0 | W66: 0 | X66: 0 | Y66: 0 | Z66: 0 | AA66: 0 | AB66: 0 | AC66: 0 | AD66: 0 | AE66: 0 | AF66: 0 | AG66: 0 | AH66: 0 | AI66: 0 | AJ66: 0 | AK66: 0 | AL66: 0 | AM66: 0 | AN66: 0 | AO66: 0 | AP66: 0 | AQ66: 0 | AR66: 0 | AS66: 0 | AT66: 0 | AU66: 0 | AV66: 0 | AW66: 0 | AX66: 0 | AY66: 0 | AZ66: 0 | BA66: 0 | BB66: 0 | BC66: 0 | BD66: 0 | BE66: 0 | BF66: 0 | BG66: 0 | BH66: 0 | BI66: 0 | BJ66: 0 | BK66: 0 | BL66: 0 | BM66: 0 | BN66: 0 | BO66: 0 | BP66: 0 | BQ66: 0 | BR66: 0 | BS66: 0 | BT66: 0 | BU66: 0 | BV66: 0 | BW66: 0 | BX66: 0 | BY66: 0 | BZ66: 0 | CA66: 0 | CB66: 0 | CC66: 0 | CD66: 0 | CE66: 0 | CF66: 0 | CG66: 0 | CH66: 0 | CI66: 0 | CJ66: 0 | CK66: 0 | CL66: 0 | CM66: 0 | CN66: 0 | CO66: 0 | CP66: 0 | CQ66: 0 | CR66: 0 | CS66: 0 | CT66: 0 | CU66: 0 | CV66: 0 | CW66: 0 | CX66: 0 | CY66: 0 | CZ66: 0 | DA66: 0 | DB66: 0 | DC66: 0 | DE66: =COUNTBLANK(H66:DC66) -> 0 | DF66: 5 | DG66: 0 | DH66: 0
A67: 47 | B67: =$B$64&"3." -> E.2.3. | C67: Veikla | E67: 0.21 | F67: =H67+NPV(FD,I67:INDEX(I67:DC67,PAL)) -> 0 | G67: =SUMIF($H$5:$DC$5,"<="&PAL,$H67:$DC67) -> 0 | H67: 0 | I67: 0 | J67: 0 | K67: 0 | L67: 0 | M67: 0 | N67: 0 | O67: 0 | P67: 0 | Q67: 0 | R67: 0 | S67: 0 | T67: 0 | U67: 0 | V67: 0 | W67: 0 | X67: 0 | Y67: 0 | Z67: 0 | AA67: 0 | AB67: 0 | AC67: 0 | AD67: 0 | AE67: 0 | AF67: 0 | AG67: 0 | AH67: 0 | AI67: 0 | AJ67: 0 | AK67: 0 | AL67: 0 | AM67: 0 | AN67: 0 | AO67: 0 | AP67: 0 | AQ67: 0 | AR67: 0 | AS67: 0 | AT67: 0 | AU67: 0 | AV67: 0 | AW67: 0 | AX67: 0 | AY67: 0 | AZ67: 0 | BA67: 0 | BB67: 0 | BC67: 0 | BD67: 0 | BE67: 0 | BF67: 0 | BG67: 0 | BH67: 0 | BI67: 0 | BJ67: 0 | BK67: 0 | BL67: 0 | BM67: 0 | BN67: 0 | BO67: 0 | BP67: 0 | BQ67: 0 | BR67: 0 | BS67: 0 | BT67: 0 | BU67: 0 | BV67: 0 | BW67: 0 | BX67: 0 | BY67: 0 | BZ67: 0 | CA67: 0 | CB67: 0 | CC67: 0 | CD67: 0 | CE67: 0 | CF67: 0 | CG67: 0 | CH67: 0 | CI67: 0 | CJ67: 0 | CK67: 0 | CL67: 0 | CM67: 0 | CN67: 0 | CO67: 0 | CP67: 0 | CQ67: 0 | CR67: 0 | CS67: 0 | CT67: 0 | CU67: 0 | CV67: 0 | CW67: 0 | CX67: 0 | CY67: 0 | CZ67: 0 | DA67: 0 | DB67: 0 | DC67: 0 | DE67: 0 | DF67: 0 | DG67: 21 | DH67: 0
A68: 48 | B68: =$B$64&"4." -> E.2.4. | C68: Veikla | E68: 0.21 | F68: =H68+NPV(FD,I68:INDEX(I68:DC68,PAL)) -> 0 | G68: =SUMIF($H$5:$DC$5,"<="&PAL,$H68:$DC68) -> 0 | H68: 0 | I68: 0 | J68: 0 | K68: 0 | L68: 0 | M68: 0 | N68: 0 | O68: 0 | P68: 0 | Q68: 0 | R68: 0 | S68: 0 | T68: 0 | U68: 0 | V68: 0 | W68: 0 | X68: 0 | Y68: 0 | Z68: 0 | AA68: 0 | AB68: 0 | AC68: 0 | AD68: 0 | AE68: 0 | AF68: 0 | AG68: 0 | AH68: 0 | AI68: 0 | AJ68: 0 | AK68: 0 | AL68: 0 | AM68: 0 | AN68: 0 | AO68: 0 | AP68: 0 | AQ68: 0 | AR68: 0 | AS68: 0 | AT68: 0 | AU68: 0 | AV68: 0 | AW68: 0 | AX68: 0 | AY68: 0 | AZ68: 0 | BA68: 0 | BB68: 0 | BC68: 0 | BD68: 0 | BE68: 0 | BF68: 0 | BG68: 0 | BH68: 0 | BI68: 0 | BJ68: 0 | BK68: 0 | BL68: 0 | BM68: 0 | BN68: 0 | BO68: 0 | BP68: 0 | BQ68: 0 | BR68: 0 | BS68: 0 | BT68: 0 | BU68: 0 | BV68: 0 | BW68: 0 | BX68: 0 | BY68: 0 | BZ68: 0 | CA68: 0 | CB68: 0 | CC68: 0 | CD68: 0 | CE68: 0 | CF68: 0 | CG68: 0 | CH68: 0 | CI68: 0 | CJ68: 0 | CK68: 0 | CL68: 0 | CM68: 0 | CN68: 0 | CO68: 0 | CP68: 0 | CQ68: 0 | CR68: 0 | CS68: 0 | CT68: 0 | CU68: 0 | CV68: 0 | CW68: 0 | CX68: 0 | CY68: 0 | CZ68: 0 | DA68: 0 | DB68: 0 | DC68: 0 | DE68: 0 | DF68: 0 | DG68: 21 | DH68: 0
A69: 49 | B69: =$B$64&"5." -> E.2.5. | C69: Veikla | E69: 0.21 | F69: =H69+NPV(FD,I69:INDEX(I69:DC69,PAL)) -> 0 | G69: =SUMIF($H$5:$DC$5,"<="&PAL,$H69:$DC69) -> 0 | H69: 0 | I69: 0 | J69: 0 | K69: 0 | L69: 0 | M69: 0 | N69: 0 | O69: 0 | P69: 0 | Q69: 0 | R69: 0 | S69: 0 | T69: 0 | U69: 0 | V69: 0 | W69: 0 | X69: 0 | Y69: 0 | Z69: 0 | AA69: 0 | AB69: 0 | AC69: 0 | AD69: 0 | AE69: 0 | AF69: 0 | AG69: 0 | AH69: 0 | AI69: 0 | AJ69: 0 | AK69: 0 | AL69: 0 | AM69: 0 | AN69: 0 | AO69: 0 | AP69: 0 | AQ69: 0 | AR69: 0 | AS69: 0 | AT69: 0 | AU69: 0 | AV69: 0 | AW69: 0 | AX69: 0 | AY69: 0 | AZ69: 0 | BA69: 0 | BB69: 0 | BC69: 0 | BD69: 0 | BE69: 0 | BF69: 0 | BG69: 0 | BH69: 0 | BI69: 0 | BJ69: 0 | BK69: 0 | BL69: 0 | BM69: 0 | BN69: 0 | BO69: 0 | BP69: 0 | BQ69: 0 | BR69: 0 | BS69: 0 | BT69: 0 | BU69: 0 | BV69: 0 | BW69: 0 | BX69: 0 | BY69: 0 | BZ69: 0 | CA69: 0 | CB69: 0 | CC69: 0 | CD69: 0 | CE69: 0 | CF69: 0 | CG69: 0 | CH69: 0 | CI69: 0 | CJ69: 0 | CK69: 0 | CL69: 0 | CM69: 0 | CN69: 0 | CO69: 0 | CP69: 0 | CQ69: 0 | CR69: 0 | CS69: 0 | CT69: 0 | CU69: 0 | CV69: 0 | CW69: 0 | CX69: 0 | CY69: 0 | CZ69: 0 | DA69: 0 | DB69: 0 | DC69: 0 | DE69: 0 | DF69: 0 | DG69: 21 | DH69: 0
A70: 50 | B70: =$B$64&"6." -> E.2.6. | C70: Veikla | E70: 0.21 | F70: =H70+NPV(FD,I70:INDEX(I70:DC70,PAL)) -> 0 | G70: =SUMIF($H$5:$DC$5,"<="&PAL,$H70:$DC70) -> 0 | H70: 0 | I70: 0 | J70: 0 | K70: 0 | L70: 0 | M70: 0 | N70: 0 | O70: 0 | P70: 0 | Q70: 0 | R70: 0 | S70: 0 | T70: 0 | U70: 0 | V70: 0 | W70: 0 | X70: 0 | Y70: 0 | Z70: 0 | AA70: 0 | AB70: 0 | AC70: 0 | AD70: 0 | AE70: 0 | AF70: 0 | AG70: 0 | AH70: 0 | AI70: 0 | AJ70: 0 | AK70: 0 | AL70: 0 | AM70: 0 | AN70: 0 | AO70: 0 | AP70: 0 | AQ70: 0 | AR70: 0 | AS70: 0 | AT70: 0 | AU70: 0 | AV70: 0 | AW70: 0 | AX70: 0 | AY70: 0 | AZ70: 0 | BA70: 0 | BB70: 0 | BC70: 0 | BD70: 0 | BE70: 0 | BF70: 0 | BG70: 0 | BH70: 0 | BI70: 0 | BJ70: 0 | BK70: 0 | BL70: 0 | BM70: 0 | BN70: 0 | BO70: 0 | BP70: 0 | BQ70: 0 | BR70: 0 | BS70: 0 | BT70: 0 | BU70: 0 | BV70: 0 | BW70: 0 | BX70: 0 | BY70: 0 | BZ70: 0 | CA70: 0 | CB70: 0 | CC70: 0 | CD70: 0 | CE70: 0 | CF70: 0 | CG70: 0 | CH70: 0 | CI70: 0 | CJ70: 0 | CK70: 0 | CL70: 0 | CM70: 0 | CN70: 0 | CO70: 0 | CP70: 0 | CQ70: 0 | CR70: 0 | CS70: 0 | CT70: 0 | CU70: 0 | CV70: 0 | CW70: 0 | CX70: 0 | CY70: 0 | CZ70: 0 | DA70: 0 | DB70: 0 | DC70: 0 | DE70: 0 | DF70: 0 | DG70: 21 | DH70: 0
A71: 51 | B71: =$B$64&"7." -> E.2.7. | C71: Veikla | E71: 0.21 | F71: =H71+NPV(FD,I71:INDEX(I71:DC71,PAL)) -> 0 | G71: =SUMIF($H$5:$DC$5,"<="&PAL,$H71:$DC71) -> 0 | H71: 0 | I71: 0 | J71: 0 | K71: 0 | L71: 0 | M71: 0 | N71: 0 | O71: 0 | P71: 0 | Q71: 0 | R71: 0 | S71: 0 | T71: 0 | U71: 0 | V71: 0 | W71: 0 | X71: 0 | Y71: 0 | Z71: 0 | AA71: 0 | AB71: 0 | AC71: 0 | AD71: 0 | AE71: 0 | AF71: 0 | AG71: 0 | AH71: 0 | AI71: 0 | AJ71: 0 | AK71: 0 | AL71: 0 | AM71: 0 | AN71: 0 | AO71: 0 | AP71: 0 | AQ71: 0 | AR71: 0 | AS71: 0 | AT71: 0 | AU71: 0 | AV71: 0 | AW71: 0 | AX71: 0 | AY71: 0 | AZ71: 0 | BA71: 0 | BB71: 0 | BC71: 0 | BD71: 0 | BE71: 0 | BF71: 0 | BG71: 0 | BH71: 0 | BI71: 0 | BJ71: 0 | BK71: 0 | BL71: 0 | BM71: 0 | BN71: 0 | BO71: 0 | BP71: 0 | BQ71: 0 | BR71: 0 | BS71: 0 | BT71: 0 | BU71: 0 | BV71: 0 | BW71: 0 | BX71: 0 | BY71: 0 | BZ71: 0 | CA71: 0 | CB71: 0 | CC71: 0 | CD71: 0 | CE71: 0 | CF71: 0 | CG71: 0 | CH71: 0 | CI71: 0 | CJ71: 0 | CK71: 0 | CL71: 0 | CM71: 0 | CN71: 0 | CO71: 0 | CP71: 0 | CQ71: 0 | CR71: 0 | CS71: 0 | CT71: 0 | CU71: 0 | CV71: 0 | CW71: 0 | CX71: 0 | CY71: 0 | CZ71: 0 | DA71: 0 | DB71: 0 | DC71: 0 | DE71: 0 | DF71: 0 | DG71: 21 | DH71: 0
A72: 52 | B72: =$B$64&"8." -> E.2.8. | C72: Veikla | E72: 0.21 | F72: =H72+NPV(FD,I72:INDEX(I72:DC72,PAL)) -> 0 | G72: =SUMIF($H$5:$DC$5,"<="&PAL,$H72:$DC72) -> 0 | H72: 0 | I72: 0 | J72: 0 | K72: 0 | L72: 0 | M72: 0 | N72: 0 | O72: 0 | P72: 0 | Q72: 0 | R72: 0 | S72: 0 | T72: 0 | U72: 0 | V72: 0 | W72: 0 | X72: 0 | Y72: 0 | Z72: 0 | AA72: 0 | AB72: 0 | AC72: 0 | AD72: 0 | AE72: 0 | AF72: 0 | AG72: 0 | AH72: 0 | AI72: 0 | AJ72: 0 | AK72: 0 | AL72: 0 | AM72: 0 | AN72: 0 | AO72: 0 | AP72: 0 | AQ72: 0 | AR72: 0 | AS72: 0 | AT72: 0 | AU72: 0 | AV72: 0 | AW72: 0 | AX72: 0 | AY72: 0 | AZ72: 0 | BA72: 0 | BB72: 0 | BC72: 0 | BD72: 0 | BE72: 0 | BF72: 0 | BG72: 0 | BH72: 0 | BI72: 0 | BJ72: 0 | BK72: 0 | BL72: 0 | BM72: 0 | BN72: 0 | BO72: 0 | BP72: 0 | BQ72: 0 | BR72: 0 | BS72: 0 | BT72: 0 | BU72: 0 | BV72: 0 | BW72: 0 | BX72: 0 | BY72: 0 | BZ72: 0 | CA72: 0 | CB72: 0 | CC72: 0 | CD72: 0 | CE72: 0 | CF72: 0 | CG72: 0 | CH72: 0 | CI72: 0 | CJ72: 0 | CK72: 0 | CL72: 0 | CM72: 0 | CN72: 0 | CO72: 0 | CP72: 0 | CQ72: 0 | CR72: 0 | CS72: 0 | CT72: 0 | CU72: 0 | CV72: 0 | CW72: 0 | CX72: 0 | CY72: 0 | CZ72: 0 | DA72: 0 | DB72: 0 | DC72: 0 | DE72: 0 | DF72: 0 | DG72: 21 | DH72: 0
B73: =$B$64&"9." -> E.2.9. | C73: Investicijos (privataus ir NVO sektoriaus) | E73: 0.21 | F73: =H73+NPV(FD,I73:INDEX(I73:DC73,PAL)) -> 0 | G73: =SUMIF($H$5:$DC$5,"<="&PAL,$H73:$DC73) -> 0 | H73: 0 | I73: 0 | J73: 0 | K73: 0 | L73: 0 | M73: 0 | N73: 0 | O73: 0 | P73: 0 | Q73: 0 | R73: 0 | S73: 0 | T73: 0 | U73: 0 | V73: 0 | W73: 0 | X73: 0 | Y73: 0 | Z73: 0 | AA73: 0 | AB73: 0 | AC73: 0 | AD73: 0 | AE73: 0 | AF73: 0 | AG73: 0 | AH73: 0 | AI73: 0 | AJ73: 0 | AK73: 0 | AL73: 0 | AM73: 0 | AN73: 0 | AO73: 0 | AP73: 0 | AQ73: 0 | AR73: 0 | AS73: 0 | AT73: 0 | AU73: 0 | AV73: 0 | AW73: 0 | AX73: 0 | AY73: 0 | AZ73: 0 | BA73: 0 | BB73: 0 | BC73: 0 | BD73: 0 | BE73: 0 | BF73: 0 | BG73: 0 | BH73: 0 | BI73: 0 | BJ73: 0 | BK73: 0 | BL73: 0 | BM73: 0 | BN73: 0 | BO73: 0 | BP73: 0 | BQ73: 0 | BR73: 0 | BS73: 0 | BT73: 0 | BU73: 0 | BV73: 0 | BW73: 0 | BX73: 0 | BY73: 0 | BZ73: 0 | CA73: 0 | CB73: 0 | CC73: 0 | CD73: 0 | CE73: 0 | CF73: 0 | CG73: 0 | CH73: 0 | CI73: 0 | CJ73: 0 | CK73: 0 | CL73: 0 | CM73: 0 | CN73: 0 | CO73: 0 | CP73: 0 | CQ73: 0 | CR73: 0 | CS73: 0 | CT73: 0 | CU73: 0 | CV73: 0 | CW73: 0 | CX73: 0 | CY73: 0 | CZ73: 0 | DA73: 0 | DB73: 0 | DC73: 0 | DE73: =COUNTBLANK(H73:DC73) -> 0 | DF73: 0 | DG73: 21 | DH73: 0 | DI73: 1
B74: =$B$64&"10." -> E.2.10. | C74: Reinvesticijos (po priemonės įgyvendinimo) (privataus ir NVO sektoriaus) | E74: 0.21 | F74: =H74+NPV(FD,I74:INDEX(I74:DC74,PAL)) -> 0 | G74: =SUMIF($H$5:$DC$5,"<="&PAL,$H74:$DC74) -> 0 | H74: 0 | I74: 0 | J74: 0 | K74: 0 | L74: 0 | M74: 0 | N74: 0 | O74: 0 | P74: 0 | Q74: 0 | R74: 0 | S74: 0 | T74: 0 | U74: 0 | V74: 0 | W74: 0 | X74: 0 | Y74: 0 | Z74: 0 | AA74: 0 | AB74: 0 | AC74: 0 | AD74: 0 | AE74: 0 | AF74: 0 | AG74: 0 | AH74: 0 | AI74: 0 | AJ74: 0 | AK74: 0 | AL74: 0 | AM74: 0 | AN74: 0 | AO74: 0 | AP74: 0 | AQ74: 0 | AR74: 0 | AS74: 0 | AT74: 0 | AU74: 0 | AV74: 0 | AW74: 0 | AX74: 0 | AY74: 0 | AZ74: 0 | BA74: 0 | BB74: 0 | BC74: 0 | BD74: 0 | BE74: 0 | BF74: 0 | BG74: 0 | BH74: 0 | BI74: 0 | BJ74: 0 | BK74: 0 | BL74: 0 | BM74: 0 | BN74: 0 | BO74: 0 | BP74: 0 | BQ74: 0 | BR74: 0 | BS74: 0 | BT74: 0 | BU74: 0 | BV74: 0 | BW74: 0 | BX74: 0 | BY74: 0 | BZ74: 0 | CA74: 0 | CB74: 0 | CC74: 0 | CD74: 0 | CE74: 0 | CF74: 0 | CG74: 0 | CH74: 0 | CI74: 0 | CJ74: 0 | CK74: 0 | CL74: 0 | CM74: 0 | CN74: 0 | CO74: 0 | CP74: 0 | CQ74: 0 | CR74: 0 | CS74: 0 | CT74: 0 | CU74: 0 | CV74: 0 | CW74: 0 | CX74: 0 | CY74: 0 | CZ74: 0 | DA74: 0 | DB74: 0 | DC74: 0 | DE74: 0 | DF74: 0 | DG74: 21 | DH74: 0 | DI74: 1
A75: 53 | B75: =$B$64&"11." -> E.2.11. | C75: Reinvesticijos (po priemonės įgyvendinimo) (viešojo sektoriaus) | E75: 0.21 | F75: =H75+NPV(FD,I75:INDEX(I75:DC75,PAL)) -> 0 | G75: =SUMIF($H$5:$DC$5,"<="&PAL,$H75:$DC75) -> 0 | H75: 0 | I75: 0 | J75: 0 | K75: 0 | L75: 0 | M75: 0 | N75: 0 | O75: 0 | P75: 0 | Q75: 0 | R75: 0 | S75: 0 | T75: 0 | U75: 0 | V75: 0 | W75: 0 | X75: 0 | Y75: 0 | Z75: 0 | AA75: 0 | AB75: 0 | AC75: 0 | AD75: 0 | AE75: 0 | AF75: 0 | AG75: 0 | AH75: 0 | AI75: 0 | AJ75: 0 | AK75: 0 | AL75: 0 | AM75: 0 | AN75: 0 | AO75: 0 | AP75: 0 | AQ75: 0 | AR75: 0 | AS75: 0 | AT75: 0 | AU75: 0 | AV75: 0 | AW75: 0 | AX75: 0 | AY75: 0 | AZ75: 0 | BA75: 0 | BB75: 0 | BC75: 0 | BD75: 0 | BE75: 0 | BF75: 0 | BG75: 0 | BH75: 0 | BI75: 0 | BJ75: 0 | BK75: 0 | BL75: 0 | BM75: 0 | BN75: 0 | BO75: 0 | BP75: 0 | BQ75: 0 | BR75: 0 | BS75: 0 | BT75: 0 | BU75: 0 | BV75: 0 | BW75: 0 | BX75: 0 | BY75: 0 | BZ75: 0 | CA75: 0 | CB75: 0 | CC75: 0 | CD75: 0 | CE75: 0 | CF75: 0 | CG75: 0 | CH75: 0 | CI75: 0 | CJ75: 0 | CK75: 0 | CL75: 0 | CM75: 0 | CN75: 0 | CO75: 0 | CP75: 0 | CQ75: 0 | CR75: 0 | CS75: 0 | CT75: 0 | CU75: 0 | CV75: 0 | CW75: 0 | CX75: 0 | CY75: 0 | CZ75: 0 | DA75: 0 | DB75: 0 | DC75: 0 | DE75: 0 | DF75: 0 | DG75: 21 | DH75: 0
A76: 54 | B76: =$B$64&"L." -> E.2.L. | C76: Likutinė vertė | E76: 0.21 | F76: =H76+NPV(FD,I76:INDEX(I76:DC76,PAL)) -> 0 | G76: =SUMIF($H$5:$DC$5,"<="&PAL,$H76:$DC76) -> 0 | H76: 0 | I76: 0 | J76: 0 | K76: 0 | L76: 0 | M76: 0 | N76: 0 | O76: 0 | P76: 0 | Q76: 0 | R76: 0 | S76: 0 | T76: 0 | U76: 0 | V76: 0 | W76: 0 | X76: 0 | Y76: 0 | Z76: 0 | AA76: 0 | AB76: 0 | AC76: 0 | AD76: 0 | AE76: 0 | AF76: 0 | AG76: 0 | AH76: 0 | AI76: 0 | AJ76: 0 | AK76: 0 | AL76: 0 | AM76: 0 | AN76: 0 | AO76: 0 | AP76: 0 | AQ76: 0 | AR76: 0 | AS76: 0 | AT76: 0 | AU76: 0 | AV76: 0 | AW76: 0 | AX76: 0 | AY76: 0 | AZ76: 0 | BA76: 0 | BB76: 0 | BC76: 0 | BD76: 0 | BE76: 0 | BF76: 0 | BG76: 0 | BH76: 0 | BI76: 0 | BJ76: 0 | BK76: 0 | BL76: 0 | BM76: 0 | BN76: 0 | BO76: 0 | BP76: 0 | BQ76: 0 | BR76: 0 | BS76: 0 | BT76: 0 | BU76: 0 | BV76: 0 | BW76: 0 | BX76: 0 | BY76: 0 | BZ76: 0 | CA76: 0 | CB76: 0 | CC76: 0 | CD76: 0 | CE76: 0 | CF76: 0 | CG76: 0 | CH76: 0 | CI76: 0 | CJ76: 0 | CK76: 0 | CL76: 0 | CM76: 0 | CN76: 0 | CO76: 0 | CP76: 0 | CQ76: 0 | CR76: 0 | CS76: 0 | CT76: 0 | CU76: 0 | CV76: 0 | CW76: 0 | CX76: 0 | CY76: 0 | CZ76: 0 | DA76: 0 | DB76: 0 | DC76: 0 | DE76: 0 | DF76: 0 | DG76: 21 | DH76: =DG76/(100+DG76) -> 0.173553719
A77: 55 | B77: E.3. | C77: Investicijos į žinias ir žmogiškuosius išteklius | F77: =SUM(F78:F88) -> 16715651.28 | G77: =SUMIF($H$5:$DC$5,"<="&PAL,$H77:$DC77) -> 20000000 | H77: =SUM(H78:H88) -> 0 | I77: =SUM(I78:I88) -> 0 | J77: 2785684.48 | K77: 3071369 | L77: 3535736.63 | M77: 3535736.63 | N77: 3535736.63 | O77: 3535736.63 | P77: 0 | Q77: 0 | R77: 0 | S77: 0 | T77: 0 | U77: 0 | V77: 0 | W77: 0 | X77: 0 | Y77: 0 | Z77: 0 | AA77: 0 | AB77: 0 | AC77: 0 | AD77: 0 | AE77: 0 | AF77: 0 | AG77: 0 | AH77: 0 | AI77: 0 | AJ77: 0 | AK77: 0 | AL77: 0 | AM77: 0 | AN77: 0 | AO77: 0 | AP77: 0 | AQ77: 0 | AR77: 0 | AS77: 0 | AT77: 0 | AU77: 0 | AV77: 0 | AW77: 0 | AX77: 0 | AY77: 0 | AZ77: 0 | BA77: 0 | BB77: 0 | BC77: 0 | BD77: 0 | BE77: 0 | BF77: 0 | BG77: 0 | BH77: 0 | BI77: 0 | BJ77: 0 | BK77: 0 | BL77: 0 | BM77: 0 | BN77: 0 | BO77: 0 | BP77: 0 | BQ77: 0 | BR77: 0 | BS77: 0 | BT77: 0 | BU77: =SUM(BU78:BU88) -> 0 | BV77: 0 | BW77: 0 | BX77: 0 | BY77: 0 | BZ77: 0 | CA77: 0 | CB77: 0 | CC77: 0 | CD77: 0 | CE77: 0 | CF77: 0 | CG77: 0 | CH77: 0 | CI77: 0 | CJ77: 0 | CK77: 0 | CL77: 0 | CM77: 0 | CN77: 0 | CO77: 0 | CP77: 0 | CQ77: 0 | CR77: 0 | CS77: 0 | CT77: 0 | CU77: 0 | CV77: 0 | CW77: 0 | CX77: 0 | CY77: 0 | CZ77: 0 | DA77: 0 | DB77: 0 | DC77: 0 | DF77: 6
A78: 56 | B78: =$B$77&"1." -> E.3.1. | C78: Europos inovacijų partnerystė žemės ūkio našumo ir tvarumo srityje | E78: 0.21 | F78: =H78+NPV(FD,I78:INDEX(I78:DC78,PAL)) -> 6720688.278 | G78: =SUMIF($H$5:$DC$5,"<="&PAL,$H78:$DC78) -> 8000000 | H78: 0 | I78: 0 | J78: =+Prielaidos!I53 -> 1333333.333 | K78: =+Prielaidos!J53 -> 1333333.333 | L78: =+Prielaidos!K53 -> 1333333.333 | M78: =+Prielaidos!L53 -> 1333333.333 | N78: =+Prielaidos!M53 -> 1333333.333 | O78: =+Prielaidos!N53 -> 1333333.333 | P78: 0 | Q78: 0 | R78: 0 | S78: 0 | T78: 0 | U78: 0 | V78: 0 | W78: 0 | X78: 0 | Y78: 0 | Z78: 0 | AA78: 0 | AB78: 0 | AC78: 0 | AD78: 0 | AE78: 0 | AF78: 0 | AG78: 0 | AH78: 0 | AI78: 0 | AJ78: 0 | AK78: 0 | AL78: 0 | AM78: 0 | AN78: 0 | AO78: 0 | AP78: 0 | AQ78: 0 | AR78: 0 | AS78: 0 | AT78: 0 | AU78: 0 | AV78: 0 | AW78: 0 | AX78: 0 | AY78: 0 | AZ78: 0 | BA78: 0 | BB78: 0 | BC78: 0 | BD78: 0 | BE78: 0 | BF78: 0 | BG78: 0 | BH78: 0 | BI78: 0 | BJ78: 0 | BK78: 0 | BL78: 0 | BM78: 0 | BN78: 0 | BO78: 0 | BP78: 0 | BQ78: 0 | BR78: 0 | BS78: 0 | BT78: 0 | BU78: 0 | BV78: 0 | BW78: 0 | BX78: 0 | BY78: 0 | BZ78: 0 | CA78: 0 | CB78: 0 | CC78: 0 | CD78: 0 | CE78: 0 | CF78: 0 | CG78: 0 | CH78: 0 | CI78: 0 | CJ78: 0 | CK78: 0 | CL78: 0 | CM78: 0 | CN78: 0 | CO78: 0 | CP78: 0 | CQ78: 0 | CR78: 0 | CS78: 0 | CT78: 0 | CU78: 0 | CV78: 0 | CW78: 0 | CX78: 0 | CY78: 0 | CZ78: 0 | DA78: 0 | DB78: 0 | DC78: 0 | DE78: =COUNTBLANK(H78:DC78) -> 0 | DF78: 6 | DG78: =IF(ISNUMBER(E78),E78*100,0) -> 21 | DH78: 0
A79: 57 | B79: =$B$77&"2." -> E.3.2. | C79: Parodomieji projektai ir informavimo veikla | E79: 0.21 | F79: =H79+NPV(FD,I79:INDEX(I79:DC79,PAL)) -> 2520258.104 | G79: =SUMIF($H$5:$DC$5,"<="&PAL,$H79:$DC79) -> 3000000 | H79: 0 | I79: 0 | J79: =+Prielaidos!I56 -> 500000 | K79: =+Prielaidos!J56 -> 500000 | L79: =+Prielaidos!K56 -> 500000 | M79: =+Prielaidos!L56 -> 500000 | N79: =+Prielaidos!M56 -> 500000 | O79: =+Prielaidos!N56 -> 500000 | P79: 0 | Q79: 0 | R79: 0 | S79: 0 | T79: 0 | U79: 0 | V79: 0 | W79: 0 | X79: 0 | Y79: 0 | Z79: 0 | AA79: 0 | AB79: 0 | AC79: 0 | AD79: 0 | AE79: 0 | AF79: 0 | AG79: 0 | AH79: 0 | AI79: 0 | AJ79: 0 | AK79: 0 | AL79: 0 | AM79: 0 | AN79: 0 | AO79: 0 | AP79: 0 | AQ79: 0 | AR79: 0 | AS79: 0 | AT79: 0 | AU79: 0 | AV79: 0 | AW79: 0 | AX79: 0 | AY79: 0 | AZ79: 0 | BA79: 0 | BB79: 0 | BC79: 0 | BD79: 0 | BE79: 0 | BF79: 0 | BG79: 0 | BH79: 0 | BI79: 0 | BJ79: 0 | BK79: 0 | BL79: 0 | BM79: 0 | BN79: 0 | BO79: 0 | BP79: 0 | BQ79: 0 | BR79: 0 | BS79: 0 | BT79: 0 | BU79: 0 | BV79: 0 | BW79: 0 | BX79: 0 | BY79: 0 | BZ79: 0 | CA79: 0 | CB79: 0 | CC79: 0 | CD79: 0 | CE79: 0 | CF79: 0 | CG79: 0 | CH79: 0 | CI79: 0 | CJ79: 0 | CK79: 0 | CL79: 0 | CM79: 0 | CN79: 0 | CO79: 0 | CP79: 0 | CQ79: 0 | CR79: 0 | CS79: 0 | CT79: 0 | CU79: 0 | CV79: 0 | CW79: 0 | CX79: 0 | CY79: 0 | CZ79: 0 | DA79: 0 | DB79: 0 | DC79: 0 | DE79: =COUNTBLANK(H79:DC79) -> 0 | DF79: 6 | DG79: 21 | DH79: 0
A80: 58 | B80: =$B$77&"3." -> E.3.3. | C80: Mokymai ir įgūdžių įgijimas | E80: 0.21 | F80: =H80+NPV(FD,I80:INDEX(I80:DC80,PAL)) -> 3360344.139 | G80: =SUMIF($H$5:$DC$5,"<="&PAL,$H80:$DC80) -> 4000000 | H80: 0 | I80: 0 | J80: =+Prielaidos!I59 -> 666666.6667 | K80: =+Prielaidos!J59 -> 666666.6667 | L80: =+Prielaidos!K59 -> 666666.6667 | M80: =+Prielaidos!L59 -> 666666.6667 | N80: =+Prielaidos!M59 -> 666666.6667 | O80: =+Prielaidos!N59 -> 666666.6667 | P80: 0 | Q80: 0 | R80: 0 | S80: 0 | T80: 0 | U80: 0 | V80: 0 | W80: 0 | X80: 0 | Y80: 0 | Z80: 0 | AA80: 0 | AB80: 0 | AC80: 0 | AD80: 0 | AE80: 0 | AF80: 0 | AG80: 0 | AH80: 0 | AI80: 0 | AJ80: 0 | AK80: 0 | AL80: 0 | AM80: 0 | AN80: 0 | AO80: 0 | AP80: 0 | AQ80: 0 | AR80: 0 | AS80: 0 | AT80: 0 | AU80: 0 | AV80: 0 | AW80: 0 | AX80: 0 | AY80: 0 | AZ80: 0 | BA80: 0 | BB80: 0 | BC80: 0 | BD80: 0 | BE80: 0 | BF80: 0 | BG80: 0 | BH80: 0 | BI80: 0 | BJ80: 0 | BK80: 0 | BL80: 0 | BM80: 0 | BN80: 0 | BO80: 0 | BP80: 0 | BQ80: 0 | BR80: 0 | BS80: 0 | BT80: 0 | BU80: 0 | BV80: 0 | BW80: 0 | BX80: 0 | BY80: 0 | BZ80: 0 | CA80: 0 | CB80: 0 | CC80: 0 | CD80: 0 | CE80: 0 | CF80: 0 | CG80: 0 | CH80: 0 | CI80: 0 | CJ80: 0 | CK80: 0 | CL80: 0 | CM80: 0 | CN80: 0 | CO80: 0 | CP80: 0 | CQ80: 0 | CR80: 0 | CS80: 0 | CT80: 0 | CU80: 0 | CV80: 0 | CW80: 0 | CX80: 0 | CY80: 0 | CZ80: 0 | DA80: 0 | DB80: 0 | DC80: 0 | DE80: 0 | DF80: 6 | DG80: 21 | DH80: 0
A81: 59 | B81: =$B$77&"4." -> E.3.4. | C81: Konsultavimo paslaugos | E81: 0.21 | F81: =H81+NPV(FD,I81:INDEX(I81:DC81,PAL)) -> 4114360.764 | G81: =SUMIF($H$5:$DC$5,"<="&PAL,$H81:$DC81) -> 5000000 | H81: 0 | I81: 0 | J81: =+Prielaidos!I62 -> 285684.48 | K81: =+Prielaidos!J62 -> 571369 | L81: =+Prielaidos!K62 -> 1035736.63 | M81: =+Prielaidos!L62 -> 1035736.63 | N81: =+Prielaidos!M62 -> 1035736.63 | O81: =+Prielaidos!N62 -> 1035736.63 | P81: 0 | Q81: 0 | R81: 0 | S81: 0 | T81: 0 | U81: 0 | V81: 0 | W81: 0 | X81: 0 | Y81: 0 | Z81: 0 | AA81: 0 | AB81: 0 | AC81: 0 | AD81: 0 | AE81: 0 | AF81: 0 | AG81: 0 | AH81: 0 | AI81: 0 | AJ81: 0 | AK81: 0 | AL81: 0 | AM81: 0 | AN81: 0 | AO81: 0 | AP81: 0 | AQ81: 0 | AR81: 0 | AS81: 0 | AT81: 0 | AU81: 0 | AV81: 0 | AW81: 0 | AX81: 0 | AY81: 0 | AZ81: 0 | BA81: 0 | BB81: 0 | BC81: 0 | BD81: 0 | BE81: 0 | BF81: 0 | BG81: 0 | BH81: 0 | BI81: 0 | BJ81: 0 | BK81: 0 | BL81: 0 | BM81: 0 | BN81: 0 | BO81: 0 | BP81: 0 | BQ81: 0 | BR81: 0 | BS81: 0 | BT81: 0 | BU81: 0 | BV81: 0 | BW81: 0 | BX81: 0 | BY81: 0 | BZ81: 0 | CA81: 0 | CB81: 0 | CC81: 0 | CD81: 0 | CE81: 0 | CF81: 0 | CG81: 0 | CH81: 0 | CI81: 0 | CJ81: 0 | CK81: 0 | CL81: 0 | CM81: 0 | CN81: 0 | CO81: 0 | CP81: 0 | CQ81: 0 | CR81: 0 | CS81: 0 | CT81: 0 | CU81: 0 | CV81: 0 | CW81: 0 | CX81: 0 | CY81: 0 | CZ81: 0 | DA81: 0 | DB81: 0 | DC81: 0 | DE81: 0 | DF81: 6 | DG81: 21 | DH81: 0
A82: 60 | B82: =$B$77&"5." -> E.3.5. | C82: Veikla | E82: 0.21 | F82: =H82+NPV(FD,I82:INDEX(I82:DC82,PAL)) -> 0 | G82: =SUMIF($H$5:$DC$5,"<="&PAL,$H82:$DC82) -> 0 | H82: 0 | I82: 0 | J82: 0 | K82: 0 | L82: 0 | M82: 0 | N82: 0 | O82: 0 | P82: 0 | Q82: 0 | R82: 0 | S82: 0 | T82: 0 | U82: 0 | V82: 0 | W82: 0 | X82: 0 | Y82: 0 | Z82: 0 | AA82: 0 | AB82: 0 | AC82: 0 | AD82: 0 | AE82: 0 | AF82: 0 | AG82: 0 | AH82: 0 | AI82: 0 | AJ82: 0 | AK82: 0 | AL82: 0 | AM82: 0 | AN82: 0 | AO82: 0 | AP82: 0 | AQ82: 0 | AR82: 0 | AS82: 0 | AT82: 0 | AU82: 0 | AV82: 0 | AW82: 0 | AX82: 0 | AY82: 0 | AZ82: 0 | BA82: 0 | BB82: 0 | BC82: 0 | BD82: 0 | BE82: 0 | BF82: 0 | BG82: 0 | BH82: 0 | BI82: 0 | BJ82: 0 | BK82: 0 | BL82: 0 | BM82: 0 | BN82: 0 | BO82: 0 | BP82: 0 | BQ82: 0 | BR82: 0 | BS82: 0 | BT82: 0 | BU82: 0 | BV82: 0 | BW82: 0 | BX82: 0 | BY82: 0 | BZ82: 0 | CA82: 0 | CB82: 0 | CC82: 0 | CD82: 0 | CE82: 0 | CF82: 0 | CG82: 0 | CH82: 0 | CI82: 0 | CJ82: 0 | CK82: 0 | CL82: 0 | CM82: 0 | CN82: 0 | CO82: 0 | CP82: 0 | CQ82: 0 | CR82: 0 | CS82: 0 | CT82: 0 | CU82: 0 | CV82: 0 | CW82: 0 | CX82: 0 | CY82: 0 | CZ82: 0 | DA82: 0 | DB82: 0 | DC82: 0 | DE82: 0 | DF82: 0 | DG82: 21 | DH82: 0
A83: 61 | B83: =$B$77&"6." -> E.3.6. | C83: Veikla | E83: 0.21 | F83: =H83+NPV(FD,I83:INDEX(I83:DC83,PAL)) -> 0 | G83: =SUMIF($H$5:$DC$5,"<="&PAL,$H83:$DC83) -> 0 | H83: 0 | I83: 0 | J83: 0 | K83: 0 | L83: 0 | M83: 0 | N83: 0 | O83: 0 | P83: 0 | Q83: 0 | R83: 0 | S83: 0 | T83: 0 | U83: 0 | V83: 0 | W83: 0 | X83: 0 | Y83: 0 | Z83: 0 | AA83: 0 | AB83: 0 | AC83: 0 | AD83: 0 | AE83: 0 | AF83: 0 | AG83: 0 | AH83: 0 | AI83: 0 | AJ83: 0 | AK83: 0 | AL83: 0 | AM83: 0 | AN83: 0 | AO83: 0 | AP83: 0 | AQ83: 0 | AR83: 0 | AS83: 0 | AT83: 0 | AU83: 0 | AV83: 0 | AW83: 0 | AX83: 0 | AY83: 0 | AZ83: 0 | BA83: 0 | BB83: 0 | BC83: 0 | BD83: 0 | BE83: 0 | BF83: 0 | BG83: 0 | BH83: 0 | BI83: 0 | BJ83: 0 | BK83: 0 | BL83: 0 | BM83: 0 | BN83: 0 | BO83: 0 | BP83: 0 | BQ83: 0 | BR83: 0 | BS83: 0 | BT83: 0 | BU83: 0 | BV83: 0 | BW83: 0 | BX83: 0 | BY83: 0 | BZ83: 0 | CA83: 0 | CB83: 0 | CC83: 0 | CD83: 0 | CE83: 0 | CF83: 0 | CG83: 0 | CH83: 0 | CI83: 0 | CJ83: 0 | CK83: 0 | CL83: 0 | CM83: 0 | CN83: 0 | CO83: 0 | CP83: 0 | CQ83: 0 | CR83: 0 | CS83: 0 | CT83: 0 | CU83: 0 | CV83: 0 | CW83: 0 | CX83: 0 | CY83: 0 | CZ83: 0 | DA83: 0 | DB83: 0 | DC83: 0 | DE83: 0 | DF83: 0 | DG83: 21 | DH83: 0
A84: 62 | B84: =$B$77&"7." -> E.3.7. | C84: Veikla | E84: 0.21 | F84: =H84+NPV(FD,I84:INDEX(I84:DC84,PAL)) -> 0 | G84: =SUMIF($H$5:$DC$5,"<="&PAL,$H84:$DC84) -> 0 | H84: 0 | I84: 0 | J84: 0 | K84: 0 | L84: 0 | M84: 0 | N84: 0 | O84: 0 | P84: 0 | Q84: 0 | R84: 0 | S84: 0 | T84: 0 | U84: 0 | V84: 0 | W84: 0 | X84: 0 | Y84: 0 | Z84: 0 | AA84: 0 | AB84: 0 | AC84: 0 | AD84: 0 | AE84: 0 | AF84: 0 | AG84: 0 | AH84: 0 | AI84: 0 | AJ84: 0 | AK84: 0 | AL84: 0 | AM84: 0 | AN84: 0 | AO84: 0 | AP84: 0 | AQ84: 0 | AR84: 0 | AS84: 0 | AT84: 0 | AU84: 0 | AV84: 0 | AW84: 0 | AX84: 0 | AY84: 0 | AZ84: 0 | BA84: 0 | BB84: 0 | BC84: 0 | BD84: 0 | BE84: 0 | BF84: 0 | BG84: 0 | BH84: 0 | BI84: 0 | BJ84: 0 | BK84: 0 | BL84: 0 | BM84: 0 | BN84: 0 | BO84: 0 | BP84: 0 | BQ84: 0 | BR84: 0 | BS84: 0 | BT84: 0 | BU84: 0 | BV84: 0 | BW84: 0 | BX84: 0 | BY84: 0 | BZ84: 0 | CA84: 0 | CB84: 0 | CC84: 0 | CD84: 0 | CE84: 0 | CF84: 0 | CG84: 0 | CH84: 0 | CI84: 0 | CJ84: 0 | CK84: 0 | CL84: 0 | CM84: 0 | CN84: 0 | CO84: 0 | CP84: 0 | CQ84: 0 | CR84: 0 | CS84: 0 | CT84: 0 | CU84: 0 | CV84: 0 | CW84: 0 | CX84: 0 | CY84: 0 | CZ84: 0 | DA84: 0 | DB84: 0 | DC84: 0 | DE84: 0 | DF84: 0 | DG84: 21 | DH84: 0
A85: 63 | B85: =$B$77&"8." -> E.3.8. | C85: Veikla | E85: 0.21 | F85: =H85+NPV(FD,I85:INDEX(I85:DC85,PAL)) -> 0 | G85: =SUMIF($H$5:$DC$5,"<="&PAL,$H85:$DC85) -> 0 | H85: 0 | I85: 0 | J85: 0 | K85: 0 | L85: 0 | M85: 0 | N85: 0 | O85: 0 | P85: 0 | Q85: 0 | R85: 0 | S85: 0 | T85: 0 | U85: 0 | V85: 0 | W85: 0 | X85: 0 | Y85: 0 | Z85: 0 | AA85: 0 | AB85: 0 | AC85: 0 | AD85: 0 | AE85: 0 | AF85: 0 | AG85: 0 | AH85: 0 | AI85: 0 | AJ85: 0 | AK85: 0 | AL85: 0 | AM85: 0 | AN85: 0 | AO85: 0 | AP85: 0 | AQ85: 0 | AR85: 0 | AS85: 0 | AT85: 0 | AU85: 0 | AV85: 0 | AW85: 0 | AX85: 0 | AY85: 0 | AZ85: 0 | BA85: 0 | BB85: 0 | BC85: 0 | BD85: 0 | BE85: 0 | BF85: 0 | BG85: 0 | BH85: 0 | BI85: 0 | BJ85: 0 | BK85: 0 | BL85: 0 | BM85: 0 | BN85: 0 | BO85: 0 | BP85: 0 | BQ85: 0 | BR85: 0 | BS85: 0 | BT85: 0 | BU85: 0 | BV85: 0 | BW85: 0 | BX85: 0 | BY85: 0 | BZ85: 0 | CA85: 0 | CB85: 0 | CC85: 0 | CD85: 0 | CE85: 0 | CF85: 0 | CG85: 0 | CH85: 0 | CI85: 0 | CJ85: 0 | CK85: 0 | CL85: 0 | CM85: 0 | CN85: 0 | CO85: 0 | CP85: 0 | CQ85: 0 | CR85: 0 | CS85: 0 | CT85: 0 | CU85: 0 | CV85: 0 | CW85: 0 | CX85: 0 | CY85: 0 | CZ85: 0 | DA85: 0 | DB85: 0 | DC85: 0 | DE85: 0 | DF85: 0 | DG85: 21 | DH85: 0
B86: =$B$77&"9." -> E.3.9. | C86: Investicijos (privataus ir NVO sektoriaus) | E86: 0.21 | F86: =H86+NPV(FD,I86:INDEX(I86:DC86,PAL)) -> 0 | G86: =SUMIF($H$5:$DC$5,"<="&PAL,$H86:$DC86) -> 0 | H86: 0 | I86: 0 | J86: 0 | K86: 0 | L86: 0 | M86: 0 | N86: 0 | O86: 0 | P86: 0 | Q86: 0 | R86: 0 | S86: 0 | T86: 0 | U86: 0 | V86: 0 | W86: 0 | X86: 0 | Y86: 0 | Z86: 0 | AA86: 0 | AB86: 0 | AC86: 0 | AD86: 0 | AE86: 0 | AF86: 0 | AG86: 0 | AH86: 0 | AI86: 0 | AJ86: 0 | AK86: 0 | AL86: 0 | AM86: 0 | AN86: 0 | AO86: 0 | AP86: 0 | AQ86: 0 | AR86: 0 | AS86: 0 | AT86: 0 | AU86: 0 | AV86: 0 | AW86: 0 | AX86: 0 | AY86: 0 | AZ86: 0 | BA86: 0 | BB86: 0 | BC86: 0 | BD86: 0 | BE86: 0 | BF86: 0 | BG86: 0 | BH86: 0 | BI86: 0 | BJ86: 0 | BK86: 0 | BL86: 0 | BM86: 0 | BN86: 0 | BO86: 0 | BP86: 0 | BQ86: 0 | BR86: 0 | BS86: 0 | BT86: 0 | BU86: 0 | BV86: 0 | BW86: 0 | BX86: 0 | BY86: 0 | BZ86: 0 | CA86: 0 | CB86: 0 | CC86: 0 | CD86: 0 | CE86: 0 | CF86: 0 | CG86: 0 | CH86: 0 | CI86: 0 | CJ86: 0 | CK86: 0 | CL86: 0 | CM86: 0 | CN86: 0 | CO86: 0 | CP86: 0 | CQ86: 0 | CR86: 0 | CS86: 0 | CT86: 0 | CU86: 0 | CV86: 0 | CW86: 0 | CX86: 0 | CY86: 0 | CZ86: 0 | DA86: 0 | DB86: 0 | DC86: 0 | DE86: =COUNTBLANK(H86:DC86) -> 0 | DF86: 0 | DG86: 21 | DH86: 0 | DI86: 1
B87: =$B$77&"10." -> E.3.10. | C87: Reinvesticijos (po priemonės įgyvendinimo) (privataus ir NVO sektoriaus) | E87: 0.21 | F87: =H87+NPV(FD,I87:INDEX(I87:DC87,PAL)) -> 0 | G87: =SUMIF($H$5:$DC$5,"<="&PAL,$H87:$DC87) -> 0 | H87: 0 | I87: 0 | J87: 0 | K87: 0 | L87: 0 | M87: 0 | N87: 0 | O87: 0 | P87: 0 | Q87: 0 | R87: 0 | S87: 0 | T87: 0 | U87: 0 | V87: 0 | W87: 0 | X87: 0 | Y87: 0 | Z87: 0 | AA87: 0 | AB87: 0 | AC87: 0 | AD87: 0 | AE87: 0 | AF87: 0 | AG87: 0 | AH87: 0 | AI87: 0 | AJ87: 0 | AK87: 0 | AL87: 0 | AM87: 0 | AN87: 0 | AO87: 0 | AP87: 0 | AQ87: 0 | AR87: 0 | AS87: 0 | AT87: 0 | AU87: 0 | AV87: 0 | AW87: 0 | AX87: 0 | AY87: 0 | AZ87: 0 | BA87: 0 | BB87: 0 | BC87: 0 | BD87: 0 | BE87: 0 | BF87: 0 | BG87: 0 | BH87: 0 | BI87: 0 | BJ87: 0 | BK87: 0 | BL87: 0 | BM87: 0 | BN87: 0 | BO87: 0 | BP87: 0 | BQ87: 0 | BR87: 0 | BS87: 0 | BT87: 0 | BU87: 0 | BV87: 0 | BW87: 0 | BX87: 0 | BY87: 0 | BZ87: 0 | CA87: 0 | CB87: 0 | CC87: 0 | CD87: 0 | CE87: 0 | CF87: 0 | CG87: 0 | CH87: 0 | CI87: 0 | CJ87: 0 | CK87: 0 | CL87: 0 | CM87: 0 | CN87: 0 | CO87: 0 | CP87: 0 | CQ87: 0 | CR87: 0 | CS87: 0 | CT87: 0 | CU87: 0 | CV87: 0 | CW87: 0 | CX87: 0 | CY87: 0 | CZ87: 0 | DA87: 0 | DB87: 0 | DC87: 0 | DE87: 0 | DF87: 0 | DG87: 21 | DH87: 0 | DI87: 1
A88: 64 | B88: =$B$77&"11." -> E.3.11. | C88: Reinvesticijos (po priemonės įgyvendinimo) (viešojo sektoriaus) | E88: 0.21 | F88: =H88+NPV(FD,I88:INDEX(I88:DC88,PAL)) -> 0 | G88: =SUMIF($H$5:$DC$5,"<="&PAL,$H88:$DC88) -> 0 | H88: 0 | I88: 0 | J88: 0 | K88: 0 | L88: 0 | M88: 0 | N88: 0 | O88: 0 | P88: 0 | Q88: 0 | R88: 0 | S88: 0 | T88: 0 | U88: 0 | V88: 0 | W88: 0 | X88: 0 | Y88: 0 | Z88: 0 | AA88: 0 | AB88: 0 | AC88: 0 | AD88: 0 | AE88: 0 | AF88: 0 | AG88: 0 | AH88: 0 | AI88: 0 | AJ88: 0 | AK88: 0 | AL88: 0 | AM88: 0 | AN88: 0 | AO88: 0 | AP88: 0 | AQ88: 0 | AR88: 0 | AS88: 0 | AT88: 0 | AU88: 0 | AV88: 0 | AW88: 0 | AX88: 0 | AY88: 0 | AZ88: 0 | BA88: 0 | BB88: 0 | BC88: 0 | BD88: 0 | BE88: 0 | BF88: 0 | BG88: 0 | BH88: 0 | BI88: 0 | BJ88: 0 | BK88: 0 | BL88: 0 | BM88: 0 | BN88: 0 | BO88: 0 | BP88: 0 | BQ88: 0 | BR88: 0 | BS88: 0 | BT88: 0 | BU88: 0 | BV88: 0 | BW88: 0 | BX88: 0 | BY88: 0 | BZ88: 0 | CA88: 0 | CB88: 0 | CC88: 0 | CD88: 0 | CE88: 0 | CF88: 0 | CG88: 0 | CH88: 0 | CI88: 0 | CJ88: 0 | CK88: 0 | CL88: 0 | CM88: 0 | CN88: 0 | CO88: 0 | CP88: 0 | CQ88: 0 | CR88: 0 | CS88: 0 | CT88: 0 | CU88: 0 | CV88: 0 | CW88: 0 | CX88: 0 | CY88: 0 | CZ88: 0 | DA88: 0 | DB88: 0 | DC88: 0 | DE88: 0 | DF88: 0 | DG88: 21 | DH88: 0
A89: 65 | B89: =$B$77&"L." -> E.3.L. | C89: Likutinė vertė | E89: 0.21 | F89: =H89+NPV(FD,I89:INDEX(I89:DC89,PAL)) -> 0 | G89: =SUMIF($H$5:$DC$5,"<="&PAL,$H89:$DC89) -> 0 | H89: 0 | I89: 0 | J89: 0 | K89: 0 | L89: 0 | M89: 0 | N89: 0 | O89: 0 | P89: 0 | Q89: 0 | R89: 0 | S89: 0 | T89: 0 | U89: 0 | V89: 0 | W89: 0 | X89: 0 | Y89: 0 | Z89: 0 | AA89: 0 | AB89: 0 | AC89: 0 | AD89: 0 | AE89: 0 | AF89: 0 | AG89: 0 | AH89: 0 | AI89: 0 | AJ89: 0 | AK89: 0 | AL89: 0 | AM89: 0 | AN89: 0 | AO89: 0 | AP89: 0 | AQ89: 0 | AR89: 0 | AS89: 0 | AT89: 0 | AU89: 0 | AV89: 0 | AW89: 0 | AX89: 0 | AY89: 0 | AZ89: 0 | BA89: 0 | BB89: 0 | BC89: 0 | BD89: 0 | BE89: 0 | BF89: 0 | BG89: 0 | BH89: 0 | BI89: 0 | BJ89: 0 | BK89: 0 | BL89: 0 | BM89: 0 | BN89: 0 | BO89: 0 | BP89: 0 | BQ89: 0 | BR89: 0 | BS89: 0 | BT89: 0 | BU89: 0 | BV89: 0 | BW89: 0 | BX89: 0 | BY89: 0 | BZ89: 0 | CA89: 0 | CB89: 0 | CC89: 0 | CD89: 0 | CE89: 0 | CF89: 0 | CG89: 0 | CH89: 0 | CI89: 0 | CJ89: 0 | CK89: 0 | CL89: 0 | CM89: 0 | CN89: 0 | CO89: 0 | CP89: 0 | CQ89: 0 | CR89: 0 | CS89: 0 | CT89: 0 | CU89: 0 | CV89: 0 | CW89: 0 | CX89: 0 | CY89: 0 | CZ89: 0 | DA89: 0 | DB89: 0 | DC89: 0 | DE89: 0 | DF89: =COUNTIF($H89:$DC89,"<>0") -> 0 | DG89: 21 | DH89: =DG89/(100+DG89) -> 0.173553719
A90: 66 | B90: F. | C90: KOMUNIKACINĖS VEIKLOS | F90: =SUM(F91:F101) -> 0 | G90: =SUMIF($H$5:$DC$5,"<="&PAL,$H90:$DC90) -> 0 | H90: =SUM(H91:H101) -> 0 | I90: =SUM(I91:I101) -> 0 | J90: 0 | K90: 0 | L90: 0 | M90: 0 | N90: 0 | O90: 0 | P90: 0 | Q90: 0 | R90: 0 | S90: 0 | T90: 0 | U90: 0 | V90: 0 | W90: 0 | X90: 0 | Y90: 0 | Z90: 0 | AA90: 0 | AB90: 0 | AC90: 0 | AD90: 0 | AE90: 0 | AF90: 0 | AG90: 0 | AH90: 0 | AI90: 0 | AJ90: 0 | AK90: 0 | AL90: 0 | AM90: 0 | AN90: 0 | AO90: 0 | AP90: 0 | AQ90: 0 | AR90: 0 | AS90: 0 | AT90: 0 | AU90: 0 | AV90: 0 | AW90: 0 | AX90: 0 | AY90: 0 | AZ90: 0 | BA90: 0 | BB90: 0 | BC90: 0 | BD90: 0 | BE90: 0 | BF90: 0 | BG90: 0 | BH90: 0 | BI90: 0 | BJ90: 0 | BK90: 0 | BL90: 0 | BM90: 0 | BN90: 0 | BO90: 0 | BP90: 0 | BQ90: 0 | BR90: 0 | BS90: 0 | BT90: 0 | BU90: =SUM(BU91:BU101) -> 0 | BV90: 0 | BW90: 0 | BX90: 0 | BY90: 0 | BZ90: 0 | CA90: 0 | CB90: 0 | CC90: 0 | CD90: 0 | CE90: 0 | CF90: 0 | CG90: 0 | CH90: 0 | CI90: 0 | CJ90: 0 | CK90: 0 | CL90: 0 | CM90: 0 | CN90: 0 | CO90: 0 | CP90: 0 | CQ90: 0 | CR90: 0 | CS90: 0 | CT90: 0 | CU90: 0 | CV90: 0 | CW90: 0 | CX90: 0 | CY90: 0 | CZ90: 0 | DA90: 0 | DB90: 0 | DC90: 0 | DF90: 0
A91: 67 | B91: =$B$90&"1." -> F.1. | C91: Veikla | E91: 0.21 | F91: =H91+NPV(FD,I91:INDEX(I91:DC91,PAL)) -> 0 | G91: =SUMIF($H$5:$DC$5,"<="&PAL,$H91:$DC91) -> 0 | H91: 0 | I91: 0 | J91: 0 | K91: 0 | L91: 0 | M91: 0 | N91: 0 | O91: 0 | P91: 0 | Q91: 0 | R91: 0 | S91: 0 | T91: 0 | U91: 0 | V91: 0 | W91: 0 | X91: 0 | Y91: 0 | Z91: 0 | AA91: 0 | AB91: 0 | AC91: 0 | AD91: 0 | AE91: 0 | AF91: 0 | AG91: 0 | AH91: 0 | AI91: 0 | AJ91: 0 | AK91: 0 | AL91: 0 | AM91: 0 | AN91: 0 | AO91: 0 | AP91: 0 | AQ91: 0 | AR91: 0 | AS91: 0 | AT91: 0 | AU91: 0 | AV91: 0 | AW91: 0 | AX91: 0 | AY91: 0 | AZ91: 0 | BA91: 0 | BB91: 0 | BC91: 0 | BD91: 0 | BE91: 0 | BF91: 0 | BG91: 0 | BH91: 0 | BI91: 0 | BJ91: 0 | BK91: 0 | BL91: 0 | BM91: 0 | BN91: 0 | BO91: 0 | BP91: 0 | BQ91: 0 | BR91: 0 | BS91: 0 | BT91: 0 | BU91: 0 | BV91: 0 | BW91: 0 | BX91: 0 | BY91: 0 | BZ91: 0 | CA91: 0 | CB91: 0 | CC91: 0 | CD91: 0 | CE91: 0 | CF91: 0 | CG91: 0 | CH91: 0 | CI91: 0 | CJ91: 0 | CK91: 0 | CL91: 0 | CM91: 0 | CN91: 0 | CO91: 0 | CP91: 0 | CQ91: 0 | CR91: 0 | CS91: 0 | CT91: 0 | CU91: 0 | CV91: 0 | CW91: 0 | CX91: 0 | CY91: 0 | CZ91: 0 | DA91: 0 | DB91: 0 | DC91: 0 | DE91: =COUNTBLANK(H91:DC91) -> 0 | DF91: 0 | DG91: =IF(ISNUMBER(E91),E91*100,0) -> 21 | DH91: 0
A92: 68 | B92: =$B$90&"2." -> F.2. | C92: Veikla | E92: 0.21 | F92: =H92+NPV(FD,I92:INDEX(I92:DC92,PAL)) -> 0 | G92: =SUMIF($H$5:$DC$5,"<="&PAL,$H92:$DC92) -> 0 | H92: 0 | I92: 0 | J92: 0 | K92: 0 | L92: 0 | M92: 0 | N92: 0 | O92: 0 | P92: 0 | Q92: 0 | R92: 0 | S92: 0 | T92: 0 | U92: 0 | V92: 0 | W92: 0 | X92: 0 | Y92: 0 | Z92: 0 | AA92: 0 | AB92: 0 | AC92: 0 | AD92: 0 | AE92: 0 | AF92: 0 | AG92: 0 | AH92: 0 | AI92: 0 | AJ92: 0 | AK92: 0 | AL92: 0 | AM92: 0 | AN92: 0 | AO92: 0 | AP92: 0 | AQ92: 0 | AR92: 0 | AS92: 0 | AT92: 0 | AU92: 0 | AV92: 0 | AW92: 0 | AX92: 0 | AY92: 0 | AZ92: 0 | BA92: 0 | BB92: 0 | BC92: 0 | BD92: 0 | BE92: 0 | BF92: 0 | BG92: 0 | BH92: 0 | BI92: 0 | BJ92: 0 | BK92: 0 | BL92: 0 | BM92: 0 | BN92: 0 | BO92: 0 | BP92: 0 | BQ92: 0 | BR92: 0 | BS92: 0 | BT92: 0 | BU92: 0 | BV92: 0 | BW92: 0 | BX92: 0 | BY92: 0 | BZ92: 0 | CA92: 0 | CB92: 0 | CC92: 0 | CD92: 0 | CE92: 0 | CF92: 0 | CG92: 0 | CH92: 0 | CI92: 0 | CJ92: 0 | CK92: 0 | CL92: 0 | CM92: 0 | CN92: 0 | CO92: 0 | CP92: 0 | CQ92: 0 | CR92: 0 | CS92: 0 | CT92: 0 | CU92: 0 | CV92: 0 | CW92: 0 | CX92: 0 | CY92: 0 | CZ92: 0 | DA92: 0 | DB92: 0 | DC92: 0 | DE92: =COUNTBLANK(H92:DC92) -> 0 | DF92: 0 | DG92: 21 | DH92: 0
A93: 69 | B93: =$B$90&"3." -> F.3. | C93: Veikla | E93: 0.21 | F93: =H93+NPV(FD,I93:INDEX(I93:DC93,PAL)) -> 0 | G93: =SUMIF($H$5:$DC$5,"<="&PAL,$H93:$DC93) -> 0 | H93: 0 | I93: 0 | J93: 0 | K93: 0 | L93: 0 | M93: 0 | N93: 0 | O93: 0 | P93: 0 | Q93: 0 | R93: 0 | S93: 0 | T93: 0 | U93: 0 | V93: 0 | W93: 0 | X93: 0 | Y93: 0 | Z93: 0 | AA93: 0 | AB93: 0 | AC93: 0 | AD93: 0 | AE93: 0 | AF93: 0 | AG93: 0 | AH93: 0 | AI93: 0 | AJ93: 0 | AK93: 0 | AL93: 0 | AM93: 0 | AN93: 0 | AO93: 0 | AP93: 0 | AQ93: 0 | AR93: 0 | AS93: 0 | AT93: 0 | AU93: 0 | AV93: 0 | AW93: 0 | AX93: 0 | AY93: 0 | AZ93: 0 | BA93: 0 | BB93: 0 | BC93: 0 | BD93: 0 | BE93: 0 | BF93: 0 | BG93: 0 | BH93: 0 | BI93: 0 | BJ93: 0 | BK93: 0 | BL93: 0 | BM93: 0 | BN93: 0 | BO93: 0 | BP93: 0 | BQ93: 0 | BR93: 0 | BS93: 0 | BT93: 0 | BU93: 0 | BV93: 0 | BW93: 0 | BX93: 0 | BY93: 0 | BZ93: 0 | CA93: 0 | CB93: 0 | CC93: 0 | CD93: 0 | CE93: 0 | CF93: 0 | CG93: 0 | CH93: 0 | CI93: 0 | CJ93: 0 | CK93: 0 | CL93: 0 | CM93: 0 | CN93: 0 | CO93: 0 | CP93: 0 | CQ93: 0 | CR93: 0 | CS93: 0 | CT93: 0 | CU93: 0 | CV93: 0 | CW93: 0 | CX93: 0 | CY93: 0 | CZ93: 0 | DA93: 0 | DB93: 0 | DC93: 0 | DE93: 0 | DF93: 0 | DG93: 21 | DH93: 0
A94: 70 | B94: =$B$90&"4." -> F.4. | C94: Veikla | E94: 0.21 | F94: =H94+NPV(FD,I94:INDEX(I94:DC94,PAL)) -> 0 | G94: =SUMIF($H$5:$DC$5,"<="&PAL,$H94:$DC94) -> 0 | H94: 0 | I94: 0 | J94: 0 | K94: 0 | L94: 0 | M94: 0 | N94: 0 | O94: 0 | P94: 0 | Q94: 0 | R94: 0 | S94: 0 | T94: 0 | U94: 0 | V94: 0 | W94: 0 | X94: 0 | Y94: 0 | Z94: 0 | AA94: 0 | AB94: 0 | AC94: 0 | AD94: 0 | AE94: 0 | AF94: 0 | AG94: 0 | AH94: 0 | AI94: 0 | AJ94: 0 | AK94: 0 | AL94: 0 | AM94: 0 | AN94: 0 | AO94: 0 | AP94: 0 | AQ94: 0 | AR94: 0 | AS94: 0 | AT94: 0 | AU94: 0 | AV94: 0 | AW94: 0 | AX94: 0 | AY94: 0 | AZ94: 0 | BA94: 0 | BB94: 0 | BC94: 0 | BD94: 0 | BE94: 0 | BF94: 0 | BG94: 0 | BH94: 0 | BI94: 0 | BJ94: 0 | BK94: 0 | BL94: 0 | BM94: 0 | BN94: 0 | BO94: 0 | BP94: 0 | BQ94: 0 | BR94: 0 | BS94: 0 | BT94: 0 | BU94: 0 | BV94: 0 | BW94: 0 | BX94: 0 | BY94: 0 | BZ94: 0 | CA94: 0 | CB94: 0 | CC94: 0 | CD94: 0 | CE94: 0 | CF94: 0 | CG94: 0 | CH94: 0 | CI94: 0 | CJ94: 0 | CK94: 0 | CL94: 0 | CM94: 0 | CN94: 0 | CO94: 0 | CP94: 0 | CQ94: 0 | CR94: 0 | CS94: 0 | CT94: 0 | CU94: 0 | CV94: 0 | CW94: 0 | CX94: 0 | CY94: 0 | CZ94: 0 | DA94: 0 | DB94: 0 | DC94: 0 | DE94: 0 | DF94: 0 | DG94: 21 | DH94: 0
A95: 71 | B95: =$B$90&"5." -> F.5. | C95: Veikla | E95: 0.21 | F95: =H95+NPV(FD,I95:INDEX(I95:DC95,PAL)) -> 0 | G95: =SUMIF($H$5:$DC$5,"<="&PAL,$H95:$DC95) -> 0 | H95: 0 | I95: 0 | J95: 0 | K95: 0 | L95: 0 | M95: 0 | N95: 0 | O95: 0 | P95: 0 | Q95: 0 | R95: 0 | S95: 0 | T95: 0 | U95: 0 | V95: 0 | W95: 0 | X95: 0 | Y95: 0 | Z95: 0 | AA95: 0 | AB95: 0 | AC95: 0 | AD95: 0 | AE95: 0 | AF95: 0 | AG95: 0 | AH95: 0 | AI95: 0 | AJ95: 0 | AK95: 0 | AL95: 0 | AM95: 0 | AN95: 0 | AO95: 0 | AP95: 0 | AQ95: 0 | AR95: 0 | AS95: 0 | AT95: 0 | AU95: 0 | AV95: 0 | AW95: 0 | AX95: 0 | AY95: 0 | AZ95: 0 | BA95: 0 | BB95: 0 | BC95: 0 | BD95: 0 | BE95: 0 | BF95: 0 | BG95: 0 | BH95: 0 | BI95: 0 | BJ95: 0 | BK95: 0 | BL95: 0 | BM95: 0 | BN95: 0 | BO95: 0 | BP95: 0 | BQ95: 0 | BR95: 0 | BS95: 0 | BT95: 0 | BU95: 0 | BV95: 0 | BW95: 0 | BX95: 0 | BY95: 0 | BZ95: 0 | CA95: 0 | CB95: 0 | CC95: 0 | CD95: 0 | CE95: 0 | CF95: 0 | CG95: 0 | CH95: 0 | CI95: 0 | CJ95: 0 | CK95: 0 | CL95: 0 | CM95: 0 | CN95: 0 | CO95: 0 | CP95: 0 | CQ95: 0 | CR95: 0 | CS95: 0 | CT95: 0 | CU95: 0 | CV95: 0 | CW95: 0 | CX95: 0 | CY95: 0 | CZ95: 0 | DA95: 0 | DB95: 0 | DC95: 0 | DE95: 0 | DF95: 0 | DG95: 21 | DH95: 0
A96: 72 | B96: =$B$90&"6." -> F.6. | C96: Veikla | E96: 0.21 | F96: =H96+NPV(FD,I96:INDEX(I96:DC96,PAL)) -> 0 | G96: =SUMIF($H$5:$DC$5,"<="&PAL,$H96:$DC96) -> 0 | H96: 0 | I96: 0 | J96: 0 | K96: 0 | L96: 0 | M96: 0 | N96: 0 | O96: 0 | P96: 0 | Q96: 0 | R96: 0 | S96: 0 | T96: 0 | U96: 0 | V96: 0 | W96: 0 | X96: 0 | Y96: 0 | Z96: 0 | AA96: 0 | AB96: 0 | AC96: 0 | AD96: 0 | AE96: 0 | AF96: 0 | AG96: 0 | AH96: 0 | AI96: 0 | AJ96: 0 | AK96: 0 | AL96: 0 | AM96: 0 | AN96: 0 | AO96: 0 | AP96: 0 | AQ96: 0 | AR96: 0 | AS96: 0 | AT96: 0 | AU96: 0 | AV96: 0 | AW96: 0 | AX96: 0 | AY96: 0 | AZ96: 0 | BA96: 0 | BB96: 0 | BC96: 0 | BD96: 0 | BE96: 0 | BF96: 0 | BG96: 0 | BH96: 0 | BI96: 0 | BJ96: 0 | BK96: 0 | BL96: 0 | BM96: 0 | BN96: 0 | BO96: 0 | BP96: 0 | BQ96: 0 | BR96: 0 | BS96: 0 | BT96: 0 | BU96: 0 | BV96: 0 | BW96: 0 | BX96: 0 | BY96: 0 | BZ96: 0 | CA96: 0 | CB96: 0 | CC96: 0 | CD96: 0 | CE96: 0 | CF96: 0 | CG96: 0 | CH96: 0 | CI96: 0 | CJ96: 0 | CK96: 0 | CL96: 0 | CM96: 0 | CN96: 0 | CO96: 0 | CP96: 0 | CQ96: 0 | CR96: 0 | CS96: 0 | CT96: 0 | CU96: 0 | CV96: 0 | CW96: 0 | CX96: 0 | CY96: 0 | CZ96: 0 | DA96: 0 | DB96: 0 | DC96: 0 | DE96: 0 | DF96: 0 | DG96: 21 | DH96: 0
A97: 73 | B97: =$B$90&"7." -> F.7. | C97: Veikla | E97: 0.21 | F97: =H97+NPV(FD,I97:INDEX(I97:DC97,PAL)) -> 0 | G97: =SUMIF($H$5:$DC$5,"<="&PAL,$H97:$DC97) -> 0 | H97: 0 | I97: 0 | J97: 0 | K97: 0 | L97: 0 | M97: 0 | N97: 0 | O97: 0 | P97: 0 | Q97: 0 | R97: 0 | S97: 0 | T97: 0 | U97: 0 | V97: 0 | W97: 0 | X97: 0 | Y97: 0 | Z97: 0 | AA97: 0 | AB97: 0 | AC97: 0 | AD97: 0 | AE97: 0 | AF97: 0 | AG97: 0 | AH97: 0 | AI97: 0 | AJ97: 0 | AK97: 0 | AL97: 0 | AM97: 0 | AN97: 0 | AO97: 0 | AP97: 0 | AQ97: 0 | AR97: 0 | AS97: 0 | AT97: 0 | AU97: 0 | AV97: 0 | AW97: 0 | AX97: 0 | AY97: 0 | AZ97: 0 | BA97: 0 | BB97: 0 | BC97: 0 | BD97: 0 | BE97: 0 | BF97: 0 | BG97: 0 | BH97: 0 | BI97: 0 | BJ97: 0 | BK97: 0 | BL97: 0 | BM97: 0 | BN97: 0 | BO97: 0 | BP97: 0 | BQ97: 0 | BR97: 0 | BS97: 0 | BT97: 0 | BU97: 0 | BV97: 0 | BW97: 0 | BX97: 0 | BY97: 0 | BZ97: 0 | CA97: 0 | CB97: 0 | CC97: 0 | CD97: 0 | CE97: 0 | CF97: 0 | CG97: 0 | CH97: 0 | CI97: 0 | CJ97: 0 | CK97: 0 | CL97: 0 | CM97: 0 | CN97: 0 | CO97: 0 | CP97: 0 | CQ97: 0 | CR97: 0 | CS97: 0 | CT97: 0 | CU97: 0 | CV97: 0 | CW97: 0 | CX97: 0 | CY97: 0 | CZ97: 0 | DA97: 0 | DB97: 0 | DC97: 0 | DE97: 0 | DF97: 0 | DG97: 21 | DH97: 0
A98: 74 | B98: =$B$90&"8." -> F.8. | C98: Veikla | E98: 0.21 | F98: =H98+NPV(FD,I98:INDEX(I98:DC98,PAL)) -> 0 | G98: =SUMIF($H$5:$DC$5,"<="&PAL,$H98:$DC98) -> 0 | H98: 0 | I98: 0 | J98: 0 | K98: 0 | L98: 0 | M98: 0 | N98: 0 | O98: 0 | P98: 0 | Q98: 0 | R98: 0 | S98: 0 | T98: 0 | U98: 0 | V98: 0 | W98: 0 | X98: 0 | Y98: 0 | Z98: 0 | AA98: 0 | AB98: 0 | AC98: 0 | AD98: 0 | AE98: 0 | AF98: 0 | AG98: 0 | AH98: 0 | AI98: 0 | AJ98: 0 | AK98: 0 | AL98: 0 | AM98: 0 | AN98: 0 | AO98: 0 | AP98: 0 | AQ98: 0 | AR98: 0 | AS98: 0 | AT98: 0 | AU98: 0 | AV98: 0 | AW98: 0 | AX98: 0 | AY98: 0 | AZ98: 0 | BA98: 0 | BB98: 0 | BC98: 0 | BD98: 0 | BE98: 0 | BF98: 0 | BG98: 0 | BH98: 0 | BI98: 0 | BJ98: 0 | BK98: 0 | BL98: 0 | BM98: 0 | BN98: 0 | BO98: 0 | BP98: 0 | BQ98: 0 | BR98: 0 | BS98: 0 | BT98: 0 | BU98: 0 | BV98: 0 | BW98: 0 | BX98: 0 | BY98: 0 | BZ98: 0 | CA98: 0 | CB98: 0 | CC98: 0 | CD98: 0 | CE98: 0 | CF98: 0 | CG98: 0 | CH98: 0 | CI98: 0 | CJ98: 0 | CK98: 0 | CL98: 0 | CM98: 0 | CN98: 0 | CO98: 0 | CP98: 0 | CQ98: 0 | CR98: 0 | CS98: 0 | CT98: 0 | CU98: 0 | CV98: 0 | CW98: 0 | CX98: 0 | CY98: 0 | CZ98: 0 | DA98: 0 | DB98: 0 | DC98: 0 | DE98: 0 | DF98: 0 | DG98: 21 | DH98: 0
B99: =$B$90&"9." -> F.9. | C99: Investicijos (privataus ir NVO sektoriaus) | E99: 0.21 | F99: =H99+NPV(FD,I99:INDEX(I99:DC99,PAL)) -> 0 | G99: =SUMIF($H$5:$DC$5,"<="&PAL,$H99:$DC99) -> 0 | H99: 0 | I99: 0 | J99: 0 | K99: 0 | L99: 0 | M99: 0 | N99: 0 | O99: 0 | P99: 0 | Q99: 0 | R99: 0 | S99: 0 | T99: 0 | U99: 0 | V99: 0 | W99: 0 | X99: 0 | Y99: 0 | Z99: 0 | AA99: 0 | AB99: 0 | AC99: 0 | AD99: 0 | AE99: 0 | AF99: 0 | AG99: 0 | AH99: 0 | AI99: 0 | AJ99: 0 | AK99: 0 | AL99: 0 | AM99: 0 | AN99: 0 | AO99: 0 | AP99: 0 | AQ99: 0 | AR99: 0 | AS99: 0 | AT99: 0 | AU99: 0 | AV99: 0 | AW99: 0 | AX99: 0 | AY99: 0 | AZ99: 0 | BA99: 0 | BB99: 0 | BC99: 0 | BD99: 0 | BE99: 0 | BF99: 0 | BG99: 0 | BH99: 0 | BI99: 0 | BJ99: 0 | BK99: 0 | BL99: 0 | BM99: 0 | BN99: 0 | BO99: 0 | BP99: 0 | BQ99: 0 | BR99: 0 | BS99: 0 | BT99: 0 | BU99: 0 | BV99: 0 | BW99: 0 | BX99: 0 | BY99: 0 | BZ99: 0 | CA99: 0 | CB99: 0 | CC99: 0 | CD99: 0 | CE99: 0 | CF99: 0 | CG99: 0 | CH99: 0 | CI99: 0 | CJ99: 0 | CK99: 0 | CL99: 0 | CM99: 0 | CN99: 0 | CO99: 0 | CP99: 0 | CQ99: 0 | CR99: 0 | CS99: 0 | CT99: 0 | CU99: 0 | CV99: 0 | CW99: 0 | CX99: 0 | CY99: 0 | CZ99: 0 | DA99: 0 | DB99: 0 | DC99: 0 | DE99: =COUNTBLANK(H99:DC99) -> 0 | DF99: 0 | DG99: 21 | DH99: 0 | DI99: 1
B100: =$B$90&"10." -> F.10. | C100: Reinvesticijos (po priemonės įgyvendinimo) (privataus ir NVO sektoriaus) | E100: 0.21 | F100: =H100+NPV(FD,I100:INDEX(I100:DC100,PAL)) -> 0 | G100: =SUMIF($H$5:$DC$5,"<="&PAL,$H100:$DC100) -> 0 | H100: 0 | I100: 0 | J100: 0 | K100: 0 | L100: 0 | M100: 0 | N100: 0 | O100: 0 | P100: 0 | Q100: 0 | R100: 0 | S100: 0 | T100: 0 | U100: 0 | V100: 0 | W100: 0 | X100: 0 | Y100: 0 | Z100: 0 | AA100: 0 | AB100: 0 | AC100: 0 | AD100: 0 | AE100: 0 | AF100: 0 | AG100: 0 | AH100: 0 | AI100: 0 | AJ100: 0 | AK100: 0 | AL100: 0 | AM100: 0 | AN100: 0 | AO100: 0 | AP100: 0 | AQ100: 0 | AR100: 0 | AS100: 0 | AT100: 0 | AU100: 0 | AV100: 0 | AW100: 0 | AX100: 0 | AY100: 0 | AZ100: 0 | BA100: 0 | BB100: 0 | BC100: 0 | BD100: 0 | BE100: 0 | BF100: 0 | BG100: 0 | BH100: 0 | BI100: 0 | BJ100: 0 | BK100: 0 | BL100: 0 | BM100: 0 | BN100: 0 | BO100: 0 | BP100: 0 | BQ100: 0 | BR100: 0 | BS100: 0 | BT100: 0 | BU100: 0 | BV100: 0 | BW100: 0 | BX100: 0 | BY100: 0 | BZ100: 0 | CA100: 0 | CB100: 0 | CC100: 0 | CD100: 0 | CE100: 0 | CF100: 0 | CG100: 0 | CH100: 0 | CI100: 0 | CJ100: 0 | CK100: 0 | CL100: 0 | CM100: 0 | CN100: 0 | CO100: 0 | CP100: 0 | CQ100: 0 | CR100: 0 | CS100: 0 | CT100: 0 | CU100: 0 | CV100: 0 | CW100: 0 | CX100: 0 | CY100: 0 | CZ100: 0 | DA100: 0 | DB100: 0 | DC100: 0 | DE100: 0 | DF100: 0 | DG100: 21 | DH100: 0 | DI100: 1
A101: 75 | B101: =$B$90&"11." -> F.11. | C101: Reinvesticijos (po priemonės įgyvendinimo) (viešojo sektoriaus) | E101: 0.21 | F101: =H101+NPV(FD,I101:INDEX(I101:DC101,PAL)) -> 0 | G101: =SUMIF($H$5:$DC$5,"<="&PAL,$H101:$DC101) -> 0 | H101: 0 | I101: 0 | J101: 0 | K101: 0 | L101: 0 | M101: 0 | N101: 0 | O101: 0 | P101: 0 | Q101: 0 | R101: 0 | S101: 0 | T101: 0 | U101: 0 | V101: 0 | W101: 0 | X101: 0 | Y101: 0 | Z101: 0 | AA101: 0 | AB101: 0 | AC101: 0 | AD101: 0 | AE101: 0 | AF101: 0 | AG101: 0 | AH101: 0 | AI101: 0 | AJ101: 0 | AK101: 0 | AL101: 0 | AM101: 0 | AN101: 0 | AO101: 0 | AP101: 0 | AQ101: 0 | AR101: 0 | AS101: 0 | AT101: 0 | AU101: 0 | AV101: 0 | AW101: 0 | AX101: 0 | AY101: 0 | AZ101: 0 | BA101: 0 | BB101: 0 | BC101: 0 | BD101: 0 | BE101: 0 | BF101: 0 | BG101: 0 | BH101: 0 | BI101: 0 | BJ101: 0 | BK101: 0 | BL101: 0 | BM101: 0 | BN101: 0 | BO101: 0 | BP101: 0 | BQ101: 0 | BR101: 0 | BS101: 0 | BT101: 0 | BU101: 0 | BV101: 0 | BW101: 0 | BX101: 0 | BY101: 0 | BZ101: 0 | CA101: 0 | CB101: 0 | CC101: 0 | CD101: 0 | CE101: 0 | CF101: 0 | CG101: 0 | CH101: 0 | CI101: 0 | CJ101: 0 | CK101: 0 | CL101: 0 | CM101: 0 | CN101: 0 | CO101: 0 | CP101: 0 | CQ101: 0 | CR101: 0 | CS101: 0 | CT101: 0 | CU101: 0 | CV101: 0 | CW101: 0 | CX101: 0 | CY101: 0 | CZ101: 0 | DA101: 0 | DB101: 0 | DC101: 0 | DE101: 0 | DF101: 0 | DG101: 21 | DH101: 0
A102: 76 | B102: =$B$90&"L." -> F.L. | C102: Likutinė vertė | E102: 0.21 | F102: =H102+NPV(FD,I102:INDEX(I102:DC102,PAL)) -> 0 | G102: =SUMIF($H$5:$DC$5,"<="&PAL,$H102:$DC102) -> 0 | H102: 0 | I102: 0 | J102: 0 | K102: 0 | L102: 0 | M102: 0 | N102: 0 | O102: 0 | P102: 0 | Q102: 0 | R102: 0 | S102: 0 | T102: 0 | U102: 0 | V102: 0 | W102: 0 | X102: 0 | Y102: 0 | Z102: 0 | AA102: 0 | AB102: 0 | AC102: 0 | AD102: 0 | AE102: 0 | AF102: 0 | AG102: 0 | AH102: 0 | AI102: 0 | AJ102: 0 | AK102: 0 | AL102: 0 | AM102: 0 | AN102: 0 | AO102: 0 | AP102: 0 | AQ102: 0 | AR102: 0 | AS102: 0 | AT102: 0 | AU102: 0 | AV102: 0 | AW102: 0 | AX102: 0 | AY102: 0 | AZ102: 0 | BA102: 0 | BB102: 0 | BC102: 0 | BD102: 0 | BE102: 0 | BF102: 0 | BG102: 0 | BH102: 0 | BI102: 0 | BJ102: 0 | BK102: 0 | BL102: 0 | BM102: 0 | BN102: 0 | BO102: 0 | BP102: 0 | BQ102: 0 | BR102: 0 | BS102: 0 | BT102: 0 | BU102: 0 | BV102: 0 | BW102: 0 | BX102: 0 | BY102: 0 | BZ102: 0 | CA102: 0 | CB102: 0 | CC102: 0 | CD102: 0 | CE102: 0 | CF102: 0 | CG102: 0 | CH102: 0 | CI102: 0 | CJ102: 0 | CK102: 0 | CL102: 0 | CM102: 0 | CN102: 0 | CO102: 0 | CP102: 0 | CQ102: 0 | CR102: 0 | CS102: 0 | CT102: 0 | CU102: 0 | CV102: 0 | CW102: 0 | CX102: 0 | CY102: 0 | CZ102: 0 | DA102: 0 | DB102: 0 | DC102: 0 | DE102: 0 | DF102: 0 | DG102: 21 | DH102: =DG102/(100+DG102) -> 0.173553719
A103: 77 | B103: G. | C103: VEIKLOS IR PALAIKYMO (ATNAUJINIMO) SĄNAUDOS, IŠ VISO | F103: =F104+F111 -> 0 | G103: =G104+G111 -> 0 | H103: =H104+H111 -> 0 | I103: =I104+I111 -> 0 | J103: 0 | K103: 0 | L103: 0 | M103: 0 | N103: 0 | O103: 0 | P103: 0 | Q103: 0 | R103: 0 | S103: 0 | T103: 0 | U103: 0 | V103: 0 | W103: 0 | X103: 0 | Y103: 0 | Z103: 0 | AA103: 0 | AB103: 0 | AC103: 0 | AD103: 0 | AE103: 0 | AF103: 0 | AG103: 0 | AH103: 0 | AI103: 0 | AJ103: 0 | AK103: 0 | AL103: 0 | AM103: 0 | AN103: 0 | AO103: 0 | AP103: 0 | AQ103: 0 | AR103: 0 | AS103: 0 | AT103: 0 | AU103: 0 | AV103: 0 | AW103: 0 | AX103: 0 | AY103: 0 | AZ103: 0 | BA103: 0 | BB103: 0 | BC103: 0 | BD103: 0 | BE103: 0 | BF103: 0 | BG103: 0 | BH103: 0 | BI103: 0 | BJ103: 0 | BK103: 0 | BL103: 0 | BM103: 0 | BN103: 0 | BO103: 0 | BP103: 0 | BQ103: 0 | BR103: 0 | BS103: 0 | BT103: 0 | BU103: =BU104+BU111 -> 0 | BV103: 0 | BW103: 0 | BX103: 0 | BY103: 0 | BZ103: 0 | CA103: 0 | CB103: 0 | CC103: 0 | CD103: 0 | CE103: 0 | CF103: 0 | CG103: 0 | CH103: 0 | CI103: 0 | CJ103: 0 | CK103: 0 | CL103: 0 | CM103: 0 | CN103: 0 | CO103: 0 | CP103: 0 | CQ103: 0 | CR103: 0 | CS103: 0 | CT103: 0 | CU103: 0 | CV103: 0 | CW103: 0 | CX103: 0 | CY103: 0 | CZ103: 0 | DA103: 0 | DB103: 0 | DC103: 0 | DF103: 0
B104: G.1. | C104: Veiklos ir palaikymo (atnaujinimo) sąnaudos (viešojo sektoriaus), iš viso | F104: =SUM(F105:F110) -> 0 | G104: =SUM(G105:G110) -> 0 | H104: =SUM(H105:H110) -> 0 | I104: =SUM(I105:I110) -> 0 | J104: 0 | K104: 0 | L104: 0 | M104: 0 | N104: 0 | O104: 0 | P104: =SUM(P105:P110) -> 0 | Q104: =SUM(Q105:Q110) -> 0 | R104: =SUM(R105:R110) -> 0 | S104: =SUM(S105:S110) -> 0 | T104: =SUM(T105:T110) -> 0 | U104: =SUM(U105:U110) -> 0 | V104: =SUM(V105:V110) -> 0 | W104: =SUM(W105:W110) -> 0 | X104: =SUM(X105:X110) -> 0 | Y104: =SUM(Y105:Y110) -> 0 | Z104: =SUM(Z105:Z110) -> 0 | AA104: =SUM(AA105:AA110) -> 0 | AB104: =SUM(AB105:AB110) -> 0 | AC104: =SUM(AC105:AC110) -> 0 | AD104: =SUM(AD105:AD110) -> 0 | AE104: =SUM(AE105:AE110) -> 0 | AF104: =SUM(AF105:AF110) -> 0 | AG104: =SUM(AG105:AG110) -> 0 | AH104: =SUM(AH105:AH110) -> 0 | AI104: =SUM(AI105:AI110) -> 0 | AJ104: =SUM(AJ105:AJ110) -> 0 | AK104: =SUM(AK105:AK110) -> 0 | AL104: =SUM(AL105:AL110) -> 0 | AM104: =SUM(AM105:AM110) -> 0 | AN104: =SUM(AN105:AN110) -> 0 | AO104: =SUM(AO105:AO110) -> 0 | AP104: =SUM(AP105:AP110) -> 0 | AQ104: =SUM(AQ105:AQ110) -> 0 | AR104: =SUM(AR105:AR110) -> 0 | AS104: =SUM(AS105:AS110) -> 0 | AT104: =SUM(AT105:AT110) -> 0 | AU104: =SUM(AU105:AU110) -> 0 | AV104: =SUM(AV105:AV110) -> 0 | AW104: =SUM(AW105:AW110) -> 0 | AX104: =SUM(AX105:AX110) -> 0 | AY104: =SUM(AY105:AY110) -> 0 | AZ104: =SUM(AZ105:AZ110) -> 0 | BA104: =SUM(BA105:BA110) -> 0 | BB104: =SUM(BB105:BB110) -> 0 | BC104: =SUM(BC105:BC110) -> 0 | BD104: =SUM(BD105:BD110) -> 0 | BE104: =SUM(BE105:BE110) -> 0 | BF104: =SUM(BF105:BF110) -> 0 | BG104: =SUM(BG105:BG110) -> 0 | BH104: =SUM(BH105:BH110) -> 0 | BI104: =SUM(BI105:BI110) -> 0 | BJ104: =SUM(BJ105:BJ110) -> 0 | BK104: =SUM(BK105:BK110) -> 0 | BL104: =SUM(BL105:BL110) -> 0 | BM104: =SUM(BM105:BM110) -> 0 | BN104: =SUM(BN105:BN110) -> 0 | BO104: =SUM(BO105:BO110) -> 0 | BP104: =SUM(BP105:BP110) -> 0 | BQ104: =SUM(BQ105:BQ110) -> 0 | BR104: =SUM(BR105:BR110) -> 0 | BS104: =SUM(BS105:BS110) -> 0 | BT104: =SUM(BT105:BT110) -> 0 | BU104: =SUM(BU105:BU110) -> 0 | BV104: =SUM(BV105:BV110) -> 0 | BW104: =SUM(BW105:BW110) -> 0 | BX104: =SUM(BX105:BX110) -> 0 | BY104: =SUM(BY105:BY110) -> 0 | BZ104: =SUM(BZ105:BZ110) -> 0 | CA104: =SUM(CA105:CA110) -> 0 | CB104: =SUM(CB105:CB110) -> 0 | CC104: =SUM(CC105:CC110) -> 0 | CD104: =SUM(CD105:CD110) -> 0 | CE104: =SUM(CE105:CE110) -> 0 | CF104: =SUM(CF105:CF110) -> 0 | CG104: =SUM(CG105:CG110) -> 0 | CH104: =SUM(CH105:CH110) -> 0 | CI104: =SUM(CI105:CI110) -> 0 | CJ104: =SUM(CJ105:CJ110) -> 0 | CK104: =SUM(CK105:CK110) -> 0 | CL104: =SUM(CL105:CL110) -> 0 | CM104: =SUM(CM105:CM110) -> 0 | CN104: =SUM(CN105:CN110) -> 0 | CO104: =SUM(CO105:CO110) -> 0 | CP104: =SUM(CP105:CP110) -> 0 | CQ104: =SUM(CQ105:CQ110) -> 0 | CR104: =SUM(CR105:CR110) -> 0 | CS104: =SUM(CS105:CS110) -> 0 | CT104: =SUM(CT105:CT110) -> 0 | CU104: =SUM(CU105:CU110) -> 0 | CV104: =SUM(CV105:CV110) -> 0 | CW104: =SUM(CW105:CW110) -> 0 | CX104: =SUM(CX105:CX110) -> 0 | CY104: =SUM(CY105:CY110) -> 0 | CZ104: =SUM(CZ105:CZ110) -> 0 | DA104: =SUM(DA105:DA110) -> 0 | DB104: =SUM(DB105:DB110) -> 0 | DC104: =SUM(DC105:DC110) -> 0 | DF104: 0
A105: 78 | B105: =$B$103&"1.1." -> G.1.1. | C105: Veiklos ir palaikymo (atnaujinimo) sąnaudos 1 (viešojo sektoriaus) | E105: 0.21 | F105: =H105+NPV(FD,I105:INDEX(I105:DC105,PAL)) -> 0 | G105: =SUMIF($H$5:$DC$5,"<="&PAL,$H105:$DC105) -> 0 | H105: 0 | I105: 0 | J105: 0 | K105: 0 | L105: 0 | M105: 0 | N105: 0 | O105: 0 | P105: 0 | Q105: 0 | R105: 0 | S105: 0 | T105: 0 | U105: 0 | V105: 0 | W105: 0 | X105: 0 | Y105: 0 | Z105: 0 | AA105: 0 | AB105: 0 | AC105: 0 | AD105: 0 | AE105: 0 | AF105: 0 | AG105: 0 | AH105: 0 | AI105: 0 | AJ105: 0 | AK105: 0 | AL105: 0 | AM105: 0 | AN105: 0 | AO105: 0 | AP105: 0 | AQ105: 0 | AR105: 0 | AS105: 0 | AT105: 0 | AU105: 0 | AV105: 0 | AW105: 0 | AX105: 0 | AY105: 0 | AZ105: 0 | BA105: 0 | BB105: 0 | BC105: 0 | BD105: 0 | BE105: 0 | BF105: 0 | BG105: 0 | BH105: 0 | BI105: 0 | BJ105: 0 | BK105: 0 | BL105: 0 | BM105: 0 | BN105: 0 | BO105: 0 | BP105: 0 | BQ105: 0 | BR105: 0 | BS105: 0 | BT105: 0 | BU105: 0 | BV105: 0 | BW105: 0 | BX105: 0 | BY105: 0 | BZ105: 0 | CA105: 0 | CB105: 0 | CC105: 0 | CD105: 0 | CE105: 0 | CF105: 0 | CG105: 0 | CH105: 0 | CI105: 0 | CJ105: 0 | CK105: 0 | CL105: 0 | CM105: 0 | CN105: 0 | CO105: 0 | CP105: 0 | CQ105: 0 | CR105: 0 | CS105: 0 | CT105: 0 | CU105: 0 | CV105: 0 | CW105: 0 | CX105: 0 | CY105: 0 | CZ105: 0 | DA105: 0 | DB105: 0 | DC105: 0 | DE105: =COUNTBLANK(H105:DC105) -> 0 | DF105: 0 | DG105: =IF(ISNUMBER(E105),E105*100,0) -> 21
A106: 79 | B106: =$B$103&"1.2." -> G.1.2. | C106: Veiklos ir palaikymo (atnaujinimo) sąnaudos 2 (viešojo sektoriaus) | E106: 0.21 | F106: =H106+NPV(FD,I106:INDEX(I106:DC106,PAL)) -> 0 | G106: =SUMIF($H$5:$DC$5,"<="&PAL,$H106:$DC106) -> 0 | H106: 0 | I106: 0 | J106: 0 | K106: 0 | L106: 0 | M106: 0 | N106: 0 | O106: 0 | P106: 0 | Q106: 0 | R106: 0 | S106: 0 | T106: 0 | U106: 0 | V106: 0 | W106: 0 | X106: 0 | Y106: 0 | Z106: 0 | AA106: 0 | AB106: 0 | AC106: 0 | AD106: 0 | AE106: 0 | AF106: 0 | AG106: 0 | AH106: 0 | AI106: 0 | AJ106: 0 | AK106: 0 | AL106: 0 | AM106: 0 | AN106: 0 | AO106: 0 | AP106: 0 | AQ106: 0 | AR106: 0 | AS106: 0 | AT106: 0 | AU106: 0 | AV106: 0 | AW106: 0 | AX106: 0 | AY106: 0 | AZ106: 0 | BA106: 0 | BB106: 0 | BC106: 0 | BD106: 0 | BE106: 0 | BF106: 0 | BG106: 0 | BH106: 0 | BI106: 0 | BJ106: 0 | BK106: 0 | BL106: 0 | BM106: 0 | BN106: 0 | BO106: 0 | BP106: 0 | BQ106: 0 | BR106: 0 | BS106: 0 | BT106: 0 | BU106: 0 | BV106: 0 | BW106: 0 | BX106: 0 | BY106: 0 | BZ106: 0 | CA106: 0 | CB106: 0 | CC106: 0 | CD106: 0 | CE106: 0 | CF106: 0 | CG106: 0 | CH106: 0 | CI106: 0 | CJ106: 0 | CK106: 0 | CL106: 0 | CM106: 0 | CN106: 0 | CO106: 0 | CP106: 0 | CQ106: 0 | CR106: 0 | CS106: 0 | CT106: 0 | CU106: 0 | CV106: 0 | CW106: 0 | CX106: 0 | CY106: 0 | CZ106: 0 | DA106: 0 | DB106: 0 | DC106: 0 | DE106: 0 | DF106: 0 | DG106: 21
A107: 80 | B107: =$B$103&"1.3." -> G.1.3. | C107: Veiklos ir palaikymo (atnaujinimo) sąnaudos 3 (viešojo sektoriaus) | E107: 0.21 | F107: =H107+NPV(FD,I107:INDEX(I107:DC107,PAL)) -> 0 | G107: =SUMIF($H$5:$DC$5,"<="&PAL,$H107:$DC107) -> 0 | H107: 0 | I107: 0 | J107: 0 | K107: 0 | L107: 0 | M107: 0 | N107: 0 | O107: 0 | P107: 0 | Q107: 0 | R107: 0 | S107: 0 | T107: 0 | U107: 0 | V107: 0 | W107: 0 | X107: 0 | Y107: 0 | Z107: 0 | AA107: 0 | AB107: 0 | AC107: 0 | AD107: 0 | AE107: 0 | AF107: 0 | AG107: 0 | AH107: 0 | AI107: 0 | AJ107: 0 | AK107: 0 | AL107: 0 | AM107: 0 | AN107: 0 | AO107: 0 | AP107: 0 | AQ107: 0 | AR107: 0 | AS107: 0 | AT107: 0 | AU107: 0 | AV107: 0 | AW107: 0 | AX107: 0 | AY107: 0 | AZ107: 0 | BA107: 0 | BB107: 0 | BC107: 0 | BD107: 0 | BE107: 0 | BF107: 0 | BG107: 0 | BH107: 0 | BI107: 0 | BJ107: 0 | BK107: 0 | BL107: 0 | BM107: 0 | BN107: 0 | BO107: 0 | BP107: 0 | BQ107: 0 | BR107: 0 | BS107: 0 | BT107: 0 | BU107: 0 | BV107: 0 | BW107: 0 | BX107: 0 | BY107: 0 | BZ107: 0 | CA107: 0 | CB107: 0 | CC107: 0 | CD107: 0 | CE107: 0 | CF107: 0 | CG107: 0 | CH107: 0 | CI107: 0 | CJ107: 0 | CK107: 0 | CL107: 0 | CM107: 0 | CN107: 0 | CO107: 0 | CP107: 0 | CQ107: 0 | CR107: 0 | CS107: 0 | CT107: 0 | CU107: 0 | CV107: 0 | CW107: 0 | CX107: 0 | CY107: 0 | CZ107: 0 | DA107: 0 | DB107: 0 | DC107: 0 | DE107: 0 | DF107: 0 | DG107: 21
A108: 81 | B108: =$B$103&"1.4." -> G.1.4. | C108: Veiklos ir palaikymo (atnaujinimo) sąnaudos 4 (viešojo sektoriaus) | E108: 0.21 | F108: =H108+NPV(FD,I108:INDEX(I108:DC108,PAL)) -> 0 | G108: =SUMIF($H$5:$DC$5,"<="&PAL,$H108:$DC108) -> 0 | H108: 0 | I108: 0 | J108: 0 | K108: 0 | L108: 0 | M108: 0 | N108: 0 | O108: 0 | P108: 0 | Q108: 0 | R108: 0 | S108: 0 | T108: 0 | U108: 0 | V108: 0 | W108: 0 | X108: 0 | Y108: 0 | Z108: 0 | AA108: 0 | AB108: 0 | AC108: 0 | AD108: 0 | AE108: 0 | AF108: 0 | AG108: 0 | AH108: 0 | AI108: 0 | AJ108: 0 | AK108: 0 | AL108: 0 | AM108: 0 | AN108: 0 | AO108: 0 | AP108: 0 | AQ108: 0 | AR108: 0 | AS108: 0 | AT108: 0 | AU108: 0 | AV108: 0 | AW108: 0 | AX108: 0 | AY108: 0 | AZ108: 0 | BA108: 0 | BB108: 0 | BC108: 0 | BD108: 0 | BE108: 0 | BF108: 0 | BG108: 0 | BH108: 0 | BI108: 0 | BJ108: 0 | BK108: 0 | BL108: 0 | BM108: 0 | BN108: 0 | BO108: 0 | BP108: 0 | BQ108: 0 | BR108: 0 | BS108: 0 | BT108: 0 | BU108: 0 | BV108: 0 | BW108: 0 | BX108: 0 | BY108: 0 | BZ108: 0 | CA108: 0 | CB108: 0 | CC108: 0 | CD108: 0 | CE108: 0 | CF108: 0 | CG108: 0 | CH108: 0 | CI108: 0 | CJ108: 0 | CK108: 0 | CL108: 0 | CM108: 0 | CN108: 0 | CO108: 0 | CP108: 0 | CQ108: 0 | CR108: 0 | CS108: 0 | CT108: 0 | CU108: 0 | CV108: 0 | CW108: 0 | CX108: 0 | CY108: 0 | CZ108: 0 | DA108: 0 | DB108: 0 | DC108: 0 | DE108: 0 | DF108: 0 | DG108: 21
A109: 82 | B109: =$B$103&"1.5." -> G.1.5. | C109: Veiklos ir palaikymo (atnaujinimo) sąnaudos 5 (viešojo sektoriaus) | E109: 0.21 | F109: =H109+NPV(FD,I109:INDEX(I109:DC109,PAL)) -> 0 | G109: =SUMIF($H$5:$DC$5,"<="&PAL,$H109:$DC109) -> 0 | H109: 0 | I109: 0 | J109: 0 | K109: 0 | L109: 0 | M109: 0 | N109: 0 | O109: 0 | P109: 0 | Q109: 0 | R109: 0 | S109: 0 | T109: 0 | U109: 0 | V109: 0 | W109: 0 | X109: 0 | Y109: 0 | Z109: 0 | AA109: 0 | AB109: 0 | AC109: 0 | AD109: 0 | AE109: 0 | AF109: 0 | AG109: 0 | AH109: 0 | AI109: 0 | AJ109: 0 | AK109: 0 | AL109: 0 | AM109: 0 | AN109: 0 | AO109: 0 | AP109: 0 | AQ109: 0 | AR109: 0 | AS109: 0 | AT109: 0 | AU109: 0 | AV109: 0 | AW109: 0 | AX109: 0 | AY109: 0 | AZ109: 0 | BA109: 0 | BB109: 0 | BC109: 0 | BD109: 0 | BE109: 0 | BF109: 0 | BG109: 0 | BH109: 0 | BI109: 0 | BJ109: 0 | BK109: 0 | BL109: 0 | BM109: 0 | BN109: 0 | BO109: 0 | BP109: 0 | BQ109: 0 | BR109: 0 | BS109: 0 | BT109: 0 | BU109: 0 | BV109: 0 | BW109: 0 | BX109: 0 | BY109: 0 | BZ109: 0 | CA109: 0 | CB109: 0 | CC109: 0 | CD109: 0 | CE109: 0 | CF109: 0 | CG109: 0 | CH109: 0 | CI109: 0 | CJ109: 0 | CK109: 0 | CL109: 0 | CM109: 0 | CN109: 0 | CO109: 0 | CP109: 0 | CQ109: 0 | CR109: 0 | CS109: 0 | CT109: 0 | CU109: 0 | CV109: 0 | CW109: 0 | CX109: 0 | CY109: 0 | CZ109: 0 | DA109: 0 | DB109: 0 | DC109: 0 | DE109: 0 | DF109: 0 | DG109: 21
A110: 83 | B110: =$B$103&"1.6." -> G.1.6. | C110: Veiklos ir palaikymo (atnaujinimo) sąnaudos 6 (viešojo sektoriaus) | E110: 0.21 | F110: =H110+NPV(FD,I110:INDEX(I110:DC110,PAL)) -> 0 | G110: =SUMIF($H$5:$DC$5,"<="&PAL,$H110:$DC110) -> 0 | H110: 0 | I110: 0 | J110: 0 | K110: 0 | L110: 0 | M110: 0 | N110: 0 | O110: 0 | P110: 0 | Q110: 0 | R110: 0 | S110: 0 | T110: 0 | U110: 0 | V110: 0 | W110: 0 | X110: 0 | Y110: 0 | Z110: 0 | AA110: 0 | AB110: 0 | AC110: 0 | AD110: 0 | AE110: 0 | AF110: 0 | AG110: 0 | AH110: 0 | AI110: 0 | AJ110: 0 | AK110: 0 | AL110: 0 | AM110: 0 | AN110: 0 | AO110: 0 | AP110: 0 | AQ110: 0 | AR110: 0 | AS110: 0 | AT110: 0 | AU110: 0 | AV110: 0 | AW110: 0 | AX110: 0 | AY110: 0 | AZ110: 0 | BA110: 0 | BB110: 0 | BC110: 0 | BD110: 0 | BE110: 0 | BF110: 0 | BG110: 0 | BH110: 0 | BI110: 0 | BJ110: 0 | BK110: 0 | BL110: 0 | BM110: 0 | BN110: 0 | BO110: 0 | BP110: 0 | BQ110: 0 | BR110: 0 | BS110: 0 | BT110: 0 | BU110: 0 | BV110: 0 | BW110: 0 | BX110: 0 | BY110: 0 | BZ110: 0 | CA110: 0 | CB110: 0 | CC110: 0 | CD110: 0 | CE110: 0 | CF110: 0 | CG110: 0 | CH110: 0 | CI110: 0 | CJ110: 0 | CK110: 0 | CL110: 0 | CM110: 0 | CN110: 0 | CO110: 0 | CP110: 0 | CQ110: 0 | CR110: 0 | CS110: 0 | CT110: 0 | CU110: 0 | CV110: 0 | CW110: 0 | CX110: 0 | CY110: 0 | CZ110: 0 | DA110: 0 | DB110: 0 | DC110: 0 | DE110: 0 | DF110: 0 | DG110: 21
A111: 84 | B111: =$B$103&"2." -> G.2. | C111: Veiklos ir palaikymo (atnaujinimo) sąnaudos (privataus ir NVO sektoriaus), iš viso | F111: =SUM(F112:F114) -> 0 | G111: =SUM(G112:G114) -> 0 | H111: =SUM(H112:H114) -> 0 | I111: =SUM(I112:I114) -> 0 | J111: 0 | K111: 0 | L111: 0 | M111: 0 | N111: 0 | O111: 0 | P111: 0 | Q111: 0 | R111: 0 | S111: 0 | T111: 0 | U111: 0 | V111: 0 | W111: 0 | X111: 0 | Y111: 0 | Z111: 0 | AA111: 0 | AB111: 0 | AC111: 0 | AD111: 0 | AE111: 0 | AF111: 0 | AG111: 0 | AH111: 0 | AI111: 0 | AJ111: 0 | AK111: 0 | AL111: 0 | AM111: 0 | AN111: 0 | AO111: 0 | AP111: 0 | AQ111: 0 | AR111: 0 | AS111: 0 | AT111: 0 | AU111: 0 | AV111: 0 | AW111: 0 | AX111: 0 | AY111: 0 | AZ111: 0 | BA111: 0 | BB111: 0 | BC111: 0 | BD111: 0 | BE111: 0 | BF111: 0 | BG111: 0 | BH111: 0 | BI111: 0 | BJ111: 0 | BK111: 0 | BL111: 0 | BM111: 0 | BN111: 0 | BO111: 0 | BP111: 0 | BQ111: 0 | BR111: 0 | BS111: 0 | BT111: 0 | BU111: =SUM(BU112:BU114) -> 0 | BV111: 0 | BW111: 0 | BX111: 0 | BY111: 0 | BZ111: 0 | CA111: 0 | CB111: 0 | CC111: 0 | CD111: 0 | CE111: 0 | CF111: 0 | CG111: 0 | CH111: 0 | CI111: 0 | CJ111: 0 | CK111: 0 | CL111: 0 | CM111: 0 | CN111: 0 | CO111: 0 | CP111: 0 | CQ111: 0 | CR111: 0 | CS111: 0 | CT111: 0 | CU111: 0 | CV111: 0 | CW111: 0 | CX111: 0 | CY111: 0 | CZ111: 0 | DA111: 0 | DB111: 0 | DC111: 0 | DF111: 0 | DG111: 0
A112: 85 | B112: =$B$103&"2.1." -> G.2.1. | C112: Veiklos ir palaikymo (atnaujinimo) sąnaudos 1 (privataus ir NVO sektoriaus) | E112: 0.21 | F112: =H112+NPV(FD,I112:INDEX(I112:DC112,PAL)) -> 0 | G112: =SUMIF($H$5:$DC$5,"<="&PAL,$H112:$DC112) -> 0 | H112: 0 | I112: 0 | J112: 0 | K112: 0 | L112: 0 | M112: 0 | N112: 0 | O112: 0 | P112: 0 | Q112: 0 | R112: 0 | S112: 0 | T112: 0 | U112: 0 | V112: 0 | W112: 0 | X112: 0 | Y112: 0 | Z112: 0 | AA112: 0 | AB112: 0 | AC112: 0 | AD112: 0 | AE112: 0 | AF112: 0 | AG112: 0 | AH112: 0 | AI112: 0 | AJ112: 0 | AK112: 0 | AL112: 0 | AM112: 0 | AN112: 0 | AO112: 0 | AP112: 0 | AQ112: 0 | AR112: 0 | AS112: 0 | AT112: 0 | AU112: 0 | AV112: 0 | AW112: 0 | AX112: 0 | AY112: 0 | AZ112: 0 | BA112: 0 | BB112: 0 | BC112: 0 | BD112: 0 | BE112: 0 | BF112: 0 | BG112: 0 | BH112: 0 | BI112: 0 | BJ112: 0 | BK112: 0 | BL112: 0 | BM112: 0 | BN112: 0 | BO112: 0 | BP112: 0 | BQ112: 0 | BR112: 0 | BS112: 0 | BT112: 0 | BU112: 0 | BV112: 0 | BW112: 0 | BX112: 0 | BY112: 0 | BZ112: 0 | CA112: 0 | CB112: 0 | CC112: 0 | CD112: 0 | CE112: 0 | CF112: 0 | CG112: 0 | CH112: 0 | CI112: 0 | CJ112: 0 | CK112: 0 | CL112: 0 | CM112: 0 | CN112: 0 | CO112: 0 | CP112: 0 | CQ112: 0 | CR112: 0 | CS112: 0 | CT112: 0 | CU112: 0 | CV112: 0 | CW112: 0 | CX112: 0 | CY112: 0 | CZ112: 0 | DA112: 0 | DB112: 0 | DC112: 0 | DE112: =COUNTBLANK(H112:DC112) -> 0 | DF112: 0 | DG112: 21
A113: 86 | B113: =$B$103&"2.2." -> G.2.2. | C113: Veiklos ir palaikymo (atnaujinimo) sąnaudos 2 (privataus ir NVO sektoriaus) | E113: 0.21 | F113: =H113+NPV(FD,I113:INDEX(I113:DC113,PAL)) -> 0 | G113: =SUMIF($H$5:$DC$5,"<="&PAL,$H113:$DC113) -> 0 | H113: 0 | I113: 0 | J113: 0 | K113: 0 | L113: 0 | M113: 0 | N113: 0 | O113: 0 | P113: 0 | Q113: 0 | R113: 0 | S113: 0 | T113: 0 | U113: 0 | V113: 0 | W113: 0 | X113: 0 | Y113: 0 | Z113: 0 | AA113: 0 | AB113: 0 | AC113: 0 | AD113: 0 | AE113: 0 | AF113: 0 | AG113: 0 | AH113: 0 | AI113: 0 | AJ113: 0 | AK113: 0 | AL113: 0 | AM113: 0 | AN113: 0 | AO113: 0 | AP113: 0 | AQ113: 0 | AR113: 0 | AS113: 0 | AT113: 0 | AU113: 0 | AV113: 0 | AW113: 0 | AX113: 0 | AY113: 0 | AZ113: 0 | BA113: 0 | BB113: 0 | BC113: 0 | BD113: 0 | BE113: 0 | BF113: 0 | BG113: 0 | BH113: 0 | BI113: 0 | BJ113: 0 | BK113: 0 | BL113: 0 | BM113: 0 | BN113: 0 | BO113: 0 | BP113: 0 | BQ113: 0 | BR113: 0 | BS113: 0 | BT113: 0 | BU113: 0 | BV113: 0 | BW113: 0 | BX113: 0 | BY113: 0 | BZ113: 0 | CA113: 0 | CB113: 0 | CC113: 0 | CD113: 0 | CE113: 0 | CF113: 0 | CG113: 0 | CH113: 0 | CI113: 0 | CJ113: 0 | CK113: 0 | CL113: 0 | CM113: 0 | CN113: 0 | CO113: 0 | CP113: 0 | CQ113: 0 | CR113: 0 | CS113: 0 | CT113: 0 | CU113: 0 | CV113: 0 | CW113: 0 | CX113: 0 | CY113: 0 | CZ113: 0 | DA113: 0 | DB113: 0 | DC113: 0 | DE113: 0 | DF113: 0 | DG113: 21
A114: 87 | B114: =$B$103&"2.3." -> G.2.3. | C114: Veiklos ir palaikymo (atnaujinimo) sąnaudos 3 (privataus ir NVO sektoriaus) | E114: 0.21 | F114: =H114+NPV(FD,I114:INDEX(I114:DC114,PAL)) -> 0 | G114: =SUMIF($H$5:$DC$5,"<="&PAL,$H114:$DC114) -> 0 | H114: 0 | I114: 0 | J114: 0 | K114: 0 | L114: 0 | M114: 0 | N114: 0 | O114: 0 | P114: 0 | Q114: 0 | R114: 0 | S114: 0 | T114: 0 | U114: 0 | V114: 0 | W114: 0 | X114: 0 | Y114: 0 | Z114: 0 | AA114: 0 | AB114: 0 | AC114: 0 | AD114: 0 | AE114: 0 | AF114: 0 | AG114: 0 | AH114: 0 | AI114: 0 | AJ114: 0 | AK114: 0 | AL114: 0 | AM114: 0 | AN114: 0 | AO114: 0 | AP114: 0 | AQ114: 0 | AR114: 0 | AS114: 0 | AT114: 0 | AU114: 0 | AV114: 0 | AW114: 0 | AX114: 0 | AY114: 0 | AZ114: 0 | BA114: 0 | BB114: 0 | BC114: 0 | BD114: 0 | BE114: 0 | BF114: 0 | BG114: 0 | BH114: 0 | BI114: 0 | BJ114: 0 | BK114: 0 | BL114: 0 | BM114: 0 | BN114: 0 | BO114: 0 | BP114: 0 | BQ114: 0 | BR114: 0 | BS114: 0 | BT114: 0 | BU114: 0 | BV114: 0 | BW114: 0 | BX114: 0 | BY114: 0 | BZ114: 0 | CA114: 0 | CB114: 0 | CC114: 0 | CD114: 0 | CE114: 0 | CF114: 0 | CG114: 0 | CH114: 0 | CI114: 0 | CJ114: 0 | CK114: 0 | CL114: 0 | CM114: 0 | CN114: 0 | CO114: 0 | CP114: 0 | CQ114: 0 | CR114: 0 | CS114: 0 | CT114: 0 | CU114: 0 | CV114: 0 | CW114: 0 | CX114: 0 | CY114: 0 | CZ114: 0 | DA114: 0 | DB114: 0 | DC114: 0 | DE114: 0 | DF114: 0 | DG114: 21
A115: 88 | B115: H. | C115: VEIKLOS PAJAMOS, IŠ VISO (išskyrus mokestines pajamas) | F115: =F116+F123 -> 0 | G115: =G116+G123 -> 0 | H115: =H116+H123 -> 0 | I115: =I116+I123 -> 0 | J115: 0 | K115: 0 | L115: 0 | M115: 0 | N115: 0 | O115: 0 | P115: 0 | Q115: 0 | R115: 0 | S115: 0 | T115: 0 | U115: 0 | V115: 0 | W115: 0 | X115: 0 | Y115: 0 | Z115: 0 | AA115: 0 | AB115: 0 | AC115: 0 | AD115: 0 | AE115: 0 | AF115: 0 | AG115: 0 | AH115: 0 | AI115: 0 | AJ115: 0 | AK115: 0 | AL115: 0 | AM115: 0 | AN115: 0 | AO115: 0 | AP115: 0 | AQ115: 0 | AR115: 0 | AS115: 0 | AT115: 0 | AU115: 0 | AV115: 0 | AW115: 0 | AX115: 0 | AY115: 0 | AZ115: 0 | BA115: 0 | BB115: 0 | BC115: 0 | BD115: 0 | BE115: 0 | BF115: 0 | BG115: 0 | BH115: 0 | BI115: 0 | BJ115: 0 | BK115: 0 | BL115: 0 | BM115: 0 | BN115: 0 | BO115: 0 | BP115: 0 | BQ115: 0 | BR115: 0 | BS115: 0 | BT115: 0 | BU115: =BU116+BU123 -> 0 | BV115: 0 | BW115: 0 | BX115: 0 | BY115: 0 | BZ115: 0 | CA115: 0 | CB115: 0 | CC115: 0 | CD115: 0 | CE115: 0 | CF115: 0 | CG115: 0 | CH115: 0 | CI115: 0 | CJ115: 0 | CK115: 0 | CL115: 0 | CM115: 0 | CN115: 0 | CO115: 0 | CP115: 0 | CQ115: 0 | CR115: 0 | CS115: 0 | CT115: 0 | CU115: 0 | CV115: 0 | CW115: 0 | CX115: 0 | CY115: 0 | CZ115: 0 | DA115: 0 | DB115: 0 | DC115: 0 | DF115: 0 | DH115: Viešasis=0/kt.=1
B116: H.1. | C116: Veiklos pajamos (viešojo sektoriaus), iš viso | F116: =SUM(F117:F122) -> 0 | G116: =SUM(G117:G122) -> 0 | H116: =SUM(H117:H122) -> 0 | I116: =SUM(I117:I122) -> 0 | J116: 0 | K116: 0 | L116: 0 | M116: 0 | N116: 0 | O116: 0 | P116: 0 | Q116: 0 | R116: 0 | S116: 0 | T116: 0 | U116: 0 | V116: 0 | W116: 0 | X116: 0 | Y116: 0 | Z116: 0 | AA116: 0 | AB116: 0 | AC116: 0 | AD116: 0 | AE116: 0 | AF116: 0 | AG116: 0 | AH116: 0 | AI116: 0 | AJ116: 0 | AK116: 0 | AL116: 0 | AM116: 0 | AN116: 0 | AO116: 0 | AP116: 0 | AQ116: 0 | AR116: 0 | AS116: 0 | AT116: 0 | AU116: 0 | AV116: 0 | AW116: 0 | AX116: 0 | AY116: 0 | AZ116: 0 | BA116: 0 | BB116: 0 | BC116: 0 | BD116: 0 | BE116: 0 | BF116: 0 | BG116: 0 | BH116: 0 | BI116: 0 | BJ116: 0 | BK116: 0 | BL116: 0 | BM116: 0 | BN116: 0 | BO116: 0 | BP116: 0 | BQ116: 0 | BR116: 0 | BS116: 0 | BT116: 0 | BU116: =SUM(BU117:BU122) -> 0 | BV116: 0 | BW116: 0 | BX116: 0 | BY116: 0 | BZ116: 0 | CA116: 0 | CB116: 0 | CC116: 0 | CD116: 0 | CE116: 0 | CF116: 0 | CG116: 0 | CH116: 0 | CI116: 0 | CJ116: 0 | CK116: 0 | CL116: 0 | CM116: 0 | CN116: 0 | CO116: 0 | CP116: 0 | CQ116: 0 | CR116: 0 | CS116: 0 | CT116: 0 | CU116: 0 | CV116: 0 | CW116: 0 | CX116: 0 | CY116: 0 | CZ116: 0 | DA116: 0 | DB116: 0 | DC116: 0 | DF116: 0
A117: 89 | B117: H.1.1. | C117: Veiklos pajamos 1 (viešojo sektoriaus) | E117: Be PVM | F117: =H117+NPV(FD,I117:INDEX(I117:DC117,PAL)) -> 0 | G117: =SUMIF($H$5:$DC$5,"<="&PAL,$H117:$DC117) -> 0 | H117: 0 | I117: 0 | J117: 0 | K117: 0 | L117: 0 | M117: 0 | N117: 0 | O117: 0 | P117: 0 | Q117: 0 | R117: 0 | S117: 0 | T117: 0 | U117: 0 | V117: 0 | W117: 0 | X117: 0 | Y117: 0 | Z117: 0 | AA117: 0 | AB117: 0 | AC117: 0 | AD117: 0 | AE117: 0 | AF117: 0 | AG117: 0 | AH117: 0 | AI117: 0 | AJ117: 0 | AK117: 0 | AL117: 0 | AM117: 0 | AN117: 0 | AO117: 0 | AP117: 0 | AQ117: 0 | AR117: 0 | AS117: 0 | AT117: 0 | AU117: 0 | AV117: 0 | AW117: 0 | AX117: 0 | AY117: 0 | AZ117: 0 | BA117: 0 | BB117: 0 | BC117: 0 | BD117: 0 | BE117: 0 | BF117: 0 | BG117: 0 | BH117: 0 | BI117: 0 | BJ117: 0 | BK117: 0 | BL117: 0 | BM117: 0 | BN117: 0 | BO117: 0 | BP117: 0 | BQ117: 0 | BR117: 0 | BS117: 0 | BT117: 0 | BU117: 0 | BV117: 0 | BW117: 0 | BX117: 0 | BY117: 0 | BZ117: 0 | CA117: 0 | CB117: 0 | CC117: 0 | CD117: 0 | CE117: 0 | CF117: 0 | CG117: 0 | CH117: 0 | CI117: 0 | CJ117: 0 | CK117: 0 | CL117: 0 | CM117: 0 | CN117: 0 | CO117: 0 | CP117: 0 | CQ117: 0 | CR117: 0 | CS117: 0 | CT117: 0 | CU117: 0 | CV117: 0 | CW117: 0 | CX117: 0 | CY117: 0 | CZ117: 0 | DA117: 0 | DB117: 0 | DC117: 0 | DE117: =COUNTBLANK(H117:DC117) -> 0 | DF117: 0 | DG117: 0
A118: 90 | B118: =$B$115&"1.2." -> H.1.2. | C118: Veiklos pajamos 2 (viešojo sektoriaus) | E118: Be PVM | F118: =H118+NPV(FD,I118:INDEX(I118:DC118,PAL)) -> 0 | G118: =SUMIF($H$5:$DC$5,"<="&PAL,$H118:$DC118) -> 0 | H118: 0 | I118: 0 | J118: 0 | K118: 0 | L118: 0 | M118: 0 | N118: 0 | O118: 0 | P118: 0 | Q118: 0 | R118: 0 | S118: 0 | T118: 0 | U118: 0 | V118: 0 | W118: 0 | X118: 0 | Y118: 0 | Z118: 0 | AA118: 0 | AB118: 0 | AC118: 0 | AD118: 0 | AE118: 0 | AF118: 0 | AG118: 0 | AH118: 0 | AI118: 0 | AJ118: 0 | AK118: 0 | AL118: 0 | AM118: 0 | AN118: 0 | AO118: 0 | AP118: 0 | AQ118: 0 | AR118: 0 | AS118: 0 | AT118: 0 | AU118: 0 | AV118: 0 | AW118: 0 | AX118: 0 | AY118: 0 | AZ118: 0 | BA118: 0 | BB118: 0 | BC118: 0 | BD118: 0 | BE118: 0 | BF118: 0 | BG118: 0 | BH118: 0 | BI118: 0 | BJ118: 0 | BK118: 0 | BL118: 0 | BM118: 0 | BN118: 0 | BO118: 0 | BP118: 0 | BQ118: 0 | BR118: 0 | BS118: 0 | BT118: 0 | BU118: 0 | BV118: 0 | BW118: 0 | BX118: 0 | BY118: 0 | BZ118: 0 | CA118: 0 | CB118: 0 | CC118: 0 | CD118: 0 | CE118: 0 | CF118: 0 | CG118: 0 | CH118: 0 | CI118: 0 | CJ118: 0 | CK118: 0 | CL118: 0 | CM118: 0 | CN118: 0 | CO118: 0 | CP118: 0 | CQ118: 0 | CR118: 0 | CS118: 0 | CT118: 0 | CU118: 0 | CV118: 0 | CW118: 0 | CX118: 0 | CY118: 0 | CZ118: 0 | DA118: 0 | DB118: 0 | DC118: 0 | DE118: =COUNTBLANK(H118:DC118) -> 0 | DF118: 0 | DG118: 0
A119: 91 | B119: =$B$115&"1.3." -> H.1.3. | C119: Veiklos pajamos 3 (viešojo sektoriaus) | E119: Be PVM | F119: =H119+NPV(FD,I119:INDEX(I119:DC119,PAL)) -> 0 | G119: =SUMIF($H$5:$DC$5,"<="&PAL,$H119:$DC119) -> 0 | H119: 0 | I119: 0 | J119: 0 | K119: 0 | L119: 0 | M119: 0 | N119: 0 | O119: 0 | P119: 0 | Q119: 0 | R119: 0 | S119: 0 | T119: 0 | U119: 0 | V119: 0 | W119: 0 | X119: 0 | Y119: 0 | Z119: 0 | AA119: 0 | AB119: 0 | AC119: 0 | AD119: 0 | AE119: 0 | AF119: 0 | AG119: 0 | AH119: 0 | AI119: 0 | AJ119: 0 | AK119: 0 | AL119: 0 | AM119: 0 | AN119: 0 | AO119: 0 | AP119: 0 | AQ119: 0 | AR119: 0 | AS119: 0 | AT119: 0 | AU119: 0 | AV119: 0 | AW119: 0 | AX119: 0 | AY119: 0 | AZ119: 0 | BA119: 0 | BB119: 0 | BC119: 0 | BD119: 0 | BE119: 0 | BF119: 0 | BG119: 0 | BH119: 0 | BI119: 0 | BJ119: 0 | BK119: 0 | BL119: 0 | BM119: 0 | BN119: 0 | BO119: 0 | BP119: 0 | BQ119: 0 | BR119: 0 | BS119: 0 | BT119: 0 | BU119: 0 | BV119: 0 | BW119: 0 | BX119: 0 | BY119: 0 | BZ119: 0 | CA119: 0 | CB119: 0 | CC119: 0 | CD119: 0 | CE119: 0 | CF119: 0 | CG119: 0 | CH119: 0 | CI119: 0 | CJ119: 0 | CK119: 0 | CL119: 0 | CM119: 0 | CN119: 0 | CO119: 0 | CP119: 0 | CQ119: 0 | CR119: 0 | CS119: 0 | CT119: 0 | CU119: 0 | CV119: 0 | CW119: 0 | CX119: 0 | CY119: 0 | CZ119: 0 | DA119: 0 | DB119: 0 | DC119: 0 | DE119: =COUNTBLANK(H119:DC119) -> 0 | DF119: 0 | DG119: 0
A120: 92 | B120: =$B$115&"1.4." -> H.1.4. | C120: Veiklos pajamos 4 (viešojo sektoriaus) | E120: Be PVM | F120: =H120+NPV(FD,I120:INDEX(I120:DC120,PAL)) -> 0 | G120: =SUMIF($H$5:$DC$5,"<="&PAL,$H120:$DC120) -> 0 | H120: 0 | I120: 0 | J120: 0 | K120: 0 | L120: 0 | M120: 0 | N120: 0 | O120: 0 | P120: 0 | Q120: 0 | R120: 0 | S120: 0 | T120: 0 | U120: 0 | V120: 0 | W120: 0 | X120: 0 | Y120: 0 | Z120: 0 | AA120: 0 | AB120: 0 | AC120: 0 | AD120: 0 | AE120: 0 | AF120: 0 | AG120: 0 | AH120: 0 | AI120: 0 | AJ120: 0 | AK120: 0 | AL120: 0 | AM120: 0 | AN120: 0 | AO120: 0 | AP120: 0 | AQ120: 0 | AR120: 0 | AS120: 0 | AT120: 0 | AU120: 0 | AV120: 0 | AW120: 0 | AX120: 0 | AY120: 0 | AZ120: 0 | BA120: 0 | BB120: 0 | BC120: 0 | BD120: 0 | BE120: 0 | BF120: 0 | BG120: 0 | BH120: 0 | BI120: 0 | BJ120: 0 | BK120: 0 | BL120: 0 | BM120: 0 | BN120: 0 | BO120: 0 | BP120: 0 | BQ120: 0 | BR120: 0 | BS120: 0 | BT120: 0 | BU120: 0 | BV120: 0 | BW120: 0 | BX120: 0 | BY120: 0 | BZ120: 0 | CA120: 0 | CB120: 0 | CC120: 0 | CD120: 0 | CE120: 0 | CF120: 0 | CG120: 0 | CH120: 0 | CI120: 0 | CJ120: 0 | CK120: 0 | CL120: 0 | CM120: 0 | CN120: 0 | CO120: 0 | CP120: 0 | CQ120: 0 | CR120: 0 | CS120: 0 | CT120: 0 | CU120: 0 | CV120: 0 | CW120: 0 | CX120: 0 | CY120: 0 | CZ120: 0 | DA120: 0 | DB120: 0 | DC120: 0 | DE120: =COUNTBLANK(H120:DC120) -> 0 | DF120: 0 | DG120: 0
A121: 93 | B121: =$B$115&"1.5." -> H.1.5. | C121: Veiklos pajamos 5 (viešojo sektoriaus) | E121: Be PVM | F121: =H121+NPV(FD,I121:INDEX(I121:DC121,PAL)) -> 0 | G121: =SUMIF($H$5:$DC$5,"<="&PAL,$H121:$DC121) -> 0 | H121: 0 | I121: 0 | J121: 0 | K121: 0 | L121: 0 | M121: 0 | N121: 0 | O121: 0 | P121: 0 | Q121: 0 | R121: 0 | S121: 0 | T121: 0 | U121: 0 | V121: 0 | W121: 0 | X121: 0 | Y121: 0 | Z121: 0 | AA121: 0 | AB121: 0 | AC121: 0 | AD121: 0 | AE121: 0 | AF121: 0 | AG121: 0 | AH121: 0 | AI121: 0 | AJ121: 0 | AK121: 0 | AL121: 0 | AM121: 0 | AN121: 0 | AO121: 0 | AP121: 0 | AQ121: 0 | AR121: 0 | AS121: 0 | AT121: 0 | AU121: 0 | AV121: 0 | AW121: 0 | AX121: 0 | AY121: 0 | AZ121: 0 | BA121: 0 | BB121: 0 | BC121: 0 | BD121: 0 | BE121: 0 | BF121: 0 | BG121: 0 | BH121: 0 | BI121: 0 | BJ121: 0 | BK121: 0 | BL121: 0 | BM121: 0 | BN121: 0 | BO121: 0 | BP121: 0 | BQ121: 0 | BR121: 0 | BS121: 0 | BT121: 0 | BU121: 0 | BV121: 0 | BW121: 0 | BX121: 0 | BY121: 0 | BZ121: 0 | CA121: 0 | CB121: 0 | CC121: 0 | CD121: 0 | CE121: 0 | CF121: 0 | CG121: 0 | CH121: 0 | CI121: 0 | CJ121: 0 | CK121: 0 | CL121: 0 | CM121: 0 | CN121: 0 | CO121: 0 | CP121: 0 | CQ121: 0 | CR121: 0 | CS121: 0 | CT121: 0 | CU121: 0 | CV121: 0 | CW121: 0 | CX121: 0 | CY121: 0 | CZ121: 0 | DA121: 0 | DB121: 0 | DC121: 0 | DE121: =COUNTBLANK(H121:DC121) -> 0 | DF121: 0 | DG121: =IF(ISNUMBER(E121),E121*100,0) -> 0
A122: 94 | B122: =$B$115&"1.6." -> H.1.6. | C122: Veiklos pajamos 6 (viešojo sektoriaus) | E122: Be PVM | F122: =H122+NPV(FD,I122:INDEX(I122:DC122,PAL)) -> 0 | G122: =SUMIF($H$5:$DC$5,"<="&PAL,$H122:$DC122) -> 0 | H122: 0 | I122: 0 | J122: 0 | K122: 0 | L122: 0 | M122: 0 | N122: 0 | O122: 0 | P122: 0 | Q122: 0 | R122: 0 | S122: 0 | T122: 0 | U122: 0 | V122: 0 | W122: 0 | X122: 0 | Y122: 0 | Z122: 0 | AA122: 0 | AB122: 0 | AC122: 0 | AD122: 0 | AE122: 0 | AF122: 0 | AG122: 0 | AH122: 0 | AI122: 0 | AJ122: 0 | AK122: 0 | AL122: 0 | AM122: 0 | AN122: 0 | AO122: 0 | AP122: 0 | AQ122: 0 | AR122: 0 | AS122: 0 | AT122: 0 | AU122: 0 | AV122: 0 | AW122: 0 | AX122: 0 | AY122: 0 | AZ122: 0 | BA122: 0 | BB122: 0 | BC122: 0 | BD122: 0 | BE122: 0 | BF122: 0 | BG122: 0 | BH122: 0 | BI122: 0 | BJ122: 0 | BK122: 0 | BL122: 0 | BM122: 0 | BN122: 0 | BO122: 0 | BP122: 0 | BQ122: 0 | BR122: 0 | BS122: 0 | BT122: 0 | BU122: 0 | BV122: 0 | BW122: 0 | BX122: 0 | BY122: 0 | BZ122: 0 | CA122: 0 | CB122: 0 | CC122: 0 | CD122: 0 | CE122: 0 | CF122: 0 | CG122: 0 | CH122: 0 | CI122: 0 | CJ122: 0 | CK122: 0 | CL122: 0 | CM122: 0 | CN122: 0 | CO122: 0 | CP122: 0 | CQ122: 0 | CR122: 0 | CS122: 0 | CT122: 0 | CU122: 0 | CV122: 0 | CW122: 0 | CX122: 0 | CY122: 0 | CZ122: 0 | DA122: 0 | DB122: 0 | DC122: 0 | DE122: 0 | DF122: 0 | DG122: 0 | DH122: 1 | DI122: 0.21
A123: 95 | B123: =$B$115&"2." -> H.2. | C123: Veiklos pajamos (privataus ir NVO sektoriaus), iš viso | F123: =SUM(F124:F126) -> 0 | G123: =SUM(G124:G126) -> 0 | H123: =SUM(H124:H126) -> 0 | I123: =SUM(I124:I126) -> 0 | J123: 0 | K123: 0 | L123: 0 | M123: 0 | N123: 0 | O123: 0 | P123: 0 | Q123: 0 | R123: 0 | S123: 0 | T123: 0 | U123: 0 | V123: 0 | W123: 0 | X123: 0 | Y123: 0 | Z123: 0 | AA123: 0 | AB123: 0 | AC123: 0 | AD123: 0 | AE123: 0 | AF123: 0 | AG123: 0 | AH123: 0 | AI123: 0 | AJ123: 0 | AK123: 0 | AL123: 0 | AM123: 0 | AN123: 0 | AO123: 0 | AP123: 0 | AQ123: 0 | AR123: 0 | AS123: 0 | AT123: 0 | AU123: 0 | AV123: 0 | AW123: 0 | AX123: 0 | AY123: 0 | AZ123: 0 | BA123: 0 | BB123: 0 | BC123: 0 | BD123: 0 | BE123: 0 | BF123: 0 | BG123: 0 | BH123: 0 | BI123: 0 | BJ123: 0 | BK123: 0 | BL123: 0 | BM123: 0 | BN123: 0 | BO123: 0 | BP123: 0 | BQ123: 0 | BR123: 0 | BS123: 0 | BT123: 0 | BU123: =SUM(BU124:BU126) -> 0 | BV123: 0 | BW123: 0 | BX123: 0 | BY123: 0 | BZ123: 0 | CA123: 0 | CB123: 0 | CC123: 0 | CD123: 0 | CE123: 0 | CF123: 0 | CG123: 0 | CH123: 0 | CI123: 0 | CJ123: 0 | CK123: 0 | CL123: 0 | CM123: 0 | CN123: 0 | CO123: 0 | CP123: 0 | CQ123: 0 | CR123: 0 | CS123: 0 | CT123: 0 | CU123: 0 | CV123: 0 | CW123: 0 | CX123: 0 | CY123: 0 | CZ123: 0 | DA123: 0 | DB123: 0 | DC123: =SUM(DC124:DC126) -> 0 | DF123: 0 | DH123: 1 | DI123: 0.09
A124: 96 | B124: =$B$115&"2.1." -> H.2.1. | C124: Veiklos pajamos 1 (privataus ir NVO sektoriaus) | D124: =IF(E124="Be PVM",DI124,E124) -> 0.05 | E124: 0.05 | F124: =H124+NPV(FD,I124:INDEX(I124:DC124,PAL)) -> 0 | G124: =SUMIF($H$5:$DC$5,"<="&PAL,$H124:$DC124) -> 0 | H124: 0 | I124: 0 | J124: 0 | K124: 0 | L124: 0 | M124: 0 | N124: 0 | O124: 0 | P124: 0 | Q124: 0 | R124: 0 | S124: 0 | T124: 0 | U124: 0 | V124: 0 | W124: 0 | X124: 0 | Y124: 0 | Z124: 0 | AA124: 0 | AB124: 0 | AC124: 0 | AD124: 0 | AE124: 0 | AF124: 0 | AG124: 0 | AH124: 0 | AI124: 0 | AJ124: 0 | AK124: 0 | AL124: 0 | AM124: 0 | AN124: 0 | AO124: 0 | AP124: 0 | AQ124: 0 | AR124: 0 | AS124: 0 | AT124: 0 | AU124: 0 | AV124: 0 | AW124: 0 | AX124: 0 | AY124: 0 | AZ124: 0 | BA124: 0 | BB124: 0 | BC124: 0 | BD124: 0 | BE124: 0 | BF124: 0 | BG124: 0 | BH124: 0 | BI124: 0 | BJ124: 0 | BK124: 0 | BL124: 0 | BM124: 0 | BN124: 0 | BO124: 0 | BP124: 0 | BQ124: 0 | BR124: 0 | BS124: 0 | BT124: 0 | BU124: 0 | BV124: 0 | BW124: 0 | BX124: 0 | BY124: 0 | BZ124: 0 | CA124: 0 | CB124: 0 | CC124: 0 | CD124: 0 | CE124: 0 | CF124: 0 | CG124: 0 | CH124: 0 | CI124: 0 | CJ124: 0 | CK124: 0 | CL124: 0 | CM124: 0 | CN124: 0 | CO124: 0 | CP124: 0 | CQ124: 0 | CR124: 0 | CS124: 0 | CT124: 0 | CU124: 0 | CV124: 0 | CW124: 0 | CX124: 0 | CY124: 0 | CZ124: 0 | DA124: 0 | DB124: 0 | DC124: 0 | DE124: 0 | DF124: 0 | DG124: 5 | DH124: 1
A125: 97 | B125: =$B$115&"2.2." -> H.2.2. | C125: Veiklos pajamos 2 (privataus ir NVO sektoriaus) | D125: 0.21 | E125: 0.21 | F125: =H125+NPV(FD,I125:INDEX(I125:DC125,PAL)) -> 0 | G125: =SUMIF($H$5:$DC$5,"<="&PAL,$H125:$DC125) -> 0 | H125: 0 | I125: 0 | J125: 0 | K125: 0 | L125: 0 | M125: 0 | N125: 0 | O125: 0 | P125: 0 | Q125: 0 | R125: 0 | S125: 0 | T125: 0 | U125: 0 | V125: 0 | W125: 0 | X125: 0 | Y125: 0 | Z125: 0 | AA125: 0 | AB125: 0 | AC125: 0 | AD125: 0 | AE125: 0 | AF125: 0 | AG125: 0 | AH125: 0 | AI125: 0 | AJ125: 0 | AK125: 0 | AL125: 0 | AM125: 0 | AN125: 0 | AO125: 0 | AP125: 0 | AQ125: 0 | AR125: 0 | AS125: 0 | AT125: 0 | AU125: 0 | AV125: 0 | AW125: 0 | AX125: 0 | AY125: 0 | AZ125: 0 | BA125: 0 | BB125: 0 | BC125: 0 | BD125: 0 | BE125: 0 | BF125: 0 | BG125: 0 | BH125: 0 | BI125: 0 | BJ125: 0 | BK125: 0 | BL125: 0 | BM125: 0 | BN125: 0 | BO125: 0 | BP125: 0 | BQ125: 0 | BR125: 0 | BS125: 0 | BT125: 0 | BU125: 0 | BV125: 0 | BW125: 0 | BX125: 0 | BY125: 0 | BZ125: 0 | CA125: 0 | CB125: 0 | CC125: 0 | CD125: 0 | CE125: 0 | CF125: 0 | CG125: 0 | CH125: 0 | CI125: 0 | CJ125: 0 | CK125: 0 | CL125: 0 | CM125: 0 | CN125: 0 | CO125: 0 | CP125: 0 | CQ125: 0 | CR125: 0 | CS125: 0 | CT125: 0 | CU125: 0 | CV125: 0 | CW125: 0 | CX125: 0 | CY125: 0 | CZ125: 0 | DA125: 0 | DB125: 0 | DC125: 0 | DE125: 0 | DF125: 0 | DG125: 21 | DH125: 0
A126: 98 | B126: =$B$115&"2.3." -> H.2.3. | C126: Veiklos pajamos 3 (privataus ir NVO sektoriaus) | D126: 0 | F126: =H126+NPV(FD,I126:INDEX(I126:DC126,PAL)) -> 0 | G126: =SUMIF($H$5:$DC$5,"<="&PAL,$H126:$DC126) -> 0 | H126: 0 | I126: 0 | J126: 0 | K126: 0 | L126: 0 | M126: 0 | N126: 0 | O126: 0 | P126: 0 | Q126: 0 | R126: 0 | S126: 0 | T126: 0 | U126: 0 | V126: 0 | W126: 0 | X126: 0 | Y126: 0 | Z126: 0 | AA126: 0 | AB126: 0 | AC126: 0 | AD126: 0 | AE126: 0 | AF126: 0 | AG126: 0 | AH126: 0 | AI126: 0 | AJ126: 0 | AK126: 0 | AL126: 0 | AM126: 0 | AN126: 0 | AO126: 0 | AP126: 0 | AQ126: 0 | AR126: 0 | AS126: 0 | AT126: 0 | AU126: 0 | AV126: 0 | AW126: 0 | AX126: 0 | AY126: 0 | AZ126: 0 | BA126: 0 | BB126: 0 | BC126: 0 | BD126: 0 | BE126: 0 | BF126: 0 | BG126: 0 | BH126: 0 | BI126: 0 | BJ126: 0 | BK126: 0 | BL126: 0 | BM126: 0 | BN126: 0 | BO126: 0 | BP126: 0 | BQ126: 0 | BR126: 0 | BS126: 0 | BT126: 0 | BU126: 0 | BV126: 0 | BW126: 0 | BX126: 0 | BY126: 0 | BZ126: 0 | CA126: 0 | CB126: 0 | CC126: 0 | CD126: 0 | CE126: 0 | CF126: 0 | CG126: 0 | CH126: 0 | CI126: 0 | CJ126: 0 | CK126: 0 | CL126: 0 | CM126: 0 | CN126: 0 | CO126: 0 | CP126: 0 | CQ126: 0 | CR126: 0 | CS126: 0 | CT126: 0 | CU126: 0 | CV126: 0 | CW126: 0 | CX126: 0 | CY126: 0 | CZ126: 0 | DA126: 0 | DB126: 0 | DC126: 0 | DE126: 0 | DF126: 0 | DG126: 0 | DH126: 1
A127: 99 | B127: I. | C127: MOKESTINĖS PAJAMOS | F127: =H127+NPV(FD,I127:INDEX(I127:DC127,PAL)) -> 0 | G127: =SUMIF($H$5:$DC$5,"<="&PAL,$H127:$DC127) -> 0 | H127: 0 | I127: 0 | J127: 0 | K127: 0 | L127: 0 | M127: 0 | N127: 0 | O127: 0 | P127: 0 | Q127: 0 | R127: 0 | S127: 0 | T127: 0 | U127: 0 | V127: 0 | W127: 0 | X127: 0 | Y127: 0 | Z127: 0 | AA127: 0 | AB127: 0 | AC127: 0 | AD127: 0 | AE127: 0 | AF127: 0 | AG127: 0 | AH127: 0 | AI127: 0 | AJ127: 0 | AK127: 0 | AL127: 0 | AM127: 0 | AN127: 0 | AO127: 0 | AP127: 0 | AQ127: 0 | AR127: 0 | AS127: 0 | AT127: 0 | AU127: 0 | AV127: 0 | AW127: 0 | AX127: 0 | AY127: 0 | AZ127: 0 | BA127: 0 | BB127: 0 | BC127: 0 | BD127: 0 | BE127: 0 | BF127: 0 | BG127: 0 | BH127: 0 | BI127: 0 | BJ127: 0 | BK127: 0 | BL127: 0 | BM127: 0 | BN127: 0 | BO127: 0 | BP127: 0 | BQ127: 0 | BR127: 0 | BS127: 0 | BT127: 0 | BU127: 0 | BV127: 0 | BW127: 0 | BX127: 0 | BY127: 0 | BZ127: 0 | CA127: 0 | CB127: 0 | CC127: 0 | CD127: 0 | CE127: 0 | CF127: 0 | CG127: 0 | CH127: 0 | CI127: 0 | CJ127: 0 | CK127: 0 | CL127: 0 | CM127: 0 | CN127: 0 | CO127: 0 | CP127: 0 | CQ127: 0 | CR127: 0 | CS127: 0 | CT127: 0 | CU127: 0 | CV127: 0 | CW127: 0 | CX127: 0 | CY127: 0 | CZ127: 0 | DA127: 0 | DB127: 0 | DC127: 0 | DE127: =COUNTBLANK(H127:DC127) -> 0 | DF127: 0
A128: 100 | B128: J. | C128: PVM (kuris įskaičiuotas į investicijas, veiklos sąnaudas ir pajamas) BALANSAS | F128: =F129+F130-F131 -> 2901063.446 | G128: =G129+G130-G131 -> 3471074.38 | H128: =H129+H130-H131 -> 0 | I128: 0 | J128: 483465.9015 | K128: 533047.5124 | L128: 613640.2416 | M128: 613640.2416 | N128: 613640.2416 | O128: 613640.2416 | P128: 0 | Q128: 0 | R128: 0 | S128: 0 | T128: 0 | U128: 0 | V128: 0 | W128: 1735.53719 | X128: 1735.53719 | Y128: 1735.53719 | Z128: 1735.53719 | AA128: 1735.53719 | AB128: 1735.53719 | AC128: 1735.53719 | AD128: 1735.53719 | AE128: 1735.53719 | AF128: 1735.53719 | AG128: 1735.53719 | AH128: 1735.53719 | AI128: 1735.53719 | AJ128: 1735.53719 | AK128: 1735.53719 | AL128: 1735.53719 | AM128: 1735.53719 | AN128: 1735.53719 | AO128: 1735.53719 | AP128: 1735.53719 | AQ128: 1735.53719 | AR128: 1735.53719 | AS128: 1735.53719 | AT128: 1735.53719 | AU128: 1735.53719 | AV128: 1735.53719 | AW128: 1735.53719 | AX128: 1735.53719 | AY128: 1735.53719 | AZ128: 1735.53719 | BA128: 1735.53719 | BB128: 1735.53719 | BC128: 1735.53719 | BD128: 1735.53719 | BE128: 1735.53719 | BF128: 1735.53719 | BG128: 1735.53719 | BH128: 1735.53719 | BI128: 1735.53719 | BJ128: 1735.53719 | BK128: 1735.53719 | BL128: 1735.53719 | BM128: 1735.53719 | BN128: 1735.53719 | BO128: 1735.53719 | BP128: 1735.53719 | BQ128: 1735.53719 | BR128: 1735.53719 | BS128: =BS129+BS130-BS131 -> 1735.53719 | BT128: 1735.53719 | BU128: 1735.53719 | BV128: 1735.53719 | BW128: 1735.53719 | BX128: 1735.53719 | BY128: 1735.53719 | BZ128: 1735.53719 | CA128: 1735.53719 | CB128: 1735.53719 | CC128: 1735.53719 | CD128: 1735.53719 | CE128: 1735.53719 | CF128: 1735.53719 | CG128: 1735.53719 | CH128: 1735.53719 | CI128: 1735.53719 | CJ128: 1735.53719 | CK128: 1735.53719 | CL128: 1735.53719 | CM128: 1735.53719 | CN128: 1735.53719 | CO128: 1735.53719 | CP128: 1735.53719 | CQ128: 1735.53719 | CR128: 1735.53719 | CS128: 1735.53719 | CT128: 1735.53719 | CU128: 1735.53719 | CV128: 1735.53719 | CW128: 1735.53719 | CX128: 1735.53719 | CY128: 1735.53719 | CZ128: 1735.53719 | DA128: 1735.53719 | DB128: 1735.53719 | DC128: 1735.53719 | DF128: 91
A129: 101 | B129: J.1. | C129: Bendra pirkimo PVM suma (investicijoms ir reinvesticijoms) | F129: =H129+NPV(FD,I129:INDEX(I129:DC129,PAL)) -> 2901063.446 | G129: =SUMIF($H$5:$DC$5,"<="&PAL,$H129:$DC129) -> 3471074.38 | H129: =SUMPRODUCT($DG12:$DG22,H12:H22,1/($DG12:$DG22+100))+SUMPRODUCT($DG25:$DG35,H25:H35,1/($DG25:$DG35+100))+SUMPRODUCT($DG38:$DG48,H38:H48,1/($DG38:$DG48+100))+SUMPRODUCT($DG52:$DG62,H52:H62,1/($DG52:$DG62+100))+SUMPRODUCT($DG65:$DG75,H65:H75,1/($DG65:$DG75+100))+SUMPRODUCT($DG78:$DG88,H78:H88,1/($DG78:$DG88+100))+SUMPRODUCT($DG91:$DG101,H91:H101,1/($DG91:$DG101+100)) -> 0 | I129: =SUMPRODUCT($DG12:$DG22,I12:I22,1/($DG12:$DG22+100))+SUMPRODUCT($DG25:$DG35,I25:I35,1/($DG25:$DG35+100))+SUMPRODUCT($DG38:$DG48,I38:I48,1/($DG38:$DG48+100))+SUMPRODUCT($DG52:$DG62,I52:I62,1/($DG52:$DG62+100))+SUMPRODUCT($DG65:$DG75,I65:I75,1/($DG65:$DG75+100))+SUMPRODUCT($DG78:$DG88,I78:I88,1/($DG78:$DG88+100))+SUMPRODUCT($DG91:$DG101,I91:I101,1/($DG91:$DG101+100)) -> 0 | J129: =SUMPRODUCT($DG12:$DG22,J12:J22,1/($DG12:$DG22+100))+SUMPRODUCT($DG25:$DG35,J25:J35,1/($DG25:$DG35+100))+SUMPRODUCT($DG38:$DG48,J38:J48,1/($DG38:$DG48+100))+SUMPRODUCT($DG52:$DG62,J52:J62,1/($DG52:$DG62+100))+SUMPRODUCT($DG65:$DG75,J65:J75,1/($DG65:$DG75+100))+SUMPRODUCT($DG78:$DG88,J78:J88,1/($DG78:$DG88+100))+SUMPRODUCT($DG91:$DG101,J91:J101,1/($DG91:$DG101+100)) -> 483465.9015 | K129: 533047.5124 | L129: 613640.2416 | M129: 613640.2416 | N129: 613640.2416 | O129: 613640.2416 | P129: 0 | Q129: 0 | R129: 0 | S129: 0 | T129: 0 | U129: 0 | V129: 0 | W129: 1735.53719 | X129: 1735.53719 | Y129: 1735.53719 | Z129: 1735.53719 | AA129: 1735.53719 | AB129: 1735.53719 | AC129: 1735.53719 | AD129: 1735.53719 | AE129: 1735.53719 | AF129: 1735.53719 | AG129: 1735.53719 | AH129: 1735.53719 | AI129: 1735.53719 | AJ129: 1735.53719 | AK129: 1735.53719 | AL129: 1735.53719 | AM129: 1735.53719 | AN129: 1735.53719 | AO129: 1735.53719 | AP129: =SUMPRODUCT($DG12:$DG22,AP12:AP22,1/($DG12:$DG22+100))+SUMPRODUCT($DG25:$DG35,AP25:AP35,1/($DG25:$DG35+100))+SUMPRODUCT($DG38:$DG48,AP38:AP48,1/($DG38:$DG48+100))+SUMPRODUCT($DG52:$DG62,AP52:AP62,1/($DG52:$DG62+100))+SUMPRODUCT($DG65:$DG75,AP65:AP75,1/($DG65:$DG75+100))+SUMPRODUCT($DG78:$DG88,AP78:AP88,1/($DG78:$DG88+100))+SUMPRODUCT($DG91:$DG101,AP91:AP101,1/($DG91:$DG101+100)) -> 1735.53719 | AQ129: 1735.53719 | AR129: 1735.53719 | AS129: 1735.53719 | AT129: 1735.53719 | AU129: 1735.53719 | AV129: 1735.53719 | AW129: 1735.53719 | AX129: 1735.53719 | AY129: 1735.53719 | AZ129: 1735.53719 | BA129: 1735.53719 | BB129: 1735.53719 | BC129: 1735.53719 | BD129: 1735.53719 | BE129: 1735.53719 | BF129: 1735.53719 | BG129: 1735.53719 | BH129: 1735.53719 | BI129: 1735.53719 | BJ129: 1735.53719 | BK129: 1735.53719 | BL129: 1735.53719 | BM129: 1735.53719 | BN129: 1735.53719 | BO129: 1735.53719 | BP129: 1735.53719 | BQ129: 1735.53719 | BR129: 1735.53719 | BS129: 1735.53719 | BT129: 1735.53719 | BU129: 1735.53719 | BV129: =SUMPRODUCT($DG12:$DG22,BV12:BV22,1/($DG12:$DG22+100))+SUMPRODUCT($DG25:$DG35,BV25:BV35,1/($DG25:$DG35+100))+SUMPRODUCT($DG38:$DG48,BV38:BV48,1/($DG38:$DG48+100))+SUMPRODUCT($DG52:$DG62,BV52:BV62,1/($DG52:$DG62+100))+SUMPRODUCT($DG65:$DG75,BV65:BV75,1/($DG65:$DG75+100))+SUMPRODUCT($DG78:$DG88,BV78:BV88,1/($DG78:$DG88+100))+SUMPRODUCT($DG91:$DG101,BV91:BV101,1/($DG91:$DG101+100)) -> 1735.53719 | BW129: 1735.53719 | BX129: 1735.53719 | BY129: 1735.53719 | BZ129: 1735.53719 | CA129: 1735.53719 | CB129: 1735.53719 | CC129: 1735.53719 | CD129: 1735.53719 | CE129: 1735.53719 | CF129: 1735.53719 | CG129: 1735.53719 | CH129: 1735.53719 | CI129: 1735.53719 | CJ129: 1735.53719 | CK129: 1735.53719 | CL129: 1735.53719 | CM129: 1735.53719 | CN129: 1735.53719 | CO129: 1735.53719 | CP129: 1735.53719 | CQ129: 1735.53719 | CR129: 1735.53719 | CS129: 1735.53719 | CT129: 1735.53719 | CU129: 1735.53719 | CV129: 1735.53719 | CW129: 1735.53719 | CX129: 1735.53719 | CY129: 1735.53719 | CZ129: 1735.53719 | DA129: 1735.53719 | DB129: 1735.53719 | DC129: 1735.53719 | DF129: 91
A130: 102 | B130: J.2. | C130: Bendra pirkimo PVM suma (veiklos sąnaudoms) | F130: =H130+NPV(FD,I130:INDEX(I130:DC130,PAL)) -> 0 | G130: =SUMIF($H$5:$DC$5,"<="&PAL,$H130:$DC130) -> 0 | H130: =SUMPRODUCT($DG105:$DG110,H105:H110,1/($DG105:$DG110+100))+SUMPRODUCT($DG112:$DG114,H112:H114,1/($DG112:$DG114+100)) -> 0 | I130: =SUMPRODUCT($DG105:$DG114,I105:I114,1/($DG105:$DG114+100)) -> 0 | J130: 0 | K130: 0 | L130: 0 | M130: 0 | N130: 0 | O130: 0 | P130: 0 | Q130: 0 | R130: 0 | S130: 0 | T130: 0 | U130: 0 | V130: 0 | W130: 0 | X130: 0 | Y130: 0 | Z130: 0 | AA130: 0 | AB130: 0 | AC130: 0 | AD130: 0 | AE130: 0 | AF130: 0 | AG130: 0 | AH130: 0 | AI130: 0 | AJ130: 0 | AK130: 0 | AL130: 0 | AM130: 0 | AN130: 0 | AO130: =SUMPRODUCT($DG105:$DG114,AO105:AO114,1/($DG105:$DG114+100)) -> 0 | AP130: 0 | AQ130: 0 | AR130: 0 | AS130: 0 | AT130: 0 | AU130: 0 | AV130: 0 | AW130: 0 | AX130: 0 | AY130: 0 | AZ130: 0 | BA130: 0 | BB130: 0 | BC130: 0 | BD130: 0 | BE130: 0 | BF130: 0 | BG130: 0 | BH130: 0 | BI130: 0 | BJ130: 0 | BK130: 0 | BL130: 0 | BM130: 0 | BN130: 0 | BO130: 0 | BP130: 0 | BQ130: 0 | BR130: 0 | BS130: 0 | BT130: 0 | BU130: =SUMPRODUCT($DG105:$DG114,BU105:BU114,1/($DG105:$DG114+100)) -> 0 | BV130: 0 | BW130: 0 | BX130: 0 | BY130: 0 | BZ130: 0 | CA130: 0 | CB130: 0 | CC130: 0 | CD130: 0 | CE130: 0 | CF130: 0 | CG130: 0 | CH130: 0 | CI130: 0 | CJ130: 0 | CK130: 0 | CL130: 0 | CM130: 0 | CN130: 0 | CO130: 0 | CP130: 0 | CQ130: 0 | CR130: 0 | CS130: 0 | CT130: 0 | CU130: 0 | CV130: 0 | CW130: 0 | CX130: 0 | CY130: 0 | CZ130: 0 | DA130: 0 | DB130: 0 | DC130: 0 | DF130: 0
A131: 103 | B131: J.3. | C131: Bendra pardavimo PVM suma | F131: =H131+NPV(FD,I131:INDEX(I131:DC131,PAL)) -> 0 | G131: =SUMIF($H$5:$DC$5,"<="&PAL,$H131:$DC131) -> 0 | H131: =SUMPRODUCT($DG117:$DG122,H117:H122,1/($DG117:$DG122+100))+SUMPRODUCT($DG124:$DG126,H124:H126,1/($DG124:$DG126+100)) -> 0 | I131: =SUMPRODUCT($DG117:$DG122,I117:I122,1/($DG117:$DG122+100))+SUMPRODUCT($DG124:$DG126,I124:I126,1/($DG124:$DG126+100)) -> 0 | J131: =SUMPRODUCT($DG117:$DG122,J117:J122,1/($DG117:$DG122+100))+SUMPRODUCT($DG124:$DG126,J124:J126,1/($DG124:$DG126+100)) -> 0 | K131: =SUMPRODUCT($DG117:$DG122,K117:K122,1/($DG117:$DG122+100))+SUMPRODUCT($DG124:$DG126,K124:K126,1/($DG124:$DG126+100)) -> 0 | L131: =SUMPRODUCT($DG117:$DG122,L117:L122,1/($DG117:$DG122+100))+SUMPRODUCT($DG124:$DG126,L124:L126,1/($DG124:$DG126+100)) -> 0 | M131: =SUMPRODUCT($DG117:$DG122,M117:M122,1/($DG117:$DG122+100))+SUMPRODUCT($DG124:$DG126,M124:M126,1/($DG124:$DG126+100)) -> 0 | N131: =SUMPRODUCT($DG117:$DG122,N117:N122,1/($DG117:$DG122+100))+SUMPRODUCT($DG124:$DG126,N124:N126,1/($DG124:$DG126+100)) -> 0 | O131: =SUMPRODUCT($DG117:$DG122,O117:O122,1/($DG117:$DG122+100))+SUMPRODUCT($DG124:$DG126,O124:O126,1/($DG124:$DG126+100)) -> 0 | P131: =SUMPRODUCT($DG117:$DG122,P117:P122,1/($DG117:$DG122+100))+SUMPRODUCT($DG124:$DG126,P124:P126,1/($DG124:$DG126+100)) -> 0 | Q131: =SUMPRODUCT($DG117:$DG122,Q117:Q122,1/($DG117:$DG122+100))+SUMPRODUCT($DG124:$DG126,Q124:Q126,1/($DG124:$DG126+100)) -> 0 | R131: =SUMPRODUCT($DG117:$DG122,R117:R122,1/($DG117:$DG122+100))+SUMPRODUCT($DG124:$DG126,R124:R126,1/($DG124:$DG126+100)) -> 0 | S131: =SUMPRODUCT($DG117:$DG122,S117:S122,1/($DG117:$DG122+100))+SUMPRODUCT($DG124:$DG126,S124:S126,1/($DG124:$DG126+100)) -> 0 | T131: =SUMPRODUCT($DG117:$DG122,T117:T122,1/($DG117:$DG122+100))+SUMPRODUCT($DG124:$DG126,T124:T126,1/($DG124:$DG126+100)) -> 0 | U131: =SUMPRODUCT($DG117:$DG122,U117:U122,1/($DG117:$DG122+100))+SUMPRODUCT($DG124:$DG126,U124:U126,1/($DG124:$DG126+100)) -> 0 | V131: =SUMPRODUCT($DG117:$DG122,V117:V122,1/($DG117:$DG122+100))+SUMPRODUCT($DG124:$DG126,V124:V126,1/($DG124:$DG126+100)) -> 0 | W131: =SUMPRODUCT($DG117:$DG122,W117:W122,1/($DG117:$DG122+100))+SUMPRODUCT($DG124:$DG126,W124:W126,1/($DG124:$DG126+100)) -> 0 | X131: =SUMPRODUCT($DG117:$DG122,X117:X122,1/($DG117:$DG122+100))+SUMPRODUCT($DG124:$DG126,X124:X126,1/($DG124:$DG126+100)) -> 0 | Y131: =SUMPRODUCT($DG117:$DG122,Y117:Y122,1/($DG117:$DG122+100))+SUMPRODUCT($DG124:$DG126,Y124:Y126,1/($DG124:$DG126+100)) -> 0 | Z131: =SUMPRODUCT($DG117:$DG122,Z117:Z122,1/($DG117:$DG122+100))+SUMPRODUCT($DG124:$DG126,Z124:Z126,1/($DG124:$DG126+100)) -> 0 | AA131: =SUMPRODUCT($DG117:$DG122,AA117:AA122,1/($DG117:$DG122+100))+SUMPRODUCT($DG124:$DG126,AA124:AA126,1/($DG124:$DG126+100)) -> 0 | AB131: =SUMPRODUCT($DG117:$DG122,AB117:AB122,1/($DG117:$DG122+100))+SUMPRODUCT($DG124:$DG126,AB124:AB126,1/($DG124:$DG126+100)) -> 0 | AC131: =SUMPRODUCT($DG117:$DG122,AC117:AC122,1/($DG117:$DG122+100))+SUMPRODUCT($DG124:$DG126,AC124:AC126,1/($DG124:$DG126+100)) -> 0 | AD131: =SUMPRODUCT($DG117:$DG122,AD117:AD122,1/($DG117:$DG122+100))+SUMPRODUCT($DG124:$DG126,AD124:AD126,1/($DG124:$DG126+100)) -> 0 | AE131: =SUMPRODUCT($DG117:$DG122,AE117:AE122,1/($DG117:$DG122+100))+SUMPRODUCT($DG124:$DG126,AE124:AE126,1/($DG124:$DG126+100)) -> 0 | AF131: =SUMPRODUCT($DG117:$DG122,AF117:AF122,1/($DG117:$DG122+100))+SUMPRODUCT($DG124:$DG126,AF124:AF126,1/($DG124:$DG126+100)) -> 0 | AG131: =SUMPRODUCT($DG117:$DG122,AG117:AG122,1/($DG117:$DG122+100))+SUMPRODUCT($DG124:$DG126,AG124:AG126,1/($DG124:$DG126+100)) -> 0 | AH131: =SUMPRODUCT($DG117:$DG122,AH117:AH122,1/($DG117:$DG122+100))+SUMPRODUCT($DG124:$DG126,AH124:AH126,1/($DG124:$DG126+100)) -> 0 | AI131: =SUMPRODUCT($DG117:$DG122,AI117:AI122,1/($DG117:$DG122+100))+SUMPRODUCT($DG124:$DG126,AI124:AI126,1/($DG124:$DG126+100)) -> 0 | AJ131: =SUMPRODUCT($DG117:$DG122,AJ117:AJ122,1/($DG117:$DG122+100))+SUMPRODUCT($DG124:$DG126,AJ124:AJ126,1/($DG124:$DG126+100)) -> 0 | AK131: =SUMPRODUCT($DG117:$DG122,AK117:AK122,1/($DG117:$DG122+100))+SUMPRODUCT($DG124:$DG126,AK124:AK126,1/($DG124:$DG126+100)) -> 0 | AL131: =SUMPRODUCT($DG117:$DG122,AL117:AL122,1/($DG117:$DG122+100))+SUMPRODUCT($DG124:$DG126,AL124:AL126,1/($DG124:$DG126+100)) -> 0 | AM131: =SUMPRODUCT($DG117:$DG122,AM117:AM122,1/($DG117:$DG122+100))+SUMPRODUCT($DG124:$DG126,AM124:AM126,1/($DG124:$DG126+100)) -> 0 | AN131: =SUMPRODUCT($DG117:$DG122,AN117:AN122,1/($DG117:$DG122+100))+SUMPRODUCT($DG124:$DG126,AN124:AN126,1/($DG124:$DG126+100)) -> 0 | AO131: =SUMPRODUCT($DG117:$DG122,AO117:AO122,1/($DG117:$DG122+100))+SUMPRODUCT($DG124:$DG126,AO124:AO126,1/($DG124:$DG126+100)) -> 0 | AP131: =SUMPRODUCT($DG117:$DG122,AP117:AP122,1/($DG117:$DG122+100))+SUMPRODUCT($DG124:$DG126,AP124:AP126,1/($DG124:$DG126+100)) -> 0 | AQ131: =SUMPRODUCT($DG117:$DG122,AQ117:AQ122,1/($DG117:$DG122+100))+SUMPRODUCT($DG124:$DG126,AQ124:AQ126,1/($DG124:$DG126+100)) -> 0 | AR131: =SUMPRODUCT($DG117:$DG122,AR117:AR122,1/($DG117:$DG122+100))+SUMPRODUCT($DG124:$DG126,AR124:AR126,1/($DG124:$DG126+100)) -> 0 | AS131: =SUMPRODUCT($DG117:$DG122,AS117:AS122,1/($DG117:$DG122+100))+SUMPRODUCT($DG124:$DG126,AS124:AS126,1/($DG124:$DG126+100)) -> 0 | AT131: =SUMPRODUCT($DG117:$DG122,AT117:AT122,1/($DG117:$DG122+100))+SUMPRODUCT($DG124:$DG126,AT124:AT126,1/($DG124:$DG126+100)) -> 0 | AU131: =SUMPRODUCT($DG117:$DG122,AU117:AU122,1/($DG117:$DG122+100))+SUMPRODUCT($DG124:$DG126,AU124:AU126,1/($DG124:$DG126+100)) -> 0 | AV131: =SUMPRODUCT($DG117:$DG122,AV117:AV122,1/($DG117:$DG122+100))+SUMPRODUCT($DG124:$DG126,AV124:AV126,1/($DG124:$DG126+100)) -> 0 | AW131: =SUMPRODUCT($DG117:$DG122,AW117:AW122,1/($DG117:$DG122+100))+SUMPRODUCT($DG124:$DG126,AW124:AW126,1/($DG124:$DG126+100)) -> 0 | AX131: =SUMPRODUCT($DG117:$DG122,AX117:AX122,1/($DG117:$DG122+100))+SUMPRODUCT($DG124:$DG126,AX124:AX126,1/($DG124:$DG126+100)) -> 0 | AY131: =SUMPRODUCT($DG117:$DG122,AY117:AY122,1/($DG117:$DG122+100))+SUMPRODUCT($DG124:$DG126,AY124:AY126,1/($DG124:$DG126+100)) -> 0 | AZ131: =SUMPRODUCT($DG117:$DG122,AZ117:AZ122,1/($DG117:$DG122+100))+SUMPRODUCT($DG124:$DG126,AZ124:AZ126,1/($DG124:$DG126+100)) -> 0 | BA131: =SUMPRODUCT($DG117:$DG122,BA117:BA122,1/($DG117:$DG122+100))+SUMPRODUCT($DG124:$DG126,BA124:BA126,1/($DG124:$DG126+100)) -> 0 | BB131: =SUMPRODUCT($DG117:$DG122,BB117:BB122,1/($DG117:$DG122+100))+SUMPRODUCT($DG124:$DG126,BB124:BB126,1/($DG124:$DG126+100)) -> 0 | BC131: =SUMPRODUCT($DG117:$DG122,BC117:BC122,1/($DG117:$DG122+100))+SUMPRODUCT($DG124:$DG126,BC124:BC126,1/($DG124:$DG126+100)) -> 0 | BD131: =SUMPRODUCT($DG117:$DG122,BD117:BD122,1/($DG117:$DG122+100))+SUMPRODUCT($DG124:$DG126,BD124:BD126,1/($DG124:$DG126+100)) -> 0 | BE131: =SUMPRODUCT($DG117:$DG122,BE117:BE122,1/($DG117:$DG122+100))+SUMPRODUCT($DG124:$DG126,BE124:BE126,1/($DG124:$DG126+100)) -> 0 | BF131: =SUMPRODUCT($DG117:$DG122,BF117:BF122,1/($DG117:$DG122+100))+SUMPRODUCT($DG124:$DG126,BF124:BF126,1/($DG124:$DG126+100)) -> 0 | BG131: =SUMPRODUCT($DG117:$DG122,BG117:BG122,1/($DG117:$DG122+100))+SUMPRODUCT($DG124:$DG126,BG124:BG126,1/($DG124:$DG126+100)) -> 0 | BH131: =SUMPRODUCT($DG117:$DG122,BH117:BH122,1/($DG117:$DG122+100))+SUMPRODUCT($DG124:$DG126,BH124:BH126,1/($DG124:$DG126+100)) -> 0 | BI131: =SUMPRODUCT($DG117:$DG122,BI117:BI122,1/($DG117:$DG122+100))+SUMPRODUCT($DG124:$DG126,BI124:BI126,1/($DG124:$DG126+100)) -> 0 | BJ131: =SUMPRODUCT($DG117:$DG122,BJ117:BJ122,1/($DG117:$DG122+100))+SUMPRODUCT($DG124:$DG126,BJ124:BJ126,1/($DG124:$DG126+100)) -> 0 | BK131: =SUMPRODUCT($DG117:$DG122,BK117:BK122,1/($DG117:$DG122+100))+SUMPRODUCT($DG124:$DG126,BK124:BK126,1/($DG124:$DG126+100)) -> 0 | BL131: =SUMPRODUCT($DG117:$DG122,BL117:BL122,1/($DG117:$DG122+100))+SUMPRODUCT($DG124:$DG126,BL124:BL126,1/($DG124:$DG126+100)) -> 0 | BM131: =SUMPRODUCT($DG117:$DG122,BM117:BM122,1/($DG117:$DG122+100))+SUMPRODUCT($DG124:$DG126,BM124:BM126,1/($DG124:$DG126+100)) -> 0 | BN131: =SUMPRODUCT($DG117:$DG122,BN117:BN122,1/($DG117:$DG122+100))+SUMPRODUCT($DG124:$DG126,BN124:BN126,1/($DG124:$DG126+100)) -> 0 | BO131: =SUMPRODUCT($DG117:$DG122,BO117:BO122,1/($DG117:$DG122+100))+SUMPRODUCT($DG124:$DG126,BO124:BO126,1/($DG124:$DG126+100)) -> 0 | BP131: =SUMPRODUCT($DG117:$DG122,BP117:BP122,1/($DG117:$DG122+100))+SUMPRODUCT($DG124:$DG126,BP124:BP126,1/($DG124:$DG126+100)) -> 0 | BQ131: =SUMPRODUCT($DG117:$DG122,BQ117:BQ122,1/($DG117:$DG122+100))+SUMPRODUCT($DG124:$DG126,BQ124:BQ126,1/($DG124:$DG126+100)) -> 0 | BR131: =SUMPRODUCT($DG117:$DG122,BR117:BR122,1/($DG117:$DG122+100))+SUMPRODUCT($DG124:$DG126,BR124:BR126,1/($DG124:$DG126+100)) -> 0 | BS131: =SUMPRODUCT($DG117:$DG122,BS117:BS122,1/($DG117:$DG122+100))+SUMPRODUCT($DG124:$DG126,BS124:BS126,1/($DG124:$DG126+100)) -> 0 | BT131: =SUMPRODUCT($DG117:$DG122,BT117:BT122,1/($DG117:$DG122+100))+SUMPRODUCT($DG124:$DG126,BT124:BT126,1/($DG124:$DG126+100)) -> 0 | BU131: =SUMPRODUCT($DG117:$DG122,BU117:BU122,1/($DG117:$DG122+100))+SUMPRODUCT($DG124:$DG126,BU124:BU126,1/($DG124:$DG126+100)) -> 0 | BV131: =SUMPRODUCT($DG117:$DG122,BV117:BV122,1/($DG117:$DG122+100))+SUMPRODUCT($DG124:$DG126,BV124:BV126,1/($DG124:$DG126+100)) -> 0 | BW131: =SUMPRODUCT($DG117:$DG122,BW117:BW122,1/($DG117:$DG122+100))+SUMPRODUCT($DG124:$DG126,BW124:BW126,1/($DG124:$DG126+100)) -> 0 | BX131: =SUMPRODUCT($DG117:$DG122,BX117:BX122,1/($DG117:$DG122+100))+SUMPRODUCT($DG124:$DG126,BX124:BX126,1/($DG124:$DG126+100)) -> 0 | BY131: =SUMPRODUCT($DG117:$DG122,BY117:BY122,1/($DG117:$DG122+100))+SUMPRODUCT($DG124:$DG126,BY124:BY126,1/($DG124:$DG126+100)) -> 0 | BZ131: =SUMPRODUCT($DG117:$DG122,BZ117:BZ122,1/($DG117:$DG122+100))+SUMPRODUCT($DG124:$DG126,BZ124:BZ126,1/($DG124:$DG126+100)) -> 0 | CA131: =SUMPRODUCT($DG117:$DG122,CA117:CA122,1/($DG117:$DG122+100))+SUMPRODUCT($DG124:$DG126,CA124:CA126,1/($DG124:$DG126+100)) -> 0 | CB131: =SUMPRODUCT($DG117:$DG122,CB117:CB122,1/($DG117:$DG122+100))+SUMPRODUCT($DG124:$DG126,CB124:CB126,1/($DG124:$DG126+100)) -> 0 | CC131: =SUMPRODUCT($DG117:$DG122,CC117:CC122,1/($DG117:$DG122+100))+SUMPRODUCT($DG124:$DG126,CC124:CC126,1/($DG124:$DG126+100)) -> 0 | CD131: =SUMPRODUCT($DG117:$DG122,CD117:CD122,1/($DG117:$DG122+100))+SUMPRODUCT($DG124:$DG126,CD124:CD126,1/($DG124:$DG126+100)) -> 0 | CE131: =SUMPRODUCT($DG117:$DG122,CE117:CE122,1/($DG117:$DG122+100))+SUMPRODUCT($DG124:$DG126,CE124:CE126,1/($DG124:$DG126+100)) -> 0 | CF131: =SUMPRODUCT($DG117:$DG122,CF117:CF122,1/($DG117:$DG122+100))+SUMPRODUCT($DG124:$DG126,CF124:CF126,1/($DG124:$DG126+100)) -> 0 | CG131: =SUMPRODUCT($DG117:$DG122,CG117:CG122,1/($DG117:$DG122+100))+SUMPRODUCT($DG124:$DG126,CG124:CG126,1/($DG124:$DG126+100)) -> 0 | CH131: =SUMPRODUCT($DG117:$DG122,CH117:CH122,1/($DG117:$DG122+100))+SUMPRODUCT($DG124:$DG126,CH124:CH126,1/($DG124:$DG126+100)) -> 0 | CI131: =SUMPRODUCT($DG117:$DG122,CI117:CI122,1/($DG117:$DG122+100))+SUMPRODUCT($DG124:$DG126,CI124:CI126,1/($DG124:$DG126+100)) -> 0 | CJ131: =SUMPRODUCT($DG117:$DG122,CJ117:CJ122,1/($DG117:$DG122+100))+SUMPRODUCT($DG124:$DG126,CJ124:CJ126,1/($DG124:$DG126+100)) -> 0 | CK131: =SUMPRODUCT($DG117:$DG122,CK117:CK122,1/($DG117:$DG122+100))+SUMPRODUCT($DG124:$DG126,CK124:CK126,1/($DG124:$DG126+100)) -> 0 | CL131: =SUMPRODUCT($DG117:$DG122,CL117:CL122,1/($DG117:$DG122+100))+SUMPRODUCT($DG124:$DG126,CL124:CL126,1/($DG124:$DG126+100)) -> 0 | CM131: =SUMPRODUCT($DG117:$DG122,CM117:CM122,1/($DG117:$DG122+100))+SUMPRODUCT($DG124:$DG126,CM124:CM126,1/($DG124:$DG126+100)) -> 0 | CN131: =SUMPRODUCT($DG117:$DG122,CN117:CN122,1/($DG117:$DG122+100))+SUMPRODUCT($DG124:$DG126,CN124:CN126,1/($DG124:$DG126+100)) -> 0 | CO131: =SUMPRODUCT($DG117:$DG122,CO117:CO122,1/($DG117:$DG122+100))+SUMPRODUCT($DG124:$DG126,CO124:CO126,1/($DG124:$DG126+100)) -> 0 | CP131: =SUMPRODUCT($DG117:$DG122,CP117:CP122,1/($DG117:$DG122+100))+SUMPRODUCT($DG124:$DG126,CP124:CP126,1/($DG124:$DG126+100)) -> 0 | CQ131: =SUMPRODUCT($DG117:$DG122,CQ117:CQ122,1/($DG117:$DG122+100))+SUMPRODUCT($DG124:$DG126,CQ124:CQ126,1/($DG124:$DG126+100)) -> 0 | CR131: =SUMPRODUCT($DG117:$DG122,CR117:CR122,1/($DG117:$DG122+100))+SUMPRODUCT($DG124:$DG126,CR124:CR126,1/($DG124:$DG126+100)) -> 0 | CS131: =SUMPRODUCT($DG117:$DG122,CS117:CS122,1/($DG117:$DG122+100))+SUMPRODUCT($DG124:$DG126,CS124:CS126,1/($DG124:$DG126+100)) -> 0 | CT131: =SUMPRODUCT($DG117:$DG122,CT117:CT122,1/($DG117:$DG122+100))+SUMPRODUCT($DG124:$DG126,CT124:CT126,1/($DG124:$DG126+100)) -> 0 | CU131: =SUMPRODUCT($DG117:$DG122,CU117:CU122,1/($DG117:$DG122+100))+SUMPRODUCT($DG124:$DG126,CU124:CU126,1/($DG124:$DG126+100)) -> 0 | CV131: =SUMPRODUCT($DG117:$DG122,CV117:CV122,1/($DG117:$DG122+100))+SUMPRODUCT($DG124:$DG126,CV124:CV126,1/($DG124:$DG126+100)) -> 0 | CW131: =SUMPRODUCT($DG117:$DG122,CW117:CW122,1/($DG117:$DG122+100))+SUMPRODUCT($DG124:$DG126,CW124:CW126,1/($DG124:$DG126+100)) -> 0 | CX131: =SUMPRODUCT($DG117:$DG122,CX117:CX122,1/($DG117:$DG122+100))+SUMPRODUCT($DG124:$DG126,CX124:CX126,1/($DG124:$DG126+100)) -> 0 | CY131: =SUMPRODUCT($DG117:$DG122,CY117:CY122,1/($DG117:$DG122+100))+SUMPRODUCT($DG124:$DG126,CY124:CY126,1/($DG124:$DG126+100)) -> 0 | CZ131: =SUMPRODUCT($DG117:$DG122,CZ117:CZ122,1/($DG117:$DG122+100))+SUMPRODUCT($DG124:$DG126,CZ124:CZ126,1/($DG124:$DG126+100)) -> 0 | DA131: =SUMPRODUCT($DG117:$DG122,DA117:DA122,1/($DG117:$DG122+100))+SUMPRODUCT($DG124:$DG126,DA124:DA126,1/($DG124:$DG126+100)) -> 0 | DB131: =SUMPRODUCT($DG117:$DG122,DB117:DB122,1/($DG117:$DG122+100))+SUMPRODUCT($DG124:$DG126,DB124:DB126,1/($DG124:$DG126+100)) -> 0 | DC131: =SUMPRODUCT($DG117:$DG122,DC117:DC122,1/($DG117:$DG122+100))+SUMPRODUCT($DG124:$DG126,DC124:DC126,1/($DG124:$DG126+100)) -> 0 | DE131: =COUNTBLANK(H131:DC131) -> 0 | DF131: 0
A132: 104 | B132: K. | C132: =CONCATENATE("SIEKIAMAS REZULTATAS: ",IF(Result=0,"",Result),", matavimo vienetas: ",IF(Result_mat=0,"",Result_mat)) -> SIEKIAMAS REZULTATAS: Pajamų padidėjmas, matavimo vienetas: Eur | F132: =H132+NPV(FD,I132:INDEX(I132:DC132,PAL)) -> 3815266684 | G132: =SUMIF($H$5:$DC$5,"<="&PAL,$H132:$DC132) -> 5212644507 | H132: 0 | I132: 0 | J132: =+Prielaidos!I84+Prielaidos!I93+Prielaidos!I102+Prielaidos!I113+Prielaidos!I119+Prielaidos!I124+Prielaidos!I129+Prielaidos!I135+Prielaidos!I139+Prielaidos!I144+Prielaidos!I149+Prielaidos!I154+Prielaidos!I159+Prielaidos!I164+Prielaidos!I169+Prielaidos!I174+Prielaidos!I181 -> 75798646.77 | K132: =+Prielaidos!J84+Prielaidos!J93+Prielaidos!J102+Prielaidos!J113+Prielaidos!J119+Prielaidos!J124+Prielaidos!J129+Prielaidos!J135+Prielaidos!J139+Prielaidos!J144+Prielaidos!J149+Prielaidos!J154+Prielaidos!J159+Prielaidos!J164+Prielaidos!J169+Prielaidos!J174+Prielaidos!J181 -> 179107717.4 | L132: =+Prielaidos!K84+Prielaidos!K93+Prielaidos!K102+Prielaidos!K113+Prielaidos!K119+Prielaidos!K124+Prielaidos!K129+Prielaidos!K135+Prielaidos!K139+Prielaidos!K144+Prielaidos!K149+Prielaidos!K154+Prielaidos!K159+Prielaidos!K164+Prielaidos!K169+Prielaidos!K174+Prielaidos!K181 -> 319747771.2 | M132: =+Prielaidos!L84+Prielaidos!L93+Prielaidos!L102+Prielaidos!L113+Prielaidos!L119+Prielaidos!L124+Prielaidos!L129+Prielaidos!L135+Prielaidos!L139+Prielaidos!L144+Prielaidos!L149+Prielaidos!L154+Prielaidos!L159+Prielaidos!L164+Prielaidos!L169+Prielaidos!L174+Prielaidos!L181 -> 453120047.9 | N132: =+Prielaidos!M84+Prielaidos!M93+Prielaidos!M102+Prielaidos!M113+Prielaidos!M119+Prielaidos!M124+Prielaidos!M129+Prielaidos!M135+Prielaidos!M139+Prielaidos!M144+Prielaidos!M149+Prielaidos!M154+Prielaidos!M159+Prielaidos!M164+Prielaidos!M169+Prielaidos!M174+Prielaidos!M181 -> 556210054.8 | O132: =+Prielaidos!N84+Prielaidos!N93+Prielaidos!N102+Prielaidos!N113+Prielaidos!N119+Prielaidos!N124+Prielaidos!N129+Prielaidos!N135+Prielaidos!N139+Prielaidos!N144+Prielaidos!N149+Prielaidos!N154+Prielaidos!N159+Prielaidos!N164+Prielaidos!N169+Prielaidos!N174+Prielaidos!N181 -> 631740501.2 | P132: =+Prielaidos!O84+Prielaidos!O93+Prielaidos!O102+Prielaidos!O113+Prielaidos!O119+Prielaidos!O124+Prielaidos!O129+Prielaidos!O135+Prielaidos!O139+Prielaidos!O144+Prielaidos!O149+Prielaidos!O154+Prielaidos!O159+Prielaidos!O164+Prielaidos!O169+Prielaidos!O174+Prielaidos!O181 -> 633077834.3 | Q132: =+Prielaidos!P84+Prielaidos!P93+Prielaidos!P102+Prielaidos!P113+Prielaidos!P119+Prielaidos!P124+Prielaidos!P129+Prielaidos!P135+Prielaidos!P139+Prielaidos!P144+Prielaidos!P149+Prielaidos!P154+Prielaidos!P159+Prielaidos!P164+Prielaidos!P169+Prielaidos!P174+Prielaidos!P181 -> 633077834.3 | R132: =+Prielaidos!Q84+Prielaidos!Q93+Prielaidos!Q102+Prielaidos!Q113+Prielaidos!Q119+Prielaidos!Q124+Prielaidos!Q129+Prielaidos!Q135+Prielaidos!Q139+Prielaidos!Q144+Prielaidos!Q149+Prielaidos!Q154+Prielaidos!Q159+Prielaidos!Q164+Prielaidos!Q169+Prielaidos!Q174+Prielaidos!Q181 -> 588612519 | S132: =+Prielaidos!R84+Prielaidos!R93+Prielaidos!R102+Prielaidos!R113+Prielaidos!R119+Prielaidos!R124+Prielaidos!R129+Prielaidos!R135+Prielaidos!R139+Prielaidos!R144+Prielaidos!R149+Prielaidos!R154+Prielaidos!R159+Prielaidos!R164+Prielaidos!R169+Prielaidos!R174+Prielaidos!R181 -> 489979947.8 | T132: =+Prielaidos!S84+Prielaidos!S93+Prielaidos!S102+Prielaidos!S113+Prielaidos!S119+Prielaidos!S124+Prielaidos!S129+Prielaidos!S135+Prielaidos!S139+Prielaidos!S144+Prielaidos!S149+Prielaidos!S154+Prielaidos!S159+Prielaidos!S164+Prielaidos!S169+Prielaidos!S174+Prielaidos!S181 -> 337642023.5 | U132: =+Prielaidos!T84+Prielaidos!T93+Prielaidos!T102+Prielaidos!T113+Prielaidos!T119+Prielaidos!T124+Prielaidos!T129+Prielaidos!T135+Prielaidos!T139+Prielaidos!T144+Prielaidos!T149+Prielaidos!T154+Prielaidos!T159+Prielaidos!T164+Prielaidos!T169+Prielaidos!T174+Prielaidos!T181 -> 204731423 | V132: =+Prielaidos!U84+Prielaidos!U93+Prielaidos!U102+Prielaidos!U113+Prielaidos!U119+Prielaidos!U124+Prielaidos!U129+Prielaidos!U135+Prielaidos!U139+Prielaidos!U144+Prielaidos!U149+Prielaidos!U154+Prielaidos!U159+Prielaidos!U164+Prielaidos!U169+Prielaidos!U174+Prielaidos!U181 -> 109798186 | W132: 1000 | X132: 1000 | Y132: 1000 | Z132: 1000 | AA132: 1000 | AB132: 1000 | AC132: 1000 | AD132: 1000 | AE132: 1000 | AF132: 1000 | AG132: 1000 | AH132: 1000 | AI132: 1000 | AJ132: 1000 | AK132: 1000 | AL132: 1000 | AM132: 1000 | AN132: 1000 | AO132: 1000 | AP132: 1000 | AQ132: 1000 | AR132: 1000 | AS132: 1000 | AT132: 1000 | AU132: 1000 | AV132: 1000 | AW132: 1000 | AX132: 1000 | AY132: 1000 | AZ132: 1000 | BA132: 1000 | BB132: 1000 | BC132: 1000 | BD132: 1000 | BE132: 1000 | BF132: 1000 | BG132: 1000 | BH132: 1000 | BI132: 1000 | BJ132: 1000 | BK132: 1000 | BL132: 1000 | BM132: 1000 | BN132: 1000 | BO132: 1000 | BP132: 1000 | BQ132: 1000 | BR132: 1000 | BS132: 1000 | BT132: 1000 | BU132: 1000 | BV132: 1000 | BW132: 1000 | BX132: 1000 | BY132: 1000 | BZ132: 1000 | CA132: 1000 | CB132: 1000 | CC132: 1000 | CD132: 1000 | CE132: 1000 | CF132: 1000 | CG132: 1000 | CH132: 1000 | CI132: 1000 | CJ132: 1000 | CK132: 1000 | CL132: 1000 | CM132: 1000 | CN132: 1000 | CO132: 1000 | CP132: 1000 | CQ132: 1000 | CR132: 1000 | CS132: 1000 | CT132: 1000 | CU132: 1000 | CV132: 1000 | CW132: 1000 | CX132: 1000 | CY132: 1000 | CZ132: 1000 | DA132: 1000 | DB132: 1000 | DC132: 1000 | DE132: 0 | DF132: 98
A133: 107 | B133: L. | C133: SOCIALINIS - EKONOMINIS POVEIKIS | F133: =SUM(F134-F142) -> 1062611232 | G133: =SUMIF($H$5:$DC$5,"<="&PAL,$H133:$DC133) -> 1563793352 | H133: =SUM(H134-H142) -> 0 | I133: =SUM(I134-I142) -> 0 | J133: 22739594.03 | K133: 53732315.21 | L133: 95924331.36 | M133: 135936014.4 | N133: 166863016.4 | O133: 189522150.4 | P133: 189923350.3 | Q133: 189923350.3 | R133: 176583755.7 | S133: 146993984.3 | T133: 101292607.1 | U133: 61419426.91 | V133: 32939455.8 | W133: 0 | X133: 0 | Y133: 0 | Z133: 0 | AA133: 0 | AB133: 0 | AC133: 2000 | AD133: 2000 | AE133: 2000 | AF133: 2000 | AG133: 2000 | AH133: 2000 | AI133: 2000 | AJ133: 2000 | AK133: 2000 | AL133: 2000 | AM133: 2000 | AN133: 2000 | AO133: 2000 | AP133: 2000 | AQ133: 2000 | AR133: 0 | AS133: 0 | AT133: 0 | AU133: 0 | AV133: 0 | AW133: 0 | AX133: 0 | AY133: 0 | AZ133: 0 | BA133: 0 | BB133: 0 | BC133: 0 | BD133: 0 | BE133: 0 | BF133: 0 | BG133: 0 | BH133: 0 | BI133: 0 | BJ133: 0 | BK133: 0 | BL133: 0 | BM133: 0 | BN133: 0 | BO133: 0 | BP133: 0 | BQ133: 0 | BR133: 0 | BS133: 0 | BT133: 0 | BU133: =SUM(BU134-BU142) -> 0 | BV133: 0 | BW133: 0 | BX133: 0 | BY133: 0 | BZ133: 0 | CA133: 0 | CB133: 0 | CC133: 0 | CD133: 0 | CE133: 0 | CF133: 0 | CG133: 0 | CH133: 0 | CI133: 0 | CJ133: 0 | CK133: 0 | CL133: 0 | CM133: 0 | CN133: 0 | CO133: 0 | CP133: 0 | CQ133: 0 | CR133: 0 | CS133: 0 | CT133: 0 | CU133: 0 | CV133: 0 | CW133: 0 | CX133: 0 | CY133: 0 | CZ133: 0 | DA133: 0 | DB133: 0 | DC133: 0 | DF133: 28
A134: 108 | B134: L.1. | C134: Socialinio - ekonominio poveikio nauda | F134: =SUM(F135:F141) -> 1062611232 | G134: =SUMIF($H$5:$DC$5,"<="&PAL,$H134:$DC134) -> 1563793352 | H134: =SUM(H135:H141) -> 0 | I134: =SUM(I135:I141) -> 0 | J134: 22739594.03 | K134: 53732315.21 | L134: 95924331.36 | M134: 135936014.4 | N134: 166863016.4 | O134: 189522150.4 | P134: 189923350.3 | Q134: 189923350.3 | R134: 176583755.7 | S134: 146993984.3 | T134: 101292607.1 | U134: 61419426.91 | V134: 32939455.8 | W134: 0 | X134: 0 | Y134: 0 | Z134: 0 | AA134: 0 | AB134: 0 | AC134: 2000 | AD134: 2000 | AE134: 2000 | AF134: 2000 | AG134: 2000 | AH134: 2000 | AI134: 2000 | AJ134: 2000 | AK134: 2000 | AL134: 2000 | AM134: 2000 | AN134: 2000 | AO134: 2000 | AP134: 2000 | AQ134: 2000 | AR134: 0 | AS134: 0 | AT134: 0 | AU134: 0 | AV134: 0 | AW134: 0 | AX134: 0 | AY134: 0 | AZ134: 0 | BA134: 0 | BB134: 0 | BC134: 0 | BD134: 0 | BE134: 0 | BF134: 0 | BG134: 0 | BH134: 0 | BI134: 0 | BJ134: 0 | BK134: 0 | BL134: 0 | BM134: 0 | BN134: 0 | BO134: 0 | BP134: 0 | BQ134: 0 | BR134: 0 | BS134: 0 | BT134: 0 | BU134: =SUM(BU135:BU141) -> 0 | BV134: 0 | BW134: 0 | BX134: 0 | BY134: 0 | BZ134: 0 | CA134: 0 | CB134: 0 | CC134: 0 | CD134: 0 | CE134: 0 | CF134: 0 | CG134: 0 | CH134: 0 | CI134: 0 | CJ134: 0 | CK134: 0 | CL134: 0 | CM134: 0 | CN134: 0 | CO134: 0 | CP134: 0 | CQ134: 0 | CR134: 0 | CS134: 0 | CT134: 0 | CU134: 0 | CV134: 0 | CW134: 0 | CX134: 0 | CY134: 0 | CZ134: 0 | DA134: 0 | DB134: 0 | DC134: 0 | DF134: 28
A135: 109 | B135: =$B$134&"1." -> L.1.1. | C135: Laiko sutaupymai | F135: =H135+NPV(SD,I135:INDEX(I135:DC135,PAL)) -> 1062611232 | G135: =SUMIF($H$5:$DC$5,"<="&PAL,$H135:$DC135) -> 1563793352 | H135: 0 | I135: 0 | J135: =+Prielaidos!I85+Prielaidos!I94+Prielaidos!I103+Prielaidos!I114+Prielaidos!I120+Prielaidos!I125+Prielaidos!I130+Prielaidos!I136+Prielaidos!I140+Prielaidos!I145+Prielaidos!I150+Prielaidos!I155+Prielaidos!I160+Prielaidos!I165+Prielaidos!I170+Prielaidos!I175+Prielaidos!I182 -> 22739594.03 | K135: =+Prielaidos!J85+Prielaidos!J94+Prielaidos!J103+Prielaidos!J114+Prielaidos!J120+Prielaidos!J125+Prielaidos!J130+Prielaidos!J136+Prielaidos!J140+Prielaidos!J145+Prielaidos!J150+Prielaidos!J155+Prielaidos!J160+Prielaidos!J165+Prielaidos!J170+Prielaidos!J175+Prielaidos!J182 -> 53732315.21 | L135: =+Prielaidos!K85+Prielaidos!K94+Prielaidos!K103+Prielaidos!K114+Prielaidos!K120+Prielaidos!K125+Prielaidos!K130+Prielaidos!K136+Prielaidos!K140+Prielaidos!K145+Prielaidos!K150+Prielaidos!K155+Prielaidos!K160+Prielaidos!K165+Prielaidos!K170+Prielaidos!K175+Prielaidos!K182 -> 95924331.36 | M135: =+Prielaidos!L85+Prielaidos!L94+Prielaidos!L103+Prielaidos!L114+Prielaidos!L120+Prielaidos!L125+Prielaidos!L130+Prielaidos!L136+Prielaidos!L140+Prielaidos!L145+Prielaidos!L150+Prielaidos!L155+Prielaidos!L160+Prielaidos!L165+Prielaidos!L170+Prielaidos!L175+Prielaidos!L182 -> 135936014.4 | N135: =+Prielaidos!M85+Prielaidos!M94+Prielaidos!M103+Prielaidos!M114+Prielaidos!M120+Prielaidos!M125+Prielaidos!M130+Prielaidos!M136+Prielaidos!M140+Prielaidos!M145+Prielaidos!M150+Prielaidos!M155+Prielaidos!M160+Prielaidos!M165+Prielaidos!M170+Prielaidos!M175+Prielaidos!M182 -> 166863016.4 | O135: =+Prielaidos!N85+Prielaidos!N94+Prielaidos!N103+Prielaidos!N114+Prielaidos!N120+Prielaidos!N125+Prielaidos!N130+Prielaidos!N136+Prielaidos!N140+Prielaidos!N145+Prielaidos!N150+Prielaidos!N155+Prielaidos!N160+Prielaidos!N165+Prielaidos!N170+Prielaidos!N175+Prielaidos!N182 -> 189522150.4 | P135: =+Prielaidos!O85+Prielaidos!O94+Prielaidos!O103+Prielaidos!O114+Prielaidos!O120+Prielaidos!O125+Prielaidos!O130+Prielaidos!O136+Prielaidos!O140+Prielaidos!O145+Prielaidos!O150+Prielaidos!O155+Prielaidos!O160+Prielaidos!O165+Prielaidos!O170+Prielaidos!O175+Prielaidos!O182 -> 189923350.3 | Q135: =+Prielaidos!P85+Prielaidos!P94+Prielaidos!P103+Prielaidos!P114+Prielaidos!P120+Prielaidos!P125+Prielaidos!P130+Prielaidos!P136+Prielaidos!P140+Prielaidos!P145+Prielaidos!P150+Prielaidos!P155+Prielaidos!P160+Prielaidos!P165+Prielaidos!P170+Prielaidos!P175+Prielaidos!P182 -> 189923350.3 | R135: =+Prielaidos!Q85+Prielaidos!Q94+Prielaidos!Q103+Prielaidos!Q114+Prielaidos!Q120+Prielaidos!Q125+Prielaidos!Q130+Prielaidos!Q136+Prielaidos!Q140+Prielaidos!Q145+Prielaidos!Q150+Prielaidos!Q155+Prielaidos!Q160+Prielaidos!Q165+Prielaidos!Q170+Prielaidos!Q175+Prielaidos!Q182 -> 176583755.7 | S135: =+Prielaidos!R85+Prielaidos!R94+Prielaidos!R103+Prielaidos!R114+Prielaidos!R120+Prielaidos!R125+Prielaidos!R130+Prielaidos!R136+Prielaidos!R140+Prielaidos!R145+Prielaidos!R150+Prielaidos!R155+Prielaidos!R160+Prielaidos!R165+Prielaidos!R170+Prielaidos!R175+Prielaidos!R182 -> 146993984.3 | T135: =+Prielaidos!S85+Prielaidos!S94+Prielaidos!S103+Prielaidos!S114+Prielaidos!S120+Prielaidos!S125+Prielaidos!S130+Prielaidos!S136+Prielaidos!S140+Prielaidos!S145+Prielaidos!S150+Prielaidos!S155+Prielaidos!S160+Prielaidos!S165+Prielaidos!S170+Prielaidos!S175+Prielaidos!S182 -> 101292607.1 | U135: =+Prielaidos!T85+Prielaidos!T94+Prielaidos!T103+Prielaidos!T114+Prielaidos!T120+Prielaidos!T125+Prielaidos!T130+Prielaidos!T136+Prielaidos!T140+Prielaidos!T145+Prielaidos!T150+Prielaidos!T155+Prielaidos!T160+Prielaidos!T165+Prielaidos!T170+Prielaidos!T175+Prielaidos!T182 -> 61419426.91 | V135: =+Prielaidos!U85+Prielaidos!U94+Prielaidos!U103+Prielaidos!U114+Prielaidos!U120+Prielaidos!U125+Prielaidos!U130+Prielaidos!U136+Prielaidos!U140+Prielaidos!U145+Prielaidos!U150+Prielaidos!U155+Prielaidos!U160+Prielaidos!U165+Prielaidos!U170+Prielaidos!U175+Prielaidos!U182 -> 32939455.8 | W135: 0 | X135: 0 | Y135: 0 | Z135: 0 | AA135: 0 | AB135: 0 | AC135: 2000 | AD135: 2000 | AE135: 2000 | AF135: 2000 | AG135: 2000 | AH135: 2000 | AI135: 2000 | AJ135: 2000 | AK135: 2000 | AL135: 2000 | AM135: 2000 | AN135: 2000 | AO135: 2000 | AP135: 2000 | AQ135: 2000 | AR135: 0 | AS135: 0 | AT135: 0 | AU135: 0 | AV135: 0 | AW135: 0 | AX135: 0 | AY135: 0 | AZ135: 0 | BA135: 0 | BB135: 0 | BC135: 0 | BD135: 0 | BE135: 0 | BF135: 0 | BG135: 0 | BH135: 0 | BI135: 0 | BJ135: 0 | BK135: 0 | BL135: 0 | BM135: 0 | BN135: 0 | BO135: 0 | BP135: 0 | BQ135: 0 | BR135: 0 | BS135: 0 | BT135: 0 | BU135: 0 | BV135: 0 | BW135: 0 | BX135: 0 | BY135: 0 | BZ135: 0 | CA135: 0 | CB135: 0 | CC135: 0 | CD135: 0 | CE135: 0 | CF135: 0 | CG135: 0 | CH135: 0 | CI135: 0 | CJ135: 0 | CK135: 0 | CL135: 0 | CM135: 0 | CN135: 0 | CO135: 0 | CP135: 0 | CQ135: 0 | CR135: 0 | CS135: 0 | CT135: 0 | CU135: 0 | CV135: 0 | CW135: 0 | CX135: 0 | CY135: 0 | CZ135: 0 | DA135: 0 | DB135: 0 | DC135: 0 | DE135: =COUNTBLANK(H135:DC135) -> 0 | DF135: 28
A136: 110 | B136: =$B$134&"2." -> L.1.2. | F136: =H136+NPV(SD,I136:INDEX(I136:DC136,PAL)) -> 0 | G136: =SUMIF($H$5:$DC$5,"<="&PAL,$H136:$DC136) -> 0 | H136: 0 | I136: 0 | J136: 0 | K136: 0 | L136: 0 | M136: 0 | N136: 0 | O136: 0 | P136: 0 | Q136: 0 | R136: 0 | S136: 0 | T136: 0 | U136: 0 | V136: 0 | W136: 0 | X136: 0 | Y136: 0 | Z136: 0 | AA136: 0 | AB136: 0 | AC136: 0 | AD136: 0 | AE136: 0 | AF136: 0 | AG136: 0 | AH136: 0 | AI136: 0 | AJ136: 0 | AK136: 0 | AL136: 0 | AM136: 0 | AN136: 0 | AO136: 0 | AP136: 0 | AQ136: 0 | AR136: 0 | AS136: 0 | AT136: 0 | AU136: 0 | AV136: 0 | AW136: 0 | AX136: 0 | AY136: 0 | AZ136: 0 | BA136: 0 | BB136: 0 | BC136: 0 | BD136: 0 | BE136: 0 | BF136: 0 | BG136: 0 | BH136: 0 | BI136: 0 | BJ136: 0 | BK136: 0 | BL136: 0 | BM136: 0 | BN136: 0 | BO136: 0 | BP136: 0 | BQ136: 0 | BR136: 0 | BS136: 0 | BT136: 0 | BU136: 0 | BV136: 0 | BW136: 0 | BX136: 0 | BY136: 0 | BZ136: 0 | CA136: 0 | CB136: 0 | CC136: 0 | CD136: 0 | CE136: 0 | CF136: 0 | CG136: 0 | CH136: 0 | CI136: 0 | CJ136: 0 | CK136: 0 | CL136: 0 | CM136: 0 | CN136: 0 | CO136: 0 | CP136: 0 | CQ136: 0 | CR136: 0 | CS136: 0 | CT136: 0 | CU136: 0 | CV136: 0 | CW136: 0 | CX136: 0 | CY136: 0 | CZ136: 0 | DA136: 0 | DB136: 0 | DC136: 0 | DE136: 0 | DF136: 0
A137: 111 | B137: =$B$134&"3." -> L.1.3. | F137: =H137+NPV(SD,I137:INDEX(I137:DC137,PAL)) -> 0 | G137: =SUMIF($H$5:$DC$5,"<="&PAL,$H137:$DC137) -> 0 | H137: 0 | I137: 0 | J137: 0 | K137: 0 | L137: 0 | M137: 0 | N137: 0 | O137: 0 | P137: 0 | Q137: 0 | R137: 0 | S137: 0 | T137: 0 | U137: 0 | V137: 0 | W137: 0 | X137: 0 | Y137: 0 | Z137: 0 | AA137: 0 | AB137: 0 | AC137: 0 | AD137: 0 | AE137: 0 | AF137: 0 | AG137: 0 | AH137: 0 | AI137: 0 | AJ137: 0 | AK137: 0 | AL137: 0 | AM137: 0 | AN137: 0 | AO137: 0 | AP137: 0 | AQ137: 0 | AR137: 0 | AS137: 0 | AT137: 0 | AU137: 0 | AV137: 0 | AW137: 0 | AX137: 0 | AY137: 0 | AZ137: 0 | BA137: 0 | BB137: 0 | BC137: 0 | BD137: 0 | BE137: 0 | BF137: 0 | BG137: 0 | BH137: 0 | BI137: 0 | BJ137: 0 | BK137: 0 | BL137: 0 | BM137: 0 | BN137: 0 | BO137: 0 | BP137: 0 | BQ137: 0 | BR137: 0 | BS137: 0 | BT137: 0 | BU137: 0 | BV137: 0 | BW137: 0 | BX137: 0 | BY137: 0 | BZ137: 0 | CA137: 0 | CB137: 0 | CC137: 0 | CD137: 0 | CE137: 0 | CF137: 0 | CG137: 0 | CH137: 0 | CI137: 0 | CJ137: 0 | CK137: 0 | CL137: 0 | CM137: 0 | CN137: 0 | CO137: 0 | CP137: 0 | CQ137: 0 | CR137: 0 | CS137: 0 | CT137: 0 | CU137: 0 | CV137: 0 | CW137: 0 | CX137: 0 | CY137: 0 | CZ137: 0 | DA137: 0 | DB137: 0 | DC137: 0 | DE137: 0 | DF137: 0
A138: 112 | B138: =$B$134&"4." -> L.1.4. | F138: =H138+NPV(SD,I138:INDEX(I138:DC138,PAL)) -> 0 | G138: =SUMIF($H$5:$DC$5,"<="&PAL,$H138:$DC138) -> 0 | H138: 0 | I138: 0 | J138: 0 | K138: 0 | L138: 0 | M138: 0 | N138: 0 | O138: 0 | P138: 0 | Q138: 0 | R138: 0 | S138: 0 | T138: 0 | U138: 0 | V138: 0 | W138: 0 | X138: 0 | Y138: 0 | Z138: 0 | AA138: 0 | AB138: 0 | AC138: 0 | AD138: 0 | AE138: 0 | AF138: 0 | AG138: 0 | AH138: 0 | AI138: 0 | AJ138: 0 | AK138: 0 | AL138: 0 | AM138: 0 | AN138: 0 | AO138: 0 | AP138: 0 | AQ138: 0 | AR138: 0 | AS138: 0 | AT138: 0 | AU138: 0 | AV138: 0 | AW138: 0 | AX138: 0 | AY138: 0 | AZ138: 0 | BA138: 0 | BB138: 0 | BC138: 0 | BD138: 0 | BE138: 0 | BF138: 0 | BG138: 0 | BH138: 0 | BI138: 0 | BJ138: 0 | BK138: 0 | BL138: 0 | BM138: 0 | BN138: 0 | BO138: 0 | BP138: 0 | BQ138: 0 | BR138: 0 | BS138: 0 | BT138: 0 | BU138: 0 | BV138: 0 | BW138: 0 | BX138: 0 | BY138: 0 | BZ138: 0 | CA138: 0 | CB138: 0 | CC138: 0 | CD138: 0 | CE138: 0 | CF138: 0 | CG138: 0 | CH138: 0 | CI138: 0 | CJ138: 0 | CK138: 0 | CL138: 0 | CM138: 0 | CN138: 0 | CO138: 0 | CP138: 0 | CQ138: 0 | CR138: 0 | CS138: 0 | CT138: 0 | CU138: 0 | CV138: 0 | CW138: 0 | CX138: 0 | CY138: 0 | CZ138: 0 | DA138: 0 | DB138: 0 | DC138: 0 | DE138: 0 | DF138: 0
A139: 113 | B139: =$B$134&"5." -> L.1.5. | F139: =H139+NPV(SD,I139:INDEX(I139:DC139,PAL)) -> 0 | G139: =SUMIF($H$5:$DC$5,"<="&PAL,$H139:$DC139) -> 0 | H139: 0 | I139: 0 | J139: 0 | K139: 0 | L139: 0 | M139: 0 | N139: 0 | O139: 0 | P139: 0 | Q139: 0 | R139: 0 | S139: 0 | T139: 0 | U139: 0 | V139: 0 | W139: 0 | X139: 0 | Y139: 0 | Z139: 0 | AA139: 0 | AB139: 0 | AC139: 0 | AD139: 0 | AE139: 0 | AF139: 0 | AG139: 0 | AH139: 0 | AI139: 0 | AJ139: 0 | AK139: 0 | AL139: 0 | AM139: 0 | AN139: 0 | AO139: 0 | AP139: 0 | AQ139: 0 | AR139: 0 | AS139: 0 | AT139: 0 | AU139: 0 | AV139: 0 | AW139: 0 | AX139: 0 | AY139: 0 | AZ139: 0 | BA139: 0 | BB139: 0 | BC139: 0 | BD139: 0 | BE139: 0 | BF139: 0 | BG139: 0 | BH139: 0 | BI139: 0 | BJ139: 0 | BK139: 0 | BL139: 0 | BM139: 0 | BN139: 0 | BO139: 0 | BP139: 0 | BQ139: 0 | BR139: 0 | BS139: 0 | BT139: 0 | BU139: 0 | BV139: 0 | BW139: 0 | BX139: 0 | BY139: 0 | BZ139: 0 | CA139: 0 | CB139: 0 | CC139: 0 | CD139: 0 | CE139: 0 | CF139: 0 | CG139: 0 | CH139: 0 | CI139: 0 | CJ139: 0 | CK139: 0 | CL139: 0 | CM139: 0 | CN139: 0 | CO139: 0 | CP139: 0 | CQ139: 0 | CR139: 0 | CS139: 0 | CT139: 0 | CU139: 0 | CV139: 0 | CW139: 0 | CX139: 0 | CY139: 0 | CZ139: 0 | DA139: 0 | DB139: 0 | DC139: 0 | DE139: 0 | DF139: 0
A140: 114 | B140: =$B$134&"6." -> L.1.6. | F140: =H140+NPV(SD,I140:INDEX(I140:DC140,PAL)) -> 0 | G140: =SUMIF($H$5:$DC$5,"<="&PAL,$H140:$DC140) -> 0 | H140: 0 | I140: 0 | J140: 0 | K140: 0 | L140: 0 | M140: 0 | N140: 0 | O140: 0 | P140: 0 | Q140: 0 | R140: 0 | S140: 0 | T140: 0 | U140: 0 | V140: 0 | W140: 0 | X140: 0 | Y140: 0 | Z140: 0 | AA140: 0 | AB140: 0 | AC140: 0 | AD140: 0 | AE140: 0 | AF140: 0 | AG140: 0 | AH140: 0 | AI140: 0 | AJ140: 0 | AK140: 0 | AL140: 0 | AM140: 0 | AN140: 0 | AO140: 0 | AP140: 0 | AQ140: 0 | AR140: 0 | AS140: 0 | AT140: 0 | AU140: 0 | AV140: 0 | AW140: 0 | AX140: 0 | AY140: 0 | AZ140: 0 | BA140: 0 | BB140: 0 | BC140: 0 | BD140: 0 | BE140: 0 | BF140: 0 | BG140: 0 | BH140: 0 | BI140: 0 | BJ140: 0 | BK140: 0 | BL140: 0 | BM140: 0 | BN140: 0 | BO140: 0 | BP140: 0 | BQ140: 0 | BR140: 0 | BS140: 0 | BT140: 0 | BU140: 0 | BV140: 0 | BW140: 0 | BX140: 0 | BY140: 0 | BZ140: 0 | CA140: 0 | CB140: 0 | CC140: 0 | CD140: 0 | CE140: 0 | CF140: 0 | CG140: 0 | CH140: 0 | CI140: 0 | CJ140: 0 | CK140: 0 | CL140: 0 | CM140: 0 | CN140: 0 | CO140: 0 | CP140: 0 | CQ140: 0 | CR140: 0 | CS140: 0 | CT140: 0 | CU140: 0 | CV140: 0 | CW140: 0 | CX140: 0 | CY140: 0 | CZ140: 0 | DA140: 0 | DB140: 0 | DC140: 0 | DE140: 0 | DF140: 0
A141: 115 | B141: =$B$134&"7." -> L.1.7. | F141: =H141+NPV(SD,I141:INDEX(I141:DC141,PAL)) -> 0 | G141: =SUMIF($H$5:$DC$5,"<="&PAL,$H141:$DC141) -> 0 | H141: 0 | I141: 0 | J141: 0 | K141: 0 | L141: 0 | M141: 0 | N141: 0 | O141: 0 | P141: 0 | Q141: 0 | R141: 0 | S141: 0 | T141: 0 | U141: 0 | V141: 0 | W141: 0 | X141: 0 | Y141: 0 | Z141: 0 | AA141: 0 | AB141: 0 | AC141: 0 | AD141: 0 | AE141: 0 | AF141: 0 | AG141: 0 | AH141: 0 | AI141: 0 | AJ141: 0 | AK141: 0 | AL141: 0 | AM141: 0 | AN141: 0 | AO141: 0 | AP141: 0 | AQ141: 0 | AR141: 0 | AS141: 0 | AT141: 0 | AU141: 0 | AV141: 0 | AW141: 0 | AX141: 0 | AY141: 0 | AZ141: 0 | BA141: 0 | BB141: 0 | BC141: 0 | BD141: 0 | BE141: 0 | BF141: 0 | BG141: 0 | BH141: 0 | BI141: 0 | BJ141: 0 | BK141: 0 | BL141: 0 | BM141: 0 | BN141: 0 | BO141: 0 | BP141: 0 | BQ141: 0 | BR141: 0 | BS141: 0 | BT141: 0 | BU141: 0 | BV141: 0 | BW141: 0 | BX141: 0 | BY141: 0 | BZ141: 0 | CA141: 0 | CB141: 0 | CC141: 0 | CD141: 0 | CE141: 0 | CF141: 0 | CG141: 0 | CH141: 0 | CI141: 0 | CJ141: 0 | CK141: 0 | CL141: 0 | CM141: 0 | CN141: 0 | CO141: 0 | CP141: 0 | CQ141: 0 | CR141: 0 | CS141: 0 | CT141: 0 | CU141: 0 | CV141: 0 | CW141: 0 | CX141: 0 | CY141: 0 | CZ141: 0 | DA141: 0 | DB141: 0 | DC141: 0 | DE141: 0 | DF141: 0
A142: 116 | B142: L.2. | C142: Socialinio - ekonominio poveikio žala | F142: =SUM(F143:F145) -> 0 | G142: =SUMIF($H$5:$DC$5,"<="&PAL,$H142:$DC142) -> 0 | H142: =SUM(H143:H145) -> 0 | I142: =SUM(I143:I145) -> 0 | J142: 0 | K142: 0 | L142: 0 | M142: 0 | N142: 0 | O142: 0 | P142: 0 | Q142: 0 | R142: 0 | S142: 0 | T142: 0 | U142: 0 | V142: 0 | W142: 0 | X142: 0 | Y142: 0 | Z142: 0 | AA142: 0 | AB142: 0 | AC142: 0 | AD142: 0 | AE142: 0 | AF142: 0 | AG142: 0 | AH142: 0 | AI142: 0 | AJ142: 0 | AK142: 0 | AL142: 0 | AM142: 0 | AN142: 0 | AO142: 0 | AP142: 0 | AQ142: 0 | AR142: 0 | AS142: 0 | AT142: 0 | AU142: 0 | AV142: 0 | AW142: 0 | AX142: 0 | AY142: 0 | AZ142: 0 | BA142: 0 | BB142: 0 | BC142: 0 | BD142: 0 | BE142: 0 | BF142: 0 | BG142: 0 | BH142: 0 | BI142: 0 | BJ142: 0 | BK142: 0 | BL142: 0 | BM142: 0 | BN142: 0 | BO142: 0 | BP142: 0 | BQ142: 0 | BR142: 0 | BS142: 0 | BT142: 0 | BU142: =SUM(BU143:BU145) -> 0 | BV142: 0 | BW142: 0 | BX142: 0 | BY142: 0 | BZ142: 0 | CA142: 0 | CB142: 0 | CC142: 0 | CD142: 0 | CE142: 0 | CF142: 0 | CG142: 0 | CH142: 0 | CI142: 0 | CJ142: 0 | CK142: 0 | CL142: 0 | CM142: 0 | CN142: 0 | CO142: 0 | CP142: 0 | CQ142: 0 | CR142: 0 | CS142: 0 | CT142: 0 | CU142: 0 | CV142: 0 | CW142: 0 | CX142: 0 | CY142: 0 | CZ142: 0 | DA142: 0 | DB142: 0 | DC142: 0 | DF142: 0
A143: 117 | B143: =$B$142&"1." -> L.2.1. | F143: =H143+NPV(SD,I143:INDEX(I143:DC143,PAL)) -> 0 | G143: =SUMIF($H$5:$DC$5,"<="&PAL,$H143:$DC143) -> 0 | H143: 0 | I143: 0 | J143: 0 | K143: 0 | L143: 0 | M143: 0 | N143: 0 | O143: 0 | P143: 0 | Q143: 0 | R143: 0 | S143: 0 | T143: 0 | U143: 0 | V143: 0 | W143: 0 | X143: 0 | Y143: 0 | Z143: 0 | AA143: 0 | AB143: 0 | AC143: 0 | AD143: 0 | AE143: 0 | AF143: 0 | AG143: 0 | AH143: 0 | AI143: 0 | AJ143: 0 | AK143: 0 | AL143: 0 | AM143: 0 | AN143: 0 | AO143: 0 | AP143: 0 | AQ143: 0 | AR143: 0 | AS143: 0 | AT143: 0 | AU143: 0 | AV143: 0 | AW143: 0 | AX143: 0 | AY143: 0 | AZ143: 0 | BA143: 0 | BB143: 0 | BC143: 0 | BD143: 0 | BE143: 0 | BF143: 0 | BG143: 0 | BH143: 0 | BI143: 0 | BJ143: 0 | BK143: 0 | BL143: 0 | BM143: 0 | BN143: 0 | BO143: 0 | BP143: 0 | BQ143: 0 | BR143: 0 | BS143: 0 | BT143: 0 | BU143: 0 | BV143: 0 | BW143: 0 | BX143: 0 | BY143: 0 | BZ143: 0 | CA143: 0 | CB143: 0 | CC143: 0 | CD143: 0 | CE143: 0 | CF143: 0 | CG143: 0 | CH143: 0 | CI143: 0 | CJ143: 0 | CK143: 0 | CL143: 0 | CM143: 0 | CN143: 0 | CO143: 0 | CP143: 0 | CQ143: 0 | CR143: 0 | CS143: 0 | CT143: 0 | CU143: 0 | CV143: 0 | CW143: 0 | CX143: 0 | CY143: 0 | CZ143: 0 | DA143: 0 | DB143: 0 | DC143: 0 | DE143: 0 | DF143: 0
A144: 118 | B144: =$B$142&"2." -> L.2.2. | F144: =H144+NPV(SD,I144:INDEX(I144:DC144,PAL)) -> 0 | G144: =SUMIF($H$5:$DC$5,"<="&PAL,$H144:$DC144) -> 0 | H144: 0 | I144: 0 | J144: 0 | K144: 0 | L144: 0 | M144: 0 | N144: 0 | O144: 0 | P144: 0 | Q144: 0 | R144: 0 | S144: 0 | T144: 0 | U144: 0 | V144: 0 | W144: 0 | X144: 0 | Y144: 0 | Z144: 0 | AA144: 0 | AB144: 0 | AC144: 0 | AD144: 0 | AE144: 0 | AF144: 0 | AG144: 0 | AH144: 0 | AI144: 0 | AJ144: 0 | AK144: 0 | AL144: 0 | AM144: 0 | AN144: 0 | AO144: 0 | AP144: 0 | AQ144: 0 | AR144: 0 | AS144: 0 | AT144: 0 | AU144: 0 | AV144: 0 | AW144: 0 | AX144: 0 | AY144: 0 | AZ144: 0 | BA144: 0 | BB144: 0 | BC144: 0 | BD144: 0 | BE144: 0 | BF144: 0 | BG144: 0 | BH144: 0 | BI144: 0 | BJ144: 0 | BK144: 0 | BL144: 0 | BM144: 0 | BN144: 0 | BO144: 0 | BP144: 0 | BQ144: 0 | BR144: 0 | BS144: 0 | BT144: 0 | BU144: 0 | BV144: 0 | BW144: 0 | BX144: 0 | BY144: 0 | BZ144: 0 | CA144: 0 | CB144: 0 | CC144: 0 | CD144: 0 | CE144: 0 | CF144: 0 | CG144: 0 | CH144: 0 | CI144: 0 | CJ144: 0 | CK144: 0 | CL144: 0 | CM144: 0 | CN144: 0 | CO144: 0 | CP144: 0 | CQ144: 0 | CR144: 0 | CS144: 0 | CT144: 0 | CU144: 0 | CV144: 0 | CW144: 0 | CX144: 0 | CY144: 0 | CZ144: 0 | DA144: 0 | DB144: 0 | DC144: 0 | DE144: 0 | DF144: 0
A145: 119 | B145: =$B$142&"3." -> L.2.3. | F145: =H145+NPV(SD,I145:INDEX(I145:DC145,PAL)) -> 0 | G145: =SUMIF($H$5:$DC$5,"<="&PAL,$H145:$DC145) -> 0 | H145: 0 | I145: 0 | J145: 0 | K145: 0 | L145: 0 | M145: 0 | N145: 0 | O145: 0 | P145: 0 | Q145: 0 | R145: 0 | S145: 0 | T145: 0 | U145: 0 | V145: 0 | W145: 0 | X145: 0 | Y145: 0 | Z145: 0 | AA145: 0 | AB145: 0 | AC145: 0 | AD145: 0 | AE145: 0 | AF145: 0 | AG145: 0 | AH145: 0 | AI145: 0 | AJ145: 0 | AK145: 0 | AL145: 0 | AM145: 0 | AN145: 0 | AO145: 0 | AP145: 0 | AQ145: 0 | AR145: 0 | AS145: 0 | AT145: 0 | AU145: 0 | AV145: 0 | AW145: 0 | AX145: 0 | AY145: 0 | AZ145: 0 | BA145: 0 | BB145: 0 | BC145: 0 | BD145: 0 | BE145: 0 | BF145: 0 | BG145: 0 | BH145: 0 | BI145: 0 | BJ145: 0 | BK145: 0 | BL145: 0 | BM145: 0 | BN145: 0 | BO145: 0 | BP145: 0 | BQ145: 0 | BR145: 0 | BS145: 0 | BT145: 0 | BU145: 0 | BV145: 0 | BW145: 0 | BX145: 0 | BY145: 0 | BZ145: 0 | CA145: 0 | CB145: 0 | CC145: 0 | CD145: 0 | CE145: 0 | CF145: 0 | CG145: 0 | CH145: 0 | CI145: 0 | CJ145: 0 | CK145: 0 | CL145: 0 | CM145: 0 | CN145: 0 | CO145: 0 | CP145: 0 | CQ145: 0 | CR145: 0 | CS145: 0 | CT145: 0 | CU145: 0 | CV145: 0 | CW145: 0 | CX145: 0 | CY145: 0 | CZ145: 0 | DA145: 0 | DB145: 0 | DC145: 0 | DE145: 0 | DF145: 0

Sheet Alternatyva 2 (hidden)
B2: ALTERNATYVA 2
B3: =IF(INDEX(A2_pav,1,1)=0,"",INDEX(A2_pav,1,1)) -> 
B5: EUR | F5: Iš viso | H5: 0 | I5: 1 | J5: 2 | K5: 3 | L5: 4 | M5: 5 | N5: 6 | O5: 7 | P5: 8 | Q5: 9 | R5: 10 | S5: 11 | T5: 12 | U5: 13 | V5: 14 | W5: 15 | X5: 16 | Y5: 17 | Z5: 18 | AA5: 19 | AB5: 20 | AC5: 21 | AD5: 22 | AE5: 23 | AF5: 24 | AG5: 25 | AH5: 26 | AI5: 27 | AJ5: 28 | AK5: 29 | AL5: 30 | AM5: 31 | AN5: 32 | AO5: 33 | AP5: 34 | AQ5: 35 | AR5: 36 | AS5: 37 | AT5: 38 | AU5: 39 | AV5: 40 | AW5: 41 | AX5: 42 | AY5: 43 | AZ5: 44 | BA5: 45 | BB5: 46 | BC5: 47 | BD5: 48 | BE5: 49 | BF5: 50 | BG5: 51 | BH5: 52 | BI5: 53 | BJ5: 54 | BK5: 55 | BL5: 56 | BM5: 57 | BN5: 58 | BO5: 59 | BP5: 60 | BQ5: 61 | BR5: 62 | BS5: 63 | BT5: 64 | BU5: 65 | BV5: 66 | BW5: 67 | BX5: 68 | BY5: 69 | BZ5: 70 | CA5: 71 | CB5: 72 | CC5: 73 | CD5: 74 | CE5: 75 | CF5: 76 | CG5: 77 | CH5: 78 | CI5: 79 | CJ5: 80 | CK5: 81 | CL5: 82 | CM5: 83 | CN5: 84 | CO5: 85 | CP5: 86 | CQ5: 87 | CR5: 88 | CS5: 89 | CT5: 90 | CU5: 91 | CV5: 92 | CW5: 93 | CX5: 94 | CY5: 95 | CZ5: 96 | DA5: 97 | DB5: 98 | DC5: 99
B6: Nr. | C6: Priemonės pinigų srautai | E6: PVM tarifas | F6: Grynoji dabartinė vertė | G6: Reali vertė | H6: =Nuliniai -> 2022 | I6: =$H$6+I5 -> 2023 | J6: =$H$6+J5 -> 2024 | K6: 2025 | L6: 2026 | M6: 2027 | N6: 2028 | O6: 2029 | P6: 2030 | Q6: 2031 | R6: 2032 | S6: 2033 | T6: 2034 | U6: 2035 | V6: 2036 | W6: 2037 | X6: 2038 | Y6: 2039 | Z6: 2040 | AA6: 2041 | AB6: 2042 | AC6: 2043 | AD6: 2044 | AE6: 2045 | AF6: 2046 | AG6: 2047 | AH6: 2048 | AI6: 2049 | AJ6: 2050 | AK6: 2051 | AL6: 2052 | AM6: 2053 | AN6: 2054 | AO6: 2055 | AP6: 2056 | AQ6: 2057 | AR6: 2058 | AS6: 2059 | AT6: 2060 | AU6: 2061 | AV6: 2062 | AW6: 2063 | AX6: 2064 | AY6: 2065 | AZ6: 2066 | BA6: 2067 | BB6: 2068 | BC6: 2069 | BD6: 2070 | BE6: 2071 | BF6: 2072 | BG6: 2073 | BH6: 2074 | BI6: 2075 | BJ6: 2076 | BK6: 2077 | BL6: 2078 | BM6: 2079 | BN6: 2080 | BO6: 2081 | BP6: 2082 | BQ6: 2083 | BR6: 2084 | BS6: 2085 | BT6: 2086 | BU6: 2087 | BV6: =$H$6+BV5 -> 2088 | BW6: 2089 | BX6: 2090 | BY6: 2091 | BZ6: 2092 | CA6: 2093 | CB6: 2094 | CC6: 2095 | CD6: 2096 | CE6: 2097 | CF6: 2098 | CG6: 2099 | CH6: 2100 | CI6: 2101 | CJ6: 2102 | CK6: 2103 | CL6: 2104 | CM6: 2105 | CN6: 2106 | CO6: 2107 | CP6: 2108 | CQ6: 2109 | CR6: 2110 | CS6: 2111 | CT6: 2112 | CU6: 2113 | CV6: 2114 | CW6: 2115 | CX6: 2116 | CY6: 2117 | CZ6: 2118 | DA6: 2119 | DB6: 2120 | DC6: 2121 | DE6: =SUM(DE7:DE133) -> 0 | DF6: =SUM(DF7:DF133) -> 0 | DG6: PVM | DH6: Likutines PVM | DI6: Privati
B7: A. | C7: INVESTICIJOS, REINVESTICIJOS IR GRYNASIS VEIKLOS SRAUTAS | F7: =F8+F9+F103-F115-F127 -> 0 | G7: =SUMIF($H$5:$DC$5,"<="&PAL,$H7:$DC7) -> 0 | H7: =H8+H9+H103-H115-H127 -> 0 | I7: 0 | J7: 0 | K7: 0 | L7: 0 | M7: 0 | N7: 0 | O7: 0 | P7: 0 | Q7: 0 | R7: 0 | S7: 0 | T7: 0 | U7: 0 | V7: 0 | W7: 0 | X7: 0 | Y7: 0 | Z7: 0 | AA7: 0 | AB7: 0 | AC7: 0 | AD7: 0 | AE7: 0 | AF7: 0 | AG7: 0 | AH7: 0 | AI7: 0 | AJ7: 0 | AK7: 0 | AL7: 0 | AM7: 0 | AN7: 0 | AO7: 0 | AP7: 0 | AQ7: 0 | AR7: 0 | AS7: 0 | AT7: 0 | AU7: 0 | AV7: 0 | AW7: 0 | AX7: 0 | AY7: 0 | AZ7: 0 | BA7: 0 | BB7: 0 | BC7: 0 | BD7: 0 | BE7: 0 | BF7: 0 | BG7: 0 | BH7: 0 | BI7: 0 | BJ7: 0 | BK7: 0 | BL7: 0 | BM7: 0 | BN7: 0 | BO7: 0 | BP7: 0 | BQ7: 0 | BR7: 0 | BS7: 0 | BT7: =BT8+BT9+BT103-BT115-BT127 -> 0 | BU7: 0 | BV7: 0 | BW7: 0 | BX7: 0 | BY7: 0 | BZ7: 0 | CA7: 0 | CB7: 0 | CC7: 0 | CD7: 0 | CE7: 0 | CF7: 0 | CG7: 0 | CH7: 0 | CI7: 0 | CJ7: 0 | CK7: 0 | CL7: 0 | CM7: 0 | CN7: 0 | CO7: 0 | CP7: 0 | CQ7: 0 | CR7: 0 | CS7: 0 | CT7: 0 | CU7: 0 | CV7: 0 | CW7: 0 | CX7: 0 | CY7: 0 | CZ7: 0 | DA7: 0 | DB7: 0 | DC7: 0 | DF7: =COUNTIF($H7:$DC7,"<>0") -> 0
B8: B. | C8: REINVESTICIJOS (PO PRIEMONĖS ĮGYVENDINIMO) | F8: =SUM(F21:F22,F34:F35,F47:F48,F61:F62,F74:F75,F87:F88,F100:F101) -> 0 | G8: =SUMIF($H$5:$DC$5,"<="&PAL,$H8:$DC8) -> 0 | H8: =SUM(H21:H22,H34:H35,H47:H48,H61:H62,H74:H75,H87:H88,H100:H101) -> 0 | I8: =SUM(I21:I22,I34:I35,I47:I48,I61:I62,I74:I75,I87:I88,I100:I101) -> 0 | J8: 0 | K8: 0 | L8: 0 | M8: 0 | N8: 0 | O8: 0 | P8: 0 | Q8: 0 | R8: 0 | S8: 0 | T8: 0 | U8: 0 | V8: 0 | W8: 0 | X8: 0 | Y8: 0 | Z8: 0 | AA8: 0 | AB8: 0 | AC8: 0 | AD8: 0 | AE8: 0 | AF8: 0 | AG8: 0 | AH8: 0 | AI8: 0 | AJ8: 0 | AK8: 0 | AL8: 0 | AM8: 0 | AN8: 0 | AO8: 0 | AP8: 0 | AQ8: 0 | AR8: 0 | AS8: 0 | AT8: 0 | AU8: 0 | AV8: 0 | AW8: 0 | AX8: 0 | AY8: 0 | AZ8: 0 | BA8: 0 | BB8: 0 | BC8: 0 | BD8: 0 | BE8: 0 | BF8: 0 | BG8: 0 | BH8: 0 | BI8: 0 | BJ8: 0 | BK8: 0 | BL8: 0 | BM8: 0 | BN8: 0 | BO8: 0 | BP8: 0 | BQ8: 0 | BR8: 0 | BS8: 0 | BT8: 0 | BU8: =SUM(BU21:BU22,BU34:BU35,BU47:BU48,BU61:BU62,BU74:BU75,BU87:BU88,BU100:BU101) -> 0 | BV8: 0 | BW8: 0 | BX8: 0 | BY8: 0 | BZ8: 0 | CA8: 0 | CB8: 0 | CC8: 0 | CD8: 0 | CE8: 0 | CF8: 0 | CG8: 0 | CH8: 0 | CI8: 0 | CJ8: 0 | CK8: 0 | CL8: 0 | CM8: 0 | CN8: 0 | CO8: 0 | CP8: 0 | CQ8: 0 | CR8: 0 | CS8: 0 | CT8: 0 | CU8: 0 | CV8: 0 | CW8: 0 | CX8: 0 | CY8: 0 | CZ8: 0 | DA8: 0 | DB8: 0 | DC8: =SUM(DC21:DC22,DC34:DC35,DC47:DC48,DC61:DC62,DC74:DC75,DC87:DC88,DC100:DC101) -> 0 | DF8: =COUNTIF($H8:$DC8,"<>0") -> 0
B9: C. | C9: PRIEMONĖS INVESTICIJOS | F9: =F10+F50+F90-F8 -> 0 | G9: =SUMIF($H$5:$DC$5,"<="&PAL,$H9:$DC9) -> 0 | H9: =H10+H50+H90-H8 -> 0 | I9: =I10+I50+I90-I8 -> 0 | J9: 0 | K9: 0 | L9: 0 | M9: 0 | N9: 0 | O9: 0 | P9: 0 | Q9: 0 | R9: 0 | S9: 0 | T9: 0 | U9: 0 | V9: 0 | W9: 0 | X9: 0 | Y9: 0 | Z9: 0 | AA9: 0 | AB9: 0 | AC9: 0 | AD9: 0 | AE9: 0 | AF9: 0 | AG9: 0 | AH9: 0 | AI9: 0 | AJ9: 0 | AK9: 0 | AL9: 0 | AM9: 0 | AN9: 0 | AO9: 0 | AP9: 0 | AQ9: 0 | AR9: 0 | AS9: 0 | AT9: 0 | AU9: 0 | AV9: 0 | AW9: 0 | AX9: 0 | AY9: 0 | AZ9: 0 | BA9: 0 | BB9: 0 | BC9: 0 | BD9: 0 | BE9: 0 | BF9: 0 | BG9: 0 | BH9: 0 | BI9: 0 | BJ9: 0 | BK9: 0 | BL9: 0 | BM9: 0 | BN9: 0 | BO9: 0 | BP9: 0 | BQ9: 0 | BR9: 0 | BS9: 0 | BT9: 0 | BU9: =BU10+BU50+BU90-BU8 -> 0 | BV9: 0 | BW9: 0 | BX9: 0 | BY9: 0 | BZ9: 0 | CA9: 0 | CB9: 0 | CC9: 0 | CD9: 0 | CE9: 0 | CF9: 0 | CG9: 0 | CH9: 0 | CI9: 0 | CJ9: 0 | CK9: 0 | CL9: 0 | CM9: 0 | CN9: 0 | CO9: 0 | CP9: 0 | CQ9: 0 | CR9: 0 | CS9: 0 | CT9: 0 | CU9: 0 | CV9: 0 | CW9: 0 | CX9: 0 | CY9: 0 | CZ9: 0 | DA9: 0 | DB9: 0 | DC9: 0 | DF9: 0
B10: D. | C10: REGULIACINĖS IR MIŠRIOS VEIKLOS | F10: =F11+F24+F37 -> 0 | G10: =SUMIF($H$5:$DC$5,"<="&PAL,$H10:$DC10) -> 0 | H10: =H11+H24+H37 -> 0 | I10: =I11+I24+I37 -> 0 | J10: 0 | K10: 0 | L10: 0 | M10: 0 | N10: 0 | O10: 0 | P10: 0 | Q10: 0 | R10: 0 | S10: 0 | T10: 0 | U10: 0 | V10: 0 | W10: 0 | X10: 0 | Y10: 0 | Z10: 0 | AA10: 0 | AB10: 0 | AC10: 0 | AD10: 0 | AE10: 0 | AF10: 0 | AG10: 0 | AH10: 0 | AI10: 0 | AJ10: 0 | AK10: 0 | AL10: 0 | AM10: 0 | AN10: 0 | AO10: 0 | AP10: 0 | AQ10: 0 | AR10: 0 | AS10: 0 | AT10: 0 | AU10: 0 | AV10: 0 | AW10: 0 | AX10: 0 | AY10: 0 | AZ10: 0 | BA10: 0 | BB10: 0 | BC10: 0 | BD10: 0 | BE10: 0 | BF10: 0 | BG10: 0 | BH10: 0 | BI10: 0 | BJ10: 0 | BK10: 0 | BL10: 0 | BM10: 0 | BN10: 0 | BO10: 0 | BP10: 0 | BQ10: 0 | BR10: 0 | BS10: 0 | BT10: 0 | BU10: =BU11+BU24+BU37 -> 0 | BV10: 0 | BW10: 0 | BX10: 0 | BY10: 0 | BZ10: 0 | CA10: 0 | CB10: 0 | CC10: 0 | CD10: 0 | CE10: 0 | CF10: 0 | CG10: 0 | CH10: 0 | CI10: 0 | CJ10: 0 | CK10: 0 | CL10: 0 | CM10: 0 | CN10: 0 | CO10: 0 | CP10: 0 | CQ10: 0 | CR10: 0 | CS10: 0 | CT10: 0 | CU10: 0 | CV10: 0 | CW10: 0 | CX10: 0 | CY10: 0 | CZ10: 0 | DA10: 0 | DB10: 0 | DC10: 0 | DF10: 0
B11: D.1. | C11: Norminės (reguliacinės) | F11: =SUM(F12:F22) -> 0 | G11: =SUMIF($H$5:$DC$5,"<="&PAL,$H11:$DC11) -> 0 | H11: =SUM(H12:H22) -> 0 | I11: =SUM(I12:I22) -> 0 | J11: 0 | K11: =SUM(K12:K22) -> 0 | L11: 0 | M11: 0 | N11: 0 | O11: 0 | P11: 0 | Q11: 0 | R11: 0 | S11: 0 | T11: 0 | U11: 0 | V11: 0 | W11: 0 | X11: 0 | Y11: 0 | Z11: 0 | AA11: 0 | AB11: 0 | AC11: 0 | AD11: 0 | AE11: 0 | AF11: 0 | AG11: 0 | AH11: 0 | AI11: 0 | AJ11: 0 | AK11: 0 | AL11: 0 | AM11: 0 | AN11: 0 | AO11: 0 | AP11: 0 | AQ11: 0 | AR11: 0 | AS11: 0 | AT11: 0 | AU11: 0 | AV11: 0 | AW11: 0 | AX11: 0 | AY11: 0 | AZ11: 0 | BA11: 0 | BB11: 0 | BC11: 0 | BD11: 0 | BE11: 0 | BF11: 0 | BG11: 0 | BH11: 0 | BI11: 0 | BJ11: 0 | BK11: 0 | BL11: 0 | BM11: 0 | BN11: 0 | BO11: 0 | BP11: 0 | BQ11: 0 | BR11: 0 | BS11: 0 | BT11: 0 | BU11: =SUM(BU12:BU22) -> 0 | BV11: 0 | BW11: 0 | BX11: 0 | BY11: 0 | BZ11: 0 | CA11: 0 | CB11: 0 | CC11: 0 | CD11: 0 | CE11: 0 | CF11: 0 | CG11: 0 | CH11: 0 | CI11: 0 | CJ11: 0 | CK11: 0 | CL11: 0 | CM11: 0 | CN11: 0 | CO11: 0 | CP11: 0 | CQ11: 0 | CR11: 0 | CS11: 0 | CT11: 0 | CU11: 0 | CV11: 0 | CW11: 0 | CX11: 0 | CY11: 0 | CZ11: 0 | DA11: 0 | DB11: 0 | DC11: =SUM(DC12:DC22) -> 0 | DF11: 0
B12: D.1.1. | C12: Veikla (nurodykite pavadinimą; suplanuotas investicijas pagrįskite prielaidų lape) | E12: 0.21 | F12: =H12+NPV(FD,I12:INDEX(I12:DC12,PAL)) -> 0 | G12: =SUMIF($H$5:$DC$5,"<="&PAL,$H12:$DC12) -> 0 | H12: 0 | I12: 0 | J12: 0 | K12: 0 | L12: 0 | M12: 0 | N12: 0 | O12: 0 | P12: 0 | Q12: 0 | R12: 0 | S12: 0 | T12: 0 | U12: 0 | V12: 0 | W12: 0 | X12: 0 | Y12: 0 | Z12: 0 | AA12: 0 | AB12: 0 | AC12: 0 | AD12: 0 | AE12: 0 | AF12: 0 | AG12: 0 | AH12: 0 | AI12: 0 | AJ12: 0 | AK12: 0 | AL12: 0 | AM12: 0 | AN12: 0 | AO12: 0 | AP12: 0 | AQ12: 0 | AR12: 0 | AS12: 0 | AT12: 0 | AU12: 0 | AV12: 0 | AW12: 0 | AX12: 0 | AY12: 0 | AZ12: 0 | BA12: 0 | BB12: 0 | BC12: 0 | BD12: 0 | BE12: 0 | BF12: 0 | BG12: 0 | BH12: 0 | BI12: 0 | BJ12: 0 | BK12: 0 | BL12: 0 | BM12: 0 | BN12: 0 | BO12: 0 | BP12: 0 | BQ12: 0 | BR12: 0 | BS12: 0 | BT12: 0 | BU12: 0 | BV12: 0 | BW12: 0 | BX12: 0 | BY12: 0 | BZ12: 0 | CA12: 0 | CB12: 0 | CC12: 0 | CD12: 0 | CE12: 0 | CF12: 0 | CG12: 0 | CH12: 0 | CI12: 0 | CJ12: 0 | CK12: 0 | CL12: 0 | CM12: 0 | CN12: 0 | CO12: 0 | CP12: 0 | CQ12: 0 | CR12: 0 | CS12: 0 | CT12: 0 | CU12: 0 | CV12: 0 | CW12: 0 | CX12: 0 | CY12: 0 | CZ12: 0 | DA12: 0 | DB12: 0 | DC12: 0 | DE12: =COUNTBLANK($H12:$DC12) -> 0 | DF12: =COUNTIF($H12:$DC12,"<>0") -> 0 | DG12: =IF(ISNUMBER(E12),E12*100,0) -> 21 | DH12: 0
B13: D.1.2. | C13: Veikla | E13: 0.21 | F13: =H13+NPV(FD,I13:INDEX(I13:DC13,PAL)) -> 0 | G13: =SUMIF($H$5:$DC$5,"<="&PAL,$H13:$DC13) -> 0 | H13: 0 | I13: 0 | J13: 0 | K13: 0 | L13: 0 | M13: 0 | N13: 0 | O13: 0 | P13: 0 | Q13: 0 | R13: 0 | S13: 0 | T13: 0 | U13: 0 | V13: 0 | W13: 0 | X13: 0 | Y13: 0 | Z13: 0 | AA13: 0 | AB13: 0 | AC13: 0 | AD13: 0 | AE13: 0 | AF13: 0 | AG13: 0 | AH13: 0 | AI13: 0 | AJ13: 0 | AK13: 0 | AL13: 0 | AM13: 0 | AN13: 0 | AO13: 0 | AP13: 0 | AQ13: 0 | AR13: 0 | AS13: 0 | AT13: 0 | AU13: 0 | AV13: 0 | AW13: 0 | AX13: 0 | AY13: 0 | AZ13: 0 | BA13: 0 | BB13: 0 | BC13: 0 | BD13: 0 | BE13: 0 | BF13: 0 | BG13: 0 | BH13: 0 | BI13: 0 | BJ13: 0 | BK13: 0 | BL13: 0 | BM13: 0 | BN13: 0 | BO13: 0 | BP13: 0 | BQ13: 0 | BR13: 0 | BS13: 0 | BT13: 0 | BU13: 0 | BV13: 0 | BW13: 0 | BX13: 0 | BY13: 0 | BZ13: 0 | CA13: 0 | CB13: 0 | CC13: 0 | CD13: 0 | CE13: 0 | CF13: 0 | CG13: 0 | CH13: 0 | CI13: 0 | CJ13: 0 | CK13: 0 | CL13: 0 | CM13: 0 | CN13: 0 | CO13: 0 | CP13: 0 | CQ13: 0 | CR13: 0 | CS13: 0 | CT13: 0 | CU13: 0 | CV13: 0 | CW13: 0 | CX13: 0 | CY13: 0 | CZ13: 0 | DA13: 0 | DB13: 0 | DC13: 0 | DE13: =COUNTBLANK($H13:$DC13) -> 0 | DF13: =COUNTIF($H13:$DC13,"<>0") -> 0 | DG13: 21 | DH13: 0
B14: D.1.3. | C14: Veikla | E14: 0.21 | F14: =H14+NPV(FD,I14:INDEX(I14:DC14,PAL)) -> 0 | G14: =SUMIF($H$5:$DC$5,"<="&PAL,$H14:$DC14) -> 0 | H14: 0 | I14: 0 | J14: 0 | K14: 0 | L14: 0 | M14: 0 | N14: 0 | O14: 0 | P14: 0 | Q14: 0 | R14: 0 | S14: 0 | T14: 0 | U14: 0 | V14: 0 | W14: 0 | X14: 0 | Y14: 0 | Z14: 0 | AA14: 0 | AB14: 0 | AC14: 0 | AD14: 0 | AE14: 0 | AF14: 0 | AG14: 0 | AH14: 0 | AI14: 0 | AJ14: 0 | AK14: 0 | AL14: 0 | AM14: 0 | AN14: 0 | AO14: 0 | AP14: 0 | AQ14: 0 | AR14: 0 | AS14: 0 | AT14: 0 | AU14: 0 | AV14: 0 | AW14: 0 | AX14: 0 | AY14: 0 | AZ14: 0 | BA14: 0 | BB14: 0 | BC14: 0 | BD14: 0 | BE14: 0 | BF14: 0 | BG14: 0 | BH14: 0 | BI14: 0 | BJ14: 0 | BK14: 0 | BL14: 0 | BM14: 0 | BN14: 0 | BO14: 0 | BP14: 0 | BQ14: 0 | BR14: 0 | BS14: 0 | BT14: 0 | BU14: 0 | BV14: 0 | BW14: 0 | BX14: 0 | BY14: 0 | BZ14: 0 | CA14: 0 | CB14: 0 | CC14: 0 | CD14: 0 | CE14: 0 | CF14: 0 | CG14: 0 | CH14: 0 | CI14: 0 | CJ14: 0 | CK14: 0 | CL14: 0 | CM14: 0 | CN14: 0 | CO14: 0 | CP14: 0 | CQ14: 0 | CR14: 0 | CS14: 0 | CT14: 0 | CU14: 0 | CV14: 0 | CW14: 0 | CX14: 0 | CY14: 0 | CZ14: 0 | DA14: 0 | DB14: 0 | DC14: 0 | DE14: 0 | DF14: 0 | DG14: 21 | DH14: 0
B15: D.1.4. | C15: Veikla | E15: 0.21 | F15: =H15+NPV(FD,I15:INDEX(I15:DC15,PAL)) -> 0 | G15: =SUMIF($H$5:$DC$5,"<="&PAL,$H15:$DC15) -> 0 | H15: 0 | I15: 0 | J15: 0 | K15: 0 | L15: 0 | M15: 0 | N15: 0 | O15: 0 | P15: 0 | Q15: 0 | R15: 0 | S15: 0 | T15: 0 | U15: 0 | V15: 0 | W15: 0 | X15: 0 | Y15: 0 | Z15: 0 | AA15: 0 | AB15: 0 | AC15: 0 | AD15: 0 | AE15: 0 | AF15: 0 | AG15: 0 | AH15: 0 | AI15: 0 | AJ15: 0 | AK15: 0 | AL15: 0 | AM15: 0 | AN15: 0 | AO15: 0 | AP15: 0 | AQ15: 0 | AR15: 0 | AS15: 0 | AT15: 0 | AU15: 0 | AV15: 0 | AW15: 0 | AX15: 0 | AY15: 0 | AZ15: 0 | BA15: 0 | BB15: 0 | BC15: 0 | BD15: 0 | BE15: 0 | BF15: 0 | BG15: 0 | BH15: 0 | BI15: 0 | BJ15: 0 | BK15: 0 | BL15: 0 | BM15: 0 | BN15: 0 | BO15: 0 | BP15: 0 | BQ15: 0 | BR15: 0 | BS15: 0 | BT15: 0 | BU15: 0 | BV15: 0 | BW15: 0 | BX15: 0 | BY15: 0 | BZ15: 0 | CA15: 0 | CB15: 0 | CC15: 0 | CD15: 0 | CE15: 0 | CF15: 0 | CG15: 0 | CH15: 0 | CI15: 0 | CJ15: 0 | CK15: 0 | CL15: 0 | CM15: 0 | CN15: 0 | CO15: 0 | CP15: 0 | CQ15: 0 | CR15: 0 | CS15: 0 | CT15: 0 | CU15: 0 | CV15: 0 | CW15: 0 | CX15: 0 | CY15: 0 | CZ15: 0 | DA15: 0 | DB15: 0 | DC15: 0 | DE15: 0 | DF15: 0 | DG15: 21 | DH15: 0
B16: D.1.5. | C16: Veikla | E16: 0.21 | F16: =H16+NPV(FD,I16:INDEX(I16:DC16,PAL)) -> 0 | G16: =SUMIF($H$5:$DC$5,"<="&PAL,$H16:$DC16) -> 0 | H16: 0 | I16: 0 | J16: 0 | K16: 0 | L16: 0 | M16: 0 | N16: 0 | O16: 0 | P16: 0 | Q16: 0 | R16: 0 | S16: 0 | T16: 0 | U16: 0 | V16: 0 | W16: 0 | X16: 0 | Y16: 0 | Z16: 0 | AA16: 0 | AB16: 0 | AC16: 0 | AD16: 0 | AE16: 0 | AF16: 0 | AG16: 0 | AH16: 0 | AI16: 0 | AJ16: 0 | AK16: 0 | AL16: 0 | AM16: 0 | AN16: 0 | AO16: 0 | AP16: 0 | AQ16: 0 | AR16: 0 | AS16: 0 | AT16: 0 | AU16: 0 | AV16: 0 | AW16: 0 | AX16: 0 | AY16: 0 | AZ16: 0 | BA16: 0 | BB16: 0 | BC16: 0 | BD16: 0 | BE16: 0 | BF16: 0 | BG16: 0 | BH16: 0 | BI16: 0 | BJ16: 0 | BK16: 0 | BL16: 0 | BM16: 0 | BN16: 0 | BO16: 0 | BP16: 0 | BQ16: 0 | BR16: 0 | BS16: 0 | BT16: 0 | BU16: 0 | BV16: 0 | BW16: 0 | BX16: 0 | BY16: 0 | BZ16: 0 | CA16: 0 | CB16: 0 | CC16: 0 | CD16: 0 | CE16: 0 | CF16: 0 | CG16: 0 | CH16: 0 | CI16: 0 | CJ16: 0 | CK16: 0 | CL16: 0 | CM16: 0 | CN16: 0 | CO16: 0 | CP16: 0 | CQ16: 0 | CR16: 0 | CS16: 0 | CT16: 0 | CU16: 0 | CV16: 0 | CW16: 0 | CX16: 0 | CY16: 0 | CZ16: 0 | DA16: 0 | DB16: 0 | DC16: 0 | DE16: 0 | DF16: 0 | DG16: 21 | DH16: 0
B17: D.1.6. | C17: Veikla | E17: 0.21 | F17: =H17+NPV(FD,I17:INDEX(I17:DC17,PAL)) -> 0 | G17: =SUMIF($H$5:$DC$5,"<="&PAL,$H17:$DC17) -> 0 | H17: 0 | I17: 0 | J17: 0 | K17: 0 | L17: 0 | M17: 0 | N17: 0 | O17: 0 | P17: 0 | Q17: 0 | R17: 0 | S17: 0 | T17: 0 | U17: 0 | V17: 0 | W17: 0 | X17: 0 | Y17: 0 | Z17: 0 | AA17: 0 | AB17: 0 | AC17: 0 | AD17: 0 | AE17: 0 | AF17: 0 | AG17: 0 | AH17: 0 | AI17: 0 | AJ17: 0 | AK17: 0 | AL17: 0 | AM17: 0 | AN17: 0 | AO17: 0 | AP17: 0 | AQ17: 0 | AR17: 0 | AS17: 0 | AT17: 0 | AU17: 0 | AV17: 0 | AW17: 0 | AX17: 0 | AY17: 0 | AZ17: 0 | BA17: 0 | BB17: 0 | BC17: 0 | BD17: 0 | BE17: 0 | BF17: 0 | BG17: 0 | BH17: 0 | BI17: 0 | BJ17: 0 | BK17: 0 | BL17: 0 | BM17: 0 | BN17: 0 | BO17: 0 | BP17: 0 | BQ17: 0 | BR17: 0 | BS17: 0 | BT17: 0 | BU17: 0 | BV17: 0 | BW17: 0 | BX17: 0 | BY17: 0 | BZ17: 0 | CA17: 0 | CB17: 0 | CC17: 0 | CD17: 0 | CE17: 0 | CF17: 0 | CG17: 0 | CH17: 0 | CI17: 0 | CJ17: 0 | CK17: 0 | CL17: 0 | CM17: 0 | CN17: 0 | CO17: 0 | CP17: 0 | CQ17: 0 | CR17: 0 | CS17: 0 | CT17: 0 | CU17: 0 | CV17: 0 | CW17: 0 | CX17: 0 | CY17: 0 | CZ17: 0 | DA17: 0 | DB17: 0 | DC17: 0 | DE17: 0 | DF17: 0 | DG17: 21 | DH17: 0
B18: D.1.7. | C18: Veikla | E18: 0.21 | F18: =H18+NPV(FD,I18:INDEX(I18:DC18,PAL)) -> 0 | G18: =SUMIF($H$5:$DC$5,"<="&PAL,$H18:$DC18) -> 0 | H18: 0 | I18: 0 | J18: 0 | K18: 0 | L18: 0 | M18: 0 | N18: 0 | O18: 0 | P18: 0 | Q18: 0 | R18: 0 | S18: 0 | T18: 0 | U18: 0 | V18: 0 | W18: 0 | X18: 0 | Y18: 0 | Z18: 0 | AA18: 0 | AB18: 0 | AC18: 0 | AD18: 0 | AE18: 0 | AF18: 0 | AG18: 0 | AH18: 0 | AI18: 0 | AJ18: 0 | AK18: 0 | AL18: 0 | AM18: 0 | AN18: 0 | AO18: 0 | AP18: 0 | AQ18: 0 | AR18: 0 | AS18: 0 | AT18: 0 | AU18: 0 | AV18: 0 | AW18: 0 | AX18: 0 | AY18: 0 | AZ18: 0 | BA18: 0 | BB18: 0 | BC18: 0 | BD18: 0 | BE18: 0 | BF18: 0 | BG18: 0 | BH18: 0 | BI18: 0 | BJ18: 0 | BK18: 0 | BL18: 0 | BM18: 0 | BN18: 0 | BO18: 0 | BP18: 0 | BQ18: 0 | BR18: 0 | BS18: 0 | BT18: 0 | BU18: 0 | BV18: 0 | BW18: 0 | BX18: 0 | BY18: 0 | BZ18: 0 | CA18: 0 | CB18: 0 | CC18: 0 | CD18: 0 | CE18: 0 | CF18: 0 | CG18: 0 | CH18: 0 | CI18: 0 | CJ18: 0 | CK18: 0 | CL18: 0 | CM18: 0 | CN18: 0 | CO18: 0 | CP18: 0 | CQ18: 0 | CR18: 0 | CS18: 0 | CT18: 0 | CU18: 0 | CV18: 0 | CW18: 0 | CX18: 0 | CY18: 0 | CZ18: 0 | DA18: 0 | DB18: 0 | DC18: 0 | DE18: 0 | DF18: 0 | DG18: 21 | DH18: 0
B19: D.1.8. | C19: Veikla | E19: 0.21 | F19: =H19+NPV(FD,I19:INDEX(I19:DC19,PAL)) -> 0 | G19: =SUMIF($H$5:$DC$5,"<="&PAL,$H19:$DC19) -> 0 | H19: 0 | I19: 0 | J19: 0 | K19: 0 | L19: 0 | M19: 0 | N19: 0 | O19: 0 | P19: 0 | Q19: 0 | R19: 0 | S19: 0 | T19: 0 | U19: 0 | V19: 0 | W19: 0 | X19: 0 | Y19: 0 | Z19: 0 | AA19: 0 | AB19: 0 | AC19: 0 | AD19: 0 | AE19: 0 | AF19: 0 | AG19: 0 | AH19: 0 | AI19: 0 | AJ19: 0 | AK19: 0 | AL19: 0 | AM19: 0 | AN19: 0 | AO19: 0 | AP19: 0 | AQ19: 0 | AR19: 0 | AS19: 0 | AT19: 0 | AU19: 0 | AV19: 0 | AW19: 0 | AX19: 0 | AY19: 0 | AZ19: 0 | BA19: 0 | BB19: 0 | BC19: 0 | BD19: 0 | BE19: 0 | BF19: 0 | BG19: 0 | BH19: 0 | BI19: 0 | BJ19: 0 | BK19: 0 | BL19: 0 | BM19: 0 | BN19: 0 | BO19: 0 | BP19: 0 | BQ19: 0 | BR19: 0 | BS19: 0 | BT19: 0 | BU19: 0 | BV19: 0 | BW19: 0 | BX19: 0 | BY19: 0 | BZ19: 0 | CA19: 0 | CB19: 0 | CC19: 0 | CD19: 0 | CE19: 0 | CF19: 0 | CG19: 0 | CH19: 0 | CI19: 0 | CJ19: 0 | CK19: 0 | CL19: 0 | CM19: 0 | CN19: 0 | CO19: 0 | CP19: 0 | CQ19: 0 | CR19: 0 | CS19: 0 | CT19: 0 | CU19: 0 | CV19: 0 | CW19: 0 | CX19: 0 | CY19: 0 | CZ19: 0 | DA19: 0 | DB19: 0 | DC19: 0 | DE19: 0 | DF19: 0 | DG19: 21 | DH19: 0
B20: D.1.9. | C20: Investicijos (privataus ir NVO sektoriaus) | E20: 0.21 | F20: =H20+NPV(FD,I20:INDEX(I20:DC20,PAL)) -> 0 | G20: =SUMIF($H$5:$DC$5,"<="&PAL,$H20:$DC20) -> 0 | H20: 0 | I20: 0 | J20: 0 | K20: 0 | L20: 0 | M20: 0 | N20: 0 | O20: 0 | P20: 0 | Q20: 0 | R20: 0 | S20: 0 | T20: 0 | U20: 0 | V20: 0 | W20: 0 | X20: 0 | Y20: 0 | Z20: 0 | AA20: 0 | AB20: 0 | AC20: 0 | AD20: 0 | AE20: 0 | AF20: 0 | AG20: 0 | AH20: 0 | AI20: 0 | AJ20: 0 | AK20: 0 | AL20: 0 | AM20: 0 | AN20: 0 | AO20: 0 | AP20: 0 | AQ20: 0 | AR20: 0 | AS20: 0 | AT20: 0 | AU20: 0 | AV20: 0 | AW20: 0 | AX20: 0 | AY20: 0 | AZ20: 0 | BA20: 0 | BB20: 0 | BC20: 0 | BD20: 0 | BE20: 0 | BF20: 0 | BG20: 0 | BH20: 0 | BI20: 0 | BJ20: 0 | BK20: 0 | BL20: 0 | BM20: 0 | BN20: 0 | BO20: 0 | BP20: 0 | BQ20: 0 | BR20: 0 | BS20: 0 | BT20: 0 | BU20: 0 | BV20: 0 | BW20: 0 | BX20: 0 | BY20: 0 | BZ20: 0 | CA20: 0 | CB20: 0 | CC20: 0 | CD20: 0 | CE20: 0 | CF20: 0 | CG20: 0 | CH20: 0 | CI20: 0 | CJ20: 0 | CK20: 0 | CL20: 0 | CM20: 0 | CN20: 0 | CO20: 0 | CP20: 0 | CQ20: 0 | CR20: 0 | CS20: 0 | CT20: 0 | CU20: 0 | CV20: 0 | CW20: 0 | CX20: 0 | CY20: 0 | CZ20: 0 | DA20: 0 | DB20: 0 | DC20: 0 | DE20: 0 | DF20: 0 | DG20: 21 | DH20: 0 | DI20: 1
B21: D.1.10. | C21: Reinvesticijos (po priemonės įgyvendinimo) (privataus ir NVO sektoriaus) | E21: 0.21 | F21: =H21+NPV(FD,I21:INDEX(I21:DC21,PAL)) -> 0 | G21: =SUMIF($H$5:$DC$5,"<="&PAL,$H21:$DC21) -> 0 | H21: 0 | I21: 0 | J21: 0 | K21: 0 | L21: 0 | M21: 0 | N21: 0 | O21: 0 | P21: 0 | Q21: 0 | R21: 0 | S21: 0 | T21: 0 | U21: 0 | V21: 0 | W21: 0 | X21: 0 | Y21: 0 | Z21: 0 | AA21: 0 | AB21: 0 | AC21: 0 | AD21: 0 | AE21: 0 | AF21: 0 | AG21: 0 | AH21: 0 | AI21: 0 | AJ21: 0 | AK21: 0 | AL21: 0 | AM21: 0 | AN21: 0 | AO21: 0 | AP21: 0 | AQ21: 0 | AR21: 0 | AS21: 0 | AT21: 0 | AU21: 0 | AV21: 0 | AW21: 0 | AX21: 0 | AY21: 0 | AZ21: 0 | BA21: 0 | BB21: 0 | BC21: 0 | BD21: 0 | BE21: 0 | BF21: 0 | BG21: 0 | BH21: 0 | BI21: 0 | BJ21: 0 | BK21: 0 | BL21: 0 | BM21: 0 | BN21: 0 | BO21: 0 | BP21: 0 | BQ21: 0 | BR21: 0 | BS21: 0 | BT21: 0 | BU21: 0 | BV21: 0 | BW21: 0 | BX21: 0 | BY21: 0 | BZ21: 0 | CA21: 0 | CB21: 0 | CC21: 0 | CD21: 0 | CE21: 0 | CF21: 0 | CG21: 0 | CH21: 0 | CI21: 0 | CJ21: 0 | CK21: 0 | CL21: 0 | CM21: 0 | CN21: 0 | CO21: 0 | CP21: 0 | CQ21: 0 | CR21: 0 | CS21: 0 | CT21: 0 | CU21: 0 | CV21: 0 | CW21: 0 | CX21: 0 | CY21: 0 | CZ21: 0 | DA21: 0 | DB21: 0 | DC21: 0 | DE21: 0 | DF21: 0 | DG21: 21 | DH21: 0 | DI21: 1
B22: D.1.11. | C22: Reinvesticijos (po priemonės įgyvendinimo) (viešojo sektoriaus) | E22: 0.21 | F22: =H22+NPV(FD,I22:INDEX(I22:DC22,PAL)) -> 0 | G22: =SUMIF($H$5:$DC$5,"<="&PAL,$H22:$DC22) -> 0 | H22: 0 | I22: 0 | J22: 0 | K22: 0 | L22: 0 | M22: 0 | N22: 0 | O22: 0 | P22: 0 | Q22: 0 | R22: 0 | S22: 0 | T22: 0 | U22: 0 | V22: 0 | W22: 0 | X22: 0 | Y22: 0 | Z22: 0 | AA22: 0 | AB22: 0 | AC22: 0 | AD22: 0 | AE22: 0 | AF22: 0 | AG22: 0 | AH22: 0 | AI22: 0 | AJ22: 0 | AK22: 0 | AL22: 0 | AM22: 0 | AN22: 0 | AO22: 0 | AP22: 0 | AQ22: 0 | AR22: 0 | AS22: 0 | AT22: 0 | AU22: 0 | AV22: 0 | AW22: 0 | AX22: 0 | AY22: 0 | AZ22: 0 | BA22: 0 | BB22: 0 | BC22: 0 | BD22: 0 | BE22: 0 | BF22: 0 | BG22: 0 | BH22: 0 | BI22: 0 | BJ22: 0 | BK22: 0 | BL22: 0 | BM22: 0 | BN22: 0 | BO22: 0 | BP22: 0 | BQ22: 0 | BR22: 0 | BS22: 0 | BT22: 0 | BU22: 0 | BV22: 0 | BW22: 0 | BX22: 0 | BY22: 0 | BZ22: 0 | CA22: 0 | CB22: 0 | CC22: 0 | CD22: 0 | CE22: 0 | CF22: 0 | CG22: 0 | CH22: 0 | CI22: 0 | CJ22: 0 | CK22: 0 | CL22: 0 | CM22: 0 | CN22: 0 | CO22: 0 | CP22: 0 | CQ22: 0 | CR22: 0 | CS22: 0 | CT22: 0 | CU22: 0 | CV22: 0 | CW22: 0 | CX22: 0 | CY22: 0 | CZ22: 0 | DA22: 0 | DB22: 0 | DC22: 0 | DE22: =COUNTBLANK(H22:DC22) -> 0 | DF22: 0 | DG22: 21 | DH22: 0
B23: D.1.L. | C23: Likutinė vertė | E23: 0.21 | F23: =H23+NPV(FD,I23:INDEX(I23:DC23,PAL)) -> 0 | G23: =SUMIF($H$5:$DC$5,"<="&PAL,$H23:$DC23) -> 0 | H23: 0 | I23: 0 | J23: 0 | K23: 0 | L23: 0 | M23: 0 | N23: 0 | O23: 0 | P23: 0 | Q23: 0 | R23: 0 | S23: 0 | T23: 0 | U23: 0 | V23: 0 | W23: 0 | X23: 0 | Y23: 0 | Z23: 0 | AA23: 0 | AB23: 0 | AC23: 0 | AD23: 0 | AE23: 0 | AF23: 0 | AG23: 0 | AH23: 0 | AI23: 0 | AJ23: 0 | AK23: 0 | AL23: 0 | AM23: 0 | AN23: 0 | AO23: 0 | AP23: 0 | AQ23: 0 | AR23: 0 | AS23: 0 | AT23: 0 | AU23: 0 | AV23: 0 | AW23: 0 | AX23: 0 | AY23: 0 | AZ23: 0 | BA23: 0 | BB23: 0 | BC23: 0 | BD23: 0 | BE23: 0 | BF23: 0 | BG23: 0 | BH23: 0 | BI23: 0 | BJ23: 0 | BK23: 0 | BL23: 0 | BM23: 0 | BN23: 0 | BO23: 0 | BP23: 0 | BQ23: 0 | BR23: 0 | BS23: 0 | BT23: 0 | BU23: 0 | BV23: 0 | BW23: 0 | BX23: 0 | BY23: 0 | BZ23: 0 | CA23: 0 | CB23: 0 | CC23: 0 | CD23: 0 | CE23: 0 | CF23: 0 | CG23: 0 | CH23: 0 | CI23: 0 | CJ23: 0 | CK23: 0 | CL23: 0 | CM23: 0 | CN23: 0 | CO23: 0 | CP23: 0 | CQ23: 0 | CR23: 0 | CS23: 0 | CT23: 0 | CU23: 0 | CV23: 0 | CW23: 0 | CX23: 0 | CY23: 0 | CZ23: 0 | DA23: 0 | DB23: 0 | DC23: 0 | DE23: 0 | DF23: 0 | DG23: 21 | DH23: =DG23/(100+DG23) -> 0.173553719
B24: D.2. | C24: Mokestinės (mišrios) | F24: =SUM(F25:F35) -> 0 | G24: =SUMIF($H$5:$DC$5,"<="&PAL,$H24:$DC24) -> 0 | H24: =SUM(H25:H35) -> 0 | I24: =SUM(I25:I35) -> 0 | J24: 0 | K24: 0 | L24: 0 | M24: 0 | N24: 0 | O24: 0 | P24: 0 | Q24: 0 | R24: 0 | S24: 0 | T24: 0 | U24: 0 | V24: 0 | W24: 0 | X24: 0 | Y24: 0 | Z24: 0 | AA24: 0 | AB24: 0 | AC24: 0 | AD24: 0 | AE24: 0 | AF24: 0 | AG24: 0 | AH24: 0 | AI24: 0 | AJ24: 0 | AK24: 0 | AL24: 0 | AM24: 0 | AN24: 0 | AO24: 0 | AP24: 0 | AQ24: 0 | AR24: 0 | AS24: 0 | AT24: 0 | AU24: 0 | AV24: 0 | AW24: 0 | AX24: 0 | AY24: 0 | AZ24: 0 | BA24: 0 | BB24: 0 | BC24: 0 | BD24: 0 | BE24: 0 | BF24: 0 | BG24: 0 | BH24: 0 | BI24: 0 | BJ24: 0 | BK24: 0 | BL24: 0 | BM24: 0 | BN24: 0 | BO24: 0 | BP24: 0 | BQ24: 0 | BR24: 0 | BS24: 0 | BT24: 0 | BU24: =SUM(BU25:BU35) -> 0 | BV24: 0 | BW24: 0 | BX24: 0 | BY24: 0 | BZ24: 0 | CA24: 0 | CB24: 0 | CC24: 0 | CD24: 0 | CE24: 0 | CF24: 0 | CG24: 0 | CH24: 0 | CI24: 0 | CJ24: 0 | CK24: 0 | CL24: 0 | CM24: 0 | CN24: 0 | CO24: 0 | CP24: 0 | CQ24: 0 | CR24: 0 | CS24: 0 | CT24: 0 | CU24: 0 | CV24: 0 | CW24: 0 | CX24: 0 | CY24: 0 | CZ24: 0 | DA24: =SUM(DA25:DA35) -> 0 | DB24: 0 | DC24: =SUM(DC25:DC35) -> 0 | DF24: 0
B25: D.2.1. | C25: Veikla | E25: 0.21 | F25: =H25+NPV(FD,I25:INDEX(I25:DC25,PAL)) -> 0 | G25: =SUMIF($H$5:$DC$5,"<="&PAL,$H25:$DC25) -> 0 | H25: 0 | I25: 0 | J25: 0 | K25: 0 | L25: 0 | M25: 0 | N25: 0 | O25: 0 | P25: 0 | Q25: 0 | R25: 0 | S25: 0 | T25: 0 | U25: 0 | V25: 0 | W25: 0 | X25: 0 | Y25: 0 | Z25: 0 | AA25: 0 | AB25: 0 | AC25: 0 | AD25: 0 | AE25: 0 | AF25: 0 | AG25: 0 | AH25: 0 | AI25: 0 | AJ25: 0 | AK25: 0 | AL25: 0 | AM25: 0 | AN25: 0 | AO25: 0 | AP25: 0 | AQ25: 0 | AR25: 0 | AS25: 0 | AT25: 0 | AU25: 0 | AV25: 0 | AW25: 0 | AX25: 0 | AY25: 0 | AZ25: 0 | BA25: 0 | BB25: 0 | BC25: 0 | BD25: 0 | BE25: 0 | BF25: 0 | BG25: 0 | BH25: 0 | BI25: 0 | BJ25: 0 | BK25: 0 | BL25: 0 | BM25: 0 | BN25: 0 | BO25: 0 | BP25: 0 | BQ25: 0 | BR25: 0 | BS25: 0 | BT25: 0 | BU25: 0 | BV25: 0 | BW25: 0 | BX25: 0 | BY25: 0 | BZ25: 0 | CA25: 0 | CB25: 0 | CC25: 0 | CD25: 0 | CE25: 0 | CF25: 0 | CG25: 0 | CH25: 0 | CI25: 0 | CJ25: 0 | CK25: 0 | CL25: 0 | CM25: 0 | CN25: 0 | CO25: 0 | CP25: 0 | CQ25: 0 | CR25: 0 | CS25: 0 | CT25: 0 | CU25: 0 | CV25: 0 | CW25: 0 | CX25: 0 | CY25: 0 | CZ25: 0 | DA25: 0 | DB25: 0 | DC25: 0 | DE25: =COUNTBLANK(H25:DC25) -> 0 | DF25: 0 | DG25: =IF(ISNUMBER(E25),E25*100,0) -> 21 | DH25: 0
B26: D.2.2. | C26: Veikla | E26: 0.21 | F26: =H26+NPV(FD,I26:INDEX(I26:DC26,PAL)) -> 0 | G26: =SUMIF($H$5:$DC$5,"<="&PAL,$H26:$DC26) -> 0 | H26: 0 | I26: 0 | J26: 0 | K26: 0 | L26: 0 | M26: 0 | N26: 0 | O26: 0 | P26: 0 | Q26: 0 | R26: 0 | S26: 0 | T26: 0 | U26: 0 | V26: 0 | W26: 0 | X26: 0 | Y26: 0 | Z26: 0 | AA26: 0 | AB26: 0 | AC26: 0 | AD26: 0 | AE26: 0 | AF26: 0 | AG26: 0 | AH26: 0 | AI26: 0 | AJ26: 0 | AK26: 0 | AL26: 0 | AM26: 0 | AN26: 0 | AO26: 0 | AP26: 0 | AQ26: 0 | AR26: 0 | AS26: 0 | AT26: 0 | AU26: 0 | AV26: 0 | AW26: 0 | AX26: 0 | AY26: 0 | AZ26: 0 | BA26: 0 | BB26: 0 | BC26: 0 | BD26: 0 | BE26: 0 | BF26: 0 | BG26: 0 | BH26: 0 | BI26: 0 | BJ26: 0 | BK26: 0 | BL26: 0 | BM26: 0 | BN26: 0 | BO26: 0 | BP26: 0 | BQ26: 0 | BR26: 0 | BS26: 0 | BT26: 0 | BU26: 0 | BV26: 0 | BW26: 0 | BX26: 0 | BY26: 0 | BZ26: 0 | CA26: 0 | CB26: 0 | CC26: 0 | CD26: 0 | CE26: 0 | CF26: 0 | CG26: 0 | CH26: 0 | CI26: 0 | CJ26: 0 | CK26: 0 | CL26: 0 | CM26: 0 | CN26: 0 | CO26: 0 | CP26: 0 | CQ26: 0 | CR26: 0 | CS26: 0 | CT26: 0 | CU26: 0 | CV26: 0 | CW26: 0 | CX26: 0 | CY26: 0 | CZ26: 0 | DA26: 0 | DB26: 0 | DC26: 0 | DE26: =COUNTBLANK(H26:DC26) -> 0 | DF26: 0 | DG26: 21 | DH26: 0
B27: D.2.3. | C27: Veikla | E27: 0.21 | F27: =H27+NPV(FD,I27:INDEX(I27:DC27,PAL)) -> 0 | G27: =SUMIF($H$5:$DC$5,"<="&PAL,$H27:$DC27) -> 0 | H27: 0 | I27: 0 | J27: 0 | K27: 0 | L27: 0 | M27: 0 | N27: 0 | O27: 0 | P27: 0 | Q27: 0 | R27: 0 | S27: 0 | T27: 0 | U27: 0 | V27: 0 | W27: 0 | X27: 0 | Y27: 0 | Z27: 0 | AA27: 0 | AB27: 0 | AC27: 0 | AD27: 0 | AE27: 0 | AF27: 0 | AG27: 0 | AH27: 0 | AI27: 0 | AJ27: 0 | AK27: 0 | AL27: 0 | AM27: 0 | AN27: 0 | AO27: 0 | AP27: 0 | AQ27: 0 | AR27: 0 | AS27: 0 | AT27: 0 | AU27: 0 | AV27: 0 | AW27: 0 | AX27: 0 | AY27: 0 | AZ27: 0 | BA27: 0 | BB27: 0 | BC27: 0 | BD27: 0 | BE27: 0 | BF27: 0 | BG27: 0 | BH27: 0 | BI27: 0 | BJ27: 0 | BK27: 0 | BL27: 0 | BM27: 0 | BN27: 0 | BO27: 0 | BP27: 0 | BQ27: 0 | BR27: 0 | BS27: 0 | BT27: 0 | BU27: 0 | BV27: 0 | BW27: 0 | BX27: 0 | BY27: 0 | BZ27: 0 | CA27: 0 | CB27: 0 | CC27: 0 | CD27: 0 | CE27: 0 | CF27: 0 | CG27: 0 | CH27: 0 | CI27: 0 | CJ27: 0 | CK27: 0 | CL27: 0 | CM27: 0 | CN27: 0 | CO27: 0 | CP27: 0 | CQ27: 0 | CR27: 0 | CS27: 0 | CT27: 0 | CU27: 0 | CV27: 0 | CW27: 0 | CX27: 0 | CY27: 0 | CZ27: 0 | DA27: 0 | DB27: 0 | DC27: 0 | DE27: 0 | DF27: 0 | DG27: 21 | DH27: 0
B28: D.2.4. | C28: Veikla | E28: 0.21 | F28: =H28+NPV(FD,I28:INDEX(I28:DC28,PAL)) -> 0 | G28: =SUMIF($H$5:$DC$5,"<="&PAL,$H28:$DC28) -> 0 | H28: 0 | I28: 0 | J28: 0 | K28: 0 | L28: 0 | M28: 0 | N28: 0 | O28: 0 | P28: 0 | Q28: 0 | R28: 0 | S28: 0 | T28: 0 | U28: 0 | V28: 0 | W28: 0 | X28: 0 | Y28: 0 | Z28: 0 | AA28: 0 | AB28: 0 | AC28: 0 | AD28: 0 | AE28: 0 | AF28: 0 | AG28: 0 | AH28: 0 | AI28: 0 | AJ28: 0 | AK28: 0 | AL28: 0 | AM28: 0 | AN28: 0 | AO28: 0 | AP28: 0 | AQ28: 0 | AR28: 0 | AS28: 0 | AT28: 0 | AU28: 0 | AV28: 0 | AW28: 0 | AX28: 0 | AY28: 0 | AZ28: 0 | BA28: 0 | BB28: 0 | BC28: 0 | BD28: 0 | BE28: 0 | BF28: 0 | BG28: 0 | BH28: 0 | BI28: 0 | BJ28: 0 | BK28: 0 | BL28: 0 | BM28: 0 | BN28: 0 | BO28: 0 | BP28: 0 | BQ28: 0 | BR28: 0 | BS28: 0 | BT28: 0 | BU28: 0 | BV28: 0 | BW28: 0 | BX28: 0 | BY28: 0 | BZ28: 0 | CA28: 0 | CB28: 0 | CC28: 0 | CD28: 0 | CE28: 0 | CF28: 0 | CG28: 0 | CH28: 0 | CI28: 0 | CJ28: 0 | CK28: 0 | CL28: 0 | CM28: 0 | CN28: 0 | CO28: 0 | CP28: 0 | CQ28: 0 | CR28: 0 | CS28: 0 | CT28: 0 | CU28: 0 | CV28: 0 | CW28: 0 | CX28: 0 | CY28: 0 | CZ28: 0 | DA28: 0 | DB28: 0 | DC28: 0 | DE28: 0 | DF28: 0 | DG28: 21 | DH28: 0
B29: D.2.5. | C29: Veikla | E29: 0.21 | F29: =H29+NPV(FD,I29:INDEX(I29:DC29,PAL)) -> 0 | G29: =SUMIF($H$5:$DC$5,"<="&PAL,$H29:$DC29) -> 0 | H29: 0 | I29: 0 | J29: 0 | K29: 0 | L29: 0 | M29: 0 | N29: 0 | O29: 0 | P29: 0 | Q29: 0 | R29: 0 | S29: 0 | T29: 0 | U29: 0 | V29: 0 | W29: 0 | X29: 0 | Y29: 0 | Z29: 0 | AA29: 0 | AB29: 0 | AC29: 0 | AD29: 0 | AE29: 0 | AF29: 0 | AG29: 0 | AH29: 0 | AI29: 0 | AJ29: 0 | AK29: 0 | AL29: 0 | AM29: 0 | AN29: 0 | AO29: 0 | AP29: 0 | AQ29: 0 | AR29: 0 | AS29: 0 | AT29: 0 | AU29: 0 | AV29: 0 | AW29: 0 | AX29: 0 | AY29: 0 | AZ29: 0 | BA29: 0 | BB29: 0 | BC29: 0 | BD29: 0 | BE29: 0 | BF29: 0 | BG29: 0 | BH29: 0 | BI29: 0 | BJ29: 0 | BK29: 0 | BL29: 0 | BM29: 0 | BN29: 0 | BO29: 0 | BP29: 0 | BQ29: 0 | BR29: 0 | BS29: 0 | BT29: 0 | BU29: 0 | BV29: 0 | BW29: 0 | BX29: 0 | BY29: 0 | BZ29: 0 | CA29: 0 | CB29: 0 | CC29: 0 | CD29: 0 | CE29: 0 | CF29: 0 | CG29: 0 | CH29: 0 | CI29: 0 | CJ29: 0 | CK29: 0 | CL29: 0 | CM29: 0 | CN29: 0 | CO29: 0 | CP29: 0 | CQ29: 0 | CR29: 0 | CS29: 0 | CT29: 0 | CU29: 0 | CV29: 0 | CW29: 0 | CX29: 0 | CY29: 0 | CZ29: 0 | DA29: 0 | DB29: 0 | DC29: 0 | DE29: 0 | DF29: 0 | DG29: 21 | DH29: 0
B30: D.2.6. | C30: Veikla | E30: 0.21 | F30: =H30+NPV(FD,I30:INDEX(I30:DC30,PAL)) -> 0 | G30: =SUMIF($H$5:$DC$5,"<="&PAL,$H30:$DC30) -> 0 | H30: 0 | I30: 0 | J30: 0 | K30: 0 | L30: 0 | M30: 0 | N30: 0 | O30: 0 | P30: 0 | Q30: 0 | R30: 0 | S30: 0 | T30: 0 | U30: 0 | V30: 0 | W30: 0 | X30: 0 | Y30: 0 | Z30: 0 | AA30: 0 | AB30: 0 | AC30: 0 | AD30: 0 | AE30: 0 | AF30: 0 | AG30: 0 | AH30: 0 | AI30: 0 | AJ30: 0 | AK30: 0 | AL30: 0 | AM30: 0 | AN30: 0 | AO30: 0 | AP30: 0 | AQ30: 0 | AR30: 0 | AS30: 0 | AT30: 0 | AU30: 0 | AV30: 0 | AW30: 0 | AX30: 0 | AY30: 0 | AZ30: 0 | BA30: 0 | BB30: 0 | BC30: 0 | BD30: 0 | BE30: 0 | BF30: 0 | BG30: 0 | BH30: 0 | BI30: 0 | BJ30: 0 | BK30: 0 | BL30: 0 | BM30: 0 | BN30: 0 | BO30: 0 | BP30: 0 | BQ30: 0 | BR30: 0 | BS30: 0 | BT30: 0 | BU30: 0 | BV30: 0 | BW30: 0 | BX30: 0 | BY30: 0 | BZ30: 0 | CA30: 0 | CB30: 0 | CC30: 0 | CD30: 0 | CE30: 0 | CF30: 0 | CG30: 0 | CH30: 0 | CI30: 0 | CJ30: 0 | CK30: 0 | CL30: 0 | CM30: 0 | CN30: 0 | CO30: 0 | CP30: 0 | CQ30: 0 | CR30: 0 | CS30: 0 | CT30: 0 | CU30: 0 | CV30: 0 | CW30: 0 | CX30: 0 | CY30: 0 | CZ30: 0 | DA30: 0 | DB30: 0 | DC30: 0 | DE30: 0 | DF30: 0 | DG30: 21 | DH30: 0
B31: D.2.7. | C31: Veikla | E31: 0.21 | F31: =H31+NPV(FD,I31:INDEX(I31:DC31,PAL)) -> 0 | G31: =SUMIF($H$5:$DC$5,"<="&PAL,$H31:$DC31) -> 0 | H31: 0 | I31: 0 | J31: 0 | K31: 0 | L31: 0 | M31: 0 | N31: 0 | O31: 0 | P31: 0 | Q31: 0 | R31: 0 | S31: 0 | T31: 0 | U31: 0 | V31: 0 | W31: 0 | X31: 0 | Y31: 0 | Z31: 0 | AA31: 0 | AB31: 0 | AC31: 0 | AD31: 0 | AE31: 0 | AF31: 0 | AG31: 0 | AH31: 0 | AI31: 0 | AJ31: 0 | AK31: 0 | AL31: 0 | AM31: 0 | AN31: 0 | AO31: 0 | AP31: 0 | AQ31: 0 | AR31: 0 | AS31: 0 | AT31: 0 | AU31: 0 | AV31: 0 | AW31: 0 | AX31: 0 | AY31: 0 | AZ31: 0 | BA31: 0 | BB31: 0 | BC31: 0 | BD31: 0 | BE31: 0 | BF31: 0 | BG31: 0 | BH31: 0 | BI31: 0 | BJ31: 0 | BK31: 0 | BL31: 0 | BM31: 0 | BN31: 0 | BO31: 0 | BP31: 0 | BQ31: 0 | BR31: 0 | BS31: 0 | BT31: 0 | BU31: 0 | BV31: 0 | BW31: 0 | BX31: 0 | BY31: 0 | BZ31: 0 | CA31: 0 | CB31: 0 | CC31: 0 | CD31: 0 | CE31: 0 | CF31: 0 | CG31: 0 | CH31: 0 | CI31: 0 | CJ31: 0 | CK31: 0 | CL31: 0 | CM31: 0 | CN31: 0 | CO31: 0 | CP31: 0 | CQ31: 0 | CR31: 0 | CS31: 0 | CT31: 0 | CU31: 0 | CV31: 0 | CW31: 0 | CX31: 0 | CY31: 0 | CZ31: 0 | DA31: 0 | DB31: 0 | DC31: 0 | DE31: 0 | DF31: 0 | DG31: 21 | DH31: 0
B32: D.2.8. | C32: Veikla | E32: 0.21 | F32: =H32+NPV(FD,I32:INDEX(I32:DC32,PAL)) -> 0 | G32: =SUMIF($H$5:$DC$5,"<="&PAL,$H32:$DC32) -> 0 | H32: 0 | I32: 0 | J32: 0 | K32: 0 | L32: 0 | M32: 0 | N32: 0 | O32: 0 | P32: 0 | Q32: 0 | R32: 0 | S32: 0 | T32: 0 | U32: 0 | V32: 0 | W32: 0 | X32: 0 | Y32: 0 | Z32: 0 | AA32: 0 | AB32: 0 | AC32: 0 | AD32: 0 | AE32: 0 | AF32: 0 | AG32: 0 | AH32: 0 | AI32: 0 | AJ32: 0 | AK32: 0 | AL32: 0 | AM32: 0 | AN32: 0 | AO32: 0 | AP32: 0 | AQ32: 0 | AR32: 0 | AS32: 0 | AT32: 0 | AU32: 0 | AV32: 0 | AW32: 0 | AX32: 0 | AY32: 0 | AZ32: 0 | BA32: 0 | BB32: 0 | BC32: 0 | BD32: 0 | BE32: 0 | BF32: 0 | BG32: 0 | BH32: 0 | BI32: 0 | BJ32: 0 | BK32: 0 | BL32: 0 | BM32: 0 | BN32: 0 | BO32: 0 | BP32: 0 | BQ32: 0 | BR32: 0 | BS32: 0 | BT32: 0 | BU32: 0 | BV32: 0 | BW32: 0 | BX32: 0 | BY32: 0 | BZ32: 0 | CA32: 0 | CB32: 0 | CC32: 0 | CD32: 0 | CE32: 0 | CF32: 0 | CG32: 0 | CH32: 0 | CI32: 0 | CJ32: 0 | CK32: 0 | CL32: 0 | CM32: 0 | CN32: 0 | CO32: 0 | CP32: 0 | CQ32: 0 | CR32: 0 | CS32: 0 | CT32: 0 | CU32: 0 | CV32: 0 | CW32: 0 | CX32: 0 | CY32: 0 | CZ32: 0 | DA32: 0 | DB32: 0 | DC32: 0 | DE32: 0 | DF32: 0 | DG32: 21 | DH32: 0
B33: D.2.9. | C33: Investicijos (privataus ir NVO sektoriaus) | E33: 0.21 | F33: =H33+NPV(FD,I33:INDEX(I33:DC33,PAL)) -> 0 | G33: =SUMIF($H$5:$DC$5,"<="&PAL,$H33:$DC33) -> 0 | H33: 0 | I33: 0 | J33: 0 | K33: 0 | L33: 0 | M33: 0 | N33: 0 | O33: 0 | P33: 0 | Q33: 0 | R33: 0 | S33: 0 | T33: 0 | U33: 0 | V33: 0 | W33: 0 | X33: 0 | Y33: 0 | Z33: 0 | AA33: 0 | AB33: 0 | AC33: 0 | AD33: 0 | AE33: 0 | AF33: 0 | AG33: 0 | AH33: 0 | AI33: 0 | AJ33: 0 | AK33: 0 | AL33: 0 | AM33: 0 | AN33: 0 | AO33: 0 | AP33: 0 | AQ33: 0 | AR33: 0 | AS33: 0 | AT33: 0 | AU33: 0 | AV33: 0 | AW33: 0 | AX33: 0 | AY33: 0 | AZ33: 0 | BA33: 0 | BB33: 0 | BC33: 0 | BD33: 0 | BE33: 0 | BF33: 0 | BG33: 0 | BH33: 0 | BI33: 0 | BJ33: 0 | BK33: 0 | BL33: 0 | BM33: 0 | BN33: 0 | BO33: 0 | BP33: 0 | BQ33: 0 | BR33: 0 | BS33: 0 | BT33: 0 | BU33: 0 | BV33: 0 | BW33: 0 | BX33: 0 | BY33: 0 | BZ33: 0 | CA33: 0 | CB33: 0 | CC33: 0 | CD33: 0 | CE33: 0 | CF33: 0 | CG33: 0 | CH33: 0 | CI33: 0 | CJ33: 0 | CK33: 0 | CL33: 0 | CM33: 0 | CN33: 0 | CO33: 0 | CP33: 0 | CQ33: 0 | CR33: 0 | CS33: 0 | CT33: 0 | CU33: 0 | CV33: 0 | CW33: 0 | CX33: 0 | CY33: 0 | CZ33: 0 | DA33: 0 | DB33: 0 | DC33: 0 | DE33: 0 | DF33: 0 | DG33: 21 | DH33: 0 | DI33: 1
B34: D.2.10. | C34: Reinvesticijos (po priemonės įgyvendinimo) (privataus ir NVO sektoriaus) | E34: 0.21 | F34: =H34+NPV(FD,I34:INDEX(I34:DC34,PAL)) -> 0 | G34: =SUMIF($H$5:$DC$5,"<="&PAL,$H34:$DC34) -> 0 | H34: 0 | I34: 0 | J34: 0 | K34: 0 | L34: 0 | M34: 0 | N34: 0 | O34: 0 | P34: 0 | Q34: 0 | R34: 0 | S34: 0 | T34: 0 | U34: 0 | V34: 0 | W34: 0 | X34: 0 | Y34: 0 | Z34: 0 | AA34: 0 | AB34: 0 | AC34: 0 | AD34: 0 | AE34: 0 | AF34: 0 | AG34: 0 | AH34: 0 | AI34: 0 | AJ34: 0 | AK34: 0 | AL34: 0 | AM34: 0 | AN34: 0 | AO34: 0 | AP34: 0 | AQ34: 0 | AR34: 0 | AS34: 0 | AT34: 0 | AU34: 0 | AV34: 0 | AW34: 0 | AX34: 0 | AY34: 0 | AZ34: 0 | BA34: 0 | BB34: 0 | BC34: 0 | BD34: 0 | BE34: 0 | BF34: 0 | BG34: 0 | BH34: 0 | BI34: 0 | BJ34: 0 | BK34: 0 | BL34: 0 | BM34: 0 | BN34: 0 | BO34: 0 | BP34: 0 | BQ34: 0 | BR34: 0 | BS34: 0 | BT34: 0 | BU34: 0 | BV34: 0 | BW34: 0 | BX34: 0 | BY34: 0 | BZ34: 0 | CA34: 0 | CB34: 0 | CC34: 0 | CD34: 0 | CE34: 0 | CF34: 0 | CG34: 0 | CH34: 0 | CI34: 0 | CJ34: 0 | CK34: 0 | CL34: 0 | CM34: 0 | CN34: 0 | CO34: 0 | CP34: 0 | CQ34: 0 | CR34: 0 | CS34: 0 | CT34: 0 | CU34: 0 | CV34: 0 | CW34: 0 | CX34: 0 | CY34: 0 | CZ34: 0 | DA34: 0 | DB34: 0 | DC34: 0 | DE34: 0 | DF34: 0 | DG34: 21 | DH34: 0 | DI34: 1
B35: D.2.11. | C35: Reinvesticijos (po priemonės įgyvendinimo) (viešojo sektoriaus) | E35: 0.21 | F35: =H35+NPV(FD,I35:INDEX(I35:DC35,PAL)) -> 0 | G35: =SUMIF($H$5:$DC$5,"<="&PAL,$H35:$DC35) -> 0 | H35: 0 | I35: 0 | J35: 0 | K35: 0 | L35: 0 | M35: 0 | N35: 0 | O35: 0 | P35: 0 | Q35: 0 | R35: 0 | S35: 0 | T35: 0 | U35: 0 | V35: 0 | W35: 0 | X35: 0 | Y35: 0 | Z35: 0 | AA35: 0 | AB35: 0 | AC35: 0 | AD35: 0 | AE35: 0 | AF35: 0 | AG35: 0 | AH35: 0 | AI35: 0 | AJ35: 0 | AK35: 0 | AL35: 0 | AM35: 0 | AN35: 0 | AO35: 0 | AP35: 0 | AQ35: 0 | AR35: 0 | AS35: 0 | AT35: 0 | AU35: 0 | AV35: 0 | AW35: 0 | AX35: 0 | AY35: 0 | AZ35: 0 | BA35: 0 | BB35: 0 | BC35: 0 | BD35: 0 | BE35: 0 | BF35: 0 | BG35: 0 | BH35: 0 | BI35: 0 | BJ35: 0 | BK35: 0 | BL35: 0 | BM35: 0 | BN35: 0 | BO35: 0 | BP35: 0 | BQ35: 0 | BR35: 0 | BS35: 0 | BT35: 0 | BU35: 0 | BV35: 0 | BW35: 0 | BX35: 0 | BY35: 0 | BZ35: 0 | CA35: 0 | CB35: 0 | CC35: 0 | CD35: 0 | CE35: 0 | CF35: 0 | CG35: 0 | CH35: 0 | CI35: 0 | CJ35: 0 | CK35: 0 | CL35: 0 | CM35: 0 | CN35: 0 | CO35: 0 | CP35: 0 | CQ35: 0 | CR35: 0 | CS35: 0 | CT35: 0 | CU35: 0 | CV35: 0 | CW35: 0 | CX35: 0 | CY35: 0 | CZ35: 0 | DA35: 0 | DB35: 0 | DC35: 0 | DE35: 0 | DF35: 0 | DG35: 21 | DH35: 0
B36: D.2.L. | C36: Likutinė vertė | E36: 0.21 | F36: =H36+NPV(FD,I36:INDEX(I36:DC36,PAL)) -> 0 | G36: =SUMIF($H$5:$DC$5,"<="&PAL,$H36:$DC36) -> 0 | H36: 0 | I36: 0 | J36: 0 | K36: 0 | L36: 0 | M36: 0 | N36: 0 | O36: 0 | P36: 0 | Q36: 0 | R36: 0 | S36: 0 | T36: 0 | U36: 0 | V36: 0 | W36: 0 | X36: 0 | Y36: 0 | Z36: 0 | AA36: 0 | AB36: 0 | AC36: 0 | AD36: 0 | AE36: 0 | AF36: 0 | AG36: 0 | AH36: 0 | AI36: 0 | AJ36: 0 | AK36: 0 | AL36: 0 | AM36: 0 | AN36: 0 | AO36: 0 | AP36: 0 | AQ36: 0 | AR36: 0 | AS36: 0 | AT36: 0 | AU36: 0 | AV36: 0 | AW36: 0 | AX36: 0 | AY36: 0 | AZ36: 0 | BA36: 0 | BB36: 0 | BC36: 0 | BD36: 0 | BE36: 0 | BF36: 0 | BG36: 0 | BH36: 0 | BI36: 0 | BJ36: 0 | BK36: 0 | BL36: 0 | BM36: 0 | BN36: 0 | BO36: 0 | BP36: 0 | BQ36: 0 | BR36: 0 | BS36: 0 | BT36: 0 | BU36: 0 | BV36: 0 | BW36: 0 | BX36: 0 | BY36: 0 | BZ36: 0 | CA36: 0 | CB36: 0 | CC36: 0 | CD36: 0 | CE36: 0 | CF36: 0 | CG36: 0 | CH36: 0 | CI36: 0 | CJ36: 0 | CK36: 0 | CL36: 0 | CM36: 0 | CN36: 0 | CO36: 0 | CP36: 0 | CQ36: 0 | CR36: 0 | CS36: 0 | CT36: 0 | CU36: 0 | CV36: 0 | CW36: 0 | CX36: 0 | CY36: 0 | CZ36: 0 | DA36: 0 | DB36: 0 | DC36: 0 | DE36: 0 | DF36: 0 | DG36: 21 | DH36: =DG36/(100+DG36) -> 0.173553719
B37: D.3. | C37: Finansinės paskatos ir kitos išmokos (mišrios) | F37: =SUM(F38:F48) -> 0 | G37: =SUMIF($H$5:$DC$5,"<="&PAL,$H37:$DC37) -> 0 | H37: =SUM(H38:H48) -> 0 | I37: =SUM(I38:I48) -> 0 | J37: 0 | K37: 0 | L37: 0 | M37: 0 | N37: 0 | O37: 0 | P37: 0 | Q37: 0 | R37: 0 | S37: 0 | T37: 0 | U37: =SUM(U38:U48) -> 0 | V37: 0 | W37: 0 | X37: 0 | Y37: 0 | Z37: 0 | AA37: 0 | AB37: 0 | AC37: 0 | AD37: 0 | AE37: 0 | AF37: 0 | AG37: 0 | AH37: 0 | AI37: 0 | AJ37: 0 | AK37: 0 | AL37: 0 | AM37: 0 | AN37: 0 | AO37: 0 | AP37: 0 | AQ37: 0 | AR37: 0 | AS37: 0 | AT37: 0 | AU37: 0 | AV37: 0 | AW37: 0 | AX37: 0 | AY37: 0 | AZ37: 0 | BA37: 0 | BB37: 0 | BC37: 0 | BD37: 0 | BE37: 0 | BF37: 0 | BG37: 0 | BH37: 0 | BI37: 0 | BJ37: 0 | BK37: 0 | BL37: 0 | BM37: 0 | BN37: 0 | BO37: 0 | BP37: 0 | BQ37: 0 | BR37: 0 | BS37: 0 | BT37: 0 | BU37: =SUM(BU38:BU48) -> 0 | BV37: 0 | BW37: 0 | BX37: 0 | BY37: 0 | BZ37: 0 | CA37: 0 | CB37: 0 | CC37: 0 | CD37: 0 | CE37: 0 | CF37: 0 | CG37: 0 | CH37: 0 | CI37: 0 | CJ37: 0 | CK37: 0 | CL37: 0 | CM37: 0 | CN37: 0 | CO37: 0 | CP37: 0 | CQ37: 0 | CR37: 0 | CS37: 0 | CT37: 0 | CU37: 0 | CV37: 0 | CW37: 0 | CX37: 0 | CY37: 0 | CZ37: 0 | DA37: 0 | DB37: 0 | DC37: =SUM(DC38:DC48) -> 0 | DF37: 0
B38: D.3.1. | C38: Veikla | E38: 0.21 | F38: =H38+NPV(FD,I38:INDEX(I38:DC38,PAL)) -> 0 | G38: =SUMIF($H$5:$DC$5,"<="&PAL,$H38:$DC38) -> 0 | H38: 0 | I38: 0 | J38: 0 | K38: 0 | L38: 0 | M38: 0 | N38: 0 | O38: 0 | P38: 0 | Q38: 0 | R38: 0 | S38: 0 | T38: 0 | U38: 0 | V38: 0 | W38: 0 | X38: 0 | Y38: 0 | Z38: 0 | AA38: 0 | AB38: 0 | AC38: 0 | AD38: 0 | AE38: 0 | AF38: 0 | AG38: 0 | AH38: 0 | AI38: 0 | AJ38: 0 | AK38: 0 | AL38: 0 | AM38: 0 | AN38: 0 | AO38: 0 | AP38: 0 | AQ38: 0 | AR38: 0 | AS38: 0 | AT38: 0 | AU38: 0 | AV38: 0 | AW38: 0 | AX38: 0 | AY38: 0 | AZ38: 0 | BA38: 0 | BB38: 0 | BC38: 0 | BD38: 0 | BE38: 0 | BF38: 0 | BG38: 0 | BH38: 0 | BI38: 0 | BJ38: 0 | BK38: 0 | BL38: 0 | BM38: 0 | BN38: 0 | BO38: 0 | BP38: 0 | BQ38: 0 | BR38: 0 | BS38: 0 | BT38: 0 | BU38: 0 | BV38: 0 | BW38: 0 | BX38: 0 | BY38: 0 | BZ38: 0 | CA38: 0 | CB38: 0 | CC38: 0 | CD38: 0 | CE38: 0 | CF38: 0 | CG38: 0 | CH38: 0 | CI38: 0 | CJ38: 0 | CK38: 0 | CL38: 0 | CM38: 0 | CN38: 0 | CO38: 0 | CP38: 0 | CQ38: 0 | CR38: 0 | CS38: 0 | CT38: 0 | CU38: 0 | CV38: 0 | CW38: 0 | CX38: 0 | CY38: 0 | CZ38: 0 | DA38: 0 | DB38: 0 | DC38: 0 | DE38: =COUNTBLANK(H38:DC38) -> 0 | DF38: 0 | DG38: =IF(ISNUMBER(E38),E38*100,0) -> 21 | DH38: 0
B39: D.3.2. | C39: Veikla | E39: 0.21 | F39: =H39+NPV(FD,I39:INDEX(I39:DC39,PAL)) -> 0 | G39: =SUMIF($H$5:$DC$5,"<="&PAL,$H39:$DC39) -> 0 | H39: 0 | I39: 0 | J39: 0 | K39: 0 | L39: 0 | M39: 0 | N39: 0 | O39: 0 | P39: 0 | Q39: 0 | R39: 0 | S39: 0 | T39: 0 | U39: 0 | V39: 0 | W39: 0 | X39: 0 | Y39: 0 | Z39: 0 | AA39: 0 | AB39: 0 | AC39: 0 | AD39: 0 | AE39: 0 | AF39: 0 | AG39: 0 | AH39: 0 | AI39: 0 | AJ39: 0 | AK39: 0 | AL39: 0 | AM39: 0 | AN39: 0 | AO39: 0 | AP39: 0 | AQ39: 0 | AR39: 0 | AS39: 0 | AT39: 0 | AU39: 0 | AV39: 0 | AW39: 0 | AX39: 0 | AY39: 0 | AZ39: 0 | BA39: 0 | BB39: 0 | BC39: 0 | BD39: 0 | BE39: 0 | BF39: 0 | BG39: 0 | BH39: 0 | BI39: 0 | BJ39: 0 | BK39: 0 | BL39: 0 | BM39: 0 | BN39: 0 | BO39: 0 | BP39: 0 | BQ39: 0 | BR39: 0 | BS39: 0 | BT39: 0 | BU39: 0 | BV39: 0 | BW39: 0 | BX39: 0 | BY39: 0 | BZ39: 0 | CA39: 0 | CB39: 0 | CC39: 0 | CD39: 0 | CE39: 0 | CF39: 0 | CG39: 0 | CH39: 0 | CI39: 0 | CJ39: 0 | CK39: 0 | CL39: 0 | CM39: 0 | CN39: 0 | CO39: 0 | CP39: 0 | CQ39: 0 | CR39: 0 | CS39: 0 | CT39: 0 | CU39: 0 | CV39: 0 | CW39: 0 | CX39: 0 | CY39: 0 | CZ39: 0 | DA39: 0 | DB39: 0 | DC39: 0 | DE39: =COUNTBLANK(H39:DC39) -> 0 | DF39: 0 | DG39: 21 | DH39: 0
B40: D.3.3. | C40: Veikla | E40: 0.21 | F40: =H40+NPV(FD,I40:INDEX(I40:DC40,PAL)) -> 0 | G40: =SUMIF($H$5:$DC$5,"<="&PAL,$H40:$DC40) -> 0 | H40: 0 | I40: 0 | J40: 0 | K40: 0 | L40: 0 | M40: 0 | N40: 0 | O40: 0 | P40: 0 | Q40: 0 | R40: 0 | S40: 0 | T40: 0 | U40: 0 | V40: 0 | W40: 0 | X40: 0 | Y40: 0 | Z40: 0 | AA40: 0 | AB40: 0 | AC40: 0 | AD40: 0 | AE40: 0 | AF40: 0 | AG40: 0 | AH40: 0 | AI40: 0 | AJ40: 0 | AK40: 0 | AL40: 0 | AM40: 0 | AN40: 0 | AO40: 0 | AP40: 0 | AQ40: 0 | AR40: 0 | AS40: 0 | AT40: 0 | AU40: 0 | AV40: 0 | AW40: 0 | AX40: 0 | AY40: 0 | AZ40: 0 | BA40: 0 | BB40: 0 | BC40: 0 | BD40: 0 | BE40: 0 | BF40: 0 | BG40: 0 | BH40: 0 | BI40: 0 | BJ40: 0 | BK40: 0 | BL40: 0 | BM40: 0 | BN40: 0 | BO40: 0 | BP40: 0 | BQ40: 0 | BR40: 0 | BS40: 0 | BT40: 0 | BU40: 0 | BV40: 0 | BW40: 0 | BX40: 0 | BY40: 0 | BZ40: 0 | CA40: 0 | CB40: 0 | CC40: 0 | CD40: 0 | CE40: 0 | CF40: 0 | CG40: 0 | CH40: 0 | CI40: 0 | CJ40: 0 | CK40: 0 | CL40: 0 | CM40: 0 | CN40: 0 | CO40: 0 | CP40: 0 | CQ40: 0 | CR40: 0 | CS40: 0 | CT40: 0 | CU40: 0 | CV40: 0 | CW40: 0 | CX40: 0 | CY40: 0 | CZ40: 0 | DA40: 0 | DB40: 0 | DC40: 0 | DE40: 0 | DF40: 0 | DG40: 21 | DH40: 0
B41: D.3.4. | C41: Veikla | E41: 0.21 | F41: =H41+NPV(FD,I41:INDEX(I41:DC41,PAL)) -> 0 | G41: =SUMIF($H$5:$DC$5,"<="&PAL,$H41:$DC41) -> 0 | H41: 0 | I41: 0 | J41: 0 | K41: 0 | L41: 0 | M41: 0 | N41: 0 | O41: 0 | P41: 0 | Q41: 0 | R41: 0 | S41: 0 | T41: 0 | U41: 0 | V41: 0 | W41: 0 | X41: 0 | Y41: 0 | Z41: 0 | AA41: 0 | AB41: 0 | AC41: 0 | AD41: 0 | AE41: 0 | AF41: 0 | AG41: 0 | AH41: 0 | AI41: 0 | AJ41: 0 | AK41: 0 | AL41: 0 | AM41: 0 | AN41: 0 | AO41: 0 | AP41: 0 | AQ41: 0 | AR41: 0 | AS41: 0 | AT41: 0 | AU41: 0 | AV41: 0 | AW41: 0 | AX41: 0 | AY41: 0 | AZ41: 0 | BA41: 0 | BB41: 0 | BC41: 0 | BD41: 0 | BE41: 0 | BF41: 0 | BG41: 0 | BH41: 0 | BI41: 0 | BJ41: 0 | BK41: 0 | BL41: 0 | BM41: 0 | BN41: 0 | BO41: 0 | BP41: 0 | BQ41: 0 | BR41: 0 | BS41: 0 | BT41: 0 | BU41: 0 | BV41: 0 | BW41: 0 | BX41: 0 | BY41: 0 | BZ41: 0 | CA41: 0 | CB41: 0 | CC41: 0 | CD41: 0 | CE41: 0 | CF41: 0 | CG41: 0 | CH41: 0 | CI41: 0 | CJ41: 0 | CK41: 0 | CL41: 0 | CM41: 0 | CN41: 0 | CO41: 0 | CP41: 0 | CQ41: 0 | CR41: 0 | CS41: 0 | CT41: 0 | CU41: 0 | CV41: 0 | CW41: 0 | CX41: 0 | CY41: 0 | CZ41: 0 | DA41: 0 | DB41: 0 | DC41: 0 | DE41: 0 | DF41: 0 | DG41: 21 | DH41: 0
B42: D.3.5. | C42: Veikla | E42: 0.21 | F42: =H42+NPV(FD,I42:INDEX(I42:DC42,PAL)) -> 0 | G42: =SUMIF($H$5:$DC$5,"<="&PAL,$H42:$DC42) -> 0 | H42: 0 | I42: 0 | J42: 0 | K42: 0 | L42: 0 | M42: 0 | N42: 0 | O42: 0 | P42: 0 | Q42: 0 | R42: 0 | S42: 0 | T42: 0 | U42: 0 | V42: 0 | W42: 0 | X42: 0 | Y42: 0 | Z42: 0 | AA42: 0 | AB42: 0 | AC42: 0 | AD42: 0 | AE42: 0 | AF42: 0 | AG42: 0 | AH42: 0 | AI42: 0 | AJ42: 0 | AK42: 0 | AL42: 0 | AM42: 0 | AN42: 0 | AO42: 0 | AP42: 0 | AQ42: 0 | AR42: 0 | AS42: 0 | AT42: 0 | AU42: 0 | AV42: 0 | AW42: 0 | AX42: 0 | AY42: 0 | AZ42: 0 | BA42: 0 | BB42: 0 | BC42: 0 | BD42: 0 | BE42: 0 | BF42: 0 | BG42: 0 | BH42: 0 | BI42: 0 | BJ42: 0 | BK42: 0 | BL42: 0 | BM42: 0 | BN42: 0 | BO42: 0 | BP42: 0 | BQ42: 0 | BR42: 0 | BS42: 0 | BT42: 0 | BU42: 0 | BV42: 0 | BW42: 0 | BX42: 0 | BY42: 0 | BZ42: 0 | CA42: 0 | CB42: 0 | CC42: 0 | CD42: 0 | CE42: 0 | CF42: 0 | CG42: 0 | CH42: 0 | CI42: 0 | CJ42: 0 | CK42: 0 | CL42: 0 | CM42: 0 | CN42: 0 | CO42: 0 | CP42: 0 | CQ42: 0 | CR42: 0 | CS42: 0 | CT42: 0 | CU42: 0 | CV42: 0 | CW42: 0 | CX42: 0 | CY42: 0 | CZ42: 0 | DA42: 0 | DB42: 0 | DC42: 0 | DE42: 0 | DF42: 0 | DG42: 21 | DH42: 0
B43: D.3.6. | C43: Veikla | E43: 0.21 | F43: =H43+NPV(FD,I43:INDEX(I43:DC43,PAL)) -> 0 | G43: =SUMIF($H$5:$DC$5,"<="&PAL,$H43:$DC43) -> 0 | H43: 0 | I43: 0 | J43: 0 | K43: 0 | L43: 0 | M43: 0 | N43: 0 | O43: 0 | P43: 0 | Q43: 0 | R43: 0 | S43: 0 | T43: 0 | U43: 0 | V43: 0 | W43: 0 | X43: 0 | Y43: 0 | Z43: 0 | AA43: 0 | AB43: 0 | AC43: 0 | AD43: 0 | AE43: 0 | AF43: 0 | AG43: 0 | AH43: 0 | AI43: 0 | AJ43: 0 | AK43: 0 | AL43: 0 | AM43: 0 | AN43: 0 | AO43: 0 | AP43: 0 | AQ43: 0 | AR43: 0 | AS43: 0 | AT43: 0 | AU43: 0 | AV43: 0 | AW43: 0 | AX43: 0 | AY43: 0 | AZ43: 0 | BA43: 0 | BB43: 0 | BC43: 0 | BD43: 0 | BE43: 0 | BF43: 0 | BG43: 0 | BH43: 0 | BI43: 0 | BJ43: 0 | BK43: 0 | BL43: 0 | BM43: 0 | BN43: 0 | BO43: 0 | BP43: 0 | BQ43: 0 | BR43: 0 | BS43: 0 | BT43: 0 | BU43: 0 | BV43: 0 | BW43: 0 | BX43: 0 | BY43: 0 | BZ43: 0 | CA43: 0 | CB43: 0 | CC43: 0 | CD43: 0 | CE43: 0 | CF43: 0 | CG43: 0 | CH43: 0 | CI43: 0 | CJ43: 0 | CK43: 0 | CL43: 0 | CM43: 0 | CN43: 0 | CO43: 0 | CP43: 0 | CQ43: 0 | CR43: 0 | CS43: 0 | CT43: 0 | CU43: 0 | CV43: 0 | CW43: 0 | CX43: 0 | CY43: 0 | CZ43: 0 | DA43: 0 | DB43: 0 | DC43: 0 | DE43: 0 | DF43: 0 | DG43: 21 | DH43: 0
B44: D.3.7. | C44: Veikla | E44: 0.21 | F44: =H44+NPV(FD,I44:INDEX(I44:DC44,PAL)) -> 0 | G44: =SUMIF($H$5:$DC$5,"<="&PAL,$H44:$DC44) -> 0 | H44: 0 | I44: 0 | J44: 0 | K44: 0 | L44: 0 | M44: 0 | N44: 0 | O44: 0 | P44: 0 | Q44: 0 | R44: 0 | S44: 0 | T44: 0 | U44: 0 | V44: 0 | W44: 0 | X44: 0 | Y44: 0 | Z44: 0 | AA44: 0 | AB44: 0 | AC44: 0 | AD44: 0 | AE44: 0 | AF44: 0 | AG44: 0 | AH44: 0 | AI44: 0 | AJ44: 0 | AK44: 0 | AL44: 0 | AM44: 0 | AN44: 0 | AO44: 0 | AP44: 0 | AQ44: 0 | AR44: 0 | AS44: 0 | AT44: 0 | AU44: 0 | AV44: 0 | AW44: 0 | AX44: 0 | AY44: 0 | AZ44: 0 | BA44: 0 | BB44: 0 | BC44: 0 | BD44: 0 | BE44: 0 | BF44: 0 | BG44: 0 | BH44: 0 | BI44: 0 | BJ44: 0 | BK44: 0 | BL44: 0 | BM44: 0 | BN44: 0 | BO44: 0 | BP44: 0 | BQ44: 0 | BR44: 0 | BS44: 0 | BT44: 0 | BU44: 0 | BV44: 0 | BW44: 0 | BX44: 0 | BY44: 0 | BZ44: 0 | CA44: 0 | CB44: 0 | CC44: 0 | CD44: 0 | CE44: 0 | CF44: 0 | CG44: 0 | CH44: 0 | CI44: 0 | CJ44: 0 | CK44: 0 | CL44: 0 | CM44: 0 | CN44: 0 | CO44: 0 | CP44: 0 | CQ44: 0 | CR44: 0 | CS44: 0 | CT44: 0 | CU44: 0 | CV44: 0 | CW44: 0 | CX44: 0 | CY44: 0 | CZ44: 0 | DA44: 0 | DB44: 0 | DC44: 0 | DE44: 0 | DF44: 0 | DG44: 21 | DH44: 0
B45: D.3.8. | C45: Veikla | E45: 0.21 | F45: =H45+NPV(FD,I45:INDEX(I45:DC45,PAL)) -> 0 | G45: =SUMIF($H$5:$DC$5,"<="&PAL,$H45:$DC45) -> 0 | H45: 0 | I45: 0 | J45: 0 | K45: 0 | L45: 0 | M45: 0 | N45: 0 | O45: 0 | P45: 0 | Q45: 0 | R45: 0 | S45: 0 | T45: 0 | U45: 0 | V45: 0 | W45: 0 | X45: 0 | Y45: 0 | Z45: 0 | AA45: 0 | AB45: 0 | AC45: 0 | AD45: 0 | AE45: 0 | AF45: 0 | AG45: 0 | AH45: 0 | AI45: 0 | AJ45: 0 | AK45: 0 | AL45: 0 | AM45: 0 | AN45: 0 | AO45: 0 | AP45: 0 | AQ45: 0 | AR45: 0 | AS45: 0 | AT45: 0 | AU45: 0 | AV45: 0 | AW45: 0 | AX45: 0 | AY45: 0 | AZ45: 0 | BA45: 0 | BB45: 0 | BC45: 0 | BD45: 0 | BE45: 0 | BF45: 0 | BG45: 0 | BH45: 0 | BI45: 0 | BJ45: 0 | BK45: 0 | BL45: 0 | BM45: 0 | BN45: 0 | BO45: 0 | BP45: 0 | BQ45: 0 | BR45: 0 | BS45: 0 | BT45: 0 | BU45: 0 | BV45: 0 | BW45: 0 | BX45: 0 | BY45: 0 | BZ45: 0 | CA45: 0 | CB45: 0 | CC45: 0 | CD45: 0 | CE45: 0 | CF45: 0 | CG45: 0 | CH45: 0 | CI45: 0 | CJ45: 0 | CK45: 0 | CL45: 0 | CM45: 0 | CN45: 0 | CO45: 0 | CP45: 0 | CQ45: 0 | CR45: 0 | CS45: 0 | CT45: 0 | CU45: 0 | CV45: 0 | CW45: 0 | CX45: 0 | CY45: 0 | CZ45: 0 | DA45: 0 | DB45: 0 | DC45: 0 | DE45: 0 | DF45: 0 | DG45: 21 | DH45: 0
B46: D.3.9. | C46: Investicijos (privataus ir NVO sektoriaus) | E46: 0.21 | F46: =H46+NPV(FD,I46:INDEX(I46:DC46,PAL)) -> 0 | G46: =SUMIF($H$5:$DC$5,"<="&PAL,$H46:$DC46) -> 0 | H46: 0 | I46: 0 | J46: 0 | K46: 0 | L46: 0 | M46: 0 | N46: 0 | O46: 0 | P46: 0 | Q46: 0 | R46: 0 | S46: 0 | T46: 0 | U46: 0 | V46: 0 | W46: 0 | X46: 0 | Y46: 0 | Z46: 0 | AA46: 0 | AB46: 0 | AC46: 0 | AD46: 0 | AE46: 0 | AF46: 0 | AG46: 0 | AH46: 0 | AI46: 0 | AJ46: 0 | AK46: 0 | AL46: 0 | AM46: 0 | AN46: 0 | AO46: 0 | AP46: 0 | AQ46: 0 | AR46: 0 | AS46: 0 | AT46: 0 | AU46: 0 | AV46: 0 | AW46: 0 | AX46: 0 | AY46: 0 | AZ46: 0 | BA46: 0 | BB46: 0 | BC46: 0 | BD46: 0 | BE46: 0 | BF46: 0 | BG46: 0 | BH46: 0 | BI46: 0 | BJ46: 0 | BK46: 0 | BL46: 0 | BM46: 0 | BN46: 0 | BO46: 0 | BP46: 0 | BQ46: 0 | BR46: 0 | BS46: 0 | BT46: 0 | BU46: 0 | BV46: 0 | BW46: 0 | BX46: 0 | BY46: 0 | BZ46: 0 | CA46: 0 | CB46: 0 | CC46: 0 | CD46: 0 | CE46: 0 | CF46: 0 | CG46: 0 | CH46: 0 | CI46: 0 | CJ46: 0 | CK46: 0 | CL46: 0 | CM46: 0 | CN46: 0 | CO46: 0 | CP46: 0 | CQ46: 0 | CR46: 0 | CS46: 0 | CT46: 0 | CU46: 0 | CV46: 0 | CW46: 0 | CX46: 0 | CY46: 0 | CZ46: 0 | DA46: 0 | DB46: 0 | DC46: 0 | DE46: 0 | DF46: 0 | DG46: 21 | DH46: 0 | DI46: 1
B47: D.3.10. | C47: Reinvesticijos (po priemonės įgyvendinimo) (privataus ir NVO sektoriaus) | E47: 0.21 | F47: =H47+NPV(FD,I47:INDEX(I47:DC47,PAL)) -> 0 | G47: =SUMIF($H$5:$DC$5,"<="&PAL,$H47:$DC47) -> 0 | H47: 0 | I47: 0 | J47: 0 | K47: 0 | L47: 0 | M47: 0 | N47: 0 | O47: 0 | P47: 0 | Q47: 0 | R47: 0 | S47: 0 | T47: 0 | U47: 0 | V47: 0 | W47: 0 | X47: 0 | Y47: 0 | Z47: 0 | AA47: 0 | AB47: 0 | AC47: 0 | AD47: 0 | AE47: 0 | AF47: 0 | AG47: 0 | AH47: 0 | AI47: 0 | AJ47: 0 | AK47: 0 | AL47: 0 | AM47: 0 | AN47: 0 | AO47: 0 | AP47: 0 | AQ47: 0 | AR47: 0 | AS47: 0 | AT47: 0 | AU47: 0 | AV47: 0 | AW47: 0 | AX47: 0 | AY47: 0 | AZ47: 0 | BA47: 0 | BB47: 0 | BC47: 0 | BD47: 0 | BE47: 0 | BF47: 0 | BG47: 0 | BH47: 0 | BI47: 0 | BJ47: 0 | BK47: 0 | BL47: 0 | BM47: 0 | BN47: 0 | BO47: 0 | BP47: 0 | BQ47: 0 | BR47: 0 | BS47: 0 | BT47: 0 | BU47: 0 | BV47: 0 | BW47: 0 | BX47: 0 | BY47: 0 | BZ47: 0 | CA47: 0 | CB47: 0 | CC47: 0 | CD47: 0 | CE47: 0 | CF47: 0 | CG47: 0 | CH47: 0 | CI47: 0 | CJ47: 0 | CK47: 0 | CL47: 0 | CM47: 0 | CN47: 0 | CO47: 0 | CP47: 0 | CQ47: 0 | CR47: 0 | CS47: 0 | CT47: 0 | CU47: 0 | CV47: 0 | CW47: 0 | CX47: 0 | CY47: 0 | CZ47: 0 | DA47: 0 | DB47: 0 | DC47: 0 | DE47: 0 | DF47: 0 | DG47: 21 | DH47: 0 | DI47: 1
B48: D.3.11. | C48: Reinvesticijos (po priemonės įgyvendinimo) (viešojo sektoriaus) | E48: 0.21 | F48: =H48+NPV(FD,I48:INDEX(I48:DC48,PAL)) -> 0 | G48: =SUMIF($H$5:$DC$5,"<="&PAL,$H48:$DC48) -> 0 | H48: 0 | I48: 0 | J48: 0 | K48: 0 | L48: 0 | M48: 0 | N48: 0 | O48: 0 | P48: 0 | Q48: 0 | R48: 0 | S48: 0 | T48: 0 | U48: 0 | V48: 0 | W48: 0 | X48: 0 | Y48: 0 | Z48: 0 | AA48: 0 | AB48: 0 | AC48: 0 | AD48: 0 | AE48: 0 | AF48: 0 | AG48: 0 | AH48: 0 | AI48: 0 | AJ48: 0 | AK48: 0 | AL48: 0 | AM48: 0 | AN48: 0 | AO48: 0 | AP48: 0 | AQ48: 0 | AR48: 0 | AS48: 0 | AT48: 0 | AU48: 0 | AV48: 0 | AW48: 0 | AX48: 0 | AY48: 0 | AZ48: 0 | BA48: 0 | BB48: 0 | BC48: 0 | BD48: 0 | BE48: 0 | BF48: 0 | BG48: 0 | BH48: 0 | BI48: 0 | BJ48: 0 | BK48: 0 | BL48: 0 | BM48: 0 | BN48: 0 | BO48: 0 | BP48: 0 | BQ48: 0 | BR48: 0 | BS48: 0 | BT48: 0 | BU48: 0 | BV48: 0 | BW48: 0 | BX48: 0 | BY48: 0 | BZ48: 0 | CA48: 0 | CB48: 0 | CC48: 0 | CD48: 0 | CE48: 0 | CF48: 0 | CG48: 0 | CH48: 0 | CI48: 0 | CJ48: 0 | CK48: 0 | CL48: 0 | CM48: 0 | CN48: 0 | CO48: 0 | CP48: 0 | CQ48: 0 | CR48: 0 | CS48: 0 | CT48: 0 | CU48: 0 | CV48: 0 | CW48: 0 | CX48: 0 | CY48: 0 | CZ48: 0 | DA48: 0 | DB48: 0 | DC48: 0 | DE48: 0 | DF48: 0 | DG48: 21 | DH48: 0
B49: D.3.L. | C49: Likutinė vertė | E49: 0.21 | F49: =H49+NPV(FD,I49:INDEX(I49:DC49,PAL)) -> 0 | G49: =SUMIF($H$5:$DC$5,"<="&PAL,$H49:$DC49) -> 0 | H49: 0 | I49: 0 | J49: 0 | K49: 0 | L49: 0 | M49: 0 | N49: 0 | O49: 0 | P49: 0 | Q49: 0 | R49: 0 | S49: 0 | T49: 0 | U49: 0 | V49: 0 | W49: 0 | X49: 0 | Y49: 0 | Z49: 0 | AA49: 0 | AB49: 0 | AC49: 0 | AD49: 0 | AE49: 0 | AF49: 0 | AG49: 0 | AH49: 0 | AI49: 0 | AJ49: 0 | AK49: 0 | AL49: 0 | AM49: 0 | AN49: 0 | AO49: 0 | AP49: 0 | AQ49: 0 | AR49: 0 | AS49: 0 | AT49: 0 | AU49: 0 | AV49: 0 | AW49: 0 | AX49: 0 | AY49: 0 | AZ49: 0 | BA49: 0 | BB49: 0 | BC49: 0 | BD49: 0 | BE49: 0 | BF49: 0 | BG49: 0 | BH49: 0 | BI49: 0 | BJ49: 0 | BK49: 0 | BL49: 0 | BM49: 0 | BN49: 0 | BO49: 0 | BP49: 0 | BQ49: 0 | BR49: 0 | BS49: 0 | BT49: 0 | BU49: 0 | BV49: 0 | BW49: 0 | BX49: 0 | BY49: 0 | BZ49: 0 | CA49: 0 | CB49: 0 | CC49: 0 | CD49: 0 | CE49: 0 | CF49: 0 | CG49: 0 | CH49: 0 | CI49: 0 | CJ49: 0 | CK49: 0 | CL49: 0 | CM49: 0 | CN49: 0 | CO49: 0 | CP49: 0 | CQ49: 0 | CR49: 0 | CS49: 0 | CT49: 0 | CU49: 0 | CV49: 0 | CW49: 0 | CX49: 0 | CY49: 0 | CZ49: 0 | DA49: 0 | DB49: 0 | DC49: 0 | DE49: 0 | DF49: 0 | DG49: 21 | DH49: =DG49/(100+DG49) -> 0.173553719
B50: E. | C50: INVESTICINĖS VEIKLOS | F50: =F51+F64+F77 -> 0 | G50: =SUMIF($H$5:$DC$5,"<="&PAL,$H50:$DC50) -> 0 | H50: =H51+H64+H77 -> 0 | I50: =I51+I64+I77 -> 0 | J50: 0 | K50: 0 | L50: 0 | M50: 0 | N50: 0 | O50: 0 | P50: 0 | Q50: 0 | R50: 0 | S50: 0 | T50: 0 | U50: =U51+U64+U77 -> 0 | V50: 0 | W50: 0 | X50: 0 | Y50: 0 | Z50: 0 | AA50: 0 | AB50: 0 | AC50: 0 | AD50: 0 | AE50: 0 | AF50: 0 | AG50: 0 | AH50: 0 | AI50: 0 | AJ50: 0 | AK50: 0 | AL50: 0 | AM50: 0 | AN50: 0 | AO50: 0 | AP50: 0 | AQ50: 0 | AR50: 0 | AS50: 0 | AT50: 0 | AU50: 0 | AV50: 0 | AW50: 0 | AX50: 0 | AY50: 0 | AZ50: 0 | BA50: 0 | BB50: 0 | BC50: 0 | BD50: 0 | BE50: 0 | BF50: 0 | BG50: 0 | BH50: 0 | BI50: 0 | BJ50: 0 | BK50: 0 | BL50: 0 | BM50: 0 | BN50: 0 | BO50: 0 | BP50: 0 | BQ50: 0 | BR50: 0 | BS50: 0 | BT50: 0 | BU50: =BU51+BU64+BU77 -> 0 | BV50: 0 | BW50: 0 | BX50: 0 | BY50: 0 | BZ50: 0 | CA50: 0 | CB50: 0 | CC50: 0 | CD50: 0 | CE50: 0 | CF50: 0 | CG50: 0 | CH50: 0 | CI50: 0 | CJ50: 0 | CK50: 0 | CL50: 0 | CM50: 0 | CN50: 0 | CO50: 0 | CP50: 0 | CQ50: 0 | CR50: 0 | CS50: 0 | CT50: 0 | CU50: 0 | CV50: 0 | CW50: 0 | CX50: 0 | CY50: 0 | CZ50: 0 | DA50: 0 | DB50: 0 | DC50: 0 | DF50: 0
B51: E.1. | C51: Infrastruktūros vystymas | F51: =SUM(F52:F62) -> 0 | G51: =SUMIF($H$5:$DC$5,"<="&PAL,$H51:$DC51) -> 0 | H51: =SUM(H52:H62) -> 0 | I51: =SUM(I52:I62) -> 0 | J51: 0 | K51: 0 | L51: 0 | M51: 0 | N51: 0 | O51: 0 | P51: 0 | Q51: 0 | R51: 0 | S51: 0 | T51: 0 | U51: 0 | V51: 0 | W51: 0 | X51: 0 | Y51: 0 | Z51: 0 | AA51: 0 | AB51: 0 | AC51: 0 | AD51: 0 | AE51: 0 | AF51: 0 | AG51: 0 | AH51: 0 | AI51: 0 | AJ51: 0 | AK51: 0 | AL51: 0 | AM51: 0 | AN51: 0 | AO51: 0 | AP51: 0 | AQ51: 0 | AR51: 0 | AS51: 0 | AT51: 0 | AU51: 0 | AV51: 0 | AW51: 0 | AX51: 0 | AY51: 0 | AZ51: 0 | BA51: 0 | BB51: 0 | BC51: 0 | BD51: 0 | BE51: 0 | BF51: 0 | BG51: 0 | BH51: 0 | BI51: 0 | BJ51: 0 | BK51: 0 | BL51: 0 | BM51: 0 | BN51: 0 | BO51: 0 | BP51: 0 | BQ51: 0 | BR51: 0 | BS51: 0 | BT51: 0 | BU51: =SUM(BU52:BU62) -> 0 | BV51: 0 | BW51: 0 | BX51: 0 | BY51: 0 | BZ51: 0 | CA51: 0 | CB51: 0 | CC51: 0 | CD51: 0 | CE51: 0 | CF51: 0 | CG51: 0 | CH51: 0 | CI51: 0 | CJ51: 0 | CK51: 0 | CL51: 0 | CM51: 0 | CN51: 0 | CO51: 0 | CP51: 0 | CQ51: 0 | CR51: 0 | CS51: 0 | CT51: 0 | CU51: 0 | CV51: 0 | CW51: 0 | CX51: 0 | CY51: 0 | CZ51: 0 | DA51: 0 | DB51: 0 | DC51: 0 | DF51: 0
B52: E.1.1. | C52: Veikla | E52: 0.21 | F52: =H52+NPV(FD,I52:INDEX(I52:DC52,PAL)) -> 0 | G52: =SUMIF($H$5:$DC$5,"<="&PAL,$H52:$DC52) -> 0 | H52: 0 | I52: 0 | J52: 0 | K52: 0 | L52: 0 | M52: 0 | N52: 0 | O52: 0 | P52: 0 | Q52: 0 | R52: 0 | S52: 0 | T52: 0 | U52: 0 | V52: 0 | W52: 0 | X52: 0 | Y52: 0 | Z52: 0 | AA52: 0 | AB52: 0 | AC52: 0 | AD52: 0 | AE52: 0 | AF52: 0 | AG52: 0 | AH52: 0 | AI52: 0 | AJ52: 0 | AK52: 0 | AL52: 0 | AM52: 0 | AN52: 0 | AO52: 0 | AP52: 0 | AQ52: 0 | AR52: 0 | AS52: 0 | AT52: 0 | AU52: 0 | AV52: 0 | AW52: 0 | AX52: 0 | AY52: 0 | AZ52: 0 | BA52: 0 | BB52: 0 | BC52: 0 | BD52: 0 | BE52: 0 | BF52: 0 | BG52: 0 | BH52: 0 | BI52: 0 | BJ52: 0 | BK52: 0 | BL52: 0 | BM52: 0 | BN52: 0 | BO52: 0 | BP52: 0 | BQ52: 0 | BR52: 0 | BS52: 0 | BT52: 0 | BU52: 0 | BV52: 0 | BW52: 0 | BX52: 0 | BY52: 0 | BZ52: 0 | CA52: 0 | CB52: 0 | CC52: 0 | CD52: 0 | CE52: 0 | CF52: 0 | CG52: 0 | CH52: 0 | CI52: 0 | CJ52: 0 | CK52: 0 | CL52: 0 | CM52: 0 | CN52: 0 | CO52: 0 | CP52: 0 | CQ52: 0 | CR52: 0 | CS52: 0 | CT52: 0 | CU52: 0 | CV52: 0 | CW52: 0 | CX52: 0 | CY52: 0 | CZ52: 0 | DA52: 0 | DB52: 0 | DC52: 0 | DE52: =COUNTBLANK(H52:DC52) -> 0 | DF52: 0 | DG52: =IF(ISNUMBER(E52),E52*100,0) -> 21 | DH52: 0
B53: E.1.2. | C53: Veikla | E53: 0.21 | F53: =H53+NPV(FD,I53:INDEX(I53:DC53,PAL)) -> 0 | G53: =SUMIF($H$5:$DC$5,"<="&PAL,$H53:$DC53) -> 0 | H53: 0 | I53: 0 | J53: 0 | K53: 0 | L53: 0 | M53: 0 | N53: 0 | O53: 0 | P53: 0 | Q53: 0 | R53: 0 | S53: 0 | T53: 0 | U53: 0 | V53: 0 | W53: 0 | X53: 0 | Y53: 0 | Z53: 0 | AA53: 0 | AB53: 0 | AC53: 0 | AD53: 0 | AE53: 0 | AF53: 0 | AG53: 0 | AH53: 0 | AI53: 0 | AJ53: 0 | AK53: 0 | AL53: 0 | AM53: 0 | AN53: 0 | AO53: 0 | AP53: 0 | AQ53: 0 | AR53: 0 | AS53: 0 | AT53: 0 | AU53: 0 | AV53: 0 | AW53: 0 | AX53: 0 | AY53: 0 | AZ53: 0 | BA53: 0 | BB53: 0 | BC53: 0 | BD53: 0 | BE53: 0 | BF53: 0 | BG53: 0 | BH53: 0 | BI53: 0 | BJ53: 0 | BK53: 0 | BL53: 0 | BM53: 0 | BN53: 0 | BO53: 0 | BP53: 0 | BQ53: 0 | BR53: 0 | BS53: 0 | BT53: 0 | BU53: 0 | BV53: 0 | BW53: 0 | BX53: 0 | BY53: 0 | BZ53: 0 | CA53: 0 | CB53: 0 | CC53: 0 | CD53: 0 | CE53: 0 | CF53: 0 | CG53: 0 | CH53: 0 | CI53: 0 | CJ53: 0 | CK53: 0 | CL53: 0 | CM53: 0 | CN53: 0 | CO53: 0 | CP53: 0 | CQ53: 0 | CR53: 0 | CS53: 0 | CT53: 0 | CU53: 0 | CV53: 0 | CW53: 0 | CX53: 0 | CY53: 0 | CZ53: 0 | DA53: 0 | DB53: 0 | DC53: 0 | DE53: =COUNTBLANK(H53:DC53) -> 0 | DF53: 0 | DG53: 21 | DH53: 0
B54: E.1.3. | C54: Veikla | E54: 0.21 | F54: =H54+NPV(FD,I54:INDEX(I54:DC54,PAL)) -> 0 | G54: =SUMIF($H$5:$DC$5,"<="&PAL,$H54:$DC54) -> 0 | H54: 0 | I54: 0 | J54: 0 | K54: 0 | L54: 0 | M54: 0 | N54: 0 | O54: 0 | P54: 0 | Q54: 0 | R54: 0 | S54: 0 | T54: 0 | U54: 0 | V54: 0 | W54: 0 | X54: 0 | Y54: 0 | Z54: 0 | AA54: 0 | AB54: 0 | AC54: 0 | AD54: 0 | AE54: 0 | AF54: 0 | AG54: 0 | AH54: 0 | AI54: 0 | AJ54: 0 | AK54: 0 | AL54: 0 | AM54: 0 | AN54: 0 | AO54: 0 | AP54: 0 | AQ54: 0 | AR54: 0 | AS54: 0 | AT54: 0 | AU54: 0 | AV54: 0 | AW54: 0 | AX54: 0 | AY54: 0 | AZ54: 0 | BA54: 0 | BB54: 0 | BC54: 0 | BD54: 0 | BE54: 0 | BF54: 0 | BG54: 0 | BH54: 0 | BI54: 0 | BJ54: 0 | BK54: 0 | BL54: 0 | BM54: 0 | BN54: 0 | BO54: 0 | BP54: 0 | BQ54: 0 | BR54: 0 | BS54: 0 | BT54: 0 | BU54: 0 | BV54: 0 | BW54: 0 | BX54: 0 | BY54: 0 | BZ54: 0 | CA54: 0 | CB54: 0 | CC54: 0 | CD54: 0 | CE54: 0 | CF54: 0 | CG54: 0 | CH54: 0 | CI54: 0 | CJ54: 0 | CK54: 0 | CL54: 0 | CM54: 0 | CN54: 0 | CO54: 0 | CP54: 0 | CQ54: 0 | CR54: 0 | CS54: 0 | CT54: 0 | CU54: 0 | CV54: 0 | CW54: 0 | CX54: 0 | CY54: 0 | CZ54: 0 | DA54: 0 | DB54: 0 | DC54: 0 | DE54: 0 | DF54: 0 | DG54: 21 | DH54: 0
B55: E.1.4. | C55: Veikla | E55: 0.21 | F55: =H55+NPV(FD,I55:INDEX(I55:DC55,PAL)) -> 0 | G55: =SUMIF($H$5:$DC$5,"<="&PAL,$H55:$DC55) -> 0 | H55: 0 | I55: 0 | J55: 0 | K55: 0 | L55: 0 | M55: 0 | N55: 0 | O55: 0 | P55: 0 | Q55: 0 | R55: 0 | S55: 0 | T55: 0 | U55: 0 | V55: 0 | W55: 0 | X55: 0 | Y55: 0 | Z55: 0 | AA55: 0 | AB55: 0 | AC55: 0 | AD55: 0 | AE55: 0 | AF55: 0 | AG55: 0 | AH55: 0 | AI55: 0 | AJ55: 0 | AK55: 0 | AL55: 0 | AM55: 0 | AN55: 0 | AO55: 0 | AP55: 0 | AQ55: 0 | AR55: 0 | AS55: 0 | AT55: 0 | AU55: 0 | AV55: 0 | AW55: 0 | AX55: 0 | AY55: 0 | AZ55: 0 | BA55: 0 | BB55: 0 | BC55: 0 | BD55: 0 | BE55: 0 | BF55: 0 | BG55: 0 | BH55: 0 | BI55: 0 | BJ55: 0 | BK55: 0 | BL55: 0 | BM55: 0 | BN55: 0 | BO55: 0 | BP55: 0 | BQ55: 0 | BR55: 0 | BS55: 0 | BT55: 0 | BU55: 0 | BV55: 0 | BW55: 0 | BX55: 0 | BY55: 0 | BZ55: 0 | CA55: 0 | CB55: 0 | CC55: 0 | CD55: 0 | CE55: 0 | CF55: 0 | CG55: 0 | CH55: 0 | CI55: 0 | CJ55: 0 | CK55: 0 | CL55: 0 | CM55: 0 | CN55: 0 | CO55: 0 | CP55: 0 | CQ55: 0 | CR55: 0 | CS55: 0 | CT55: 0 | CU55: 0 | CV55: 0 | CW55: 0 | CX55: 0 | CY55: 0 | CZ55: 0 | DA55: 0 | DB55: 0 | DC55: 0 | DE55: 0 | DF55: 0 | DG55: 21 | DH55: 0
B56: E.1.5. | C56: Veikla | E56: 0.21 | F56: =H56+NPV(FD,I56:INDEX(I56:DC56,PAL)) -> 0 | G56: =SUMIF($H$5:$DC$5,"<="&PAL,$H56:$DC56) -> 0 | H56: 0 | I56: 0 | J56: 0 | K56: 0 | L56: 0 | M56: 0 | N56: 0 | O56: 0 | P56: 0 | Q56: 0 | R56: 0 | S56: 0 | T56: 0 | U56: 0 | V56: 0 | W56: 0 | X56: 0 | Y56: 0 | Z56: 0 | AA56: 0 | AB56: 0 | AC56: 0 | AD56: 0 | AE56: 0 | AF56: 0 | AG56: 0 | AH56: 0 | AI56: 0 | AJ56: 0 | AK56: 0 | AL56: 0 | AM56: 0 | AN56: 0 | AO56: 0 | AP56: 0 | AQ56: 0 | AR56: 0 | AS56: 0 | AT56: 0 | AU56: 0 | AV56: 0 | AW56: 0 | AX56: 0 | AY56: 0 | AZ56: 0 | BA56: 0 | BB56: 0 | BC56: 0 | BD56: 0 | BE56: 0 | BF56: 0 | BG56: 0 | BH56: 0 | BI56: 0 | BJ56: 0 | BK56: 0 | BL56: 0 | BM56: 0 | BN56: 0 | BO56: 0 | BP56: 0 | BQ56: 0 | BR56: 0 | BS56: 0 | BT56: 0 | BU56: 0 | BV56: 0 | BW56: 0 | BX56: 0 | BY56: 0 | BZ56: 0 | CA56: 0 | CB56: 0 | CC56: 0 | CD56: 0 | CE56: 0 | CF56: 0 | CG56: 0 | CH56: 0 | CI56: 0 | CJ56: 0 | CK56: 0 | CL56: 0 | CM56: 0 | CN56: 0 | CO56: 0 | CP56: 0 | CQ56: 0 | CR56: 0 | CS56: 0 | CT56: 0 | CU56: 0 | CV56: 0 | CW56: 0 | CX56: 0 | CY56: 0 | CZ56: 0 | DA56: 0 | DB56: 0 | DC56: 0 | DE56: 0 | DF56: 0 | DG56: 21 | DH56: 0
B57: E.1.6. | C57: Veikla | E57: 0.21 | F57: =H57+NPV(FD,I57:INDEX(I57:DC57,PAL)) -> 0 | G57: =SUMIF($H$5:$DC$5,"<="&PAL,$H57:$DC57) -> 0 | H57: 0 | I57: 0 | J57: 0 | K57: 0 | L57: 0 | M57: 0 | N57: 0 | O57: 0 | P57: 0 | Q57: 0 | R57: 0 | S57: 0 | T57: 0 | U57: 0 | V57: 0 | W57: 0 | X57: 0 | Y57: 0 | Z57: 0 | AA57: 0 | AB57: 0 | AC57: 0 | AD57: 0 | AE57: 0 | AF57: 0 | AG57: 0 | AH57: 0 | AI57: 0 | AJ57: 0 | AK57: 0 | AL57: 0 | AM57: 0 | AN57: 0 | AO57: 0 | AP57: 0 | AQ57: 0 | AR57: 0 | AS57: 0 | AT57: 0 | AU57: 0 | AV57: 0 | AW57: 0 | AX57: 0 | AY57: 0 | AZ57: 0 | BA57: 0 | BB57: 0 | BC57: 0 | BD57: 0 | BE57: 0 | BF57: 0 | BG57: 0 | BH57: 0 | BI57: 0 | BJ57: 0 | BK57: 0 | BL57: 0 | BM57: 0 | BN57: 0 | BO57: 0 | BP57: 0 | BQ57: 0 | BR57: 0 | BS57: 0 | BT57: 0 | BU57: 0 | BV57: 0 | BW57: 0 | BX57: 0 | BY57: 0 | BZ57: 0 | CA57: 0 | CB57: 0 | CC57: 0 | CD57: 0 | CE57: 0 | CF57: 0 | CG57: 0 | CH57: 0 | CI57: 0 | CJ57: 0 | CK57: 0 | CL57: 0 | CM57: 0 | CN57: 0 | CO57: 0 | CP57: 0 | CQ57: 0 | CR57: 0 | CS57: 0 | CT57: 0 | CU57: 0 | CV57: 0 | CW57: 0 | CX57: 0 | CY57: 0 | CZ57: 0 | DA57: 0 | DB57: 0 | DC57: 0 | DE57: 0 | DF57: 0 | DG57: 21 | DH57: 0
B58: E.1.7. | C58: Veikla | E58: 0.21 | F58: =H58+NPV(FD,I58:INDEX(I58:DC58,PAL)) -> 0 | G58: =SUMIF($H$5:$DC$5,"<="&PAL,$H58:$DC58) -> 0 | H58: 0 | I58: 0 | J58: 0 | K58: 0 | L58: 0 | M58: 0 | N58: 0 | O58: 0 | P58: 0 | Q58: 0 | R58: 0 | S58: 0 | T58: 0 | U58: 0 | V58: 0 | W58: 0 | X58: 0 | Y58: 0 | Z58: 0 | AA58: 0 | AB58: 0 | AC58: 0 | AD58: 0 | AE58: 0 | AF58: 0 | AG58: 0 | AH58: 0 | AI58: 0 | AJ58: 0 | AK58: 0 | AL58: 0 | AM58: 0 | AN58: 0 | AO58: 0 | AP58: 0 | AQ58: 0 | AR58: 0 | AS58: 0 | AT58: 0 | AU58: 0 | AV58: 0 | AW58: 0 | AX58: 0 | AY58: 0 | AZ58: 0 | BA58: 0 | BB58: 0 | BC58: 0 | BD58: 0 | BE58: 0 | BF58: 0 | BG58: 0 | BH58: 0 | BI58: 0 | BJ58: 0 | BK58: 0 | BL58: 0 | BM58: 0 | BN58: 0 | BO58: 0 | BP58: 0 | BQ58: 0 | BR58: 0 | BS58: 0 | BT58: 0 | BU58: 0 | BV58: 0 | BW58: 0 | BX58: 0 | BY58: 0 | BZ58: 0 | CA58: 0 | CB58: 0 | CC58: 0 | CD58: 0 | CE58: 0 | CF58: 0 | CG58: 0 | CH58: 0 | CI58: 0 | CJ58: 0 | CK58: 0 | CL58: 0 | CM58: 0 | CN58: 0 | CO58: 0 | CP58: 0 | CQ58: 0 | CR58: 0 | CS58: 0 | CT58: 0 | CU58: 0 | CV58: 0 | CW58: 0 | CX58: 0 | CY58: 0 | CZ58: 0 | DA58: 0 | DB58: 0 | DC58: 0 | DE58: 0 | DF58: 0 | DG58: 21 | DH58: 0
B59: E.1.8. | C59: Veikla | E59: 0.21 | F59: =H59+NPV(FD,I59:INDEX(I59:DC59,PAL)) -> 0 | G59: =SUMIF($H$5:$DC$5,"<="&PAL,$H59:$DC59) -> 0 | H59: 0 | I59: 0 | J59: 0 | K59: 0 | L59: 0 | M59: 0 | N59: 0 | O59: 0 | P59: 0 | Q59: 0 | R59: 0 | S59: 0 | T59: 0 | U59: 0 | V59: 0 | W59: 0 | X59: 0 | Y59: 0 | Z59: 0 | AA59: 0 | AB59: 0 | AC59: 0 | AD59: 0 | AE59: 0 | AF59: 0 | AG59: 0 | AH59: 0 | AI59: 0 | AJ59: 0 | AK59: 0 | AL59: 0 | AM59: 0 | AN59: 0 | AO59: 0 | AP59: 0 | AQ59: 0 | AR59: 0 | AS59: 0 | AT59: 0 | AU59: 0 | AV59: 0 | AW59: 0 | AX59: 0 | AY59: 0 | AZ59: 0 | BA59: 0 | BB59: 0 | BC59: 0 | BD59: 0 | BE59: 0 | BF59: 0 | BG59: 0 | BH59: 0 | BI59: 0 | BJ59: 0 | BK59: 0 | BL59: 0 | BM59: 0 | BN59: 0 | BO59: 0 | BP59: 0 | BQ59: 0 | BR59: 0 | BS59: 0 | BT59: 0 | BU59: 0 | BV59: 0 | BW59: 0 | BX59: 0 | BY59: 0 | BZ59: 0 | CA59: 0 | CB59: 0 | CC59: 0 | CD59: 0 | CE59: 0 | CF59: 0 | CG59: 0 | CH59: 0 | CI59: 0 | CJ59: 0 | CK59: 0 | CL59: 0 | CM59: 0 | CN59: 0 | CO59: 0 | CP59: 0 | CQ59: 0 | CR59: 0 | CS59: 0 | CT59: 0 | CU59: 0 | CV59: 0 | CW59: 0 | CX59: 0 | CY59: 0 | CZ59: 0 | DA59: 0 | DB59: 0 | DC59: 0 | DE59: 0 | DF59: 0 | DG59: 21 | DH59: 0
B60: E.1.9. | C60: Investicijos (privataus ir NVO sektoriaus) | E60: 0.21 | F60: =H60+NPV(FD,I60:INDEX(I60:DC60,PAL)) -> 0 | G60: =SUMIF($H$5:$DC$5,"<="&PAL,$H60:$DC60) -> 0 | H60: 0 | I60: 0 | J60: 0 | K60: 0 | L60: 0 | M60: 0 | N60: 0 | O60: 0 | P60: 0 | Q60: 0 | R60: 0 | S60: 0 | T60: 0 | U60: 0 | V60: 0 | W60: 0 | X60: 0 | Y60: 0 | Z60: 0 | AA60: 0 | AB60: 0 | AC60: 0 | AD60: 0 | AE60: 0 | AF60: 0 | AG60: 0 | AH60: 0 | AI60: 0 | AJ60: 0 | AK60: 0 | AL60: 0 | AM60: 0 | AN60: 0 | AO60: 0 | AP60: 0 | AQ60: 0 | AR60: 0 | AS60: 0 | AT60: 0 | AU60: 0 | AV60: 0 | AW60: 0 | AX60: 0 | AY60: 0 | AZ60: 0 | BA60: 0 | BB60: 0 | BC60: 0 | BD60: 0 | BE60: 0 | BF60: 0 | BG60: 0 | BH60: 0 | BI60: 0 | BJ60: 0 | BK60: 0 | BL60: 0 | BM60: 0 | BN60: 0 | BO60: 0 | BP60: 0 | BQ60: 0 | BR60: 0 | BS60: 0 | BT60: 0 | BU60: 0 | BV60: 0 | BW60: 0 | BX60: 0 | BY60: 0 | BZ60: 0 | CA60: 0 | CB60: 0 | CC60: 0 | CD60: 0 | CE60: 0 | CF60: 0 | CG60: 0 | CH60: 0 | CI60: 0 | CJ60: 0 | CK60: 0 | CL60: 0 | CM60: 0 | CN60: 0 | CO60: 0 | CP60: 0 | CQ60: 0 | CR60: 0 | CS60: 0 | CT60: 0 | CU60: 0 | CV60: 0 | CW60: 0 | CX60: 0 | CY60: 0 | CZ60: 0 | DA60: 0 | DB60: 0 | DC60: 0 | DE60: 0 | DF60: 0 | DG60: 21 | DH60: 0 | DI60: 1
B61: E.1.10. | C61: Reinvesticijos (po priemonės įgyvendinimo) (privataus ir NVO sektoriaus) | E61: 0.21 | F61: =H61+NPV(FD,I61:INDEX(I61:DC61,PAL)) -> 0 | G61: =SUMIF($H$5:$DC$5,"<="&PAL,$H61:$DC61) -> 0 | H61: 0 | I61: 0 | J61: 0 | K61: 0 | L61: 0 | M61: 0 | N61: 0 | O61: 0 | P61: 0 | Q61: 0 | R61: 0 | S61: 0 | T61: 0 | U61: 0 | V61: 0 | W61: 0 | X61: 0 | Y61: 0 | Z61: 0 | AA61: 0 | AB61: 0 | AC61: 0 | AD61: 0 | AE61: 0 | AF61: 0 | AG61: 0 | AH61: 0 | AI61: 0 | AJ61: 0 | AK61: 0 | AL61: 0 | AM61: 0 | AN61: 0 | AO61: 0 | AP61: 0 | AQ61: 0 | AR61: 0 | AS61: 0 | AT61: 0 | AU61: 0 | AV61: 0 | AW61: 0 | AX61: 0 | AY61: 0 | AZ61: 0 | BA61: 0 | BB61: 0 | BC61: 0 | BD61: 0 | BE61: 0 | BF61: 0 | BG61: 0 | BH61: 0 | BI61: 0 | BJ61: 0 | BK61: 0 | BL61: 0 | BM61: 0 | BN61: 0 | BO61: 0 | BP61: 0 | BQ61: 0 | BR61: 0 | BS61: 0 | BT61: 0 | BU61: 0 | BV61: 0 | BW61: 0 | BX61: 0 | BY61: 0 | BZ61: 0 | CA61: 0 | CB61: 0 | CC61: 0 | CD61: 0 | CE61: 0 | CF61: 0 | CG61: 0 | CH61: 0 | CI61: 0 | CJ61: 0 | CK61: 0 | CL61: 0 | CM61: 0 | CN61: 0 | CO61: 0 | CP61: 0 | CQ61: 0 | CR61: 0 | CS61: 0 | CT61: 0 | CU61: 0 | CV61: 0 | CW61: 0 | CX61: 0 | CY61: 0 | CZ61: 0 | DA61: 0 | DB61: 0 | DC61: 0 | DE61: 0 | DF61: 0 | DG61: 21 | DH61: 0 | DI61: 1
B62: E.1.11. | C62: Reinvesticijos (po priemonės įgyvendinimo) (viešojo sektoriaus) | E62: 0.21 | F62: =H62+NPV(FD,I62:INDEX(I62:DC62,PAL)) -> 0 | G62: =SUMIF($H$5:$DC$5,"<="&PAL,$H62:$DC62) -> 0 | H62: 0 | I62: 0 | J62: 0 | K62: 0 | L62: 0 | M62: 0 | N62: 0 | O62: 0 | P62: 0 | Q62: 0 | R62: 0 | S62: 0 | T62: 0 | U62: 0 | V62: 0 | W62: 0 | X62: 0 | Y62: 0 | Z62: 0 | AA62: 0 | AB62: 0 | AC62: 0 | AD62: 0 | AE62: 0 | AF62: 0 | AG62: 0 | AH62: 0 | AI62: 0 | AJ62: 0 | AK62: 0 | AL62: 0 | AM62: 0 | AN62: 0 | AO62: 0 | AP62: 0 | AQ62: 0 | AR62: 0 | AS62: 0 | AT62: 0 | AU62: 0 | AV62: 0 | AW62: 0 | AX62: 0 | AY62: 0 | AZ62: 0 | BA62: 0 | BB62: 0 | BC62: 0 | BD62: 0 | BE62: 0 | BF62: 0 | BG62: 0 | BH62: 0 | BI62: 0 | BJ62: 0 | BK62: 0 | BL62: 0 | BM62: 0 | BN62: 0 | BO62: 0 | BP62: 0 | BQ62: 0 | BR62: 0 | BS62: 0 | BT62: 0 | BU62: 0 | BV62: 0 | BW62: 0 | BX62: 0 | BY62: 0 | BZ62: 0 | CA62: 0 | CB62: 0 | CC62: 0 | CD62: 0 | CE62: 0 | CF62: 0 | CG62: 0 | CH62: 0 | CI62: 0 | CJ62: 0 | CK62: 0 | CL62: 0 | CM62: 0 | CN62: 0 | CO62: 0 | CP62: 0 | CQ62: 0 | CR62: 0 | CS62: 0 | CT62: 0 | CU62: 0 | CV62: 0 | CW62: 0 | CX62: 0 | CY62: 0 | CZ62: 0 | DA62: 0 | DB62: 0 | DC62: 0 | DE62: 0 | DF62: 0 | DG62: 21 | DH62: 0
B63: E.1.L. | C63: Likutinė vertė | E63: 0.21 | F63: =H63+NPV(FD,I63:INDEX(I63:DC63,PAL)) -> 0 | G63: =SUMIF($H$5:$DC$5,"<="&PAL,$H63:$DC63) -> 0 | H63: 0 | I63: 0 | J63: 0 | K63: 0 | L63: 0 | M63: 0 | N63: 0 | O63: 0 | P63: 0 | Q63: 0 | R63: 0 | S63: 0 | T63: 0 | U63: 0 | V63: 0 | W63: 0 | X63: 0 | Y63: 0 | Z63: 0 | AA63: 0 | AB63: 0 | AC63: 0 | AD63: 0 | AE63: 0 | AF63: 0 | AG63: 0 | AH63: 0 | AI63: 0 | AJ63: 0 | AK63: 0 | AL63: 0 | AM63: 0 | AN63: 0 | AO63: 0 | AP63: 0 | AQ63: 0 | AR63: 0 | AS63: 0 | AT63: 0 | AU63: 0 | AV63: 0 | AW63: 0 | AX63: 0 | AY63: 0 | AZ63: 0 | BA63: 0 | BB63: 0 | BC63: 0 | BD63: 0 | BE63: 0 | BF63: 0 | BG63: 0 | BH63: 0 | BI63: 0 | BJ63: 0 | BK63: 0 | BL63: 0 | BM63: 0 | BN63: 0 | BO63: 0 | BP63: 0 | BQ63: 0 | BR63: 0 | BS63: 0 | BT63: 0 | BU63: 0 | BV63: 0 | BW63: 0 | BX63: 0 | BY63: 0 | BZ63: 0 | CA63: 0 | CB63: 0 | CC63: 0 | CD63: 0 | CE63: 0 | CF63: 0 | CG63: 0 | CH63: 0 | CI63: 0 | CJ63: 0 | CK63: 0 | CL63: 0 | CM63: 0 | CN63: 0 | CO63: 0 | CP63: 0 | CQ63: 0 | CR63: 0 | CS63: 0 | CT63: 0 | CU63: 0 | CV63: 0 | CW63: 0 | CX63: 0 | CY63: 0 | CZ63: 0 | DA63: 0 | DB63: 0 | DC63: 0 | DE63: 0 | DF63: 0 | DG63: 21 | DH63: =DG63/(100+DG63) -> 0.173553719
